Workbook

Sheet Notes
A1: AccumulationDistributionStrategy.xlsm; Traders Tip spreadsheet created for the August 2018 Issue
A2: Coded beginning 2018-June-08 by Ronald McAllister (rpmac_xltt@sprynet.com)
A4: This Workbook demonstrates an EXCEL version of the ideas presented
A5: by Domenic D’Errico in an article titled "Portfolio Strategy Based On Accumulation/Distribution"
A6: which originally appeared in the August 2018 issue of
A7: "Technical Analysis of Stocks and Commodities" magazine.
A9: General Construction Notes
A11: CalculationsAndCharts construction Notes:
B12: Using Radio buttons to allow user selection of the three available compression detection strategies.
B13: Custom Code in DynamicValueScales module to adjust vertical scales of the Consolidation Zone chart for best fit.
A16: Development Notes:
C17: This workbook contains and uses VBA macros and may use VBA Class structures.
C18: Input Data
C19: The data in this workbook is sorted date descending (most recent date at the top). All formulas and
C20: VBA routines are built accordingly.
A22: Reported Error 5 and FIX. Note: The spreadsheet you currently have open already incorporates this fix.
B24: In response to privacy issues encountered by other web service providers, on or about May 13, 2018 Yahoo modified their web page
B25: layouts to incorporate privacy policy notices. These changes do not dramatically change the appearance of the web pages in a browser.
B26: However, these changes did alter the landmarks I was using to capture market state and time from the raw HTML for these pages.
B28: This Error 5 problem exists in each of the 7 Traders Tips spreadsheets from December 2017 through June 2018.
B30: This fix requires changes to 2 VBA procedures in each of those 7 workbooks.
B31: If you are comfortable with the EXCEL builtin VBA editor then you can make the required changes as follows:
B33: Open the VBA editor. Alt-F11 will do the trick
B35: In the VBA editor, open the FIND dialog. CTRL-F will do this.
B37: Replace whatever is in the "FindWhat" box with: Sub DriveFormatPriceHistory
B38: In the Search box, click the radio button next to Current ProJect
B39: Then click the "Find Next" button. Then close the find dialog to get it out of your way.
B41: Scroll down within the DriveFormatPriceHistory procedure to find the following 15 lines of code.
B43: mNdx = InStrRev(MarketState, ":", -1, vbTextCompare)
B44: If IsNumeric(Mid(MarketState, mNdx - 1, 1)) And IsNumeric(Mid(MarketState, mNdx + 1, 1)) Then
B45: ' have a time stamp in MarketState
B46: mNdx1 = InStrRev(MarketState, " ", mNdx, vbTextCompare) ' prior blank
B47: mNdx2 = InStr(mNdx, MarketState, " ", vbTextCompare) ' trailing blank
B48: Chunk1 = Trim(Left(MarketState, mNdx1))
B49: Chunk2 = Trim(Mid(MarketState, mNdx1 + 1, mNdx2 - 1 - mNdx1))
B50: Chunk2 = Left(Chunk2, Len(Chunk2) - 2) & " " & Right(Chunk2, 2) ' put a blank in it
B51: Chunk3 = Trim(Mid(MarketState, mNdx2))
B52: Else
B53: ' have no time stamp
B54: Chunk1 = Trim(Left(MarketState, mNdx))
B55: Chunk2 = WorksheetFunction.Text(Now(), "H:MM AM/PM")
B56: Chunk3 = Trim(Mid(MarketState, mNdx + 1))
B57: End If
B59: Delete those 15 lines and replace them with the following 21 lines of code.
B60: Copy and paste of the entire replacement 21 line block can save a bit of typing.
B62: mNdx = InStrRev(MarketState, ":", -1, vbTextCompare)
B63: If mNdx = 0 Then
B64: ' have no full colon so no timestamp
B65: Chunk1 = "LocalTime"
B66: Chunk2 = WorksheetFunction.Text(Now(), "H:MM AM/PM")
B67: Chunk3 = "Found """ & MarketState & """ to be in error!"
B68: ElseIf IsNumeric(Mid(MarketState, mNdx - 1, 1)) And IsNumeric(Mid(MarketState, mNdx + 1, 1)) Then
B69: ' have a reasonable time stamp in MarketState text string
B70: ' parse out the pieces to make pretty
B71: mNdx1 = InStrRev(MarketState, " ", mNdx, vbTextCompare) ' prior blank
B72: mNdx2 = InStr(mNdx, MarketState, " ", vbTextCompare) ' trailing blank
B73: Chunk1 = Trim(Left(MarketState, mNdx1))
B74: Chunk2 = Trim(Mid(MarketState, mNdx1 + 1, mNdx2 - 1 - mNdx1))
B75: Chunk2 = Left(Chunk2, Len(Chunk2) - 2) & " " & Right(Chunk2, 2) ' put a blank in it
B76: Chunk3 = Trim(Mid(MarketState, mNdx2))
B77: Else
B78: ' have ":" but rest does not look like a time stamp (not in expected format)
B79: Chunk1 = "LocalTime"
B80: Chunk2 = WorksheetFunction.Text(Now(), "H:MM AM/PM")
B81: Chunk3 = "Found """ & MarketState & """ not in expected format!"
B82: End If
B84: Once again, open the FIND dialog. (CTRL-F)
B86: Replace whatever is in the "FindWhat" box with: Sub ExtractCompanyIdFromSummaryText
B87: Verify that the radio button next to Current Project is still selected.
B88: Then click the "Find Next" button. Then close the find dialog to get it out of your way.
B90: Scroll down within the ExtractCompanyIdFromSummaryText procedure to find the following 20 lines of code.
B92: ' forward space to <div id="quote-market-notice" land mark
B93: ' This will be found just before the particular instance
B94: ' of data-reactid="40" or 41 that we would like to use
B95: firstpos = InStr(LastPos, StockSummaryPage_Html_txt, "<div id=""quote-market-notice""", vbTextCompare)
B97: ' THEN for the market state and timestamp
B98: ' forward space to data-reactid="40"> or if that is a null value then
B99: ' forward space to data-reactid="41"> (not sure why it moves between these two)
B100: firstpos = InStr(LastPos, StockSummaryPage_Html_txt, "data-reactid=""40"">", vbTextCompare)
B101: firstpos = firstpos + 18 ' bump over eyecatcher text to first char of market state text
B102: LastPos = InStr(firstpos, StockSummaryPage_Html_txt, "<", vbTextCompare)
B103: TextLen = LastPos - firstpos
B104: If TextLen = 0 Then
B105: ' null string at id = 40 so lets try id = 41
B106: firstpos = InStr(LastPos, StockSummaryPage_Html_txt, "data-reactid=""41"">", vbTextCompare)
B107: firstpos = firstpos + 18 ' bump over eyecatcher text to first char of market state text
B108: LastPos = InStr(firstpos, StockSummaryPage_Html_txt, "<", vbTextCompare)
B109: TextLen = LastPos - firstpos
B110: End If
B111: TimeAndState = Mid(StockSummaryPage_Html_txt, firstpos, TextLen)
B113: Delete those 21 lines and replace them with the following 32 lines of code.
B114: Again, copy and paste of the entire replacement 32 line block will work to save a bit of typing.
B116: ' Forward space to <div id="quote-market-notice" land mark
B117: firstpos = InStr(LastPos, StockSummaryPage_Html_txt, "<div id=""quote-market-notice""", vbTextCompare)
B118: ' My eyeball scan of the raw HTML says no inner Divs at this time.
B119: ' So we can use a simple search for the end of this div
B120: LastPos = InStr(firstpos, StockSummaryPage_Html_txt, "</div>", vbTextCompare)
B121: ' Now back space to char just in front of an expected </span> tag
B122: ' which should be jambed up tight in front of the </div> we just found.
B123: LastPos = LastPos - 8
B124: If Mid(StockSummaryPage_Html_txt, LastPos + 1, 7) <> "</span>" Then
B125: ' Not a "</span>" tag at this exact location!!
B126: ' Construction is not as we have been expecting!
B127: Stop ' to let the world know where we found this problem.
B128: '
B129: ' NOTE: At this time, you may use PF5 (function key 5) to resume processing.
B130: '
B131: TimeAndState = "Error, end span tag ""</span>"" not found as expected."
B132: Exit Sub
B133: End If
B134: TimeAndState = ""
B135: ' now scan backwards to locate the ">" character that
B136: ' immediately preceeds the market Status and Time text
B137: Dim ndx as long
B138: For ndx = LastPos To firstpos Step -1
B139: If Mid(StockSummaryPage_Html_txt, ndx, 1) = ">" Then
B140: ' found it!
B141: ' grab the text we want
B142: TextLen = LastPos - ndx
B143: TimeAndState = Mid(StockSummaryPage_Html_txt, ndx + 1, TextLen)
B144: ' and then get out of Dodge City
B145: Exit For
B146: End If
B147: Next ndx
B149: Close the VBA editor window.
B150: Save your freshly editied work book.
B152: Now go test the work book as you see fit
A154: Reported Data Download Error and FIX. Note: The spreadsheet you currently have open already incorporates this fix.
A155: For T-Tips spreadsheets since December 2017, my first spreadsheet to support for the new Yahoo Finance interface,
A156: through March 2018, several readers have reported the following failure message:
A158: “User Defined Type Not Defined”
A160: If the user selects the “Debug” option, the following statement is highlighted in the VBA code
A162: Dim MSXML2Object As MSXML2.XMLHTTP
A164: For anyone encountering this failure who is comfortable with the VBA editor, two simple edits have proven to fix the problem.
A165: First, find
A166: Dim MSXML2Object As MSXML2.XMLHTTP (which is failing for you and others)
A167: And change it to
A168: Dim MSXML2Object As MSXML2.XMLHTTP60
A170: And then later in the code find and make a necessary mirroring change from
A171: Set MSXML2Object = New MSXML2.XMLHTTP
A172: to
A173: Set MSXML2Object = New MSXML2.XMLHTTP60
A175: This spreadsheet incorporates my first cut at retrieving historical data from the "New", and not necessarily "Improved", Yahoo Finance History Download interface.
B177: My sincere apologies to our Macintosh based readers: MSXML is not supported in your environment. So as it stands this version of the spreadsheet will not work for you.
B178: See "Why this approach does not work for Macintosh" below.
B179: I am investigating cURL as a non-Querytable based approach for the Macintosh environment.
A181: The new Yahoo Finance history download interface has changed rather radically. The biggest hurdle being a pseudo-security requirement of adding a
B182: crumb character string to any URL requesting any type of history download. That crumb must match up (by way of some sort of hash algorithm) with
B183: the Yahoo Finance cookie that must also be sent with any request to the new Yahoo History down load interface.
B185: A crumb value is returned, buried in the HTML for any of what I call the "entry level" Yahoo Finance web pages (no crumb security requirement for entry level pages).
B186: A crumb may come with other Yahoo Finance pages. A crumb may even accompany some of the secured pages as well. I have not checked.
B188: Entry level pages are the top level pages of the various Yahoo Finance dialogs and include: Quote Lookup, Stock Summary Quote, and any of the pages
B189: with links in the horizontal row with the "Summary" link on the quote summary page such as Options, Historical Data, and the rest.
B191: To date I have found no way to get at this crumb value using any native EXCEL capabilities.
B193: So this crumb requirement effectively shuts out any solution that attempts to exclusively use built-in facilities of EXCEL, which is to say a purely Querytables solution.
B195: The approach built for this Traders Tip spreadsheet uses a combination of MSXML and EXCEL QueryTable calls to Load the InputPriceData worksheet.
B197: First I call MSXML to get the HTML text for the Yahoo Summary Quote page using the requested symbol. From this HTML text I extract the full company name,
B198: the market it trades, the market status and time stamp, and finally the associated crumb string. There is a bunch of other useful bits buried in this HTML
B199: text that do not necessarily appear on the web page your browser presents. Perhaps some day I will go after and build a worksheet with these other bits.
B201: Next I add the freshly extracted crumb string to the URLs I use in three separate Querytable calls to retrieve Price history, Split history, and Dividend history respectively.
B203: From there VBA code proceeds as in the past to fill in the cell formulas and formatting that make the "prettied up" InputPriceData sheet.
A205: Why this approach works for Windows:
B206: First, MSXML shares the permanent Internet Explorer web cache where cookies are maintained. Both IE and MSXML automatically
B207: update this cache when a "set cookie" header accompanies a web response. And they both automatically search this shared cache for
B208: cookies and add any "appropriate" cookies to the headers of any web requests they send out.
B209: This cookie handling automation means that even if the response to our MSXML call for the Summary web page includes a new version of
B210: the Yahoo Finance cookie, the imbedded Crumb value will always match the cookie newly installed in the cache!
B212: Second, in the Windows environment the EXCEL Querytable mechanism leans heavily on bits from Internet Explorer. This means that cookie
B213: handling is also automated from the shared cache for Querytable calls. We can count on any appropriate cookies being added to any Querytable call.
B214: We only need to do our part by adding the corresponding Crumb value to complete the security for the Querytable to access Yahoo History downloads.
A216: Why this approach does not work for Macintosh:
B217: For what it is worth, the Macintosh version of the MS Office suite of products do in fact maintain a special, shared amongst themselves only, cookie cache.
B218: They automate cookie handling into and from this cache JUST for the Office products and any Querytable activity they might originate.
B220: This cache is not tied to, nor shared with, any browser that might be installed on the MAC. And I have not found anything with HTTP capabilities similar to
B221: MSXML that can work with that Office product cookie cache.
B223: When working in the MAC EXCEL environment, without that MSXML like capability against the office shared cache, l have no mechanism
B224: to obtain a crumb value that would be a valid match to the Yahoo Finance cookie that will be automatically attached to a Querytable call.
B225: This missing facility pretty much eliminates the use of Mac environment Querytables to access the new Yahoo Finance history download interface.
A227: One very low probability potential "Gottcha" for any Querytables approach.
B228: Yahoo Finance cookies typically have an assigned expiration that is a year out (to the second) from the time they are issued.
B229: Further, these cookies are unique. Yours will not match mine.
B231: If for testing purposes, instead of MSXML, you use a fresh instance of Winhttp (Fresh instance = empty cache = no cookie to automatically send)
B232: every time you call an entry level page, the Yahoo server says "What? Entry level page? With no inbound cookie? Get them a cookie!!"
B233: and will send you a new, unique cookie and will imbed the matching crumb value in the response text for each of these "no cookie attached" calls.
B235: The Gottcha: Lets say that the Yahoo Finance cookie presently in the IE cache has an expiration date and time that just happens
B236: to fall between our MSXML call to the summary page to fetch our crumb and our first (or second, or third) Querytable call.
B237: The Querytable call after the cookie expiration may fail with a cookie and crumb validation error.
B239: Querytable error reporting is atrocious. So we will not get any sort of helpful message here. Just a very generalized message like "failed to connect".
B241: The workaround is to simply go to the InputPriceData tab and click the download button.
B242: This second time through the retrieval process should not fail on a mismatch.
B243: After all, you now have a year before the new cookie that just got put into the cache expires!
A245: Calculation and Chart Worksheet Usage Comments:
C246: In General, Items in Bolded BLUE are items you may freely change to play what-if games.
C247: Be sure to have a backup copy of the spreadsheet before you alter anything else.
A249: Features carried forward from the June 2016 version of my T-Tips Template
A250: Added a pair of buttons near cell F12 that will allow the user to step the charting window forward or backward one bar for each click.
A251: I find this to be a good way to test my understanding of the author's ideas as I step through the evolution of the price behavior and the indicators.
B253: First: In the "Help! I would like to plot data" area.
B254: Added button to resolve #NA problems by locating the bar in the input data with a slightly more recent date than what the user actually requested.
B255: I find this particularly useful when I have a general idea of where I want to be date wise. Now I can pick a set of dates "out of the air".
... 16 more rows

Sheet InputPriceData
A1: Facebook, Inc. (FB) -NasdaqGS (Weekly)
F2: Market State == > | G2: At close: | H2: 16:00:00 | I2: EDT | IJ2: 241.79
A3: Request Online Yahoo History for:
A4: Symbol | B4: FB | D4: Valid | I4: =OFFSET(I4,-2,0,1,1) -> EDT
A5: From | B5: 1950-01-01 | D5: Data | AF5: Trailing 12 Div return (Cur Close)
A6: To | B6: =NOW() -> 2018-06-19T17:25:53 | D6: Types | E6: =VLOOKUP(B7,D7:E10,2,FALSE) -> w
A7: Data Type | B7: Weekly | D7: Daily | E7: d
B8: dbtX2VDkalH | D8: Weekly | E8: w
A9: Available Data | D9: Monthly | E9: m
A10: Bar Count: | B10: 320 | AF10: =OFFSET(AC15,1,0,1,1)/OFFSET(N15,1,0,1,1) -> 0
A11: From: | B11: =IF(B10<=0,"",OFFSET(B15,B10,IF(HistReqDataType="v",1,0),1,1)) -> 2012-05-14 | W11: Trailing 12 Month Dividend Returns
A12: To: | B12: =IF(B10<=0,"",IF(HistReqDataType="v",OFFSET(B15,2,1,1,1),OFFSET(B15,1,0,1,1))) -> 2018-06-19 | W12: Raw Close price on Dividend date | X12: Div Year and Month | Y12: Looking for year ago Div Year and Month | Z12: Year ago Div Date we found | AA12: row offset to year ago div Date | AB12: Same month flag | AC12: Trailing 12 Div Total | AD12: Trailing 12 Div return
Q13: Split History | S13: 0 | T13: Running | U13: Dividend History
B14: Raw Data Values | H14: Adjusted | I14: Price Adjust | J14: Vol Adjust | K14: Adjusted Values | P14: Last | Q14: Effective | R14: Shares | T14: Vol Adjust | V14: 0
A15: RelRow | B15: Date | C15: Open | D15: High | E15: Low | F15: Close | G15: Volume | H15: Close | I15: Factor | J15: Factor | K15: Open | L15: High | M15: Low | N15: Close | O15: Volume | P15: Trade | Q15: 43271 | R15: New | S15: Old | T15: 1 | U15: Date | V15: $ / Share
A16: 1 | B16: 2018-06-19 | C16: 196.235199 | D16: 197.960007 | E16: 193.789993 | F16: 197.490005 | G16: 17313700 | H16: 197.490005 | I16: =IF(F16=0,1,H16/F16) -> 1 | J16: =INDEX(OFFSET($T$15,0,0,$S$13+1,1),MATCH(B16,OFFSET($Q$15,0,0,$S$13+1,1),-1)) -> 1 | K16: =ROUND($I16*C16,2) -> 196.24 | L16: =ROUND($I16*D16,2) -> 197.96 | M16: 193.79 | N16: 197.49 | O16: =G16*J16 -> 17313700
A17: 2 | B17: 2018-06-18 | C17: 194.800003 | D17: 199.580002 | E17: 194.130005 | F17: 198.309998 | G17: 16287800 | H17: 198.309998 | I17: =IF(F17=0,1,H17/F17) -> 1 | J17: =INDEX(OFFSET($T$15,0,0,$S$13+1,1),MATCH(B17,OFFSET($Q$15,0,0,$S$13+1,1),-1)) -> 1 | K17: =ROUND($I17*C17,2) -> 194.8 | L17: =ROUND($I17*D17,2) -> 199.58 | M17: =ROUND($I17*E17,2) -> 194.13 | N17: =ROUND($I17*F17,2) -> 198.31 | O17: =G17*J17 -> 16287800
A18: 3 | B18: 2018-06-11 | C18: 188.809998 | D18: 197.279999 | E18: 188.800003 | F18: 195.850006 | G18: 81327200 | H18: 195.850006 | I18: 1 | J18: 1 | K18: 188.81 | L18: 197.28 | M18: 188.8 | N18: 195.85 | O18: 81327200
A19: 4 | B19: 2018-06-04 | C19: 191.839996 | D19: 195 | E19: 186.429993 | F19: 189.100006 | G19: 91125100 | H19: 189.100006 | I19: 1 | J19: 1 | K19: 191.84 | L19: 195 | M19: 186.43 | N19: 189.1 | O19: 91125100
A20: 5 | B20: 2018-05-28 | C20: 184.339996 | D20: 194.550003 | E20: 183.710007 | F20: 193.990005 | G20: 77942800 | H20: 193.990005 | I20: 1 | J20: 1 | K20: 184.34 | L20: 194.55 | M20: 183.71 | N20: 193.99 | O20: 77942800
A21: 6 | B21: 2018-05-21 | C21: 183.770004 | D21: 186.910004 | E21: 182.179993 | F21: 184.919998 | G21: 65151700 | H21: 184.919998 | I21: 1 | J21: 1 | K21: 183.77 | L21: 186.91 | M21: 182.18 | N21: 184.92 | O21: 65151700
A22: 7 | B22: 2018-05-14 | C22: 187.710007 | D22: 187.860001 | E22: 182.220001 | F22: 182.679993 | G22: 76022800 | H22: 182.679993 | I22: 1 | J22: 1 | K22: 187.71 | L22: 187.86 | M22: 182.22 | N22: 182.68 | O22: 76022800
A23: 8 | B23: 2018-05-07 | C23: 177.350006 | D23: 188.320007 | E23: 177.110001 | F23: 186.990005 | G23: 99836400 | H23: 186.990005 | I23: 1 | J23: 1 | K23: 177.35 | L23: 188.32 | M23: 177.11 | N23: 186.99 | O23: 99836400
A24: 9 | B24: 2018-04-30 | C24: 173.789993 | D24: 178.080002 | E24: 170.229996 | F24: 176.610001 | G24: 118904800 | H24: 176.610001 | I24: 1 | J24: 1 | K24: 173.79 | L24: 178.08 | M24: 170.23 | N24: 176.61 | O24: 118904800
A25: 10 | B25: 2018-04-23 | C25: 167.270004 | D25: 177.100006 | E25: 156.190002 | F25: 173.589996 | G25: 206613200 | H25: 173.589996 | I25: 1 | J25: 1 | K25: 167.27 | L25: 177.1 | M25: 156.19 | N25: 173.59 | O25: 206613200
A26: 11 | B26: 2018-04-16 | C26: 165.720001 | D26: 169 | E26: 163.389999 | F26: 166.279999 | G26: 103186400 | H26: 166.279999 | I26: 1 | J26: 1 | K26: 165.72 | L26: 169 | M26: 163.39 | N26: 166.28 | O26: 103186400
A27: 12 | B27: 2018-04-09 | C27: 157.820007 | D27: 168.649994 | E27: 156.039993 | F27: 164.520004 | G27: 207202700 | H27: 164.520004 | I27: 1 | J27: 1 | K27: 157.82 | L27: 168.65 | M27: 156.04 | N27: 164.52 | O27: 207202700
A28: 13 | B28: 2018-04-02 | C28: 157.809998 | D28: 161.570007 | E28: 150.509995 | F28: 157.199997 | G28: 212319900 | H28: 157.199997 | I28: 1 | J28: 1 | K28: 157.81 | L28: 161.57 | M28: 150.51 | N28: 157.2 | O28: 212319900
A29: 14 | B29: 2018-03-26 | C29: 160.820007 | D29: 162.850006 | E29: 149.020004 | F29: 159.789993 | G29: 324697100 | H29: 159.789993 | I29: 1 | J29: 1 | K29: 160.82 | L29: 162.85 | M29: 149.02 | N29: 159.79 | O29: 324697100
A30: 15 | B30: 2018-03-19 | C30: 177.009995 | D30: 177.169998 | E30: 159.020004 | F30: 159.389999 | G30: 451943400 | H30: 159.389999 | I30: 1 | J30: 1 | K30: 177.01 | L30: 177.17 | M30: 159.02 | N30: 159.39 | O30: 451943400
A31: 16 | B31: 2018-03-12 | C31: 185.229996 | D31: 186.100006 | E31: 181.110001 | F31: 185.089996 | G31: 90208100 | H31: 185.089996 | I31: 1 | J31: 1 | K31: 185.23 | L31: 186.1 | M31: 181.11 | N31: 185.09 | O31: 90208100
A32: 17 | B32: 2018-03-05 | C32: 176.199997 | D32: 185.509995 | E32: 175.889999 | F32: 185.229996 | G32: 86125600 | H32: 185.229996 | I32: 1 | J32: 1 | K32: 176.2 | L32: 185.51 | M32: 175.89 | N32: 185.23 | O32: 86125600
A33: 18 | B33: 2018-02-26 | C33: 184.580002 | D33: 185.660004 | E33: 172.990005 | F33: 176.619995 | G33: 95460000 | H33: 176.619995 | I33: 1 | J33: 1 | K33: 184.58 | L33: 185.66 | M33: 172.99 | N33: 176.62 | O33: 95460000
A34: 19 | B34: 2018-02-19 | C34: 175.770004 | D34: 183.389999 | E34: 175.110001 | F34: 183.289993 | G34: 81877200 | H34: 183.289993 | I34: 1 | J34: 1 | K34: 175.77 | L34: 183.39 | M34: 175.11 | N34: 183.29 | O34: 81877200
A35: 20 | B35: 2018-02-12 | C35: 177.059998 | D35: 180.5 | E35: 171.839996 | F35: 177.360001 | G35: 124768900 | H35: 177.360001 | I35: 1 | J35: 1 | K35: 177.06 | L35: 180.5 | M35: 171.84 | N35: 177.36 | O35: 124768900
A36: 21 | B36: 2018-02-05 | C36: 186.929993 | D36: 190.610001 | E36: 167.179993 | F36: 176.110001 | G36: 176854500 | H36: 176.110001 | I36: 1 | J36: 1 | K36: 186.93 | L36: 190.61 | M36: 167.18 | N36: 176.11 | O36: 176854500
A37: 22 | B37: 2018-01-29 | C37: 188.75 | D37: 195.320007 | E37: 181.839996 | F37: 190.279999 | G37: 165475700 | H37: 190.279999 | I37: 1 | J37: 1 | K37: 188.75 | L37: 195.32 | M37: 181.84 | N37: 190.28 | O37: 165475700
A38: 23 | B38: 2018-01-22 | C38: 180.800003 | D38: 190.660004 | E38: 180.410004 | F38: 190 | G38: 106209700 | H38: 190 | I38: 1 | J38: 1 | K38: 180.8 | L38: 190.66 | M38: 180.41 | N38: 190 | O38: 106209700
A39: 24 | B39: 2018-01-15 | C39: 181.5 | D39: 182.369995 | E39: 175.800003 | F39: 181.289993 | G39: 113964300 | H39: 181.289993 | I39: 1 | J39: 1 | K39: 181.5 | L39: 182.37 | M39: 175.8 | N39: 181.29 | O39: 113964300
A40: 25 | B40: 2018-01-08 | C40: 187.199997 | D40: 188.899994 | E40: 177.399994 | F40: 179.369995 | G40: 128057600 | H40: 179.369995 | I40: 1 | J40: 1 | K40: 187.2 | L40: 188.9 | M40: 177.4 | N40: 179.37 | O40: 128057600
A41: 26 | B41: 2018-01-01 | C41: 177.679993 | D41: 186.899994 | E41: 177.550003 | F41: 186.850006 | G41: 62493900 | H41: 186.850006 | I41: 1 | J41: 1 | K41: 177.68 | L41: 186.9 | M41: 177.55 | N41: 186.85 | O41: 62493900
A42: 27 | B42: 2017-12-25 | C42: 176.630005 | D42: 178.940002 | E42: 174.669998 | F42: 176.460007 | G42: 40875700 | H42: 176.460007 | I42: 1 | J42: 1 | K42: 176.63 | L42: 178.94 | M42: 174.67 | N42: 176.46 | O42: 40875700
A43: 28 | B43: 2017-12-18 | C43: 181.009995 | D43: 181.300003 | E43: 176.229996 | F43: 177.199997 | G43: 64156700 | H43: 177.199997 | I43: 1 | J43: 1 | K43: 181.01 | L43: 181.3 | M43: 176.23 | N43: 177.2 | O43: 64156700
A44: 29 | B44: 2017-12-11 | C44: 179.300003 | D44: 180.490005 | E44: 176.600006 | F44: 180.179993 | G44: 86692500 | H44: 180.179993 | I44: 1 | J44: 1 | K44: 179.3 | L44: 180.49 | M44: 176.6 | N44: 180.18 | O44: 86692500
A45: 30 | B45: 2017-12-04 | C45: 176.289993 | D45: 182.279999 | E45: 169.009995 | F45: 179 | G45: 105188400 | H45: 179 | I45: 1 | J45: 1 | K45: 176.29 | L45: 182.28 | M45: 169.01 | N45: 179 | O45: 105188400
A46: 31 | B46: 2017-11-27 | C46: 182.559998 | D46: 184.25 | E46: 172.339996 | F46: 175.100006 | G46: 114147800 | H46: 175.100006 | I46: 1 | J46: 1 | K46: 182.56 | L46: 184.25 | M46: 172.34 | N46: 175.1 | O46: 114147800
A47: 32 | B47: 2017-11-20 | C47: 178.869995 | D47: 183.149994 | E47: 178.100006 | F47: 182.779999 | G47: 44359000 | H47: 182.779999 | I47: 1 | J47: 1 | K47: 178.87 | L47: 183.15 | M47: 178.1 | N47: 182.78 | O47: 44359000
A48: 33 | B48: 2017-11-13 | C48: 177.5 | D48: 179.979996 | E48: 176.399994 | F48: 179 | G48: 57988600 | H48: 179 | I48: 1 | J48: 1 | K48: 177.5 | L48: 179.98 | M48: 176.4 | N48: 179 | O48: 57988600
A49: 34 | B49: 2017-11-06 | C49: 178.559998 | D49: 180.75 | E49: 177.089996 | F49: 178.460007 | G49: 60415500 | H49: 178.460007 | I49: 1 | J49: 1 | K49: 178.56 | L49: 180.75 | M49: 177.09 | N49: 178.46 | O49: 60415500
A50: 35 | B50: 2017-10-30 | C50: 179.259995 | D50: 182.899994 | E50: 176.710007 | F50: 178.919998 | G50: 138797700 | H50: 178.919998 | I50: 1 | J50: 1 | K50: 179.26 | L50: 182.9 | M50: 176.71 | N50: 178.92 | O50: 138797700
A51: 36 | B51: 2017-10-23 | C51: 175.199997 | D51: 178.210007 | E51: 168.889999 | F51: 177.880005 | G51: 84107200 | H51: 177.880005 | I51: 1 | J51: 1 | K51: 175.2 | L51: 178.21 | M51: 168.89 | N51: 177.88 | O51: 84107200
A52: 37 | B52: 2017-10-16 | C52: 174.490005 | D52: 176.740005 | E52: 172.630005 | F52: 174.979996 | G52: 66891900 | H52: 174.979996 | I52: 1 | J52: 1 | K52: 174.49 | L52: 176.74 | M52: 172.63 | N52: 174.98 | O52: 66891900
A53: 38 | B53: 2017-10-09 | C53: 172.699997 | D53: 174.880005 | E53: 170.800003 | F53: 173.740005 | G53: 61204500 | H53: 173.740005 | I53: 1 | J53: 1 | K53: 172.7 | L53: 174.88 | M53: 170.8 | N53: 173.74 | O53: 61204500
A54: 39 | B54: 2017-10-02 | C54: 171.389999 | D54: 172.369995 | E54: 168.289993 | F54: 172.229996 | G54: 61415600 | H54: 172.229996 | I54: 1 | J54: 1 | K54: 171.39 | L54: 172.37 | M54: 168.29 | N54: 172.23 | O54: 61415600
A55: 40 | B55: 2017-09-25 | C55: 169.240005 | D55: 171.660004 | E55: 161.559998 | F55: 170.869995 | G55: 111376500 | H55: 170.869995 | I55: 1 | J55: 1 | K55: 169.24 | L55: 171.66 | M55: 161.56 | N55: 170.87 | O55: 111376500
A56: 41 | B56: 2017-09-18 | C56: 171.990005 | D56: 173.050003 | E56: 169.220001 | F56: 170.539993 | G56: 61645200 | H56: 170.539993 | I56: 1 | J56: 1 | K56: 171.99 | L56: 173.05 | M56: 169.22 | N56: 170.54 | O56: 61645200
A57: 42 | B57: 2017-09-11 | C57: 172.399994 | D57: 174 | E57: 170.259995 | F57: 171.639999 | G57: 63953800 | H57: 171.639999 | I57: 1 | J57: 1 | K57: 172.4 | L57: 174 | M57: 170.26 | N57: 171.64 | O57: 63953800
A58: 43 | B58: 2017-09-04 | C58: 171.270004 | D58: 173.490005 | E58: 169.550003 | F58: 170.949997 | G58: 56165200 | H58: 170.949997 | I58: 1 | J58: 1 | K58: 171.27 | L58: 173.49 | M58: 169.55 | N58: 170.95 | O58: 56165200
A59: 44 | B59: 2017-08-28 | C59: 166.910004 | D59: 172.919998 | E59: 165 | F59: 172.020004 | G59: 59717100 | H59: 172.020004 | I59: 1 | J59: 1 | K59: 166.91 | L59: 172.92 | M59: 165 | N59: 172.02 | O59: 59717100
A60: 45 | B60: 2017-08-21 | C60: 167.160004 | D60: 169.869995 | E60: 165.820007 | F60: 166.320007 | G60: 59799900 | H60: 166.320007 | I60: 1 | J60: 1 | K60: 167.16 | L60: 169.87 | M60: 165.82 | N60: 166.32 | O60: 59799900
A61: 46 | B61: 2017-08-14 | C61: 170.089996 | D61: 171.5 | E61: 166.210007 | F61: 167.410004 | G61: 69772900 | H61: 167.410004 | I61: 1 | J61: 1 | K61: 170.09 | L61: 171.5 | M61: 166.21 | N61: 167.41 | O61: 69772900
A62: 47 | B62: 2017-08-07 | C62: 169.949997 | D62: 173.050003 | E62: 166.850006 | F62: 168.080002 | G62: 72620200 | H62: 168.080002 | I62: 1 | J62: 1 | K62: 169.95 | L62: 173.05 | M62: 166.85 | N62: 168.08 | O62: 72620200
A63: 48 | B63: 2017-07-31 | C63: 172 | D63: 172.720001 | E63: 166.910004 | F63: 169.619995 | G63: 78869200 | H63: 169.619995 | I63: 1 | J63: 1 | K63: 172 | L63: 172.72 | M63: 166.91 | N63: 169.62 | O63: 78869200
A64: 49 | B64: 2017-07-24 | C64: 164.639999 | D64: 175.490005 | E64: 163.860001 | F64: 172.449997 | G64: 161455400 | H64: 172.449997 | I64: 1 | J64: 1 | K64: 164.64 | L64: 175.49 | M64: 163.86 | N64: 172.45 | O64: 161455400
A65: 50 | B65: 2017-07-17 | C65: 160.25 | D65: 165.699997 | E65: 158.809998 | F65: 164.429993 | G65: 96122400 | H65: 164.429993 | I65: 1 | J65: 1 | K65: 160.25 | L65: 165.7 | M65: 158.81 | N65: 164.43 | O65: 96122400
A66: 51 | B66: 2017-07-10 | C66: 151.690002 | D66: 160.320007 | E66: 151.509995 | F66: 159.970001 | G66: 80086200 | H66: 159.970001 | I66: 1 | J66: 1 | K66: 151.69 | L66: 160.32 | M66: 151.51 | N66: 159.97 | O66: 80086200
A67: 52 | B67: 2017-07-03 | C67: 151.720001 | D67: 152.149994 | E67: 147.800003 | F67: 151.440002 | G67: 56764700 | H67: 151.440002 | I67: 1 | J67: 1 | K67: 151.72 | L67: 152.15 | M67: 147.8 | N67: 151.44 | O67: 56764700
A68: 53 | B68: 2017-06-26 | C68: 156.25 | D68: 156.5 | E68: 148.919998 | F68: 150.979996 | G68: 95769100 | H68: 150.979996 | I68: 1 | J68: 1 | K68: 156.25 | L68: 156.5 | M68: 148.92 | N68: 150.98 | O68: 95769100
A69: 54 | B69: 2017-06-19 | C69: 151.710007 | D69: 155.199997 | E69: 151.710007 | F69: 155.070007 | G69: 79842700 | H69: 155.070007 | I69: 1 | J69: 1 | K69: 151.71 | L69: 155.2 | M69: 151.71 | N69: 155.07 | O69: 79842700
A70: 55 | B70: 2017-06-12 | C70: 148.169998 | D70: 152.399994 | E70: 144.559998 | F70: 150.639999 | G70: 116339000 | H70: 150.639999 | I70: 1 | J70: 1 | K70: 148.17 | L70: 152.4 | M70: 144.56 | N70: 150.64 | O70: 116339000
A71: 56 | B71: 2017-06-05 | C71: 153.639999 | D71: 155.589996 | E71: 146.610001 | F71: 149.600006 | G71: 91341600 | H71: 149.600006 | I71: 1 | J71: 1 | K71: 153.64 | L71: 155.59 | M71: 146.61 | N71: 149.6 | O71: 91341600
A72: 57 | B72: 2017-05-29 | C72: 151.970001 | D72: 153.630005 | E72: 150.300003 | F72: 153.610001 | G72: 62634900 | H72: 153.610001 | I72: 1 | J72: 1 | K72: 151.97 | L72: 153.63 | M72: 150.3 | N72: 153.61 | O72: 62634900
A73: 58 | B73: 2017-05-22 | C73: 148.080002 | D73: 152.589996 | E73: 147.25 | F73: 152.130005 | G73: 78154500 | H73: 152.130005 | I73: 1 | J73: 1 | K73: 148.08 | L73: 152.59 | M73: 147.25 | N73: 152.13 | O73: 78154500
A74: 59 | B74: 2017-05-15 | C74: 150.169998 | D74: 151.479996 | E74: 144.419998 | F74: 148.059998 | G74: 97135100 | H74: 148.059998 | I74: 1 | J74: 1 | K74: 150.17 | L74: 151.48 | M74: 144.42 | N74: 148.06 | O74: 97135100
A75: 60 | B75: 2017-05-08 | C75: 150.710007 | D75: 152.589996 | E75: 148.860001 | F75: 150.330002 | G75: 66802200 | H75: 150.330002 | I75: 1 | J75: 1 | K75: 150.71 | L75: 152.59 | M75: 148.86 | N75: 150.33 | O75: 66802200
A76: 61 | B76: 2017-05-01 | C76: 151.740005 | D76: 153.600006 | E76: 148.720001 | F76: 150.240005 | G76: 130245200 | H76: 150.240005 | I76: 1 | J76: 1 | K76: 151.74 | L76: 153.6 | M76: 148.72 | N76: 150.24 | O76: 130245200
A77: 62 | B77: 2017-04-24 | C77: 144.960007 | D77: 151.529999 | E77: 144.339996 | F77: 150.25 | G77: 86412800 | H77: 150.25 | I77: 1 | J77: 1 | K77: 144.96 | L77: 151.53 | M77: 144.34 | N77: 150.25 | O77: 86412800
A78: 63 | B78: 2017-04-17 | C78: 139.759995 | D78: 144.25 | E78: 139.75 | F78: 143.679993 | G78: 70241300 | H78: 143.679993 | I78: 1 | J78: 1 | K78: 139.76 | L78: 144.25 | M78: 139.75 | N78: 143.68 | O78: 70241300
A79: 64 | B79: 2017-04-10 | C79: 141 | D79: 141.429993 | E79: 138.809998 | F79: 139.389999 | G79: 48255600 | H79: 139.389999 | I79: 1 | J79: 1 | K79: 141 | L79: 141.43 | M79: 138.81 | N79: 139.39 | O79: 48255600
A80: 65 | B80: 2017-04-03 | C80: 141.929993 | D80: 143.440002 | E80: 140.240005 | F80: 140.779999 | G80: 70592400 | H80: 140.779999 | I80: 1 | J80: 1 | K80: 141.93 | L80: 143.44 | M80: 140.24 | N80: 140.78 | O80: 70592400
A81: 66 | B81: 2017-03-27 | C81: 139.050003 | D81: 142.949997 | E81: 138.770004 | F81: 142.050003 | G81: 67889800 | H81: 142.050003 | I81: =IF(F81=0,1,H81/F81) -> 1 | J81: =INDEX(OFFSET($T$15,0,0,$S$13+1,1),MATCH(B81,OFFSET($Q$15,0,0,$S$13+1,1),-1)) -> 1 | K81: =ROUND($I81*C81,2) -> 139.05 | L81: =ROUND($I81*D81,2) -> 142.95 | M81: =ROUND($I81*E81,2) -> 138.77 | N81: =ROUND($I81*F81,2) -> 142.05 | O81: =G81*J81 -> 67889800
A82: 67 | B82: 2017-03-20 | C82: 139.710007 | D82: 142.309998 | E82: 137.600006 | F82: 140.339996 | G82: 88737200 | H82: 140.339996 | I82: 1 | J82: 1 | K82: 139.71 | L82: 142.31 | M82: 137.6 | N82: 140.34 | O82: 88737200
A83: 68 | B83: 2017-03-13 | C83: 138.710007 | D83: 140.339996 | E83: 138.490005 | F83: 139.839996 | G83: 77450000 | H83: 139.839996 | I83: 1 | J83: 1 | K83: 138.71 | L83: 140.34 | M83: 138.49 | N83: 139.84 | O83: 77450000
A84: 69 | B84: 2017-03-06 | C84: 136.880005 | D84: 139.490005 | E84: 136.509995 | F84: 138.789993 | G84: 68309200 | H84: 138.789993 | I84: 1 | J84: 1 | K84: 136.88 | L84: 139.49 | M84: 136.51 | N84: 138.79 | O84: 68309200
A85: 70 | B85: 2017-02-27 | C85: 135.259995 | D85: 137.820007 | E85: 134.75 | F85: 137.169998 | G85: 70131200 | H85: 137.169998 | I85: 1 | J85: 1 | K85: 135.26 | L85: 137.82 | M85: 134.75 | N85: 137.17 | O85: 70131200
A86: 71 | B86: 2017-02-20 | C86: 133.5 | D86: 136.789993 | E86: 132.899994 | F86: 135.440002 | G86: 73167400 | H86: 135.440002 | I86: 1 | J86: 1 | K86: 133.5 | L86: 136.79 | M86: 132.9 | N86: 135.44 | O86: 73167400
A87: 72 | B87: 2017-02-13 | C87: 134.699997 | D87: 134.699997 | E87: 132.550003 | F87: 133.529999 | G87: 66200400 | H87: 133.529999 | I87: 1 | J87: 1 | K87: 134.7 | L87: 134.7 | M87: 132.55 | N87: 133.53 | O87: 66200400
A88: 73 | B88: 2017-02-06 | C88: 130.979996 | D88: 134.940002 | E88: 130.300003 | F88: 134.190002 | G88: 85578000 | H88: 134.190002 | I88: 1 | J88: 1 | K88: 130.98 | L88: 134.94 | M88: 130.3 | N88: 134.19 | O88: 85578000
A89: 74 | B89: 2017-01-30 | C89: 131.580002 | D89: 135.490005 | E89: 129.520004 | F89: 130.979996 | G89: 168057700 | H89: 130.979996 | I89: 1 | J89: 1 | K89: 131.58 | L89: 135.49 | M89: 129.52 | N89: 130.98 | O89: 168057700
A90: 75 | B90: 2017-01-23 | C90: 127.309998 | D90: 133.139999 | E90: 126.949997 | F90: 132.179993 | G90: 90047200 | H90: 132.179993 | I90: 1 | J90: 1 | K90: 127.31 | L90: 133.14 | M90: 126.95 | N90: 132.18 | O90: 90047200
A91: 76 | B91: 2017-01-16 | C91: 128.039993 | D91: 128.479996 | E91: 126.779999 | F91: 127.040001 | G91: 59666600 | H91: 127.040001 | I91: 1 | J91: 1 | K91: 128.04 | L91: 128.48 | M91: 126.78 | N91: 127.04 | O91: 59666600
A92: 77 | B92: 2017-01-09 | C92: 123.550003 | D92: 129.270004 | E92: 123.040001 | F92: 128.339996 | G92: 102080900 | H92: 128.339996 | I92: 1 | J92: 1 | K92: 123.55 | L92: 129.27 | M92: 123.04 | N92: 128.34 | O92: 102080900
A93: 78 | B93: 2017-01-02 | C93: 116.029999 | D93: 123.879997 | E93: 115.510002 | F93: 123.410004 | G93: 88332300 | H93: 123.410004 | I93: 1 | J93: 1 | K93: 116.03 | L93: 123.88 | M93: 115.51 | N93: 123.41 | O93: 88332300
A94: 79 | B94: 2016-12-26 | C94: 116.959999 | D94: 118.68 | E94: 114.769997 | F94: 115.050003 | G94: 52744400 | H94: 115.050003 | I94: 1 | J94: 1 | K94: 116.96 | L94: 118.68 | M94: 114.77 | N94: 115.05 | O94: 52744400
A95: 80 | B95: 2016-12-19 | C95: 119.849998 | D95: 120.360001 | E95: 116.300003 | F95: 117.269997 | G95: 67506000 | H95: 117.269997 | I95: 1 | J95: 1 | K95: 119.85 | L95: 120.36 | M95: 116.3 | N95: 117.27 | O95: 67506000
A96: 81 | B96: 2016-12-12 | C96: 119.220001 | D96: 122.5 | E96: 117.610001 | F96: 119.870003 | G96: 118800800 | H96: 119.870003 | I96: 1 | J96: 1 | K96: 119.22 | L96: 122.5 | M96: 117.61 | N96: 119.87 | O96: 118800800
A97: 82 | B97: 2016-12-05 | C97: 115.949997 | D97: 119.940002 | E97: 115.07 | F97: 119.68 | G97: 101153900 | H97: 119.68 | I97: 1 | J97: 1 | K97: 115.95 | L97: 119.94 | M97: 115.07 | N97: 119.68 | O97: 101153900
A98: 83 | B98: 2016-11-28 | C98: 120.120003 | D98: 122.099998 | E98: 114 | F98: 115.400002 | G98: 135528600 | H98: 115.400002 | I98: 1 | J98: 1 | K98: 120.12 | L98: 122.1 | M98: 114 | N98: 115.4 | O98: 135528600
A99: 84 | B99: 2016-11-21 | C99: 118.199997 | D99: 122.980003 | E99: 117.800003 | F99: 120.379997 | G99: 85755600 | H99: 120.379997 | I99: 1 | J99: 1 | K99: 118.2 | L99: 122.98 | M99: 117.8 | N99: 120.38 | O99: 85755600
A100: 85 | B100: 2016-11-14 | C100: 119.129997 | D100: 119.129997 | E100: 113.550003 | F100: 117.019997 | G100: 159751300 | H100: 117.019997 | I100: 1 | J100: 1 | K100: 119.13 | L100: 119.13 | M100: 113.55 | N100: 117.02 | O100: 159751300
A101: 86 | B101: 2016-11-07 | C101: 122.830002 | D101: 124.610001 | E101: 115.269997 | F101: 119.019997 | G101: 174979500 | H101: 119.019997 | I101: 1 | J101: 1 | K101: 122.83 | L101: 124.61 | M101: 115.27 | N101: 119.02 | O101: 174979500
A102: 87 | B102: 2016-10-31 | C102: 132.009995 | D102: 132.119995 | E102: 119.25 | F102: 120.75 | G102: 171699500 | H102: 120.75 | I102: 1 | J102: 1 | K102: 132.01 | L102: 132.12 | M102: 119.25 | N102: 120.75 | O102: 171699500
A103: 88 | B103: 2016-10-24 | C103: 132.720001 | D103: 133.5 | E103: 129.270004 | F103: 131.289993 | G103: 85178600 | H103: 131.289993 | I103: 1 | J103: 1 | K103: 132.72 | L103: 133.5 | M103: 129.27 | N103: 131.29 | O103: 85178600
A104: 89 | B104: 2016-10-17 | C104: 128.199997 | D104: 132.130005 | E104: 127.32 | F104: 132.070007 | G104: 73817500 | H104: 132.070007 | I104: 1 | J104: 1 | K104: 128.2 | L104: 132.13 | M104: 127.32 | N104: 132.07 | O104: 73817500
A105: 90 | B105: 2016-10-10 | C105: 129.679993 | D105: 130.699997 | E105: 126.75 | F105: 127.879997 | G105: 74196900 | H105: 127.879997 | I105: 1 | J105: 1 | K105: 129.68 | L105: 130.7 | M105: 126.75 | N105: 127.88 | O105: 74196900
A106: 91 | B106: 2016-10-03 | C106: 128.380005 | D106: 129.279999 | E106: 127.550003 | F106: 128.990005 | G106: 64338300 | H106: 128.990005 | I106: 1 | J106: 1 | K106: 128.38 | L106: 129.28 | M106: 127.55 | N106: 128.99 | O106: 64338300
A107: 92 | B107: 2016-09-26 | C107: 127.370003 | D107: 129.470001 | E107: 126.800003 | F107: 128.270004 | G107: 75684700 | H107: 128.270004 | I107: 1 | J107: 1 | K107: 127.37 | L107: 129.47 | M107: 126.8 | N107: 128.27 | O107: 75684700
A108: 93 | B108: 2016-09-19 | C108: 129.910004 | D108: 130.729996 | E108: 127.300003 | F108: 127.959999 | G108: 83936500 | H108: 127.959999 | I108: 1 | J108: 1 | K108: 129.91 | L108: 130.73 | M108: 127.3 | N108: 127.96 | O108: 83936500
A109: 94 | B109: 2016-09-12 | C109: 125.959999 | D109: 129.179993 | E109: 125.75 | F109: 129.070007 | G109: 94156500 | H109: 129.070007 | I109: 1 | J109: 1 | K109: 125.96 | L109: 129.18 | M109: 125.75 | N109: 129.07 | O109: 94156500
A110: 95 | B110: 2016-09-05 | C110: 126.669998 | D110: 131.979996 | E110: 126.470001 | F110: 127.099998 | G110: 96923100 | H110: 127.099998 | I110: 1 | J110: 1 | K110: 126.67 | L110: 131.98 | M110: 126.47 | N110: 127.1 | O110: 96923100
A111: 96 | B111: 2016-08-29 | C111: 124.349998 | D111: 126.860001 | E111: 124.349998 | F111: 126.510002 | G111: 73475400 | H111: 126.510002 | I111: 1 | J111: 1 | K111: 124.35 | L111: 126.86 | M111: 124.35 | N111: 126.51 | O111: 73475400
A112: 97 | B112: 2016-08-22 | C112: 123.330002 | D112: 125.190002 | E112: 123.089996 | F112: 124.959999 | G112: 68175200 | H112: 124.959999 | I112: 1 | J112: 1 | K112: 123.33 | L112: 125.19 | M112: 123.09 | N112: 124.96 | O112: 68175200
A113: 98 | B113: 2016-08-15 | C113: 124.910004 | D113: 124.919998 | E113: 122.779999 | F113: 123.559998 | G113: 71400800 | H113: 123.559998 | I113: 1 | J113: 1 | K113: 124.91 | L113: 124.92 | M113: 122.78 | N113: 123.56 | O113: 71400800
A114: 99 | B114: 2016-08-08 | C114: 125.25 | D114: 126.089996 | E114: 124.18 | F114: 124.879997 | G114: 69341500 | H114: 124.879997 | I114: 1 | J114: 1 | K114: 125.25 | L114: 126.09 | M114: 124.18 | N114: 124.88 | O114: 69341500
A115: 100 | B115: 2016-08-01 | C115: 123.849998 | D115: 125.839996 | E115: 122.07 | F115: 125.150002 | G115: 108722600 | H115: 125.150002 | I115: 1 | J115: 1 | K115: 123.85 | L115: 125.84 | M115: 122.07 | N115: 125.15 | O115: 108722600
A116: 101 | B116: 2016-07-25 | C116: 121.389999 | D116: 128.330002 | E116: 117.779999 | F116: 123.940002 | G116: 196787900 | H116: 123.940002 | I116: 1 | J116: 1 | K116: 121.39 | L116: 128.33 | M116: 117.78 | N116: 123.94 | O116: 196787900
A117: 102 | B117: 2016-07-18 | C117: 117.32 | D117: 122.199997 | E117: 116.889999 | F117: 121 | G117: 98680300 | H117: 121 | I117: 1 | J117: 1 | K117: 117.32 | L117: 122.2 | M117: 116.89 | N117: 121 | O117: 98680300
A118: 103 | B118: 2016-07-11 | C118: 117.709999 | D118: 118.720001 | E118: 116.580002 | F118: 116.860001 | G118: 80362700 | H118: 116.860001 | I118: 1 | J118: 1 | K118: 117.71 | L118: 118.72 | M118: 116.58 | N118: 116.86 | O118: 80362700
A119: 104 | B119: 2016-07-04 | C119: 113.940002 | D119: 117.5 | E119: 112.970001 | F119: 117.239998 | G119: 73287800 | H119: 117.239998 | I119: 1 | J119: 1 | K119: 113.94 | L119: 117.5 | M119: 112.97 | N119: 117.24 | O119: 73287800
A120: 105 | B120: 2016-06-27 | C120: 111.57 | D120: 115.18 | E120: 108.230003 | F120: 114.190002 | G120: 122085200 | H120: 114.190002 | I120: 1 | J120: 1 | K120: 111.57 | L120: 115.18 | M120: 108.23 | N120: 114.19 | O120: 122085200
A121: 106 | B121: 2016-06-20 | C121: 113.769997 | D121: 115.209999 | E121: 111 | F121: 112.080002 | G121: 111618000 | H121: 112.080002 | I121: 1 | J121: 1 | K121: 113.77 | L121: 115.21 | M121: 111 | N121: 112.08 | O121: 111618000
A122: 107 | B122: 2016-06-13 | C122: 115 | D122: 115.480003 | E122: 112.559998 | F122: 113.019997 | G122: 113036700 | H122: 113.019997 | I122: 1 | J122: 1 | K122: 115 | L122: 115.48 | M122: 112.56 | N122: 113.02 | O122: 113036700
A123: 108 | B123: 2016-06-06 | C123: 118.620003 | D123: 119.43 | E123: 116.260002 | F123: 116.620003 | G123: 76723300 | H123: 116.620003 | I123: 1 | J123: 1 | K123: 118.62 | L123: 119.43 | M123: 116.26 | N123: 116.62 | O123: 76723300
A124: 109 | B124: 2016-05-30 | C124: 119.459999 | D124: 120.099998 | E124: 117.82 | F124: 118.470001 | G124: 65902100 | H124: 118.470001 | I124: 1 | J124: 1 | K124: 119.46 | L124: 120.1 | M124: 117.82 | N124: 118.47 | O124: 65902100
A125: 110 | B125: 2016-05-23 | C125: 117.419998 | D125: 119.849998 | E125: 115.940002 | F125: 119.379997 | G125: 92255900 | H125: 119.379997 | I125: 1 | J125: 1 | K125: 117.42 | L125: 119.85 | M125: 115.94 | N125: 119.38 | O125: 92255900
A126: 111 | B126: 2016-05-16 | C126: 119.379997 | D126: 119.610001 | E126: 115.879997 | F126: 117.349998 | G126: 113707600 | H126: 117.349998 | I126: 1 | J126: 1 | K126: 119.38 | L126: 119.61 | M126: 115.88 | N126: 117.35 | O126: 113707600
A127: 112 | B127: 2016-05-09 | C127: 119.540001 | D127: 121.080002 | E127: 118.900002 | F127: 119.809998 | G127: 106140000 | H127: 119.809998 | I127: 1 | J127: 1 | K127: 119.54 | L127: 121.08 | M127: 118.9 | N127: 119.81 | O127: 106140000
A128: 113 | B128: 2016-05-02 | C128: 117.830002 | D128: 119.639999 | E128: 116.57 | F128: 119.489998 | G128: 124045200 | H128: 119.489998 | I128: 1 | J128: 1 | K128: 117.83 | L128: 119.64 | M128: 116.57 | N128: 119.49 | O128: 124045200
A129: 114 | B129: 2016-04-25 | C129: 109.870003 | D129: 120.790001 | E129: 106.309998 | F129: 117.580002 | G129: 220003200 | H129: 117.580002 | I129: 1 | J129: 1 | K129: 109.87 | L129: 120.79 | M129: 106.31 | N129: 117.58 | O129: 220003200
A130: 115 | B130: 2016-04-18 | C130: 109.739998 | D130: 114.040001 | E130: 109.010002 | F130: 110.559998 | G130: 131664500 | H130: 110.559998 | I130: 1 | J130: 1 | K130: 109.74 | L130: 114.04 | M130: 109.01 | N130: 110.56 | O130: 131664500
A131: 116 | B131: 2016-04-11 | C131: 110.699997 | D131: 112.650002 | E131: 106.519997 | F131: 109.639999 | G131: 203519300 | H131: 109.639999 | I131: 1 | J131: 1 | K131: 110.7 | L131: 112.65 | M131: 106.52 | N131: 109.64 | O131: 203519300
A132: 117 | B132: 2016-04-04 | C132: 114.07 | D132: 114.889999 | E132: 109.900002 | F132: 110.629997 | G132: 161185000 | H132: 110.629997 | I132: 1 | J132: 1 | K132: 114.07 | L132: 114.89 | M132: 109.9 | N132: 110.63 | O132: 161185000
A133: 118 | B133: 2016-03-28 | C133: 113.32 | D133: 116.989998 | E133: 112.949997 | F133: 116.059998 | G133: 130320800 | H133: 116.059998 | I133: 1 | J133: 1 | K133: 113.32 | L133: 116.99 | M133: 112.95 | N133: 116.06 | O133: 130320800
A134: 119 | B134: 2016-03-21 | C134: 111.660004 | D134: 113.190002 | E134: 111.029999 | F134: 113.050003 | G134: 73850200 | H134: 113.050003 | I134: 1 | J134: 1 | K134: 111.66 | L134: 113.19 | M134: 111.03 | N134: 113.05 | O134: 73850200
A135: 120 | B135: 2016-03-14 | C135: 109.279999 | D135: 112.690002 | E135: 108.769997 | F135: 111.449997 | G135: 120110800 | H135: 111.449997 | I135: 1 | J135: 1 | K135: 109.28 | L135: 112.69 | M135: 108.77 | N135: 111.45 | O135: 120110800
A136: 121 | B136: 2016-03-07 | C136: 108.07 | D136: 109.419998 | E136: 104.400002 | F136: 109.410004 | G136: 123025000 | H136: 109.410004 | I136: 1 | J136: 1 | K136: 108.07 | L136: 109.42 | M136: 104.4 | N136: 109.41 | O136: 123025000
A137: 122 | B137: 2016-02-29 | C137: 107.599998 | D137: 110.550003 | E137: 106.75 | F137: 108.389999 | G137: 131538900 | H137: 108.389999 | I137: 1 | J137: 1 | K137: 107.6 | L137: 110.55 | M137: 106.75 | N137: 108.39 | O137: 131538900
A138: 123 | B138: 2016-02-22 | C138: 105.489998 | D138: 109.449997 | E138: 102.739998 | F138: 107.919998 | G138: 151923800 | H138: 107.919998 | I138: 1 | J138: 1 | K138: 105.49 | L138: 109.45 | M138: 102.74 | N138: 107.92 | O138: 151923800
A139: 124 | B139: 2016-02-15 | C139: 103.800003 | D139: 106 | E139: 100.239998 | F139: 104.57 | G139: 151758600 | H139: 104.57 | I139: 1 | J139: 1 | K139: 103.8 | L139: 106 | M139: 100.24 | N139: 104.57 | O139: 151758600
A140: 125 | B140: 2016-02-08 | C140: 100.410004 | D140: 105.110001 | E140: 96.82 | F140: 102.010002 | G140: 258836600 | H140: 102.010002 | I140: 1 | J140: 1 | K140: 100.41 | L140: 105.11 | M140: 96.82 | N140: 102.01 | O140: 258836600
A141: 126 | B141: 2016-02-01 | C141: 112.269997 | D141: 117.589996 | E141: 103.18 | F141: 104.07 | G141: 278373800 | H141: 104.07 | I141: 1 | J141: 1 | K141: 112.27 | L141: 117.59 | M141: 103.18 | N141: 104.07 | O141: 278373800
A142: 127 | B142: 2016-01-25 | C142: 98.720001 | D142: 112.839996 | E142: 94.230003 | F142: 112.209999 | G142: 288033600 | H142: 112.209999 | I142: 1 | J142: 1 | K142: 98.72 | L142: 112.84 | M142: 94.23 | N142: 112.21 | O142: 288033600
A143: 128 | B143: 2016-01-18 | C143: 96.529999 | D143: 98.07 | E143: 89.370003 | F143: 97.940002 | G143: 151064000 | H143: 97.940002 | I143: 1 | J143: 1 | K143: 96.53 | L143: 98.07 | M143: 89.37 | N143: 97.94 | O143: 151064000
A144: 129 | B144: 2016-01-11 | C144: 97.910004 | D144: 100.580002 | E144: 92.449997 | F144: 94.970001 | G144: 186470500 | H144: 94.970001 | I144: 1 | J144: 1 | K144: 97.91 | L144: 100.58 | M144: 92.45 | N144: 94.97 | O144: 186470500
A145: 130 | B145: 2016-01-04 | C145: 101.949997 | D145: 103.769997 | E145: 97.029999 | F145: 97.330002 | G145: 166842000 | H145: 97.330002 | I145: =IF(F145=0,1,H145/F145) -> 1 | J145: =INDEX(OFFSET($T$15,0,0,$S$13+1,1),MATCH(B145,OFFSET($Q$15,0,0,$S$13+1,1),-1)) -> 1 | K145: =ROUND($I145*C145,2) -> 101.95 | L145: =ROUND($I145*D145,2) -> 103.77 | M145: =ROUND($I145*E145,2) -> 97.03 | N145: =ROUND($I145*F145,2) -> 97.33 | O145: =G145*J145 -> 166842000
A146: 131 | B146: 2015-12-28 | C146: 105.019997 | D146: 107.739998 | E146: 104.529999 | F146: 104.660004 | G146: 61717200 | H146: 104.660004 | I146: 1 | J146: 1 | K146: 105.02 | L146: 107.74 | M146: 104.53 | N146: 104.66 | O146: 61717200
A147: 132 | B147: 2015-12-21 | C147: 104.910004 | D147: 106.110001 | E147: 103.599998 | F147: 105.019997 | G147: 56671200 | H147: 105.019997 | I147: 1 | J147: 1 | K147: 104.91 | L147: 106.11 | M147: 103.6 | N147: 105.02 | O147: 56671200
A148: 133 | B148: 2015-12-14 | C148: 102.290001 | D148: 107.75 | E148: 101.459999 | F148: 104.040001 | G148: 126762800 | H148: 104.040001 | I148: 1 | J148: 1 | K148: 102.29 | L148: 107.75 | M148: 101.46 | N148: 104.04 | O148: 126762800
A149: 134 | B149: 2015-12-07 | C149: 106.480003 | D149: 106.910004 | E149: 101.910004 | F149: 102.120003 | G149: 103236200 | H149: 102.120003 | I149: 1 | J149: 1 | K149: 106.48 | L149: 106.91 | M149: 101.91 | N149: 102.12 | O149: 103236200
A150: 135 | B150: 2015-11-30 | C150: 105.839996 | D150: 107.919998 | E150: 103.349998 | F150: 106.18 | G150: 112055400 | H150: 106.18 | I150: 1 | J150: 1 | K150: 105.84 | L150: 107.92 | M150: 103.35 | N150: 106.18 | O150: 112055400
A151: 136 | B151: 2015-11-23 | C151: 107.190002 | D151: 107.470001 | E151: 104.389999 | F151: 105.449997 | G151: 64538400 | H151: 105.449997 | I151: 1 | J151: 1 | K151: 107.19 | L151: 107.47 | M151: 104.39 | N151: 105.45 | O151: 64538400
A152: 137 | B152: 2015-11-16 | C152: 103.32 | D152: 107.879997 | E152: 100.470001 | F152: 107.32 | G152: 147603100 | H152: 107.32 | I152: 1 | J152: 1 | K152: 103.32 | L152: 107.88 | M152: 100.47 | N152: 107.32 | O152: 147603100
A153: 138 | B153: 2015-11-09 | C153: 107 | D153: 109.870003 | E153: 103.830002 | F153: 103.949997 | G153: 127675400 | H153: 103.949997 | I153: 1 | J153: 1 | K153: 107 | L153: 109.87 | M153: 103.83 | N153: 103.95 | O153: 127675400
A154: 139 | B154: 2015-11-02 | C154: 101.720001 | D154: 110.650002 | E154: 101.18 | F154: 107.099998 | G154: 182169800 | H154: 107.099998 | I154: 1 | J154: 1 | K154: 101.72 | L154: 110.65 | M154: 101.18 | N154: 107.1 | O154: 182169800
A155: 140 | B155: 2015-10-26 | C155: 102.199997 | D155: 105.120003 | E155: 101.550003 | F155: 101.970001 | G155: 127425200 | H155: 101.970001 | I155: 1 | J155: 1 | K155: 102.2 | L155: 105.12 | M155: 101.55 | N155: 101.97 | O155: 127425200
A156: 141 | B156: 2015-10-19 | C156: 97.18 | D156: 102.849998 | E156: 96.470001 | F156: 102.190002 | G156: 145550000 | H156: 102.190002 | I156: 1 | J156: 1 | K156: 97.18 | L156: 102.85 | M156: 96.47 | N156: 102.19 | O156: 145550000
A157: 142 | B157: 2015-10-12 | C157: 93.32 | D157: 97.589996 | E157: 92.669998 | F157: 97.540001 | G157: 110153700 | H157: 97.540001 | I157: 1 | J157: 1 | K157: 93.32 | L157: 97.59 | M157: 92.67 | N157: 97.54 | O157: 110153700
A158: 143 | B158: 2015-10-05 | C158: 92.940002 | D158: 94.269997 | E158: 90.470001 | F158: 93.239998 | G158: 120898000 | H158: 93.239998 | I158: 1 | J158: 1 | K158: 92.94 | L158: 94.27 | M158: 90.47 | N158: 93.24 | O158: 120898000
A159: 144 | B159: 2015-09-28 | C159: 92.080002 | D159: 92.290001 | E159: 85.720001 | F159: 92.07 | G159: 186677400 | H159: 92.07 | I159: 1 | J159: 1 | K159: 92.08 | L159: 92.29 | M159: 85.72 | N159: 92.07 | O159: 186677400
A160: 145 | B160: 2015-09-21 | C160: 94.620003 | D160: 96.489998 | E160: 91.919998 | F160: 92.769997 | G160: 145447900 | H160: 92.769997 | I160: 1 | J160: 1 | K160: 94.62 | L160: 96.49 | M160: 91.92 | N160: 92.77 | O160: 145447900
A161: 146 | B161: 2015-09-14 | C161: 92.309998 | D161: 95.510002 | E161: 91.599998 | F161: 94.400002 | G161: 144827900 | H161: 94.400002 | I161: 1 | J161: 1 | K161: 92.31 | L161: 95.51 | M161: 91.6 | N161: 94.4 | O161: 144827900
A162: 147 | B162: 2015-09-07 | C162: 89.690002 | D162: 92.080002 | E162: 88.830002 | F162: 92.050003 | G162: 107073900 | H162: 92.050003 | I162: 1 | J162: 1 | K162: 89.69 | L162: 92.08 | M162: 88.83 | N162: 92.05 | O162: 107073900
A163: 148 | B163: 2015-08-31 | C163: 90.599998 | D163: 91.050003 | E163: 86.5 | F163: 88.260002 | G163: 149671500 | H163: 88.260002 | I163: 1 | J163: 1 | K163: 90.6 | L163: 91.05 | M163: 86.5 | N163: 88.26 | O163: 149671500
A164: 149 | B164: 2015-08-24 | C164: 77.029999 | D164: 91.480003 | E164: 72 | F164: 91.010002 | G164: 256503500 | H164: 91.010002 | I164: 1 | J164: 1 | K164: 77.03 | L164: 91.48 | M164: 72 | N164: 91.01 | O164: 256503500
A165: 150 | B165: 2015-08-17 | C165: 94.419998 | D165: 96.099998 | E165: 85.610001 | F165: 86.059998 | G165: 171220500 | H165: 86.059998 | I165: 1 | J165: 1 | K165: 94.42 | L165: 96.1 | M165: 85.61 | N165: 86.06 | O165: 171220500
A166: 151 | B166: 2015-08-10 | C166: 95.68 | D166: 95.900002 | E166: 91.190002 | F166: 94.419998 | G166: 103377900 | H166: 94.419998 | I166: 1 | J166: 1 | K166: 95.68 | L166: 95.9 | M166: 91.19 | N166: 94.42 | O166: 103377900
A167: 152 | B167: 2015-08-03 | C167: 93.529999 | D167: 98.739998 | E167: 92.800003 | F167: 94.300003 | G167: 144762700 | H167: 94.300003 | I167: 1 | J167: 1 | K167: 93.53 | L167: 98.74 | M167: 92.8 | N167: 94.3 | O167: 144762700
A168: 153 | B168: 2015-07-27 | C168: 96.580002 | D168: 97.279999 | E168: 91.800003 | F168: 94.010002 | G168: 271190000 | H168: 94.010002 | I168: 1 | J168: 1 | K168: 96.58 | L168: 97.28 | M168: 91.8 | N168: 94.01 | O168: 271190000
A169: 154 | B169: 2015-07-20 | C169: 95.849998 | D169: 99.239998 | E169: 94.809998 | F169: 96.949997 | G169: 185477000 | H169: 96.949997 | I169: 1 | J169: 1 | K169: 95.85 | L169: 99.24 | M169: 94.81 | N169: 96.95 | O169: 185477000
A170: 155 | B170: 2015-07-13 | C170: 88.660004 | D170: 95.389999 | E170: 88.419998 | F170: 94.970001 | G170: 163296800 | H170: 94.970001 | I170: 1 | J170: 1 | K170: 88.66 | L170: 95.39 | M170: 88.42 | N170: 94.97 | O170: 163296800
A171: 156 | B171: 2015-07-06 | C171: 86.489998 | D171: 88.220001 | E171: 85.230003 | F171: 87.949997 | G171: 128648400 | H171: 87.949997 | I171: 1 | J171: 1 | K171: 86.49 | L171: 88.22 | M171: 85.23 | N171: 87.95 | O171: 128648400
A172: 157 | B172: 2015-06-29 | C172: 86.610001 | D172: 87.949997 | E172: 85.57 | F172: 87.290001 | G172: 101359900 | H172: 87.290001 | I172: 1 | J172: 1 | K172: 86.61 | L172: 87.95 | M172: 85.57 | N172: 87.29 | O172: 101359900
A173: 158 | B173: 2015-06-22 | C173: 83.410004 | D173: 89.400002 | E173: 83.309998 | F173: 88.010002 | G173: 186937800 | H173: 88.010002 | I173: 1 | J173: 1 | K173: 83.41 | L173: 89.4 | M173: 83.31 | N173: 88.01 | O173: 186937800
A174: 159 | B174: 2015-06-15 | C174: 80.550003 | D174: 83.190002 | E174: 80.07 | F174: 82.510002 | G174: 100984900 | H174: 82.510002 | I174: 1 | J174: 1 | K174: 80.55 | L174: 83.19 | M174: 80.07 | N174: 82.51 | O174: 100984900
A175: 160 | B175: 2015-06-08 | C175: 81.82 | D175: 82.900002 | E175: 79.32 | F175: 81.529999 | G175: 84975000 | H175: 81.529999 | I175: 1 | J175: 1 | K175: 81.82 | L175: 82.9 | M175: 79.32 | N175: 81.53 | O175: 84975000
A176: 161 | B176: 2015-06-01 | C176: 79.300003 | D176: 82.949997 | E176: 78.660004 | F176: 82.139999 | G176: 105794700 | H176: 82.139999 | I176: 1 | J176: 1 | K176: 79.3 | L176: 82.95 | M176: 78.66 | N176: 82.14 | O176: 105794700
A177: 162 | B177: 2015-05-25 | C177: 80.43 | D177: 81.07 | E177: 78.879997 | F177: 79.190002 | G177: 58548100 | H177: 79.190002 | I177: 1 | J177: 1 | K177: 80.43 | L177: 81.07 | M177: 78.88 | N177: 79.19 | O177: 58548100
A178: 163 | B178: 2015-05-18 | C178: 80.330002 | D178: 81.690002 | E178: 79.459999 | F178: 80.540001 | G178: 95060100 | H178: 80.540001 | I178: 1 | J178: 1 | K178: 80.33 | L178: 81.69 | M178: 79.46 | N178: 80.54 | O178: 95060100
A179: 164 | B179: 2015-05-11 | C179: 78.480003 | D179: 81.849998 | E179: 76.790001 | F179: 80.419998 | G179: 138179600 | H179: 80.419998 | I179: 1 | J179: 1 | K179: 78.48 | L179: 81.85 | M179: 76.79 | N179: 80.42 | O179: 138179600
A180: 165 | B180: 2015-05-04 | C180: 79.330002 | D180: 79.690002 | E180: 77.050003 | F180: 78.510002 | G180: 105359300 | H180: 78.510002 | I180: 1 | J180: 1 | K180: 79.33 | L180: 79.69 | M180: 77.05 | N180: 78.51 | O180: 105359300
A181: 166 | B181: 2015-04-27 | C181: 81.870003 | D181: 82.93 | E181: 78.110001 | F181: 78.989998 | G181: 128787000 | H181: 78.989998 | I181: 1 | J181: 1 | K181: 81.87 | L181: 82.93 | M181: 78.11 | N181: 78.99 | O181: 128787000
A182: 167 | B182: 2015-04-20 | C182: 81.540001 | D182: 85.589996 | E182: 81.239998 | F182: 81.529999 | G182: 204786400 | H182: 81.529999 | I182: 1 | J182: 1 | K182: 81.54 | L182: 85.59 | M182: 81.24 | N182: 81.53 | O182: 204786400
A183: 168 | B183: 2015-04-13 | C183: 81.93 | D183: 83.940002 | E183: 80.370003 | F183: 80.779999 | G183: 106702600 | H183: 80.779999 | I183: 1 | J183: 1 | K183: 81.93 | L183: 83.94 | M183: 80.37 | N183: 80.78 | O183: 106702600
A184: 169 | B184: 2015-04-06 | C184: 80.800003 | D184: 83.419998 | E184: 80.800003 | F184: 82.040001 | G184: 83953600 | H184: 82.040001 | I184: 1 | J184: 1 | K184: 80.8 | L184: 83.42 | M184: 80.8 | N184: 82.04 | O184: 83953600
A185: 170 | B185: 2015-03-30 | C185: 83.809998 | D185: 84.339996 | E185: 80.870003 | F185: 81.559998 | G185: 85910200 | H185: 81.559998 | I185: 1 | J185: 1 | K185: 83.81 | L185: 84.34 | M185: 80.87 | N185: 81.56 | O185: 85910200
A186: 171 | B186: 2015-03-23 | C186: 83.919998 | D186: 86.07 | E186: 82.139999 | F186: 83.300003 | G186: 148126900 | H186: 83.300003 | I186: 1 | J186: 1 | K186: 83.92 | L186: 86.07 | M186: 82.14 | N186: 83.3 | O186: 148126900
A187: 172 | B187: 2015-03-16 | C187: 77.959999 | D187: 84.599998 | E187: 77.360001 | F187: 83.800003 | G187: 164584900 | H187: 83.800003 | I187: 1 | J187: 1 | K187: 77.96 | L187: 84.6 | M187: 77.36 | N187: 83.8 | O187: 164584900
A188: 173 | B188: 2015-03-09 | C188: 79.68 | D188: 79.910004 | E188: 77.260002 | F188: 78.050003 | G188: 96623700 | H188: 78.050003 | I188: 1 | J188: 1 | K188: 79.68 | L188: 79.91 | M188: 77.26 | N188: 78.05 | O188: 96623700
A189: 174 | B189: 2015-03-02 | C189: 79 | D189: 81.989998 | E189: 78.519997 | F189: 80.010002 | G189: 120626300 | H189: 80.010002 | I189: 1 | J189: 1 | K189: 79 | L189: 81.99 | M189: 78.52 | N189: 80.01 | O189: 120626300
A190: 175 | B190: 2015-02-23 | C190: 79.959999 | D190: 81.370003 | E190: 78.099998 | F190: 78.970001 | G190: 130449000 | H190: 78.970001 | I190: 1 | J190: 1 | K190: 79.96 | L190: 81.37 | M190: 78.1 | N190: 78.97 | O190: 130449000
A191: 176 | B191: 2015-02-16 | C191: 75.300003 | D191: 80.339996 | E191: 75.080002 | F191: 79.900002 | G191: 130371900 | H191: 79.900002 | I191: 1 | J191: 1 | K191: 75.3 | L191: 80.34 | M191: 75.08 | N191: 79.9 | O191: 130371900
A192: 177 | B192: 2015-02-09 | C192: 74.050003 | D192: 76.870003 | E192: 73.449997 | F192: 75.739998 | G192: 88739900 | H192: 75.739998 | I192: 1 | J192: 1 | K192: 74.05 | L192: 76.87 | M192: 73.45 | N192: 75.74 | O192: 88739900
A193: 178 | B193: 2015-02-02 | C193: 76.110001 | D193: 76.349998 | E193: 73.75 | F193: 74.470001 | G193: 125159500 | H193: 74.470001 | I193: 1 | J193: 1 | K193: 76.11 | L193: 76.35 | M193: 73.75 | N193: 74.47 | O193: 125159500
A194: 179 | B194: 2015-01-26 | C194: 77.980003 | D194: 78.470001 | E194: 74.209999 | F194: 75.910004 | G194: 196620200 | H194: 75.910004 | I194: 1 | J194: 1 | K194: 77.98 | L194: 78.47 | M194: 74.21 | N194: 75.91 | O194: 196620200
A195: 180 | B195: 2015-01-19 | C195: 75.720001 | D195: 78.190002 | E195: 74.82 | F195: 77.830002 | G195: 83690100 | H195: 77.830002 | I195: 1 | J195: 1 | K195: 75.72 | L195: 78.19 | M195: 74.82 | N195: 77.83 | O195: 83690100
A196: 181 | B196: 2015-01-12 | C196: 77.839996 | D196: 78.080002 | E196: 73.540001 | F196: 75.18 | G196: 126213900 | H196: 75.18 | I196: 1 | J196: 1 | K196: 77.84 | L196: 78.08 | M196: 73.54 | N196: 75.18 | O196: 126213900
A197: 182 | B197: 2015-01-05 | C197: 77.980003 | D197: 79.25 | E197: 75.360001 | F197: 77.739998 | G197: 120996500 | H197: 77.739998 | I197: 1 | J197: 1 | K197: 77.98 | L197: 79.25 | M197: 75.36 | N197: 77.74 | O197: 120996500
A198: 183 | B198: 2014-12-29 | C198: 80.489998 | D198: 80.959999 | E198: 77.699997 | F198: 78.449997 | G198: 66723400 | H198: 78.449997 | I198: 1 | J198: 1 | K198: 80.49 | L198: 80.96 | M198: 77.7 | N198: 78.45 | O198: 66723400
A199: 184 | B199: 2014-12-22 | C199: 80.080002 | D199: 82.169998 | E199: 80 | F199: 80.779999 | G199: 69594500 | H199: 80.779999 | I199: 1 | J199: 1 | K199: 80.08 | L199: 82.17 | M199: 80 | N199: 80.78 | O199: 69594500
A200: 185 | B200: 2014-12-15 | C200: 78.459999 | D200: 80 | E200: 74.589996 | F200: 79.879997 | G200: 167712100 | H200: 79.879997 | I200: 1 | J200: 1 | K200: 78.46 | L200: 80 | M200: 74.59 | N200: 79.88 | O200: 167712100
... 135 more rows

Sheet CalculationsAndCharts
A1: AccumulationDistributionStrategy
A2: =InputPriceData!A1 -> Facebook, Inc. (FB) -NasdaqGS (Weekly) | R2: Charting Controlls
A4: User Charting Controls | E4: Click to Shift Chart One Bar:
A5: Data Control
A6: =InputPriceData!$B$10 -> 320 | B6: Available Input Data Rows | E6: Earliest: | F6: =OFFSET(InputPriceData!B15,CalculationsAndCharts!A6,0,1,1) -> 2012-05-14 | P6: 2
B7: Use Close Adjusted: | C7: FALSE | E7: Latest: | F7: =OFFSET(InputPriceData!B15,1,0,1,1) -> 2018-06-19
A8: =MIN(A6-A11,LOOKUP(2,1/(B:B<>0),ROW(A:A))-32) -> 306 | B8: Logically Available for Calc / Plot | E8: $ Change: | F8: =G33-G34 -> -25.699997
F10: Y-axis Range
A11: 14 | B11: Input Data Offset (Pan) | E11: Max High+ | F11: =CEILING(MAX(MAX(OFFSET($E$33,0,0,$A$12,1)))+2*F14,0.1) -> 206.1
A12: 129 | B12: Data Points to Plot (Zoom) | E12: Min Low- | F12: =FLOOR(MIN(MIN(OFFSET($F$33,0,0,$A$12,1)))-2*F14,0.1) -> 78.6
B13: First: | C13: =OFFSET(B32,A12,0,1,1) -> 2015-10-05 | E13: White space %: | F13: 0.05
B14: ="Last: " & IF(OFFSET(InputPriceData!P15,1+A11,0,1,1)="","",TEXT(OFFSET(InputPriceData!P15,1+A11,0,1,1),"H:MM AM/PM")) -> Last: | C14: =B33 -> 2018-03-19 | E14: Allowance: | F14: =FLOOR((CEILING(MAX(MAX(OFFSET($E$33,0,0,$A$12,1))),1)-FLOOR(MIN(MIN(OFFSET($F$33,0,0,$A$12,1))),1))*F13,0.01) -> 5.35
A15: User Controls for Consolidation Tests
B16: Period | C16: Wilders Alpha | D16: (1-Alpha) | E16: Trigger
A17: Price | B17: 4 | E17: 0.75
A18: ATR | B18: 4 | C18: =1/B18 -> 0.25 | D18: =1-C18 -> 0.75 | E18: 0.75
A19: ADX | B19: 4 | C19: =1/B19 -> 0.25 | D19: =1-C19 -> 0.75 | E19: 30
G21: Alpha: | H21: =2/(F21+1) -> 2
G22: 1-Alpha | H22: =1-H21 -> -1
A25: Help! I would like to plot data
A26: From | B26: 2015-10-05 | C26: =OFFSET(InputPriceData!$A$15,MATCH(B26,OFFSET(InputPriceData!B15,1,0,InputPriceData!$B$10,1),0),0,1,1)-C27 -> 129 | E26: 129
A27: To | B27: 2018-03-19 | C27: =OFFSET(InputPriceData!$A$15,MATCH(B27,OFFSET(InputPriceData!$B$15,1,0,InputPriceData!$B$10,1),0),0,1,1)-1 -> 14 | E27: =$A$12-$E$26+1 -> 1
H28: @ Cursor => | I28: =OFFSET(A32,$E$27,0,1,1)&"(RR)" -> 1(RR) | J28: =OFFSET($B$32,E27,0,1,1) -> 2018-03-19 | K28: =TEXT(OFFSET(D32,$E$27,0,1,1),"#,##0.00")&"(o)" -> 177.01(o) | L28: =TEXT(OFFSET(E32,$E$27,0,1,1),"#,##0.00")&"(h)" -> 177.17(h) | M28: =TEXT(OFFSET(F32,$E$27,0,1,1),"#,##0.00")&"(l)" -> 159.02(l) | N28: =TEXT(OFFSET(G32,$E$27,0,1,1),"#,##0.00")&"(c)" -> 159.39(c) | AF28: Consolidation Chart | AI28: Price Chart
E29: Cursor ==> | AF29: Controlled Series | AI29: Controlled Series | AU29: Chart Cursor work area
AF30: Trigger | AG30: Grey | AH30: Green | AI30: Pillow | AJ30: Consolidation | BB30: ="ATR(" & B18 & ", " & E18 & ") Consolidation Calculations" -> ATR(4, 0.75) Consolidation Calculations | BQ30: ="Price(" & B17 & ", " & E17 & ") Consolidation Calculations" -> Price(4, 0.75) Consolidation Calculations | BV30: AccDistPrice
A31: Rel Row | J31: ="ADX(" & B19 & ", " & E19 & ") Consolidation" -> ADX(4, 30) Consolidation | V31: ADX Consolidation | W31: AccDistADX | AA31: ="ADX(" & $B$19 & ", " & $E$19 & ") Consolidation Zone" -> ADX(4, 30) Consolidation Zone | AB31: Min Low | AC31: Max High | AD31: Primary Min Low | AE31: Primary Max High | AI31: =IF($P$6=1,CA31,IF($P$6=2,BK31,AB31)) -> Min Low | AP31: Used To Color Vol Bars | BE31: Consolidation | BF31: AccDistATR | BJ31: ="ATR Ratio(" & $B$18 & ", " & $E$18 & ") Consolidation Zone" -> ATR Ratio(4, 0.75) Consolidation Zone | BK31: Min Low | BL31: Max High | BM31: Primary Min Low | BN31: Primary Max High | BQ31: ="Range " &$B$17 & " High" -> Range 4 High | BR31: ="Range " &$B$17 & " Low" -> Range 4 Low | BS31: ="_Range " &$B$17 -> _Range 4 | BT31: ="Range Ratio "&$B$17 -> Range Ratio 4 | BU31: Consolidation | BV31: ="Trigger (" & $E$17 & ")" -> Trigger (0.75) | BW31: Grey | BX31: =BZ31 -> Price Ratio(4, 0.75) Consolidation Zone | BZ31: ="Price Ratio(" & $B$17 & ", " & $E$17 & ") Consolidation Zone" -> Price Ratio(4, 0.75) Consolidation Zone | CA31: Min Low | CB31: Max High | CC31: Primary Min Low | CD31: Primary Max High
B32: Date | C32: Volume | D32: Open | E32: High | F32: Low | G32: Close | J32: TrueRange | K32: ="ATR " & $B$19 -> ATR 4 | L32: +DM | M32: -DM | N32: ="+DM " & B$19 -> +DM 4 | O32: ="-DM " & B$19 -> -DM 4 | P32: ="+DI " & B$19 -> +DI 4 | Q32: ="-DI " & B$19 -> -DI 4 | R32: ="DI " & B$19 & " DIFF" -> DI 4 DIFF | S32: ="DI " & B$19 & " SUM" -> DI 4 SUM | T32: ="DX " & B$19 -> DX 4 | U32: ="ADX " & B$19 -> ADX 4 | W32: ="Trigger(" & $E$19 & ")" -> Trigger(30) | X32: Grey | Y32: =AA31 -> ADX(4, 30) Consolidation Zone | Z32: Background | AF32: =IF($P$6=1,BV31,IF($P$6=2,BF32,W32)) -> Trigger (0.75) | AG32: =IF($P$6=1,BW31,IF($P$6=2,BG32,X32)) -> Grey | AH32: =IF($P$6=1,BX31,IF($P$6=2,BH32,Y32)) -> ATR Ratio(4, 0.75) Consolidation Zone | AJ32: =IF($P$6=1,BZ31,IF($P$6=2,BJ31,AA31)) -> ATR Ratio(4, 0.75) Consolidation Zone | AP32: Up Vol | AQ32: Dn Vol | AU32: Volume Cursor | AV32: =MAX(OFFSET(C33,0,0,A12,1)) -> 451943400 | AW32: Consolidation Cursor | AY32: Price Chart Cursor | BB32: TR | BC32: ="ATR " & $B$18 -> ATR 4 | BD32: ATR Ratio | BF32: ="Trigger (" & $E$18 & ")" -> Trigger (0.75) | BG32: Grey | BH32: =BJ31 -> ATR Ratio(4, 0.75) Consolidation Zone | BI32: Background | BY32: Background
A33: 1 | B33: =OFFSET(InputPriceData!B$15,CalculationsAndCharts!$A33+$A$11,0,1,1) -> 2018-03-19 | C33: =OFFSET(InputPriceData!G$15,CalculationsAndCharts!$A33+$A$11,IF($C$7,8,0),1,1) -> 451943400 | D33: =OFFSET(InputPriceData!C$15,CalculationsAndCharts!$A33+$A$11,IF($C$7,8,0),1,1) -> 177.009995 | E33: =OFFSET(InputPriceData!D$15,CalculationsAndCharts!$A33+$A$11,IF($C$7,8,0),1,1) -> 177.169998 | F33: =OFFSET(InputPriceData!E$15,CalculationsAndCharts!$A33+$A$11,IF($C$7,8,0),1,1) -> 159.020004 | G33: =OFFSET(InputPriceData!F$15,CalculationsAndCharts!$A33+$A$11,IF($C$7,8,0),1,1) -> 159.389999 | J33: =IF($A33<$A$8,MAX(E33-F33,ABS(E33-G34),ABS(F33-G34)),"") -> 26.069992 | K33: =IF(($A$8-$A33)<B$19,"",IF(($A$8-$A33)=B$19,AVERAGE(OFFSET($J33,0,0,B$19,1)),K34*$D$19+$J33*$C$19)) -> 13.64849708 | L33: =IF($A33<$A$8,IF(E33-E34>F34-F33,MAX(E33-E34,0),0),"") -> 0 | M33: =IF($A33<$A$8,IF(F34-F33>E33-E34,MAX(F34-F33,0),0),"") -> 22.089997 | N33: =IF(($A$8-$A33)<B$19,"",IF(($A$8-$A33)=B$19,AVERAGE(OFFSET($L33,0,0,B$19,1)),N34*$D$19+$L33*$C$19)) -> 1.070742077 | O33: =IF(($A$8-$A33)<B$19,"",IF(($A$8-$A33)=B$19,AVERAGE(OFFSET($M33,0,0,B$19,1)),O34*$D$19+$M33*$C$19)) -> 6.247593862 | P33: =IF(($A$8-$A33)<B$19,"",N33/K33*100) -> 7.845128083 | Q33: =IF(($A$8-$A33)<B$19,"",O33/K33*100) -> 45.77495841 | R33: =IF(($A$8-$A33)<B$19,"",ABS(P33-Q33)) -> 37.92983032 | S33: =IF(($A$8-$A33)<B$19,"",P33+Q33) -> 53.62008649 | T33: =IF(($A$8-$A33)<B$19,"",R33/S33*100) -> 70.73809986 | U33: =IF(($A$8-$A33)<(2*B$19),"",IF(($A$8-$A33)=(2*B$19),AVERAGE(OFFSET(T33,0,0,B$19,1)),(U34*$D$19+T33*$C$19))) -> 33.60646741 | V33: =U33<$E$19 -> FALSE | W33: =$E$19 -> 30 | X33: =IF(V33,NA(),U33) -> 33.60646741 | Y33: =IF(V33,U33,NA()) ->  | Z33: =OR(OFFSET(V33,0,0,-$B$19,1)) -> FALSE | AA33: =IF(Z33,AC33-AB33,NA()) ->  | AB33: =IF(Z33,MIN(OFFSET(AD33,0,0,-$B$19,1)),NA()) ->  | AC33: =IF(Z33,MAX(OFFSET(AE33,0,0,-$B$19,1)),NA()) ->  | AD33: =IF(V33,MIN(OFFSET($F33,0,0,$B$19,1)),$AZ$34) -> 200.2030072 | AE33: =IF(V33,MAX(OFFSET(E33,0,0,$B$19,1)),0) -> 0 | AF33: =IF($P$6=1,BV33,IF($P$6=2,BF33,W33)) -> 0.75 | AG33: =IF($P$6=1,BW33,IF($P$6=2,BG33,X33)) -> 1.231641319 | AH33: =IF($P$6=1,BX33,IF($P$6=2,BH33,Y33)) ->  | AI33: =IF($P$6=1,CA33,IF($P$6=2,BK33,AB33)) ->  | AJ33: =IF($P$6=1,BZ33,IF($P$6=2,BJ33,AA33)) ->  | AP33: =IF(G33>=D33,C33,NA()) ->  | AQ33: =IF(G33<D33,C33,NA()) -> 451943400 | AU33: =$E$27 -> 1 | AV33: 0 | AW33: =$E$27 -> 1 | AX33: 0 | AY33: =E27 -> 1 | AZ33: 87.13575292 | BB33: =IF($A33<$A$8,MAX(E33-F33,ABS(E33-G34),ABS(F33-G34)),"") -> 26.069992 | BC33: =IF(($A$8-$A33)<B$18,"",IF(($A$8-$A33)=B$18,AVERAGE(OFFSET($BB33,0,0,B$18,1)),BC34*$D$18+$BB33*$C$18)) -> 13.64849708 | BD33: =IF(($A$8-$A33)<2*B$18,"",BC33/OFFSET(BC33,$B$18,0,1,1)) -> 1.231641319 | BE33: =IF(($A$8-$A33)<2*B$18,"",(BD33<$E$18)) -> FALSE | BF33: =IF(($A$8-$A33)<2*B$18,"",$E$18) -> 0.75 | BG33: =IF(($A$8-$A33)<2*B$18,"",IF(BE33,NA(),BD33)) -> 1.231641319 | BH33: =IF(($A$8-$A33)<2*B$18,"",IF($BE33,$BD33,NA())) ->  | BI33: =IF(($A$8-$A33)<2*B$18,"",OR(OFFSET(BE33,0,0,-$B$18,1))) -> FALSE | BJ33: =IF(($A$8-$A33)<2*B$18,"",IF(BI33,BL33-BK33,NA())) ->  | BK33: =IF(($A$8-$A33)<2*B$18,"",IF(BI33,MIN(OFFSET(BM33,0,0,-$B$18,1)),NA())) ->  | BL33: =IF(($A$8-$A33)<2*B$18,"",IF(BI33,MAX(OFFSET(BN33,0,0,-$B$18,1)),NA())) ->  | BM33: =IF(($A$8-$A33)<2*B$18,"",IF($BE33,MIN(OFFSET($F33,0,0,$B$18,1)),$AZ$34)) -> 200.2030072 | BN33: =IF(($A$8-$A33)<2*B$18,"",IF(BE33,MAX(OFFSET($E33,0,0,$B$18,1)),0)) -> 0 | BQ33: =IF(($A$8-$A33)<B$17,"",MAX(OFFSET(E33,0,0,$B$17,1))) -> 186.100006 | BR33: =IF(($A$8-$A33)<B$17,"",MIN(OFFSET(F33,0,0,$B$17,1))) -> 159.020004 | BS33: =IF(($A$8-$A33)<B$17,"",BQ33-BR33) -> 27.080002 | BT33: =IF(($A$8-$A33)<2*B$17,"",BS33/OFFSET(BS33,$B$17,0,1,1)) -> 0.9623307934 | BU33: =IF(($A$8-$A33)<2*B$17,"",BT33<$E$17) -> FALSE | BV33: =IF(($A$8-$A33)<2*B$17,"",$E$17) -> 0.75 | BW33: =IF(($A$8-$A33)<2*$B$17,"",IF(BU33,NA(),BT33)) -> 0.9623307934 | BX33: =IF(($A$8-$A33)<2*$B$18,"",IF(BU33,$BT33,NA())) ->  | BY33: =IF(($A$8-$A33)<2*$B$17,"",OR(OFFSET(BU33,0,0,-$B$17,1))) -> FALSE | BZ33: =IF(($A$8-$A33)<2*$B$17,"",IF(BY33,CB33-CA33,NA())) ->  | CA33: =IF(($A$8-$A33)<2*$B$17,"",IF(BY33,MIN(OFFSET(CC33,0,0,-$B$17,1)),NA())) ->  | CB33: =IF(($A$8-$A33)<2*$B$17,"",IF(BY33,MAX(OFFSET(CD33,0,0,-$B$17,1)),NA())) ->  | CC33: =IF(($A$8-$A33)<2*$B$17,"",IF($BU33,MIN(OFFSET($F33,0,0,$B$17,1)),$AZ$34)) -> 200.2030072 | CD33: =IF(($A$8-$A33)<2*$B$17,"",IF(BU33,MAX(OFFSET($E33,0,0,$B$17,1)),0)) -> 0
A34: 2 | B34: =OFFSET(InputPriceData!B$15,CalculationsAndCharts!$A34+$A$11,0,1,1) -> 2018-03-12 | C34: =OFFSET(InputPriceData!G$15,CalculationsAndCharts!$A34+$A$11,IF($C$7,8,0),1,1) -> 90208100 | D34: =OFFSET(InputPriceData!C$15,CalculationsAndCharts!$A34+$A$11,IF($C$7,8,0),1,1) -> 185.229996 | E34: =OFFSET(InputPriceData!D$15,CalculationsAndCharts!$A34+$A$11,IF($C$7,8,0),1,1) -> 186.100006 | F34: =OFFSET(InputPriceData!E$15,CalculationsAndCharts!$A34+$A$11,IF($C$7,8,0),1,1) -> 181.110001 | G34: =OFFSET(InputPriceData!F$15,CalculationsAndCharts!$A34+$A$11,IF($C$7,8,0),1,1) -> 185.089996 | J34: =IF($A34<$A$8,MAX(E34-F34,ABS(E34-G35),ABS(F34-G35)),"") -> 4.990005 | K34: =IF(($A$8-$A34)<B$19,"",IF(($A$8-$A34)=B$19,AVERAGE(OFFSET($J34,0,0,B$19,1)),K35*$D$19+$J34*$C$19)) -> 9.507998776 | L34: =IF($A34<$A$8,IF(E34-E35>F35-F34,MAX(E34-E35,0),0),"") -> 0.590011 | M34: =IF($A34<$A$8,IF(F35-F34>E34-E35,MAX(F35-F34,0),0),"") -> 0 | N34: =IF(($A$8-$A34)<B$19,"",IF(($A$8-$A34)=B$19,AVERAGE(OFFSET($L34,0,0,B$19,1)),N35*$D$19+$L34*$C$19)) -> 1.427656103 | O34: =IF(($A$8-$A34)<B$19,"",IF(($A$8-$A34)=B$19,AVERAGE(OFFSET($M34,0,0,B$19,1)),O35*$D$19+$M34*$C$19)) -> 0.9667928164 | P34: =IF(($A$8-$A34)<B$19,"",N34/K34*100) -> 15.01531644 | Q34: =IF(($A$8-$A34)<B$19,"",O34/K34*100) -> 10.1682051 | R34: =IF(($A$8-$A34)<B$19,"",ABS(P34-Q34)) -> 4.84711134 | S34: =IF(($A$8-$A34)<B$19,"",P34+Q34) -> 25.18352154 | T34: =IF(($A$8-$A34)<B$19,"",R34/S34*100) -> 19.24715466 | U34: =IF(($A$8-$A34)<(2*B$19),"",IF(($A$8-$A34)=(2*B$19),AVERAGE(OFFSET(T34,0,0,B$19,1)),(U35*$D$19+T34*$C$19))) -> 21.22925659 | V34: =U34<$E$19 -> TRUE | W34: =$E$19 -> 30 | Y34: 21.22925659 | Z34: TRUE | AA34: =IF(Z34,AC34-AB34,NA()) -> 13.110001 | AB34: =IF(Z34,MIN(OFFSET(AD34,0,0,-$B$19,1)),NA()) -> 172.990005 | AC34: =IF(Z34,MAX(OFFSET(AE34,0,0,-$B$19,1)),NA()) -> 186.100006 | AD34: =IF(V34,MIN(OFFSET(F34,0,0,$B$19,1)),$AZ$34) -> 172.990005 | AE34: =IF(V34,MAX(OFFSET(E34,0,0,$B$19,1)),0) -> 186.100006 | AF34: =IF($P$6=1,BV34,IF($P$6=2,BF34,W34)) -> 0.75 | AG34: =IF($P$6=1,BW34,IF($P$6=2,BG34,X34)) -> 0.7913175048 | AH34: =IF($P$6=1,BX34,IF($P$6=2,BH34,Y34)) ->  | AI34: =IF($P$6=1,CA34,IF($P$6=2,BK34,AB34)) ->  | AJ34: =IF($P$6=1,BZ34,IF($P$6=2,BJ34,AA34)) ->  | AP34: =IF(G34>=D34,C34,NA()) ->  | AQ34: =IF(G34<D34,C34,NA()) -> 90208100 | AU34: =$E$27 -> 1 | AV34: =CEILING(AV32,10^INT(LOG10(AV32))) -> 500000000 | AW34: =$E$27 -> 1 | AX34: 3 | AY34: =E27 -> 1 | AZ34: 200.2030072 | BB34: =IF($A34<$A$8,MAX(E34-F34,ABS(E34-G35),ABS(F34-G35)),"") -> 4.990005 | BC34: =IF(($A$8-$A34)<B$18,"",IF(($A$8-$A34)=B$18,AVERAGE(OFFSET($BB34,0,0,B$18,1)),BC35*$D$18+$BB34*$C$18)) -> 9.507998776 | BD34: =IF(($A$8-$A34)<2*B$18,"",BC34/OFFSET(BC34,$B$18,0,1,1)) -> 0.7913175048 | BE34: =IF(($A$8-$A34)<2*B$18,"",(BD34<$E$18)) -> FALSE | BF34: =IF(($A$8-$A34)<2*B$18,"",$E$18) -> 0.75 | BG34: =IF(($A$8-$A34)<2*B$18,"",IF(BE34,NA(),BD34)) -> 0.7913175048 | BH34: =IF(($A$8-$A34)<2*B$18,"",IF($BE34,$BD34,NA())) ->  | BI34: =IF(($A$8-$A34)<2*B$18,"",OR(OFFSET(BE34,0,0,-$B$18,1))) -> FALSE | BJ34: =IF(($A$8-$A34)<2*B$18,"",IF(BI34,BL34-BK34,NA())) ->  | BK34: =IF(($A$8-$A34)<2*B$18,"",IF(BI34,MIN(OFFSET(BM34,0,0,-$B$18,1)),NA())) ->  | BL34: =IF(($A$8-$A34)<2*B$18,"",IF(BI34,MAX(OFFSET(BN34,0,0,-$B$18,1)),NA())) ->  | BM34: =IF(($A$8-$A34)<2*B$18,"",IF($BE34,MIN(OFFSET($F34,0,0,$B$18,1)),$AZ$34)) -> 200.2030072 | BN34: =IF(($A$8-$A34)<2*B$18,"",IF(BE34,MAX(OFFSET($E34,0,0,$B$18,1)),0)) -> 0 | BQ34: =IF(($A$8-$A34)<B$17,"",MAX(OFFSET(E34,0,0,$B$17,1))) -> 186.100006 | BR34: =IF(($A$8-$A34)<B$17,"",MIN(OFFSET(F34,0,0,$B$17,1))) -> 172.990005 | BS34: =IF(($A$8-$A34)<B$17,"",BQ34-BR34) -> 13.110001 | BT34: =IF(($A$8-$A34)<2*B$17,"",BS34/OFFSET(BS34,$B$17,0,1,1)) -> 0.4658846652 | BU34: =IF(($A$8-$A34)<2*B$17,"",BT34<$E$17) -> TRUE | BV34: =IF(($A$8-$A34)<2*B$17,"",$E$17) -> 0.75 | BW34: =IF(($A$8-$A34)<2*$B$17,"",IF(BU34,NA(),BT34)) ->  | BX34: =IF(($A$8-$A34)<2*$B$18,"",IF(BU34,$BT34,NA())) -> 0.4658846652 | BY34: =IF(($A$8-$A34)<2*$B$17,"",OR(OFFSET(BU34,0,0,-$B$17,1))) -> TRUE | BZ34: =IF(($A$8-$A34)<2*$B$17,"",IF(BY34,CB34-CA34,NA())) -> 13.110001 | CA34: =IF(($A$8-$A34)<2*$B$17,"",IF(BY34,MIN(OFFSET(CC34,0,0,-$B$17,1)),NA())) -> 172.990005 | CB34: =IF(($A$8-$A34)<2*$B$17,"",IF(BY34,MAX(OFFSET(CD34,0,0,-$B$17,1)),NA())) -> 186.100006 | CC34: =IF(($A$8-$A34)<2*$B$17,"",IF($BU34,MIN(OFFSET($F34,0,0,$B$17,1)),$AZ$34)) -> 172.990005 | CD34: =IF(($A$8-$A34)<2*$B$17,"",IF(BU34,MAX(OFFSET($E34,0,0,$B$17,1)),0)) -> 186.100006
A35: 3 | B35: =OFFSET(InputPriceData!B$15,CalculationsAndCharts!$A35+$A$11,0,1,1) -> 2018-03-05 | C35: =OFFSET(InputPriceData!G$15,CalculationsAndCharts!$A35+$A$11,IF($C$7,8,0),1,1) -> 86125600 | D35: =OFFSET(InputPriceData!C$15,CalculationsAndCharts!$A35+$A$11,IF($C$7,8,0),1,1) -> 176.199997 | E35: =OFFSET(InputPriceData!D$15,CalculationsAndCharts!$A35+$A$11,IF($C$7,8,0),1,1) -> 185.509995 | F35: =OFFSET(InputPriceData!E$15,CalculationsAndCharts!$A35+$A$11,IF($C$7,8,0),1,1) -> 175.889999 | G35: =OFFSET(InputPriceData!F$15,CalculationsAndCharts!$A35+$A$11,IF($C$7,8,0),1,1) -> 185.229996 | J35: 9.619996 | K35: 11.0139967 | L35: 0 | M35: 0 | N35: 1.706871138 | O35: 1.289057089 | P35: 15.49729116 | Q35: 11.70380856 | R35: 3.793482607 | S35: 27.20109972 | T35: 13.94606338 | U35: 21.88995723 | V35: TRUE | W35: 30 | X35: =IF(V35,NA(),U35) ->  | Y35: =IF(V35,U35,NA()) -> 21.88995723 | Z35: TRUE | AA35: 14.26001 | AB35: 171.839996 | AC35: 186.100006 | AD35: 171.839996 | AE35: 185.660004 | AF35: 0.75 | AG35: 0.8385949596 | AP35: =IF(G35>=D35,C35,NA()) -> 86125600 | AQ35: =IF(G35<D35,C35,NA()) ->  | BB35: 9.619996 | BC35: 11.0139967 | BD35: 0.8385949596 | BE35: FALSE | BF35: 0.75 | BG35: 0.8385949596 | BI35: FALSE | BM35: 200.2030072 | BN35: 0 | BQ35: 185.660004 | BR35: 171.839996 | BS35: =IF(($A$8-$A35)<B$17,"",BQ35-BR35) -> 13.820008 | BT35: 0.4911158893 | BU35: TRUE | BV35: 0.75 | BX35: 0.4911158893 | BY35: TRUE | BZ35: 14.26001 | CA35: 171.839996 | CB35: 186.100006 | CC35: 171.839996 | CD35: 185.660004
A36: 4 | B36: =OFFSET(InputPriceData!B$15,CalculationsAndCharts!$A36+$A$11,0,1,1) -> 2018-02-26 | C36: =OFFSET(InputPriceData!G$15,CalculationsAndCharts!$A36+$A$11,IF($C$7,8,0),1,1) -> 95460000 | D36: =OFFSET(InputPriceData!C$15,CalculationsAndCharts!$A36+$A$11,IF($C$7,8,0),1,1) -> 184.580002 | E36: =OFFSET(InputPriceData!D$15,CalculationsAndCharts!$A36+$A$11,IF($C$7,8,0),1,1) -> 185.660004 | F36: =OFFSET(InputPriceData!E$15,CalculationsAndCharts!$A36+$A$11,IF($C$7,8,0),1,1) -> 172.990005 | G36: =OFFSET(InputPriceData!F$15,CalculationsAndCharts!$A36+$A$11,IF($C$7,8,0),1,1) -> 176.619995 | J36: 12.669999 | K36: 11.4786636 | L36: 2.270005 | M36: 0 | N36: 2.275828184 | O36: 1.718742785 | P36: 19.82659535 | Q36: 14.97337011 | R36: 4.853225238 | S36: 34.79996546 | T36: 13.94606338 | U36: 24.53792185 | V36: TRUE | W36: 30 | X36: =IF(V36,NA(),U36) ->  | Y36: =IF(V36,U36,NA()) -> 24.53792185 | Z36: =OR(OFFSET(V36,0,0,-$B$19,1)) -> TRUE | AA36: 23.430008 | AB36: 167.179993 | AC36: 190.610001 | AD36: 167.179993 | AE36: 190.610001 | AF36: 0.75 | AG36: 1.183144995 | AP36: =IF(G36>=D36,C36,NA()) ->  | AQ36: =IF(G36<D36,C36,NA()) -> 95460000 | BB36: 12.669999 | BC36: 11.4786636 | BD36: 1.183144995 | BE36: FALSE | BF36: 0.75 | BG36: 1.183144995 | BI36: FALSE | BM36: 200.2030072 | BN36: 0 | BQ36: 190.610001 | BR36: 167.179993 | BS36: =IF(($A$8-$A36)<B$17,"",BQ36-BR36) -> 23.430008 | BT36: 1.200307541 | BU36: FALSE | BV36: 0.75 | BW36: 1.200307541 | BY36: TRUE | BZ36: 14.26001 | CA36: 171.839996 | CB36: 186.100006 | CC36: 200.2030072 | CD36: 0
A37: 5 | B37: =OFFSET(InputPriceData!B$15,CalculationsAndCharts!$A37+$A$11,0,1,1) -> 2018-02-19 | C37: =OFFSET(InputPriceData!G$15,CalculationsAndCharts!$A37+$A$11,IF($C$7,8,0),1,1) -> 81877200 | D37: =OFFSET(InputPriceData!C$15,CalculationsAndCharts!$A37+$A$11,IF($C$7,8,0),1,1) -> 175.770004 | E37: =OFFSET(InputPriceData!D$15,CalculationsAndCharts!$A37+$A$11,IF($C$7,8,0),1,1) -> 183.389999 | F37: =OFFSET(InputPriceData!E$15,CalculationsAndCharts!$A37+$A$11,IF($C$7,8,0),1,1) -> 175.110001 | G37: =OFFSET(InputPriceData!F$15,CalculationsAndCharts!$A37+$A$11,IF($C$7,8,0),1,1) -> 183.289993 | J37: 8.279998 | K37: 11.0815518 | L37: 2.889999 | M37: 0 | N37: 2.277769245 | O37: 2.291657046 | P37: 20.5546054 | Q37: 20.67992901 | R37: 0.1253236169 | S37: 41.23453441 | T37: 0.3039287788 | U37: 28.06854134 | V37: TRUE | W37: 30 | Y37: 28.06854134 | Z37: TRUE | AA37: 28.140014 | AB37: 167.179993 | AC37: 195.320007 | AD37: 167.179993 | AE37: 195.320007 | AF37: 0.75 | AG37: 1.312602572 | AP37: 81877200 | BB37: 8.279998 | BC37: 11.0815518 | BD37: 1.312602572 | BE37: FALSE | BF37: 0.75 | BG37: 1.312602572 | BI37: FALSE | BM37: 200.2030072 | BN37: 0 | BQ37: 195.320007 | BR37: 167.179993 | BS37: =IF(($A$8-$A37)<B$17,"",BQ37-BR37) -> 28.140014 | BT37: 1.893675108 | BU37: FALSE | BV37: 0.75 | BW37: 1.893675108 | BY37: TRUE | BZ37: 14.26001 | CA37: 171.839996 | CB37: 186.100006 | CC37: 200.2030072 | CD37: 0
A38: 6 | B38: =OFFSET(InputPriceData!B$15,CalculationsAndCharts!$A38+$A$11,0,1,1) -> 2018-02-12 | C38: =OFFSET(InputPriceData!G$15,CalculationsAndCharts!$A38+$A$11,IF($C$7,8,0),1,1) -> 124768900 | D38: =OFFSET(InputPriceData!C$15,CalculationsAndCharts!$A38+$A$11,IF($C$7,8,0),1,1) -> 177.059998 | E38: =OFFSET(InputPriceData!D$15,CalculationsAndCharts!$A38+$A$11,IF($C$7,8,0),1,1) -> 180.5 | F38: =OFFSET(InputPriceData!E$15,CalculationsAndCharts!$A38+$A$11,IF($C$7,8,0),1,1) -> 171.839996 | G38: =OFFSET(InputPriceData!F$15,CalculationsAndCharts!$A38+$A$11,IF($C$7,8,0),1,1) -> 177.360001 | J38: 8.660004 | K38: 12.01540307 | L38: 0 | M38: 0 | N38: 2.07369266 | O38: 3.055542728 | P38: 17.25861919 | Q38: 25.43021412 | R38: 8.171594935 | S38: 42.68883331 | T38: 19.14223065 | U38: 37.3234122 | V38: FALSE | W38: 30 | X38: 37.3234122 | Z38: TRUE | AA38: 28.140014 | AB38: 167.179993 | AC38: 195.320007 | AD38: 200.2030072 | AE38: 0 | AF38: 0.75 | AG38: 1.532595868 | AP38: 124768900 | BB38: 8.660004 | BC38: 12.01540307 | BD38: 1.532595868 | BE38: FALSE | BF38: 0.75 | BG38: 1.532595868 | BI38: FALSE | BM38: 200.2030072 | BN38: 0 | BQ38: 195.320007 | BR38: 167.179993 | BS38: =IF(($A$8-$A38)<B$17,"",BQ38-BR38) -> 28.140014 | BT38: 1.977513838 | BU38: FALSE | BV38: 0.75 | BW38: 1.977513838 | BY38: TRUE | BZ38: 13.820008 | CA38: 171.839996 | CB38: 185.660004 | CC38: 200.2030072 | CD38: 0
A39: 7 | B39: =OFFSET(InputPriceData!B$15,CalculationsAndCharts!$A39+$A$11,0,1,1) -> 2018-02-05 | C39: =OFFSET(InputPriceData!G$15,CalculationsAndCharts!$A39+$A$11,IF($C$7,8,0),1,1) -> 176854500 | D39: =OFFSET(InputPriceData!C$15,CalculationsAndCharts!$A39+$A$11,IF($C$7,8,0),1,1) -> 186.929993 | E39: =OFFSET(InputPriceData!D$15,CalculationsAndCharts!$A39+$A$11,IF($C$7,8,0),1,1) -> 190.610001 | F39: =OFFSET(InputPriceData!E$15,CalculationsAndCharts!$A39+$A$11,IF($C$7,8,0),1,1) -> 167.179993 | G39: =OFFSET(InputPriceData!F$15,CalculationsAndCharts!$A39+$A$11,IF($C$7,8,0),1,1) -> 176.110001 | J39: 23.430008 | K39: 13.13386943 | L39: 0 | M39: 14.660003 | N39: 2.764923546 | O39: 4.074056971 | P39: 21.05185804 | Q39: 31.01947217 | R39: 9.967614132 | S39: 52.0713302 | T39: 19.14223065 | U39: 43.38380604 | V39: FALSE | W39: 30 | X39: 43.38380604 | Z39: TRUE | AA39: 28.140014 | AB39: 167.179993 | AC39: 195.320007 | AD39: 200.2030072 | AE39: 0 | AF39: 0.75 | AG39: 1.589439763 | AQ39: 176854500 | BB39: 23.430008 | BC39: 13.13386943 | BD39: 1.589439763 | BE39: FALSE | BF39: 0.75 | BG39: 1.589439763 | BI39: FALSE | BM39: 200.2030072 | BN39: 0 | BQ39: 195.320007 | BR39: 167.179993 | BS39: =IF(($A$8-$A39)<B$17,"",BQ39-BR39) -> 28.140014 | BT39: 1.977513838 | BU39: FALSE | BV39: 0.75 | BW39: 1.977513838 | BY39: FALSE | CC39: 200.2030072 | CD39: 0
A40: 8 | B40: =OFFSET(InputPriceData!B$15,CalculationsAndCharts!$A40+$A$11,0,1,1) -> 2018-01-29 | C40: =OFFSET(InputPriceData!G$15,CalculationsAndCharts!$A40+$A$11,IF($C$7,8,0),1,1) -> 165475700 | D40: =OFFSET(InputPriceData!C$15,CalculationsAndCharts!$A40+$A$11,IF($C$7,8,0),1,1) -> 188.75 | E40: =OFFSET(InputPriceData!D$15,CalculationsAndCharts!$A40+$A$11,IF($C$7,8,0),1,1) -> 195.320007 | F40: =OFFSET(InputPriceData!E$15,CalculationsAndCharts!$A40+$A$11,IF($C$7,8,0),1,1) -> 181.839996 | G40: =OFFSET(InputPriceData!F$15,CalculationsAndCharts!$A40+$A$11,IF($C$7,8,0),1,1) -> 190.279999 | J40: =IF($A40<$A$8,MAX(E40-F40,ABS(E40-G41),ABS(F40-G41)),"") -> 13.480011 | K40: =IF(($A$8-$A40)<B$19,"",IF(($A$8-$A40)=B$19,AVERAGE(OFFSET($J40,0,0,B$19,1)),K41*$D$19+$J40*$C$19)) -> 9.701823235 | L40: =IF($A40<$A$8,IF(E40-E41>F41-F40,MAX(E40-E41,0),0),"") -> 4.660003 | M40: =IF($A40<$A$8,IF(F41-F40>E40-E41,MAX(F41-F40,0),0),"") -> 0 | N40: 3.686564728 | O40: 0.5454082949 | P40: 37.99867962 | Q40: 5.621709257 | R40: 32.37697036 | S40: 43.62038888 | T40: 74.22439643 | U40: 51.46433118 | V40: FALSE | W40: 30 | X40: 51.46433118 | Z40: TRUE | AA40: 28.140014 | AB40: 167.179993 | AC40: 195.320007 | AD40: 200.2030072 | AE40: 0 | AF40: 0.75 | AG40: 1.350424682 | AP40: 165475700 | BB40: 13.480011 | BC40: 9.701823235 | BD40: 1.350424682 | BE40: FALSE | BF40: 0.75 | BG40: 1.350424682 | BI40: FALSE | BM40: 200.2030072 | BN40: 0 | BQ40: 195.320007 | BR40: 175.800003 | BS40: =IF(($A$8-$A40)<B$17,"",BQ40-BR40) -> 19.520004 | BT40: 1.596076074 | BU40: FALSE | BV40: 0.75 | BW40: 1.596076074 | BY40: FALSE | CC40: 200.2030072 | CD40: 0
A41: 9 | B41: =OFFSET(InputPriceData!B$15,CalculationsAndCharts!$A41+$A$11,0,1,1) -> 2018-01-22 | C41: =OFFSET(InputPriceData!G$15,CalculationsAndCharts!$A41+$A$11,IF($C$7,8,0),1,1) -> 106209700 | D41: =OFFSET(InputPriceData!C$15,CalculationsAndCharts!$A41+$A$11,IF($C$7,8,0),1,1) -> 180.800003 | E41: =OFFSET(InputPriceData!D$15,CalculationsAndCharts!$A41+$A$11,IF($C$7,8,0),1,1) -> 190.660004 | F41: =OFFSET(InputPriceData!E$15,CalculationsAndCharts!$A41+$A$11,IF($C$7,8,0),1,1) -> 180.410004 | G41: =OFFSET(InputPriceData!F$15,CalculationsAndCharts!$A41+$A$11,IF($C$7,8,0),1,1) -> 190 | J41: 10.25 | K41: 8.442427313 | L41: 8.290009 | M41: 0 | N41: 3.362085304 | O41: 0.7272110598 | P41: 39.82368079 | Q41: 8.613767497 | R41: 31.2099133 | S41: 48.43744829 | T41: 64.43343817 | U41: 43.87764276 | V41: FALSE | W41: 30 | X41: 43.87764276 | Z41: FALSE | AD41: 200.2030072 | AE41: 0 | AF41: 0.75 | AG41: 1.384222639 | AP41: 106209700 | BB41: 10.25 | BC41: 8.442427313 | BD41: 1.384222639 | BE41: FALSE | BF41: 0.75 | BG41: 1.384222639 | BI41: FALSE | BM41: 200.2030072 | BN41: 0 | BQ41: 190.660004 | BR41: 175.800003 | BS41: =IF(($A$8-$A41)<B$17,"",BQ41-BR41) -> 14.860001 | BT41: 1.119818879 | BU41: FALSE | BV41: 0.75 | BW41: 1.119818879 | BY41: FALSE | CC41: 200.2030072 | CD41: 0
A42: 10 | B42: =OFFSET(InputPriceData!B$15,CalculationsAndCharts!$A42+$A$11,0,1,1) -> 2018-01-15 | C42: =OFFSET(InputPriceData!G$15,CalculationsAndCharts!$A42+$A$11,IF($C$7,8,0),1,1) -> 113964300 | D42: =OFFSET(InputPriceData!C$15,CalculationsAndCharts!$A42+$A$11,IF($C$7,8,0),1,1) -> 181.5 | E42: =OFFSET(InputPriceData!D$15,CalculationsAndCharts!$A42+$A$11,IF($C$7,8,0),1,1) -> 182.369995 | F42: =OFFSET(InputPriceData!E$15,CalculationsAndCharts!$A42+$A$11,IF($C$7,8,0),1,1) -> 175.800003 | G42: =OFFSET(InputPriceData!F$15,CalculationsAndCharts!$A42+$A$11,IF($C$7,8,0),1,1) -> 181.289993 | J42: 6.569992 | K42: 7.839903084 | L42: 0 | M42: 1.599991 | N42: 1.719444073 | O42: 0.9696147464 | P42: 21.93195572 | Q42: 12.36768792 | R42: 9.564267798 | S42: 34.29964363 | T42: 27.88445239 | U42: 37.02571095 | V42: FALSE | W42: 30 | X42: 37.02571095 | Z42: FALSE | AD42: 200.2030072 | AE42: 0 | AF42: 0.75 | AG42: 1.168614402 | AQ42: 113964300 | BB42: 6.569992 | BC42: 7.839903084 | BD42: 1.168614402 | BE42: FALSE | BF42: 0.75 | BG42: 1.168614402 | BI42: FALSE | BM42: 200.2030072 | BN42: 0 | BQ42: 188.899994 | BR42: 174.669998 | BS42: =IF(($A$8-$A42)<B$17,"",BQ42-BR42) -> 14.229996 | BT42: 0.9337264653 | BU42: FALSE | BV42: 0.75 | BW42: 0.9337264653 | BY42: FALSE | CC42: 200.2030072 | CD42: 0
A43: 11 | B43: =OFFSET(InputPriceData!B$15,CalculationsAndCharts!$A43+$A$11,0,1,1) -> 2018-01-08 | C43: =OFFSET(InputPriceData!G$15,CalculationsAndCharts!$A43+$A$11,IF($C$7,8,0),1,1) -> 128057600 | D43: =OFFSET(InputPriceData!C$15,CalculationsAndCharts!$A43+$A$11,IF($C$7,8,0),1,1) -> 187.199997 | E43: =OFFSET(InputPriceData!D$15,CalculationsAndCharts!$A43+$A$11,IF($C$7,8,0),1,1) -> 188.899994 | F43: =OFFSET(InputPriceData!E$15,CalculationsAndCharts!$A43+$A$11,IF($C$7,8,0),1,1) -> 177.399994 | G43: =OFFSET(InputPriceData!F$15,CalculationsAndCharts!$A43+$A$11,IF($C$7,8,0),1,1) -> 179.369995 | J43: 11.5 | K43: 8.263206779 | L43: 2 | M43: 0 | N43: 2.292592097 | O43: 0.7594893286 | P43: 27.74458098 | Q43: 9.191217755 | R43: 18.55336323 | S43: 36.93579874 | T43: 50.2313849 | U43: 40.07279714 | V43: FALSE | W43: 30 | X43: 40.07279714 | Z43: FALSE | AD43: 200.2030072 | AE43: 0 | AF43: 0.75 | AG43: 1.138974478 | AQ43: 128057600 | BB43: 11.5 | BC43: 8.263206779 | BD43: 1.138974478 | BE43: FALSE | BF43: 0.75 | BG43: 1.138974478 | BI43: FALSE | BM43: 200.2030072 | BN43: 0 | BQ43: 188.899994 | BR43: 174.669998 | BS43: =IF(($A$8-$A43)<B$17,"",BQ43-BR43) -> 14.229996 | BT43: 0.9337264653 | BU43: FALSE | BV43: 0.75 | BW43: 0.9337264653 | BY43: FALSE | CC43: 200.2030072 | CD43: 0
A44: 12 | B44: =OFFSET(InputPriceData!B$15,CalculationsAndCharts!$A44+$A$11,0,1,1) -> 2018-01-01 | C44: =OFFSET(InputPriceData!G$15,CalculationsAndCharts!$A44+$A$11,IF($C$7,8,0),1,1) -> 62493900 | D44: =OFFSET(InputPriceData!C$15,CalculationsAndCharts!$A44+$A$11,IF($C$7,8,0),1,1) -> 177.679993 | E44: =OFFSET(InputPriceData!D$15,CalculationsAndCharts!$A44+$A$11,IF($C$7,8,0),1,1) -> 186.899994 | F44: =OFFSET(InputPriceData!E$15,CalculationsAndCharts!$A44+$A$11,IF($C$7,8,0),1,1) -> 177.550003 | G44: =OFFSET(InputPriceData!F$15,CalculationsAndCharts!$A44+$A$11,IF($C$7,8,0),1,1) -> 186.850006 | J44: 10.439987 | K44: 7.184275705 | L44: 7.959992 | M44: 0 | N44: 2.390122796 | O44: 1.012652438 | P44: 33.26880668 | Q44: 14.09540056 | R44: 19.17340612 | S44: 47.36420724 | T44: 40.48079179 | U44: 36.68660122 | V44: FALSE | W44: 30 | X44: 36.68660122 | Z44: FALSE | AD44: 200.2030072 | AE44: 0 | AF44: 0.75 | AG44: 0.8576596134 | AP44: 62493900 | BB44: 10.439987 | BC44: 7.184275705 | BD44: 0.8576596134 | BE44: FALSE | BF44: 0.75 | BG44: 0.8576596134 | BI44: FALSE | BM44: 200.2030072 | BN44: 0 | BQ44: 186.899994 | BR44: 174.669998 | BS44: =IF(($A$8-$A44)<B$17,"",BQ44-BR44) -> 12.229996 | BT44: 0.8024929126 | BU44: FALSE | BV44: 0.75 | BW44: 0.8024929126 | BY44: FALSE | CC44: 200.2030072 | CD44: 0
A45: 13 | B45: =OFFSET(InputPriceData!B$15,CalculationsAndCharts!$A45+$A$11,0,1,1) -> 2017-12-25 | C45: =OFFSET(InputPriceData!G$15,CalculationsAndCharts!$A45+$A$11,IF($C$7,8,0),1,1) -> 40875700 | D45: =OFFSET(InputPriceData!C$15,CalculationsAndCharts!$A45+$A$11,IF($C$7,8,0),1,1) -> 176.630005 | E45: =OFFSET(InputPriceData!D$15,CalculationsAndCharts!$A45+$A$11,IF($C$7,8,0),1,1) -> 178.940002 | F45: =OFFSET(InputPriceData!E$15,CalculationsAndCharts!$A45+$A$11,IF($C$7,8,0),1,1) -> 174.669998 | G45: =OFFSET(InputPriceData!F$15,CalculationsAndCharts!$A45+$A$11,IF($C$7,8,0),1,1) -> 176.460007 | J45: 4.270004 | K45: 6.099038607 | L45: 0 | M45: 1.559998 | N45: 0.5334997275 | O45: 1.350203251 | P45: 8.74727579 | Q45: 22.13796859 | R45: 13.3906928 | S45: 30.88524438 | T45: 43.35627924 | U45: 35.42187103 | V45: FALSE | W45: 30 | X45: 35.42187103 | Z45: FALSE | AD45: 200.2030072 | AE45: 0 | AF45: 0.75 | AG45: 0.9041678252 | AQ45: 40875700 | BB45: 4.270004 | BC45: 6.099038607 | BD45: 0.9041678252 | BE45: FALSE | BF45: 0.75 | BG45: 0.9041678252 | BI45: FALSE | BM45: 200.2030072 | BN45: 0 | BQ45: 182.279999 | BR45: 169.009995 | BS45: =IF(($A$8-$A45)<B$17,"",BQ45-BR45) -> 13.270004 | BT45: 1.114189718 | BU45: FALSE | BV45: 0.75 | BW45: 1.114189718 | BY45: FALSE | CC45: 200.2030072 | CD45: 0
A46: 14 | B46: =OFFSET(InputPriceData!B$15,CalculationsAndCharts!$A46+$A$11,0,1,1) -> 2017-12-18 | C46: =OFFSET(InputPriceData!G$15,CalculationsAndCharts!$A46+$A$11,IF($C$7,8,0),1,1) -> 64156700 | D46: =OFFSET(InputPriceData!C$15,CalculationsAndCharts!$A46+$A$11,IF($C$7,8,0),1,1) -> 181.009995 | E46: =OFFSET(InputPriceData!D$15,CalculationsAndCharts!$A46+$A$11,IF($C$7,8,0),1,1) -> 181.300003 | F46: =OFFSET(InputPriceData!E$15,CalculationsAndCharts!$A46+$A$11,IF($C$7,8,0),1,1) -> 176.229996 | G46: =OFFSET(InputPriceData!F$15,CalculationsAndCharts!$A46+$A$11,IF($C$7,8,0),1,1) -> 177.199997 | J46: 5.070007 | K46: 6.708716809 | L46: 0.809998 | M46: 0 | N46: 0.71133297 | O46: 1.280271668 | P46: 10.60311517 | Q46: 19.08370414 | R46: 8.480588971 | S46: 29.68681932 | T46: 28.56684941 | U46: 32.7770683 | V46: FALSE | W46: 30 | X46: 32.7770683 | Z46: FALSE | AD46: 200.2030072 | AE46: 0 | AF46: 0.75 | AG46: 1.335344093 | AQ46: 64156700 | BB46: 5.070007 | BC46: 6.708716809 | BD46: 1.335344093 | BE46: FALSE | BF46: 0.75 | BG46: 1.335344093 | BI46: FALSE | BM46: 200.2030072 | BN46: 0 | BQ46: 184.25 | BR46: 169.009995 | BS46: =IF(($A$8-$A46)<B$17,"",BQ46-BR46) -> 15.240005 | BT46: 2.257778519 | BU46: FALSE | BV46: 0.75 | BW46: 2.257778519 | BY46: FALSE | CC46: 200.2030072 | CD46: 0
A47: 15 | B47: =OFFSET(InputPriceData!B$15,CalculationsAndCharts!$A47+$A$11,0,1,1) -> 2017-12-11 | C47: =OFFSET(InputPriceData!G$15,CalculationsAndCharts!$A47+$A$11,IF($C$7,8,0),1,1) -> 86692500 | D47: =OFFSET(InputPriceData!C$15,CalculationsAndCharts!$A47+$A$11,IF($C$7,8,0),1,1) -> 179.300003 | E47: =OFFSET(InputPriceData!D$15,CalculationsAndCharts!$A47+$A$11,IF($C$7,8,0),1,1) -> 180.490005 | F47: =OFFSET(InputPriceData!E$15,CalculationsAndCharts!$A47+$A$11,IF($C$7,8,0),1,1) -> 176.600006 | G47: =OFFSET(InputPriceData!F$15,CalculationsAndCharts!$A47+$A$11,IF($C$7,8,0),1,1) -> 180.179993 | J47: 3.889999 | K47: 7.254953412 | L47: 0 | M47: 0 | N47: 0.6784446266 | O47: 1.70702889 | P47: 9.351467723 | Q47: 23.52915027 | R47: 14.17768255 | S47: 32.88061799 | T47: 43.11866204 | U47: 34.18047459 | V47: FALSE | W47: 30 | X47: 34.18047459 | Z47: FALSE | AD47: 200.2030072 | AE47: 0 | AF47: 0.75 | AG47: 1.446568378 | AP47: 86692500 | BB47: 3.889999 | BC47: 7.254953412 | BD47: 1.446568378 | BE47: FALSE | BF47: 0.75 | BG47: 1.446568378 | BI47: FALSE | BM47: 200.2030072 | BN47: 0 | BQ47: 184.25 | BR47: 169.009995 | BS47: =IF(($A$8-$A47)<B$17,"",BQ47-BR47) -> 15.240005 | BT47: 1.087795178 | BU47: FALSE | BV47: 0.75 | BW47: 1.087795178 | BY47: FALSE | CC47: 200.2030072 | CD47: 0
A48: 16 | B48: =OFFSET(InputPriceData!B$15,CalculationsAndCharts!$A48+$A$11,0,1,1) -> 2017-12-04 | C48: =OFFSET(InputPriceData!G$15,CalculationsAndCharts!$A48+$A$11,IF($C$7,8,0),1,1) -> 105188400 | D48: =OFFSET(InputPriceData!C$15,CalculationsAndCharts!$A48+$A$11,IF($C$7,8,0),1,1) -> 176.289993 | E48: =OFFSET(InputPriceData!D$15,CalculationsAndCharts!$A48+$A$11,IF($C$7,8,0),1,1) -> 182.279999 | F48: =OFFSET(InputPriceData!E$15,CalculationsAndCharts!$A48+$A$11,IF($C$7,8,0),1,1) -> 169.009995 | G48: =OFFSET(InputPriceData!F$15,CalculationsAndCharts!$A48+$A$11,IF($C$7,8,0),1,1) -> 179 | J48: 13.270004 | K48: 8.376604883 | L48: 0 | M48: 3.330001 | N48: 0.9045928355 | O48: 2.27603852 | P48: 10.79903909 | Q48: 27.17137256 | R48: 16.37233347 | S48: 37.97041165 | T48: 43.11866204 | U48: 31.20107877 | V48: FALSE | W48: 30 | X48: 31.20107877 | Z48: FALSE | AD48: 200.2030072 | AE48: 0 | AF48: 0.75 | AG48: 1.524761919 | AP48: 105188400 | BB48: 13.270004 | BC48: 8.376604883 | BD48: 1.524761919 | BE48: FALSE | BF48: 0.75 | BG48: 1.524761919 | BI48: FALSE | BM48: 200.2030072 | BN48: 0 | BQ48: 184.25 | BR48: 169.009995 | BS48: =IF(($A$8-$A48)<B$17,"",BQ48-BR48) -> 15.240005 | BT48: 1.087795178 | BU48: FALSE | BV48: 0.75 | BW48: 1.087795178 | BY48: FALSE | CC48: 200.2030072 | CD48: 0
A49: 17 | B49: =OFFSET(InputPriceData!B$15,CalculationsAndCharts!$A49+$A$11,0,1,1) -> 2017-11-27 | C49: =OFFSET(InputPriceData!G$15,CalculationsAndCharts!$A49+$A$11,IF($C$7,8,0),1,1) -> 114147800 | D49: =OFFSET(InputPriceData!C$15,CalculationsAndCharts!$A49+$A$11,IF($C$7,8,0),1,1) -> 182.559998 | E49: =OFFSET(InputPriceData!D$15,CalculationsAndCharts!$A49+$A$11,IF($C$7,8,0),1,1) -> 184.25 | F49: =OFFSET(InputPriceData!E$15,CalculationsAndCharts!$A49+$A$11,IF($C$7,8,0),1,1) -> 172.339996 | G49: =OFFSET(InputPriceData!F$15,CalculationsAndCharts!$A49+$A$11,IF($C$7,8,0),1,1) -> 175.100006 | J49: 11.910004 | K49: 6.745471844 | L49: 0 | M49: 5.76001 | N49: 1.206123781 | O49: 1.924717694 | P49: 17.88049537 | Q49: 28.53347755 | R49: 10.65298218 | S49: 46.41397292 | T49: 22.95210151 | U49: 27.22855102 | V49: TRUE | W49: 30 | Y49: 27.22855102 | Z49: TRUE | AA49: 11.910004 | AB49: 172.339996 | AC49: 184.25 | AD49: 172.339996 | AE49: 184.25 | AF49: 0.75 | AG49: 1.104918482 | AQ49: 114147800 | BB49: 11.910004 | BC49: 6.745471844 | BD49: 1.104918482 | BE49: FALSE | BF49: 0.75 | BG49: 1.104918482 | BI49: FALSE | BM49: 200.2030072 | BN49: 0 | BQ49: 184.25 | BR49: 172.339996 | BS49: =IF(($A$8-$A49)<B$17,"",BQ49-BR49) -> 11.910004 | BT49: 0.8501076553 | BU49: FALSE | BV49: 0.75 | BW49: 0.8501076553 | BY49: FALSE | CC49: 200.2030072 | CD49: 0
A50: 18 | B50: =OFFSET(InputPriceData!B$15,CalculationsAndCharts!$A50+$A$11,0,1,1) -> 2017-11-20 | C50: =OFFSET(InputPriceData!G$15,CalculationsAndCharts!$A50+$A$11,IF($C$7,8,0),1,1) -> 44359000 | D50: =OFFSET(InputPriceData!C$15,CalculationsAndCharts!$A50+$A$11,IF($C$7,8,0),1,1) -> 178.869995 | E50: =OFFSET(InputPriceData!D$15,CalculationsAndCharts!$A50+$A$11,IF($C$7,8,0),1,1) -> 183.149994 | F50: =OFFSET(InputPriceData!E$15,CalculationsAndCharts!$A50+$A$11,IF($C$7,8,0),1,1) -> 178.100006 | G50: =OFFSET(InputPriceData!F$15,CalculationsAndCharts!$A50+$A$11,IF($C$7,8,0),1,1) -> 182.779999 | J50: 5.049988 | K50: 5.023961125 | L50: 3.169998 | M50: 0 | N50: 1.608165041 | O50: 0.6462869252 | P50: 32.00990217 | Q50: 12.86409089 | R50: 19.14581128 | S50: 44.87399305 | T50: 42.66571788 | U50: 28.65403419 | V50: TRUE | W50: 30 | Y50: 28.65403419 | Z50: TRUE | AA50: 11.910004 | AB50: 172.339996 | AC50: 184.25 | AD50: 176.399994 | AE50: 183.149994 | AF50: 0.75 | AG50: 0.8267711858 | AP50: 44359000 | BB50: 5.049988 | BC50: 5.023961125 | BD50: 0.8267711858 | BE50: FALSE | BF50: 0.75 | BG50: 0.8267711858 | BI50: FALSE | BM50: 200.2030072 | BN50: 0 | BQ50: 183.149994 | BR50: 176.399994 | BS50: =IF(($A$8-$A50)<B$17,"",BQ50-BR50) -> 6.75 | BT50: 0.6804425881 | BU50: TRUE | BV50: 0.75 | BX50: 0.6804425881 | BY50: TRUE | BZ50: 6.75 | CA50: 176.399994 | CB50: 183.149994 | CC50: 176.399994 | CD50: 183.149994
A51: 19 | B51: =OFFSET(InputPriceData!B$15,CalculationsAndCharts!$A51+$A$11,0,1,1) -> 2017-11-13 | C51: =OFFSET(InputPriceData!G$15,CalculationsAndCharts!$A51+$A$11,IF($C$7,8,0),1,1) -> 57988600 | D51: =OFFSET(InputPriceData!C$15,CalculationsAndCharts!$A51+$A$11,IF($C$7,8,0),1,1) -> 177.5 | E51: =OFFSET(InputPriceData!D$15,CalculationsAndCharts!$A51+$A$11,IF($C$7,8,0),1,1) -> 179.979996 | F51: =OFFSET(InputPriceData!E$15,CalculationsAndCharts!$A51+$A$11,IF($C$7,8,0),1,1) -> 176.399994 | G51: =OFFSET(InputPriceData!F$15,CalculationsAndCharts!$A51+$A$11,IF($C$7,8,0),1,1) -> 179 | J51: 3.580002 | K51: 5.0152855 | L51: 0 | M51: 0.690002 | N51: 1.087554054 | O51: 0.8617159003 | P51: 21.68478852 | Q51: 17.18179155 | R51: 4.502996972 | S51: 38.86658008 | T51: 11.58578132 | U51: 23.98347296 | V51: TRUE | W51: 30 | Y51: 23.98347296 | Z51: TRUE | AA51: 15.360001 | AB51: 168.889999 | AC51: 184.25 | AD51: 168.889999 | AE51: 182.899994 | AF51: 0.75 | AG51: 1.003966818 | AP51: 57988600 | BB51: 3.580002 | BC51: 5.0152855 | BD51: 1.003966818 | BE51: FALSE | BF51: 0.75 | BG51: 1.003966818 | BI51: FALSE | BM51: 200.2030072 | BN51: 0 | BQ51: 182.899994 | BR51: 168.889999 | BS51: =IF(($A$8-$A51)<B$17,"",BQ51-BR51) -> 14.009995 | BT51: 0.9229241462 | BU51: FALSE | BV51: 0.75 | BW51: 0.9229241462 | BY51: TRUE | BZ51: 6.75 | CA51: 176.399994 | CB51: 183.149994 | CC51: 200.2030072 | CD51: 0
A52: 20 | B52: =OFFSET(InputPriceData!B$15,CalculationsAndCharts!$A52+$A$11,0,1,1) -> 2017-11-06 | C52: =OFFSET(InputPriceData!G$15,CalculationsAndCharts!$A52+$A$11,IF($C$7,8,0),1,1) -> 60415500 | D52: =OFFSET(InputPriceData!C$15,CalculationsAndCharts!$A52+$A$11,IF($C$7,8,0),1,1) -> 178.559998 | E52: =OFFSET(InputPriceData!D$15,CalculationsAndCharts!$A52+$A$11,IF($C$7,8,0),1,1) -> 180.75 | F52: =OFFSET(InputPriceData!E$15,CalculationsAndCharts!$A52+$A$11,IF($C$7,8,0),1,1) -> 177.089996 | G52: =OFFSET(InputPriceData!F$15,CalculationsAndCharts!$A52+$A$11,IF($C$7,8,0),1,1) -> 178.460007 | J52: 3.660004 | K52: 5.493713333 | L52: 0 | M52: 0 | N52: 1.450072073 | O52: 0.918953867 | P52: 26.3951172 | Q52: 16.72737202 | R52: 9.667745174 | S52: 43.12248922 | T52: 22.4192651 | U52: 28.11603684 | V52: TRUE | W52: 30 | Y52: 28.11603684 | Z52: TRUE | AA52: 15.360001 | AB52: 168.889999 | AC52: 184.25 | AD52: 168.889999 | AE52: 182.899994 | AF52: 0.75 | AG52: 1.038386289 | AQ52: 60415500 | BB52: 3.660004 | BC52: 5.493713333 | BD52: 1.038386289 | BE52: FALSE | BF52: 0.75 | BG52: 1.038386289 | BI52: FALSE | BM52: 200.2030072 | BN52: 0 | BQ52: 182.899994 | BR52: 168.889999 | BS52: =IF(($A$8-$A52)<B$17,"",BQ52-BR52) -> 14.009995 | BT52: 1.051800874 | BU52: FALSE | BV52: 0.75 | BW52: 1.051800874 | BY52: TRUE | BZ52: 6.75 | CA52: 176.399994 | CB52: 183.149994 | CC52: 200.2030072 | CD52: 0
A53: 21 | B53: =OFFSET(InputPriceData!B$15,CalculationsAndCharts!$A53+$A$11,0,1,1) -> 2017-10-30 | C53: =OFFSET(InputPriceData!G$15,CalculationsAndCharts!$A53+$A$11,IF($C$7,8,0),1,1) -> 138797700 | D53: =OFFSET(InputPriceData!C$15,CalculationsAndCharts!$A53+$A$11,IF($C$7,8,0),1,1) -> 179.259995 | E53: =OFFSET(InputPriceData!D$15,CalculationsAndCharts!$A53+$A$11,IF($C$7,8,0),1,1) -> 182.899994 | F53: =OFFSET(InputPriceData!E$15,CalculationsAndCharts!$A53+$A$11,IF($C$7,8,0),1,1) -> 176.710007 | G53: =OFFSET(InputPriceData!F$15,CalculationsAndCharts!$A53+$A$11,IF($C$7,8,0),1,1) -> 178.919998 | J53: 6.189987 | K53: 6.104949777 | L53: 4.689987 | M53: 0 | N53: 1.93342943 | O53: 1.225271823 | P53: 31.66986627 | Q53: 20.07013763 | R53: 11.59972863 | S53: 51.7400039 | T53: 22.4192651 | U53: 30.01496076 | V53: FALSE | W53: 30 | X53: 30.01496076 | Z53: TRUE | AA53: 14.259995 | AB53: 168.889999 | AC53: 183.149994 | AD53: 200.2030072 | AE53: 0 | AF53: 0.75 | AG53: 1.072140955 | AQ53: 138797700 | BB53: 6.189987 | BC53: 6.104949777 | BD53: 1.072140955 | BE53: FALSE | BF53: 0.75 | BG53: 1.072140955 | BI53: FALSE | BM53: 200.2030072 | BN53: 0 | BQ53: 182.899994 | BR53: 168.889999 | BS53: =IF(($A$8-$A53)<B$17,"",BQ53-BR53) -> 14.009995 | BT53: 1.126205205 | BU53: FALSE | BV53: 0.75 | BW53: 1.126205205 | BY53: TRUE | BZ53: 6.75 | CA53: 176.399994 | CB53: 183.149994 | CC53: 200.2030072 | CD53: 0
A54: 22 | B54: =OFFSET(InputPriceData!B$15,CalculationsAndCharts!$A54+$A$11,0,1,1) -> 2017-10-23 | C54: =OFFSET(InputPriceData!G$15,CalculationsAndCharts!$A54+$A$11,IF($C$7,8,0),1,1) -> 84107200 | D54: =OFFSET(InputPriceData!C$15,CalculationsAndCharts!$A54+$A$11,IF($C$7,8,0),1,1) -> 175.199997 | E54: =OFFSET(InputPriceData!D$15,CalculationsAndCharts!$A54+$A$11,IF($C$7,8,0),1,1) -> 178.210007 | F54: =OFFSET(InputPriceData!E$15,CalculationsAndCharts!$A54+$A$11,IF($C$7,8,0),1,1) -> 168.889999 | G54: =OFFSET(InputPriceData!F$15,CalculationsAndCharts!$A54+$A$11,IF($C$7,8,0),1,1) -> 177.880005 | J54: 9.320008 | K54: 6.076604036 | L54: 0 | M54: 3.740006 | N54: 1.014576907 | O54: 1.633695764 | P54: 16.69644592 | Q54: 26.88501265 | R54: 10.18856672 | S54: 43.58145857 | T54: 23.37821417 | U54: 32.54685931 | V54: FALSE | W54: 30 | X54: 32.54685931 | Z54: TRUE | AA54: 14.009995 | AB54: 168.889999 | AC54: 182.899994 | AD54: 200.2030072 | AE54: 0 | AF54: 0.75 | AG54: 0.9750300737 | AP54: 84107200 | BB54: 9.320008 | BC54: 6.076604036 | BD54: 0.9750300737 | BE54: FALSE | BF54: 0.75 | BG54: 0.9750300737 | BI54: FALSE | BM54: 200.2030072 | BN54: 0 | BQ54: 178.210007 | BR54: 168.289993 | BS54: =IF(($A$8-$A54)<B$17,"",BQ54-BR54) -> 9.920014 | BT54: 0.7974286499 | BU54: FALSE | BV54: 0.75 | BW54: 0.7974286499 | BY54: FALSE | CC54: 200.2030072 | CD54: 0
A55: 23 | B55: =OFFSET(InputPriceData!B$15,CalculationsAndCharts!$A55+$A$11,0,1,1) -> 2017-10-16 | C55: =OFFSET(InputPriceData!G$15,CalculationsAndCharts!$A55+$A$11,IF($C$7,8,0),1,1) -> 66891900 | D55: =OFFSET(InputPriceData!C$15,CalculationsAndCharts!$A55+$A$11,IF($C$7,8,0),1,1) -> 174.490005 | E55: =OFFSET(InputPriceData!D$15,CalculationsAndCharts!$A55+$A$11,IF($C$7,8,0),1,1) -> 176.740005 | F55: =OFFSET(InputPriceData!E$15,CalculationsAndCharts!$A55+$A$11,IF($C$7,8,0),1,1) -> 172.630005 | G55: =OFFSET(InputPriceData!F$15,CalculationsAndCharts!$A55+$A$11,IF($C$7,8,0),1,1) -> 174.979996 | J55: 4.11 | K55: 4.995469382 | L55: 1.86 | M55: 0 | N55: 1.352769209 | O55: 0.9315923515 | P55: 27.07992194 | Q55: 18.6487451 | R55: 8.431176843 | S55: 45.72866704 | T55: 18.4373991 | U55: 35.60307436 | V55: FALSE | W55: 30 | X55: 35.60307436 | Z55: TRUE | AA55: 14.009995 | AB55: 168.889999 | AC55: 182.899994 | AD55: 200.2030072 | AE55: 0 | AF55: 0.75 | AG55: 1.010622883 | AP55: 66891900 | BB55: 4.11 | BC55: 4.995469382 | BD55: 1.010622883 | BE55: FALSE | BF55: 0.75 | BG55: 1.010622883 | BI55: FALSE | BM55: 200.2030072 | BN55: 0 | BQ55: 176.740005 | BR55: 161.559998 | BS55: =IF(($A$8-$A55)<B$17,"",BQ55-BR55) -> 15.180007 | BT55: 1.686667444 | BU55: FALSE | BV55: 0.75 | BW55: 1.686667444 | BY55: FALSE | CC55: 200.2030072 | CD55: 0
A56: 24 | B56: =OFFSET(InputPriceData!B$15,CalculationsAndCharts!$A56+$A$11,0,1,1) -> 2017-10-09 | C56: =OFFSET(InputPriceData!G$15,CalculationsAndCharts!$A56+$A$11,IF($C$7,8,0),1,1) -> 61204500 | D56: =OFFSET(InputPriceData!C$15,CalculationsAndCharts!$A56+$A$11,IF($C$7,8,0),1,1) -> 172.699997 | E56: =OFFSET(InputPriceData!D$15,CalculationsAndCharts!$A56+$A$11,IF($C$7,8,0),1,1) -> 174.880005 | F56: =OFFSET(InputPriceData!E$15,CalculationsAndCharts!$A56+$A$11,IF($C$7,8,0),1,1) -> 170.800003 | G56: =OFFSET(InputPriceData!F$15,CalculationsAndCharts!$A56+$A$11,IF($C$7,8,0),1,1) -> 173.740005 | J56: 4.080002 | K56: 5.290625843 | L56: 2.51001 | M56: 0 | N56: 1.183692279 | O56: 1.242123135 | P56: 22.3733886 | Q56: 23.47781099 | R56: 1.10442239 | S56: 45.85119958 | T56: 2.408709913 | U56: 41.32496611 | V56: FALSE | W56: 30 | X56: 41.32496611 | Z56: FALSE | AD56: 200.2030072 | AE56: 0 | AF56: 0.75 | AG56: 0.9956112964 | AP56: 61204500 | BB56: 4.080002 | BC56: 5.290625843 | BD56: 0.9956112964 | BE56: FALSE | BF56: 0.75 | BG56: 0.9956112964 | BI56: FALSE | BM56: 200.2030072 | BN56: 0 | BQ56: 174.880005 | BR56: 161.559998 | BS56: =IF(($A$8-$A56)<B$17,"",BQ56-BR56) -> 13.320007 | BT56: 1.480000778 | BU56: FALSE | BV56: 0.75 | BW56: 1.480000778 | BY56: FALSE | CC56: 200.2030072 | CD56: 0
A57: 25 | B57: =OFFSET(InputPriceData!B$15,CalculationsAndCharts!$A57+$A$11,0,1,1) -> 2017-10-02 | C57: =OFFSET(InputPriceData!G$15,CalculationsAndCharts!$A57+$A$11,IF($C$7,8,0),1,1) -> 61415600 | D57: =OFFSET(InputPriceData!C$15,CalculationsAndCharts!$A57+$A$11,IF($C$7,8,0),1,1) -> 171.389999 | E57: =OFFSET(InputPriceData!D$15,CalculationsAndCharts!$A57+$A$11,IF($C$7,8,0),1,1) -> 172.369995 | F57: =OFFSET(InputPriceData!E$15,CalculationsAndCharts!$A57+$A$11,IF($C$7,8,0),1,1) -> 168.289993 | G57: =OFFSET(InputPriceData!F$15,CalculationsAndCharts!$A57+$A$11,IF($C$7,8,0),1,1) -> 172.229996 | J57: 4.080002 | K57: 5.694167124 | L57: 0.709991 | M57: 0 | N57: 0.741586372 | O57: 1.65616418 | P57: 13.02361444 | Q57: 29.08527524 | R57: 16.06166079 | S57: 42.10888968 | T57: 38.14315912 | U57: 54.29705151 | V57: FALSE | W57: 30 | X57: 54.29705151 | Z57: FALSE | AD57: 200.2030072 | AE57: 0 | AF57: 0.75 | AG57: 0.9752633189 | AP57: 61415600 | BB57: 4.080002 | BC57: 5.694167124 | BD57: 0.9752633189 | BE57: FALSE | BF57: 0.75 | BG57: 0.9752633189 | BI57: FALSE | BM57: 200.2030072 | BN57: 0 | BQ57: 174 | BR57: 161.559998 | BS57: =IF(($A$8-$A57)<B$17,"",BQ57-BR57) -> 12.440002 | BT57: 1.465252612 | BU57: FALSE | BV57: 0.75 | BW57: 1.465252612 | BY57: FALSE | CC57: 200.2030072 | CD57: 0
A58: 26 | B58: =OFFSET(InputPriceData!B$15,CalculationsAndCharts!$A58+$A$11,0,1,1) -> 2017-09-25 | C58: =OFFSET(InputPriceData!G$15,CalculationsAndCharts!$A58+$A$11,IF($C$7,8,0),1,1) -> 111376500 | D58: =OFFSET(InputPriceData!C$15,CalculationsAndCharts!$A58+$A$11,IF($C$7,8,0),1,1) -> 169.240005 | E58: =OFFSET(InputPriceData!D$15,CalculationsAndCharts!$A58+$A$11,IF($C$7,8,0),1,1) -> 171.660004 | F58: =OFFSET(InputPriceData!E$15,CalculationsAndCharts!$A58+$A$11,IF($C$7,8,0),1,1) -> 161.559998 | G58: =OFFSET(InputPriceData!F$15,CalculationsAndCharts!$A58+$A$11,IF($C$7,8,0),1,1) -> 170.869995 | J58: 10.100006 | K58: 6.232222165 | L58: 0 | M58: 7.660003 | N58: 0.7521181627 | O58: 2.208218907 | P58: 12.06821809 | Q58: 35.43228802 | R58: 23.36406993 | S58: 47.50050611 | T58: 49.18699156 | U58: 59.68168231 | V58: FALSE | W58: 30 | X58: 59.68168231 | Z58: FALSE | AD58: 200.2030072 | AE58: 0 | AF58: 0.75 | AG58: 0.963032044 | AP58: 111376500 | BB58: 10.100006 | BC58: 6.232222165 | BD58: 0.963032044 | BE58: FALSE | BF58: 0.75 | BG58: 0.963032044 | BI58: FALSE | BM58: 200.2030072 | BN58: 0 | BQ58: 174 | BR58: 161.559998 | BS58: =IF(($A$8-$A58)<B$17,"",BQ58-BR58) -> 12.440002 | BT58: 1.545341287 | BU58: FALSE | BV58: 0.75 | BW58: 1.545341287 | BY58: FALSE | CC58: 200.2030072 | CD58: 0
A59: 27 | B59: =OFFSET(InputPriceData!B$15,CalculationsAndCharts!$A59+$A$11,0,1,1) -> 2017-09-18 | C59: =OFFSET(InputPriceData!G$15,CalculationsAndCharts!$A59+$A$11,IF($C$7,8,0),1,1) -> 61645200 | D59: =OFFSET(InputPriceData!C$15,CalculationsAndCharts!$A59+$A$11,IF($C$7,8,0),1,1) -> 171.990005 | E59: =OFFSET(InputPriceData!D$15,CalculationsAndCharts!$A59+$A$11,IF($C$7,8,0),1,1) -> 173.050003 | F59: =OFFSET(InputPriceData!E$15,CalculationsAndCharts!$A59+$A$11,IF($C$7,8,0),1,1) -> 169.220001 | G59: =OFFSET(InputPriceData!F$15,CalculationsAndCharts!$A59+$A$11,IF($C$7,8,0),1,1) -> 170.539993 | J59: 3.830002 | K59: 4.942960886 | L59: 0 | M59: 1.039994 | N59: 1.002824217 | O59: 0.3909575431 | P59: 20.28792539 | Q59: 7.909379663 | R59: 12.37854573 | S59: 28.19730506 | T59: 43.89974754 | U59: 63.17991256 | V59: FALSE | W59: 30 | X59: 63.17991256 | Z59: FALSE | AD59: 200.2030072 | AE59: 0 | AF59: 0.75 | AG59: 0.8253933619 | AQ59: 61645200 | BB59: 3.830002 | BC59: 4.942960886 | BD59: 0.8253933619 | BE59: FALSE | BF59: 0.75 | BG59: 0.8253933619 | BI59: FALSE | BM59: 200.2030072 | BN59: 0 | BQ59: 174 | BR59: 165 | BS59: =IF(($A$8-$A59)<B$17,"",BQ59-BR59) -> 9 | BT59: 1.244813967 | BU59: FALSE | BV59: 0.75 | BW59: 1.244813967 | BY59: FALSE | CC59: 200.2030072 | CD59: 0
A60: 28 | B60: =OFFSET(InputPriceData!B$15,CalculationsAndCharts!$A60+$A$11,0,1,1) -> 2017-09-11 | C60: =OFFSET(InputPriceData!G$15,CalculationsAndCharts!$A60+$A$11,IF($C$7,8,0),1,1) -> 63953800 | D60: =OFFSET(InputPriceData!C$15,CalculationsAndCharts!$A60+$A$11,IF($C$7,8,0),1,1) -> 172.399994 | E60: =OFFSET(InputPriceData!D$15,CalculationsAndCharts!$A60+$A$11,IF($C$7,8,0),1,1) -> 174 | F60: =OFFSET(InputPriceData!E$15,CalculationsAndCharts!$A60+$A$11,IF($C$7,8,0),1,1) -> 170.259995 | G60: =OFFSET(InputPriceData!F$15,CalculationsAndCharts!$A60+$A$11,IF($C$7,8,0),1,1) -> 171.639999 | J60: 3.740005 | K60: 5.313947182 | L60: 0.509995 | M60: 0 | N60: 1.337098956 | O60: 0.1746120574 | P60: 25.16206711 | Q60: 3.285920079 | R60: 21.87614703 | S60: 28.44798719 | T60: 76.89875169 | U60: 69.60663423 | V60: FALSE | W60: 30 | X60: 69.60663423 | Z60: FALSE | AD60: 200.2030072 | AE60: 0 | AF60: 0.75 | AG60: 0.8009180054 | AQ60: 63953800 | BB60: 3.740005 | BC60: 5.313947182 | BD60: 0.8009180054 | BE60: FALSE | BF60: 0.75 | BG60: 0.8009180054 | BI60: FALSE | BM60: 200.2030072 | BN60: 0 | BQ60: 174 | BR60: 165 | BS60: =IF(($A$8-$A60)<B$17,"",BQ60-BR60) -> 9 | BT60: 0.7738604389 | BU60: FALSE | BV60: 0.75 | BW60: 0.7738604389 | BY60: FALSE | CC60: 200.2030072 | CD60: 0
A61: 29 | B61: =OFFSET(InputPriceData!B$15,CalculationsAndCharts!$A61+$A$11,0,1,1) -> 2017-09-04 | C61: =OFFSET(InputPriceData!G$15,CalculationsAndCharts!$A61+$A$11,IF($C$7,8,0),1,1) -> 56165200 | D61: =OFFSET(InputPriceData!C$15,CalculationsAndCharts!$A61+$A$11,IF($C$7,8,0),1,1) -> 171.270004 | E61: =OFFSET(InputPriceData!D$15,CalculationsAndCharts!$A61+$A$11,IF($C$7,8,0),1,1) -> 173.490005 | F61: =OFFSET(InputPriceData!E$15,CalculationsAndCharts!$A61+$A$11,IF($C$7,8,0),1,1) -> 169.550003 | G61: =OFFSET(InputPriceData!F$15,CalculationsAndCharts!$A61+$A$11,IF($C$7,8,0),1,1) -> 170.949997 | J61: 3.940002 | K61: 5.838594576 | L61: 0.570007 | M61: 0 | N61: 1.612800274 | O61: 0.2328160766 | P61: 27.62309069 | Q61: 3.987536273 | R61: 23.63555441 | S61: 31.61062696 | T61: 74.7709131 | U61: 67.17592841 | V61: FALSE | W61: 30 | X61: 67.17592841 | Z61: FALSE | AD61: 200.2030072 | AE61: 0 | AF61: 0.75 | AG61: 0.8242997593 | AQ61: 56165200 | BB61: 3.940002 | BC61: 5.838594576 | BD61: 0.8242997593 | BE61: FALSE | BF61: 0.75 | BG61: 0.8242997593 | BI61: FALSE | BM61: 200.2030072 | BN61: 0 | BQ61: 173.490005 | BR61: 165 | BS61: =IF(($A$8-$A61)<B$17,"",BQ61-BR61) -> 8.490005 | BT61: 0.5089928919 | BU61: TRUE | BV61: 0.75 | BX61: 0.5089928919 | BY61: TRUE | BZ61: 8.490005 | CA61: 165 | CB61: 173.490005 | CC61: 165 | CD61: 173.490005
A62: 30 | B62: =OFFSET(InputPriceData!B$15,CalculationsAndCharts!$A62+$A$11,0,1,1) -> 2017-08-28 | C62: =OFFSET(InputPriceData!G$15,CalculationsAndCharts!$A62+$A$11,IF($C$7,8,0),1,1) -> 59717100 | D62: =OFFSET(InputPriceData!C$15,CalculationsAndCharts!$A62+$A$11,IF($C$7,8,0),1,1) -> 166.910004 | E62: =OFFSET(InputPriceData!D$15,CalculationsAndCharts!$A62+$A$11,IF($C$7,8,0),1,1) -> 172.919998 | F62: =OFFSET(InputPriceData!E$15,CalculationsAndCharts!$A62+$A$11,IF($C$7,8,0),1,1) -> 165 | G62: =OFFSET(InputPriceData!F$15,CalculationsAndCharts!$A62+$A$11,IF($C$7,8,0),1,1) -> 172.020004 | J62: 7.919998 | K62: 6.471458767 | L62: 3.050003 | M62: 0 | N62: 1.960398033 | O62: 0.3104214354 | P62: 30.29298498 | Q62: 4.796776841 | R62: 25.49620814 | S62: 35.08976182 | T62: 72.65996353 | U62: 64.64426685 | V62: FALSE | W62: 30 | X62: 64.64426685 | Z62: FALSE | AD62: 200.2030072 | AE62: 0 | AF62: 0.75 | AG62: 0.8771930135 | AP62: 59717100 | BB62: 7.919998 | BC62: 6.471458767 | BD62: 0.8771930135 | BE62: FALSE | BF62: 0.75 | BG62: 0.8771930135 | BI62: FALSE | BM62: 200.2030072 | BN62: 0 | BQ62: 173.050003 | BR62: 165 | BS62: =IF(($A$8-$A62)<B$17,"",BQ62-BR62) -> 8.050003 | BT62: 0.3356963988 | BU62: TRUE | BV62: 0.75 | BX62: 0.3356963988 | BY62: TRUE | BZ62: 8.490005 | CA62: 165 | CB62: 173.490005 | CC62: 165 | CD62: 173.050003
A63: 31 | B63: =OFFSET(InputPriceData!B$15,CalculationsAndCharts!$A63+$A$11,0,1,1) -> 2017-08-21 | C63: =OFFSET(InputPriceData!G$15,CalculationsAndCharts!$A63+$A$11,IF($C$7,8,0),1,1) -> 59799900 | D63: =OFFSET(InputPriceData!C$15,CalculationsAndCharts!$A63+$A$11,IF($C$7,8,0),1,1) -> 167.160004 | E63: =OFFSET(InputPriceData!D$15,CalculationsAndCharts!$A63+$A$11,IF($C$7,8,0),1,1) -> 169.869995 | F63: =OFFSET(InputPriceData!E$15,CalculationsAndCharts!$A63+$A$11,IF($C$7,8,0),1,1) -> 165.820007 | G63: =OFFSET(InputPriceData!F$15,CalculationsAndCharts!$A63+$A$11,IF($C$7,8,0),1,1) -> 166.320007 | J63: 4.049988 | K63: 5.988612357 | L63: 0 | M63: 0.39 | N63: 1.597196377 | O63: 0.4138952472 | P63: 26.67055875 | Q63: 6.911371493 | R63: 19.75918726 | S63: 33.58193024 | T63: 58.83874785 | U63: 61.97236796 | V63: FALSE | W63: 30 | X63: 61.97236796 | Z63: FALSE | AD63: 200.2030072 | AE63: 0 | AF63: 0.75 | AG63: 0.758056869 | AQ63: 59799900 | BB63: 4.049988 | BC63: 5.988612357 | BD63: 0.758056869 | BE63: FALSE | BF63: 0.75 | BG63: 0.758056869 | BI63: FALSE | BM63: 200.2030072 | BN63: 0 | BQ63: 173.050003 | BR63: 165.820007 | BS63: =IF(($A$8-$A63)<B$17,"",BQ63-BR63) -> 7.229996 | BT63: 0.2611049288 | BU63: TRUE | BV63: 0.75 | BX63: 0.2611049288 | BY63: TRUE | BZ63: 8.490005 | CA63: 165 | CB63: 173.490005 | CC63: 165.820007 | CD63: 173.050003
A64: 32 | B64: =OFFSET(InputPriceData!B$15,CalculationsAndCharts!$A64+$A$11,0,1,1) -> 2017-08-14 | C64: =OFFSET(InputPriceData!G$15,CalculationsAndCharts!$A64+$A$11,IF($C$7,8,0),1,1) -> 69772900 | D64: =OFFSET(InputPriceData!C$15,CalculationsAndCharts!$A64+$A$11,IF($C$7,8,0),1,1) -> 170.089996 | E64: =OFFSET(InputPriceData!D$15,CalculationsAndCharts!$A64+$A$11,IF($C$7,8,0),1,1) -> 171.5 | F64: =OFFSET(InputPriceData!E$15,CalculationsAndCharts!$A64+$A$11,IF($C$7,8,0),1,1) -> 166.210007 | G64: =OFFSET(InputPriceData!F$15,CalculationsAndCharts!$A64+$A$11,IF($C$7,8,0),1,1) -> 167.410004 | J64: 5.289993 | K64: 6.634820475 | L64: 0 | M64: 0.639999 | N64: 2.129595169 | O64: 0.4218603296 | P64: 32.09725383 | Q64: 6.358277985 | R64: 25.73897584 | S64: 38.45553181 | T64: 66.93179012 | U64: 63.01690799 | V64: FALSE | W64: 30 | X64: 63.01690799 | Z64: FALSE | AD64: 200.2030072 | AE64: 0 | AF64: 0.75 | AG64: 0.9967280685 | AQ64: 69772900 | BB64: 5.289993 | BC64: 6.634820475 | BD64: 0.9967280685 | BE64: FALSE | BF64: 0.75 | BG64: 0.9967280685 | BI64: FALSE | BM64: 200.2030072 | BN64: 0 | BQ64: 175.490005 | BR64: 163.860001 | BS64: =IF(($A$8-$A64)<B$17,"",BQ64-BR64) -> 11.630004 | BT64: 0.6497211116 | BU64: TRUE | BV64: 0.75 | BX64: 0.6497211116 | BY64: TRUE | BZ64: 11.630004 | CA64: 163.860001 | CB64: 175.490005 | CC64: 163.860001 | CD64: 175.490005
A65: 33 | B65: =OFFSET(InputPriceData!B$15,CalculationsAndCharts!$A65+$A$11,0,1,1) -> 2017-08-07 | C65: =OFFSET(InputPriceData!G$15,CalculationsAndCharts!$A65+$A$11,IF($C$7,8,0),1,1) -> 72620200 | D65: =OFFSET(InputPriceData!C$15,CalculationsAndCharts!$A65+$A$11,IF($C$7,8,0),1,1) -> 169.949997 | E65: =OFFSET(InputPriceData!D$15,CalculationsAndCharts!$A65+$A$11,IF($C$7,8,0),1,1) -> 173.050003 | F65: =OFFSET(InputPriceData!E$15,CalculationsAndCharts!$A65+$A$11,IF($C$7,8,0),1,1) -> 166.850006 | G65: =OFFSET(InputPriceData!F$15,CalculationsAndCharts!$A65+$A$11,IF($C$7,8,0),1,1) -> 168.080002 | J65: 6.199997 | K65: 7.083096301 | L65: 0.330002 | M65: 0 | N65: 2.839460226 | O65: 0.3491474395 | P65: 40.08783878 | Q65: 4.929305274 | R65: 35.1585335 | S65: 45.01714405 | T65: 78.10031988 | U65: 61.71194729 | V65: FALSE | W65: 30 | X65: 61.71194729 | Z65: FALSE | AD65: 200.2030072 | AE65: 0 | AF65: 0.75 | AG65: 1.076654609 | AQ65: 72620200 | BB65: 6.199997 | BC65: 7.083096301 | BD65: 1.076654609 | BE65: FALSE | BF65: 0.75 | BG65: 1.076654609 | BI65: FALSE | BM65: 200.2030072 | BN65: 0 | BQ65: 175.490005 | BR65: 158.809998 | BS65: =IF(($A$8-$A65)<B$17,"",BQ65-BR65) -> 16.680007 | BT65: 1.332268504 | BU65: FALSE | BV65: 0.75 | BW65: 1.332268504 | BY65: TRUE | BZ65: 11.630004 | CA65: 163.860001 | CB65: 175.490005 | CC65: 200.2030072 | CD65: 0
A66: 34 | B66: =OFFSET(InputPriceData!B$15,CalculationsAndCharts!$A66+$A$11,0,1,1) -> 2017-07-31 | C66: =OFFSET(InputPriceData!G$15,CalculationsAndCharts!$A66+$A$11,IF($C$7,8,0),1,1) -> 78869200 | D66: =OFFSET(InputPriceData!C$15,CalculationsAndCharts!$A66+$A$11,IF($C$7,8,0),1,1) -> 172 | E66: =OFFSET(InputPriceData!D$15,CalculationsAndCharts!$A66+$A$11,IF($C$7,8,0),1,1) -> 172.720001 | F66: =OFFSET(InputPriceData!E$15,CalculationsAndCharts!$A66+$A$11,IF($C$7,8,0),1,1) -> 166.910004 | G66: =OFFSET(InputPriceData!F$15,CalculationsAndCharts!$A66+$A$11,IF($C$7,8,0),1,1) -> 169.619995 | J66: 5.809997 | K66: 7.377462734 | L66: 0 | M66: 0 | N66: 3.675946301 | O66: 0.4655299193 | P66: 49.82670104 | Q66: 6.31016294 | R66: 43.5165381 | S66: 56.13686398 | T66: 77.5186482 | U66: 56.24915642 | V66: FALSE | W66: 30 | X66: 56.24915642 | Z66: FALSE | AD66: 200.2030072 | AE66: 0 | AF66: 0.75 | AG66: 1.26940844 | AQ66: 78869200 | BB66: 5.809997 | BC66: 7.377462734 | BD66: 1.26940844 | BE66: FALSE | BF66: 0.75 | BG66: 1.26940844 | BI66: FALSE | BM66: 200.2030072 | BN66: 0 | BQ66: 175.490005 | BR66: 151.509995 | BS66: =IF(($A$8-$A66)<B$17,"",BQ66-BR66) -> 23.98001 | BT66: 2.00837571 | BU66: FALSE | BV66: 0.75 | BW66: 2.00837571 | BY66: TRUE | BZ66: 11.630004 | CA66: 163.860001 | CB66: 175.490005 | CC66: 200.2030072 | CD66: 0
A67: 35 | B67: =OFFSET(InputPriceData!B$15,CalculationsAndCharts!$A67+$A$11,0,1,1) -> 2017-07-24 | C67: =OFFSET(InputPriceData!G$15,CalculationsAndCharts!$A67+$A$11,IF($C$7,8,0),1,1) -> 161455400 | D67: =OFFSET(InputPriceData!C$15,CalculationsAndCharts!$A67+$A$11,IF($C$7,8,0),1,1) -> 164.639999 | E67: =OFFSET(InputPriceData!D$15,CalculationsAndCharts!$A67+$A$11,IF($C$7,8,0),1,1) -> 175.490005 | F67: =OFFSET(InputPriceData!E$15,CalculationsAndCharts!$A67+$A$11,IF($C$7,8,0),1,1) -> 163.860001 | G67: =OFFSET(InputPriceData!F$15,CalculationsAndCharts!$A67+$A$11,IF($C$7,8,0),1,1) -> 172.449997 | J67: 11.630004 | K67: 7.899951312 | L67: 9.790008 | M67: 0 | N67: 4.901261734 | O67: 0.6207065591 | P67: 62.04167014 | Q67: 7.857093475 | R67: 54.18457666 | S67: 69.89876361 | T67: 77.5186482 | U67: 49.15932583 | V67: FALSE | W67: 30 | X67: 49.15932583 | Z67: FALSE | AD67: 200.2030072 | AE67: 0 | AF67: 0.75 | AG67: 1.254163554 | AP67: 161455400 | BB67: 11.630004 | BC67: 7.899951312 | BD67: 1.254163554 | BE67: FALSE | BF67: 0.75 | BG67: 1.254163554 | BI67: FALSE | BM67: 200.2030072 | BN67: 0 | BQ67: 175.490005 | BR67: 147.800003 | BS67: =IF(($A$8-$A67)<B$17,"",BQ67-BR67) -> 27.690002 | BT67: 2.319095256 | BU67: FALSE | BV67: 0.75 | BW67: 2.319095256 | BY67: TRUE | BZ67: 11.630004 | CA67: 163.860001 | CB67: 175.490005 | CC67: 200.2030072 | CD67: 0
A68: 36 | B68: =OFFSET(InputPriceData!B$15,CalculationsAndCharts!$A68+$A$11,0,1,1) -> 2017-07-17 | C68: =OFFSET(InputPriceData!G$15,CalculationsAndCharts!$A68+$A$11,IF($C$7,8,0),1,1) -> 96122400 | D68: =OFFSET(InputPriceData!C$15,CalculationsAndCharts!$A68+$A$11,IF($C$7,8,0),1,1) -> 160.25 | E68: =OFFSET(InputPriceData!D$15,CalculationsAndCharts!$A68+$A$11,IF($C$7,8,0),1,1) -> 165.699997 | F68: =OFFSET(InputPriceData!E$15,CalculationsAndCharts!$A68+$A$11,IF($C$7,8,0),1,1) -> 158.809998 | G68: =OFFSET(InputPriceData!F$15,CalculationsAndCharts!$A68+$A$11,IF($C$7,8,0),1,1) -> 164.429993 | J68: 6.889999 | K68: 6.656600416 | L68: 5.37999 | M68: 0 | N68: 3.271679646 | O68: 0.8276087455 | P68: 49.14940722 | Q68: 12.43290409 | R68: 36.71650313 | S68: 61.58231131 | T68: 59.62183352 | U68: 39.70621837 | V68: FALSE | W68: 30 | X68: 39.70621837 | Z68: FALSE | AD68: 200.2030072 | AE68: 0 | AF68: 0.75 | AG68: 1.133622479 | AP68: 96122400 | BB68: 6.889999 | BC68: 6.656600416 | BD68: 1.133622479 | BE68: FALSE | BF68: 0.75 | BG68: 1.133622479 | BI68: FALSE | BM68: 200.2030072 | BN68: 0 | BQ68: 165.699997 | BR68: 147.800003 | BS68: =IF(($A$8-$A68)<B$17,"",BQ68-BR68) -> 17.899994 | BT68: 1.622846532 | BU68: FALSE | BV68: 0.75 | BW68: 1.622846532 | BY68: FALSE | CC68: 200.2030072 | CD68: 0
A69: 37 | B69: =OFFSET(InputPriceData!B$15,CalculationsAndCharts!$A69+$A$11,0,1,1) -> 2017-07-10 | C69: =OFFSET(InputPriceData!G$15,CalculationsAndCharts!$A69+$A$11,IF($C$7,8,0),1,1) -> 80086200 | D69: =OFFSET(InputPriceData!C$15,CalculationsAndCharts!$A69+$A$11,IF($C$7,8,0),1,1) -> 151.690002 | E69: =OFFSET(InputPriceData!D$15,CalculationsAndCharts!$A69+$A$11,IF($C$7,8,0),1,1) -> 160.320007 | F69: =OFFSET(InputPriceData!E$15,CalculationsAndCharts!$A69+$A$11,IF($C$7,8,0),1,1) -> 151.509995 | G69: =OFFSET(InputPriceData!F$15,CalculationsAndCharts!$A69+$A$11,IF($C$7,8,0),1,1) -> 159.970001 | J69: 8.880005 | K69: 6.578800888 | L69: 8.170013 | M69: 0 | N69: 2.568909528 | O69: 1.103478327 | P69: 39.04829423 | Q69: 16.77324403 | R69: 22.2750502 | S69: 55.82153826 | T69: 39.90404222 | U69: 33.06767998 | V69: FALSE | W69: 30 | X69: 33.06767998 | Z69: FALSE | AD69: 200.2030072 | AE69: 0 | AF69: 0.75 | AG69: 1.042715228 | AP69: 80086200 | BB69: 8.880005 | BC69: 6.578800888 | BD69: 1.042715228 | BE69: FALSE | BF69: 0.75 | BG69: 1.042715228 | BI69: FALSE | BM69: 200.2030072 | BN69: 0 | BQ69: 160.320007 | BR69: 147.800003 | BS69: =IF(($A$8-$A69)<B$17,"",BQ69-BR69) -> 12.520004 | BT69: 1.135086697 | BU69: FALSE | BV69: 0.75 | BW69: 1.135086697 | BY69: FALSE | CC69: 200.2030072 | CD69: 0
A70: 38 | B70: =OFFSET(InputPriceData!B$15,CalculationsAndCharts!$A70+$A$11,0,1,1) -> 2017-07-03 | C70: =OFFSET(InputPriceData!G$15,CalculationsAndCharts!$A70+$A$11,IF($C$7,8,0),1,1) -> 56764700 | D70: =OFFSET(InputPriceData!C$15,CalculationsAndCharts!$A70+$A$11,IF($C$7,8,0),1,1) -> 151.720001 | E70: =OFFSET(InputPriceData!D$15,CalculationsAndCharts!$A70+$A$11,IF($C$7,8,0),1,1) -> 152.149994 | F70: =OFFSET(InputPriceData!E$15,CalculationsAndCharts!$A70+$A$11,IF($C$7,8,0),1,1) -> 147.800003 | G70: =OFFSET(InputPriceData!F$15,CalculationsAndCharts!$A70+$A$11,IF($C$7,8,0),1,1) -> 151.440002 | J70: 4.349991 | K70: 5.811732851 | L70: 0 | M70: 1.119995 | N70: 0.7018750367 | O70: 1.471304436 | P70: 12.07686338 | Q70: 25.31610578 | R70: 13.2392424 | S70: 37.39296917 | T70: 35.40569977 | U70: 30.78889257 | V70: FALSE | W70: 30 | X70: 30.78889257 | Z70: FALSE | AD70: 200.2030072 | AE70: 0 | AF70: 0.75 | AG70: 1.002184454 | AQ70: 56764700 | BB70: 4.349991 | BC70: 5.811732851 | BD70: 1.002184454 | BE70: FALSE | BF70: 0.75 | BG70: 1.002184454 | BI70: FALSE | BM70: 200.2030072 | BN70: 0 | BQ70: 156.5 | BR70: 144.559998 | BS70: =IF(($A$8-$A70)<B$17,"",BQ70-BR70) -> 11.940002 | BT70: 1.068935017 | BU70: FALSE | BV70: 0.75 | BW70: 1.068935017 | BY70: FALSE | CC70: 200.2030072 | CD70: 0
A71: 39 | B71: =OFFSET(InputPriceData!B$15,CalculationsAndCharts!$A71+$A$11,0,1,1) -> 2017-06-26 | C71: =OFFSET(InputPriceData!G$15,CalculationsAndCharts!$A71+$A$11,IF($C$7,8,0),1,1) -> 95769100 | D71: =OFFSET(InputPriceData!C$15,CalculationsAndCharts!$A71+$A$11,IF($C$7,8,0),1,1) -> 156.25 | E71: =OFFSET(InputPriceData!D$15,CalculationsAndCharts!$A71+$A$11,IF($C$7,8,0),1,1) -> 156.5 | F71: =OFFSET(InputPriceData!E$15,CalculationsAndCharts!$A71+$A$11,IF($C$7,8,0),1,1) -> 148.919998 | G71: =OFFSET(InputPriceData!F$15,CalculationsAndCharts!$A71+$A$11,IF($C$7,8,0),1,1) -> 150.979996 | J71: 7.580002 | K71: 6.298980135 | L71: 0 | M71: 2.790009 | N71: 0.9358333822 | O71: 1.588407582 | P71: 14.85690322 | Q71: 25.21690096 | R71: 10.35999774 | S71: 40.07380417 | T71: 25.85229417 | U71: 29.24995684 | V71: TRUE | W71: 30 | Y71: 29.24995684 | Z71: TRUE | AA71: 11.940002 | AB71: 144.559998 | AC71: 156.5 | AD71: 144.559998 | AE71: 156.5 | AF71: 0.75 | AG71: 1.329247878 | AQ71: 95769100 | BB71: 7.580002 | BC71: 6.298980135 | BD71: 1.329247878 | BE71: FALSE | BF71: 0.75 | BG71: 1.329247878 | BI71: FALSE | BM71: 200.2030072 | BN71: 0 | BQ71: 156.5 | BR71: 144.559998 | BS71: =IF(($A$8-$A71)<B$17,"",BQ71-BR71) -> 11.940002 | BT71: 1.29641617 | BU71: FALSE | BV71: 0.75 | BW71: 1.29641617 | BY71: FALSE | CC71: 200.2030072 | CD71: 0
A72: 40 | B72: =OFFSET(InputPriceData!B$15,CalculationsAndCharts!$A72+$A$11,0,1,1) -> 2017-06-19 | C72: =OFFSET(InputPriceData!G$15,CalculationsAndCharts!$A72+$A$11,IF($C$7,8,0),1,1) -> 79842700 | D72: =OFFSET(InputPriceData!C$15,CalculationsAndCharts!$A72+$A$11,IF($C$7,8,0),1,1) -> 151.710007 | E72: =OFFSET(InputPriceData!D$15,CalculationsAndCharts!$A72+$A$11,IF($C$7,8,0),1,1) -> 155.199997 | F72: =OFFSET(InputPriceData!E$15,CalculationsAndCharts!$A72+$A$11,IF($C$7,8,0),1,1) -> 151.710007 | G72: =OFFSET(InputPriceData!F$15,CalculationsAndCharts!$A72+$A$11,IF($C$7,8,0),1,1) -> 155.070007 | J72: 4.559998 | K72: 5.871972846 | L72: 2.800003 | M72: 0 | N72: 1.247777843 | O72: 1.187873776 | P72: 21.24972093 | Q72: 20.22955158 | R72: 1.020169349 | S72: 41.47927251 | T72: 2.459467796 | U72: 30.38251106 | V72: FALSE | W72: 30 | X72: 30.38251106 | Z72: TRUE | AA72: 11.940002 | AB72: 144.559998 | AC72: 156.5 | AD72: 200.2030072 | AE72: 0 | AF72: 0.75 | AG72: 1.127417465 | AP72: 79842700 | BB72: 4.559998 | BC72: 5.871972846 | BD72: 1.127417465 | BE72: FALSE | BF72: 0.75 | BG72: 1.127417465 | BI72: FALSE | BM72: 200.2030072 | BN72: 0 | BQ72: 155.589996 | BR72: 144.559998 | BS72: =IF(($A$8-$A72)<B$17,"",BQ72-BR72) -> 11.029998 | BT72: 1.20152379 | BU72: FALSE | BV72: 0.75 | BW72: 1.20152379 | BY72: FALSE | CC72: 200.2030072 | CD72: 0
A73: 41 | B73: =OFFSET(InputPriceData!B$15,CalculationsAndCharts!$A73+$A$11,0,1,1) -> 2017-06-12 | C73: =OFFSET(InputPriceData!G$15,CalculationsAndCharts!$A73+$A$11,IF($C$7,8,0),1,1) -> 116339000 | D73: =OFFSET(InputPriceData!C$15,CalculationsAndCharts!$A73+$A$11,IF($C$7,8,0),1,1) -> 148.169998 | E73: =OFFSET(InputPriceData!D$15,CalculationsAndCharts!$A73+$A$11,IF($C$7,8,0),1,1) -> 152.399994 | F73: =OFFSET(InputPriceData!E$15,CalculationsAndCharts!$A73+$A$11,IF($C$7,8,0),1,1) -> 144.559998 | G73: =OFFSET(InputPriceData!F$15,CalculationsAndCharts!$A73+$A$11,IF($C$7,8,0),1,1) -> 150.639999 | J73: 7.839996 | K73: 6.309297795 | L73: 0 | M73: 2.050003 | N73: 0.7303694573 | O73: 1.583831701 | P73: 11.57608154 | Q73: 25.1031375 | R73: 13.52705597 | S73: 36.67921904 | T73: 36.87934563 | U73: 39.69019215 | V73: FALSE | W73: 30 | X73: 39.69019215 | Z73: TRUE | AA73: 11.940002 | AB73: 144.559998 | AC73: 156.5 | AD73: 200.2030072 | AE73: 0 | AF73: 0.75 | AG73: 1.221677624 | AP73: 116339000 | BB73: 7.839996 | BC73: 6.309297795 | BD73: 1.221677624 | BE73: FALSE | BF73: 0.75 | BG73: 1.221677624 | BI73: FALSE | BM73: 200.2030072 | BN73: 0 | BQ73: 155.589996 | BR73: 144.559998 | BS73: =IF(($A$8-$A73)<B$17,"",BQ73-BR73) -> 11.029998 | BT73: 1.191143206 | BU73: FALSE | BV73: 0.75 | BW73: 1.191143206 | BY73: FALSE | CC73: 200.2030072 | CD73: 0
A74: 42 | B74: =OFFSET(InputPriceData!B$15,CalculationsAndCharts!$A74+$A$11,0,1,1) -> 2017-06-05 | C74: =OFFSET(InputPriceData!G$15,CalculationsAndCharts!$A74+$A$11,IF($C$7,8,0),1,1) -> 91341600 | D74: =OFFSET(InputPriceData!C$15,CalculationsAndCharts!$A74+$A$11,IF($C$7,8,0),1,1) -> 153.639999 | E74: =OFFSET(InputPriceData!D$15,CalculationsAndCharts!$A74+$A$11,IF($C$7,8,0),1,1) -> 155.589996 | F74: =OFFSET(InputPriceData!E$15,CalculationsAndCharts!$A74+$A$11,IF($C$7,8,0),1,1) -> 146.610001 | G74: =OFFSET(InputPriceData!F$15,CalculationsAndCharts!$A74+$A$11,IF($C$7,8,0),1,1) -> 149.600006 | J74: 8.979995 | K74: 5.79906506 | L74: 0 | M74: 3.690002 | N74: 0.9738259431 | O74: 1.428441268 | P74: 16.79280941 | Q74: 24.63226836 | R74: 7.839458952 | S74: 41.42507777 | T74: 18.92442784 | U74: 40.62714099 | V74: FALSE | W74: 30 | X74: 40.62714099 | Z74: TRUE | AA74: 11.940002 | AB74: 144.559998 | AC74: 156.5 | AD74: 200.2030072 | AE74: 0 | AF74: 0.75 | AG74: 1.279410828 | AQ74: 91341600 | BB74: 8.979995 | BC74: 5.79906506 | BD74: 1.279410828 | BE74: FALSE | BF74: 0.75 | BG74: 1.279410828 | BI74: FALSE | BM74: 200.2030072 | BN74: 0 | BQ74: 155.589996 | BR74: 144.419998 | BS74: =IF(($A$8-$A74)<B$17,"",BQ74-BR74) -> 11.169998 | BT74: 0.8064977012 | BU74: FALSE | BV74: 0.75 | BW74: 0.8064977012 | BY74: FALSE | CC74: 200.2030072 | CD74: 0
A75: 43 | B75: =OFFSET(InputPriceData!B$15,CalculationsAndCharts!$A75+$A$11,0,1,1) -> 2017-05-29 | C75: =OFFSET(InputPriceData!G$15,CalculationsAndCharts!$A75+$A$11,IF($C$7,8,0),1,1) -> 62634900 | D75: =OFFSET(InputPriceData!C$15,CalculationsAndCharts!$A75+$A$11,IF($C$7,8,0),1,1) -> 151.970001 | E75: =OFFSET(InputPriceData!D$15,CalculationsAndCharts!$A75+$A$11,IF($C$7,8,0),1,1) -> 153.630005 | F75: =OFFSET(InputPriceData!E$15,CalculationsAndCharts!$A75+$A$11,IF($C$7,8,0),1,1) -> 150.300003 | G75: =OFFSET(InputPriceData!F$15,CalculationsAndCharts!$A75+$A$11,IF($C$7,8,0),1,1) -> 153.610001 | J75: 3.330002 | K75: 4.73875508 | L75: 1.040009 | M75: 0 | N75: 1.298434591 | O75: 0.6745876908 | P75: 27.40033128 | Q75: 14.23554666 | R75: 13.16478462 | S75: 41.63587795 | T75: 31.61884718 | U75: 47.8613787 | V75: FALSE | W75: 30 | X75: 47.8613787 | Z75: FALSE | AD75: 200.2030072 | AE75: 0 | AF75: 0.75 | AG75: 0.9872112601 | AP75: 62634900 | BB75: 3.330002 | BC75: 4.73875508 | BD75: 0.9872112601 | BE75: FALSE | BF75: 0.75 | BG75: 0.9872112601 | BI75: FALSE | BM75: 200.2030072 | BN75: 0 | BQ75: 153.630005 | BR75: 144.419998 | BS75: =IF(($A$8-$A75)<B$17,"",BQ75-BR75) -> 9.210007 | BT75: 0.6227181892 | BU75: TRUE | BV75: 0.75 | BX75: 0.6227181892 | BY75: TRUE | BZ75: 9.210007 | CA75: 144.419998 | CB75: 153.630005 | CC75: 144.419998 | CD75: 153.630005
A76: 44 | B76: =OFFSET(InputPriceData!B$15,CalculationsAndCharts!$A76+$A$11,0,1,1) -> 2017-05-22 | C76: =OFFSET(InputPriceData!G$15,CalculationsAndCharts!$A76+$A$11,IF($C$7,8,0),1,1) -> 78154500 | D76: =OFFSET(InputPriceData!C$15,CalculationsAndCharts!$A76+$A$11,IF($C$7,8,0),1,1) -> 148.080002 | E76: =OFFSET(InputPriceData!D$15,CalculationsAndCharts!$A76+$A$11,IF($C$7,8,0),1,1) -> 152.589996 | F76: =OFFSET(InputPriceData!E$15,CalculationsAndCharts!$A76+$A$11,IF($C$7,8,0),1,1) -> 147.25 | G76: =OFFSET(InputPriceData!F$15,CalculationsAndCharts!$A76+$A$11,IF($C$7,8,0),1,1) -> 152.130005 | J76: 5.339996 | K76: 5.20833944 | L76: 1.11 | M76: 0 | N76: 1.384576454 | O76: 0.8994502544 | P76: 26.58383675 | Q76: 17.26942463 | R76: 9.314412118 | S76: 43.85326139 | T76: 21.23995302 | U76: 53.27555588 | V76: FALSE | W76: 30 | X76: 53.27555588 | Z76: FALSE | AD76: 200.2030072 | AE76: 0 | AF76: 0.75 | AG76: 1.091089406 | AP76: 78154500 | BB76: 5.339996 | BC76: 5.20833944 | BD76: 1.091089406 | BE76: FALSE | BF76: 0.75 | BG76: 1.091089406 | BI76: FALSE | BM76: 200.2030072 | BN76: 0 | BQ76: 153.600006 | BR76: 144.419998 | BS76: =IF(($A$8-$A76)<B$17,"",BQ76-BR76) -> 9.180008 | BT76: 0.7216986854 | BU76: TRUE | BV76: 0.75 | BX76: 0.7216986854 | BY76: TRUE | BZ76: 9.210007 | CA76: 144.419998 | CB76: 153.630005 | CC76: 144.419998 | CD76: 153.600006
A77: 45 | B77: =OFFSET(InputPriceData!B$15,CalculationsAndCharts!$A77+$A$11,0,1,1) -> 2017-05-15 | C77: =OFFSET(InputPriceData!G$15,CalculationsAndCharts!$A77+$A$11,IF($C$7,8,0),1,1) -> 97135100 | D77: =OFFSET(InputPriceData!C$15,CalculationsAndCharts!$A77+$A$11,IF($C$7,8,0),1,1) -> 150.169998 | E77: =OFFSET(InputPriceData!D$15,CalculationsAndCharts!$A77+$A$11,IF($C$7,8,0),1,1) -> 151.479996 | F77: =OFFSET(InputPriceData!E$15,CalculationsAndCharts!$A77+$A$11,IF($C$7,8,0),1,1) -> 144.419998 | G77: =OFFSET(InputPriceData!F$15,CalculationsAndCharts!$A77+$A$11,IF($C$7,8,0),1,1) -> 148.059998 | J77: 7.059998 | K77: 5.164453921 | L77: 0 | M77: 4.440003 | N77: 1.476101939 | O77: 1.199267006 | P77: 28.58195584 | Q77: 23.22156465 | R77: 5.360391196 | S77: 51.80352049 | T77: 10.3475423 | U77: 63.95409016 | V77: FALSE | W77: 30 | X77: 63.95409016 | Z77: FALSE | AD77: 200.2030072 | AE77: 0 | AF77: 0.75 | AG77: 1.377912484 | AQ77: 97135100 | BB77: 7.059998 | BC77: 5.164453921 | BD77: 1.377912484 | BE77: FALSE | BF77: 0.75 | BG77: 1.377912484 | BI77: FALSE | BM77: 200.2030072 | BN77: 0 | BQ77: 153.600006 | BR77: 144.339996 | BS77: =IF(($A$8-$A77)<B$17,"",BQ77-BR77) -> 9.26001 | BT77: 1.68978408 | BU77: FALSE | BV77: 0.75 | BW77: 1.68978408 | BY77: TRUE | BZ77: 9.210007 | CA77: 144.419998 | CB77: 153.630005 | CC77: 200.2030072 | CD77: 0
A78: 46 | B78: =OFFSET(InputPriceData!B$15,CalculationsAndCharts!$A78+$A$11,0,1,1) -> 2017-05-08 | C78: =OFFSET(InputPriceData!G$15,CalculationsAndCharts!$A78+$A$11,IF($C$7,8,0),1,1) -> 66802200 | D78: =OFFSET(InputPriceData!C$15,CalculationsAndCharts!$A78+$A$11,IF($C$7,8,0),1,1) -> 150.710007 | E78: =OFFSET(InputPriceData!D$15,CalculationsAndCharts!$A78+$A$11,IF($C$7,8,0),1,1) -> 152.589996 | F78: =OFFSET(InputPriceData!E$15,CalculationsAndCharts!$A78+$A$11,IF($C$7,8,0),1,1) -> 148.860001 | G78: =OFFSET(InputPriceData!F$15,CalculationsAndCharts!$A78+$A$11,IF($C$7,8,0),1,1) -> 150.330002 | J78: 3.729995 | K78: 4.532605894 | L78: 0 | M78: 0 | N78: 1.968135919 | O78: 0.1190216745 | P78: 43.42173056 | Q78: 2.625899477 | R78: 40.79583109 | S78: 46.04763004 | T78: 88.59485505 | U78: 81.82293945 | V78: FALSE | W78: 30 | X78: 81.82293945 | Z78: FALSE | AD78: 200.2030072 | AE78: 0 | AF78: 0.75 | AG78: 1.342052039 | AQ78: 66802200 | BB78: 3.729995 | BC78: 4.532605894 | BD78: 1.342052039 | BE78: FALSE | BF78: 0.75 | BG78: 1.342052039 | BI78: FALSE | BM78: 200.2030072 | BN78: 0 | BQ78: 153.600006 | BR78: 139.75 | BS78: =IF(($A$8-$A78)<B$17,"",BQ78-BR78) -> 13.850006 | BT78: 2.371577994 | BU78: FALSE | BV78: 0.75 | BW78: 2.371577994 | BY78: TRUE | BZ78: 9.210007 | CA78: 144.419998 | CB78: 153.630005 | CC78: 200.2030072 | CD78: 0
A79: 47 | B79: =OFFSET(InputPriceData!B$15,CalculationsAndCharts!$A79+$A$11,0,1,1) -> 2017-05-01 | C79: =OFFSET(InputPriceData!G$15,CalculationsAndCharts!$A79+$A$11,IF($C$7,8,0),1,1) -> 130245200 | D79: =OFFSET(InputPriceData!C$15,CalculationsAndCharts!$A79+$A$11,IF($C$7,8,0),1,1) -> 151.740005 | E79: =OFFSET(InputPriceData!D$15,CalculationsAndCharts!$A79+$A$11,IF($C$7,8,0),1,1) -> 153.600006 | F79: =OFFSET(InputPriceData!E$15,CalculationsAndCharts!$A79+$A$11,IF($C$7,8,0),1,1) -> 148.720001 | G79: =OFFSET(InputPriceData!F$15,CalculationsAndCharts!$A79+$A$11,IF($C$7,8,0),1,1) -> 150.240005 | J79: 4.880005 | K79: 4.800142859 | L79: 2.070007 | M79: 0 | N79: 2.624181225 | O79: 0.1586955659 | P79: 54.66881512 | Q79: 3.306059228 | R79: 51.3627559 | S79: 57.97487435 | T79: 88.59485505 | U79: 79.56563425 | V79: FALSE | W79: 30 | X79: 79.56563425 | Z79: FALSE | AD79: 200.2030072 | AE79: 0 | AF79: 0.75 | AG79: 1.322416088 | AQ79: 130245200 | BB79: 4.880005 | BC79: 4.800142859 | BD79: 1.322416088 | BE79: FALSE | BF79: 0.75 | BG79: 1.322416088 | BI79: FALSE | BM79: 200.2030072 | BN79: 0 | BQ79: 153.600006 | BR79: 138.809998 | BS79: =IF(($A$8-$A79)<B$17,"",BQ79-BR79) -> 14.790008 | BT79: 2.532537351 | BU79: FALSE | BV79: 0.75 | BW79: 2.532537351 | BY79: TRUE | BZ79: 9.180008 | CA79: 144.419998 | CB79: 153.600006 | CC79: 200.2030072 | CD79: 0
A80: 48 | B80: =OFFSET(InputPriceData!B$15,CalculationsAndCharts!$A80+$A$11,0,1,1) -> 2017-04-24 | C80: =OFFSET(InputPriceData!G$15,CalculationsAndCharts!$A80+$A$11,IF($C$7,8,0),1,1) -> 86412800 | D80: =OFFSET(InputPriceData!C$15,CalculationsAndCharts!$A80+$A$11,IF($C$7,8,0),1,1) -> 144.960007 | E80: =OFFSET(InputPriceData!D$15,CalculationsAndCharts!$A80+$A$11,IF($C$7,8,0),1,1) -> 151.529999 | F80: =OFFSET(InputPriceData!E$15,CalculationsAndCharts!$A80+$A$11,IF($C$7,8,0),1,1) -> 144.339996 | G80: =OFFSET(InputPriceData!F$15,CalculationsAndCharts!$A80+$A$11,IF($C$7,8,0),1,1) -> 150.25 | J80: 7.850006 | K80: 4.773522145 | L80: 7.279999 | M80: 0 | N80: 2.808905967 | O80: 0.2115940879 | P80: 58.84346781 | Q80: 4.432661701 | R80: 54.41080611 | S80: 63.27612951 | T80: 85.98946637 | U80: 76.55589399 | V80: FALSE | W80: 30 | X80: 76.55589399 | Z80: FALSE | AD80: 200.2030072 | AE80: 0 | AF80: 0.75 | AG80: 1.265144292 | AP80: 86412800 | BB80: 7.850006 | BC80: 4.773522145 | BD80: 1.265144292 | BE80: FALSE | BF80: 0.75 | BG80: 1.265144292 | BI80: FALSE | BM80: 200.2030072 | BN80: 0 | BQ80: 151.529999 | BR80: 138.809998 | BS80: =IF(($A$8-$A80)<B$17,"",BQ80-BR80) -> 12.720001 | BT80: 1.975154821 | BU80: FALSE | BV80: 0.75 | BW80: 1.975154821 | BY80: FALSE | CC80: 200.2030072 | CD80: 0
A81: 49 | B81: =OFFSET(InputPriceData!B$15,CalculationsAndCharts!$A81+$A$11,0,1,1) -> 2017-04-17 | C81: =OFFSET(InputPriceData!G$15,CalculationsAndCharts!$A81+$A$11,IF($C$7,8,0),1,1) -> 70241300 | D81: =OFFSET(InputPriceData!C$15,CalculationsAndCharts!$A81+$A$11,IF($C$7,8,0),1,1) -> 139.759995 | E81: =OFFSET(InputPriceData!D$15,CalculationsAndCharts!$A81+$A$11,IF($C$7,8,0),1,1) -> 144.25 | F81: =OFFSET(InputPriceData!E$15,CalculationsAndCharts!$A81+$A$11,IF($C$7,8,0),1,1) -> 139.75 | G81: =OFFSET(InputPriceData!F$15,CalculationsAndCharts!$A81+$A$11,IF($C$7,8,0),1,1) -> 143.679993 | J81: 4.860001 | K81: 3.748027527 | L81: 2.820007 | M81: 0 | N81: 1.318541622 | O81: 0.2821254506 | P81: 35.17961416 | Q81: 7.527304657 | R81: 27.6523095 | S81: 42.70691881 | T81: 64.74901554 | U81: 73.41136986 | V81: FALSE | W81: 30 | X81: 73.41136986 | Z81: FALSE | AD81: 200.2030072 | AE81: 0 | AF81: 0.75 | AG81: 1.030392499 | AP81: 70241300 | BB81: 4.860001 | BC81: 3.748027527 | BD81: 1.030392499 | BE81: FALSE | BF81: 0.75 | BG81: 1.030392499 | BI81: FALSE | BM81: 200.2030072 | BN81: 0 | BQ81: 144.25 | BR81: 138.770004 | BS81: =IF(($A$8-$A81)<B$17,"",BQ81-BR81) -> 5.479996 | BT81: 0.7248673875 | BU81: TRUE | BV81: 0.75 | BX81: 0.7248673875 | BY81: TRUE | BZ81: 5.479996 | CA81: 138.770004 | CB81: 144.25 | CC81: 138.770004 | CD81: 144.25
A82: 50 | B82: =OFFSET(InputPriceData!B$15,CalculationsAndCharts!$A82+$A$11,0,1,1) -> 2017-04-10 | C82: =OFFSET(InputPriceData!G$15,CalculationsAndCharts!$A82+$A$11,IF($C$7,8,0),1,1) -> 48255600 | D82: =OFFSET(InputPriceData!C$15,CalculationsAndCharts!$A82+$A$11,IF($C$7,8,0),1,1) -> 141 | E82: =OFFSET(InputPriceData!D$15,CalculationsAndCharts!$A82+$A$11,IF($C$7,8,0),1,1) -> 141.429993 | F82: =OFFSET(InputPriceData!E$15,CalculationsAndCharts!$A82+$A$11,IF($C$7,8,0),1,1) -> 138.809998 | G82: =OFFSET(InputPriceData!F$15,CalculationsAndCharts!$A82+$A$11,IF($C$7,8,0),1,1) -> 139.389999 | J82: 2.619995 | K82: 3.377369702 | L82: 0 | M82: 1.430007 | N82: 0.8180531633 | O82: 0.3761672674 | P82: 24.22160543 | Q82: 11.13787653 | R82: 13.0837289 | S82: 35.35948196 | T82: 37.00203786 | U82: 76.2988213 | V82: FALSE | W82: 30 | X82: 76.2988213 | Z82: FALSE | AD82: 200.2030072 | AE82: 0 | AF82: 0.75 | AG82: 1.02969528 | AP82: =IF(G82>=D82,C82,NA()) ->  | AQ82: =IF(G82<D82,C82,NA()) -> 48255600 | BB82: 2.619995 | BC82: 3.377369702 | BD82: 1.02969528 | BE82: FALSE | BF82: 0.75 | BG82: 1.02969528 | BI82: FALSE | BM82: 200.2030072 | BN82: 0 | BQ82: 143.440002 | BR82: 137.600006 | BS82: =IF(($A$8-$A82)<B$17,"",BQ82-BR82) -> 5.839996 | BT82: 0.7849454879 | BU82: FALSE | BV82: 0.75 | BW82: 0.7849454879 | BY82: TRUE | BZ82: 5.479996 | CA82: 138.770004 | CB82: 144.25 | CC82: 200.2030072 | CD82: 0
A83: 51 | B83: =OFFSET(InputPriceData!B$15,CalculationsAndCharts!$A83+$A$11,0,1,1) -> 2017-04-03 | C83: =OFFSET(InputPriceData!G$15,CalculationsAndCharts!$A83+$A$11,IF($C$7,8,0),1,1) -> 70592400 | D83: =OFFSET(InputPriceData!C$15,CalculationsAndCharts!$A83+$A$11,IF($C$7,8,0),1,1) -> 141.929993 | E83: =OFFSET(InputPriceData!D$15,CalculationsAndCharts!$A83+$A$11,IF($C$7,8,0),1,1) -> 143.440002 | F83: =OFFSET(InputPriceData!E$15,CalculationsAndCharts!$A83+$A$11,IF($C$7,8,0),1,1) -> 140.240005 | G83: =OFFSET(InputPriceData!F$15,CalculationsAndCharts!$A83+$A$11,IF($C$7,8,0),1,1) -> 140.779999 | J83: 3.199997 | K83: 3.629827937 | L83: 0.490005 | M83: 0 | N83: 1.090737551 | O83: 0.02488735655 | P83: 30.04929077 | Q83: 0.6856346081 | R83: 29.36365616 | S83: 30.73492538 | T83: 95.5384007 | U83: 89.39774911 | V83: FALSE | W83: 30 | X83: 89.39774911 | Z83: FALSE | AD83: 200.2030072 | AE83: 0 | AF83: 0.75 | AG83: 0.9662458549 | AQ83: 70592400 | BB83: 3.199997 | BC83: 3.629827937 | BD83: 0.9662458549 | BE83: FALSE | BF83: 0.75 | BG83: 0.9662458549 | BI83: FALSE | BM83: 200.2030072 | BN83: 0 | BQ83: 143.440002 | BR83: 137.600006 | BS83: =IF(($A$8-$A83)<B$17,"",BQ83-BR83) -> 5.839996 | BT83: 0.8414977402 | BU83: FALSE | BV83: 0.75 | BW83: 0.8414977402 | BY83: TRUE | BZ83: 5.479996 | CA83: 138.770004 | CB83: 144.25 | CC83: 200.2030072 | CD83: 0
A84: 52 | B84: =OFFSET(InputPriceData!B$15,CalculationsAndCharts!$A84+$A$11,0,1,1) -> 2017-03-27 | C84: =OFFSET(InputPriceData!G$15,CalculationsAndCharts!$A84+$A$11,IF($C$7,8,0),1,1) -> 67889800 | D84: =OFFSET(InputPriceData!C$15,CalculationsAndCharts!$A84+$A$11,IF($C$7,8,0),1,1) -> 139.050003 | E84: =OFFSET(InputPriceData!D$15,CalculationsAndCharts!$A84+$A$11,IF($C$7,8,0),1,1) -> 142.949997 | F84: =OFFSET(InputPriceData!E$15,CalculationsAndCharts!$A84+$A$11,IF($C$7,8,0),1,1) -> 138.770004 | G84: =OFFSET(InputPriceData!F$15,CalculationsAndCharts!$A84+$A$11,IF($C$7,8,0),1,1) -> 142.050003 | J84: 4.179993 | K84: 3.773104915 | L84: 0.639999 | M84: 0 | N84: 1.290981735 | O84: 0.03318314206 | P84: 34.21536808 | Q84: 0.8794651303 | R84: 33.33590295 | S84: 35.09483321 | T84: 94.98806491 | U84: 87.35086524 | V84: FALSE | W84: 30 | X84: 87.35086524 | Z84: FALSE | AD84: 200.2030072 | AE84: 0 | AF84: 0.75 | AG84: 0.9396344367 | AP84: 67889800 | BB84: 4.179993 | BC84: 3.773104915 | BD84: 0.9396344367 | BE84: FALSE | BF84: 0.75 | BG84: 0.9396344367 | BI84: FALSE | BM84: 200.2030072 | BN84: 0 | BQ84: 142.949997 | BR84: 136.509995 | BS84: =IF(($A$8-$A84)<B$17,"",BQ84-BR84) -> 6.440002 | BT84: 0.8563827892 | BU84: FALSE | BV84: 0.75 | BW84: 0.8563827892 | BY84: TRUE | BZ84: 5.479996 | CA84: 138.770004 | CB84: 144.25 | CC84: 200.2030072 | CD84: 0
A85: 53 | B85: =OFFSET(InputPriceData!B$15,CalculationsAndCharts!$A85+$A$11,0,1,1) -> 2017-03-20 | C85: =OFFSET(InputPriceData!G$15,CalculationsAndCharts!$A85+$A$11,IF($C$7,8,0),1,1) -> 88737200 | D85: =OFFSET(InputPriceData!C$15,CalculationsAndCharts!$A85+$A$11,IF($C$7,8,0),1,1) -> 139.710007 | E85: =OFFSET(InputPriceData!D$15,CalculationsAndCharts!$A85+$A$11,IF($C$7,8,0),1,1) -> 142.309998 | F85: =OFFSET(InputPriceData!E$15,CalculationsAndCharts!$A85+$A$11,IF($C$7,8,0),1,1) -> 137.600006 | G85: =OFFSET(InputPriceData!F$15,CalculationsAndCharts!$A85+$A$11,IF($C$7,8,0),1,1) -> 140.339996 | J85: 4.709992 | K85: 3.637475554 | L85: 1.970002 | M85: 0 | N85: 1.50797598 | O85: 0.04424418942 | P85: 41.45666293 | Q85: 1.216343279 | R85: 40.24031965 | S85: 42.67300621 | T85: 94.29923792 | U85: 84.80513202 | V85: FALSE | W85: 30 | X85: 84.80513202 | Z85: FALSE | AD85: 200.2030072 | AE85: 0 | AF85: 0.75 | AG85: 0.8399339906 | AP85: 88737200 | BB85: 4.709992 | BC85: 3.637475554 | BD85: 0.8399339906 | BE85: FALSE | BF85: 0.75 | BG85: 0.8399339906 | BI85: FALSE | BM85: 200.2030072 | BN85: 0 | BQ85: 142.309998 | BR85: 134.75 | BS85: =IF(($A$8-$A85)<B$17,"",BQ85-BR85) -> 7.559998 | BT85: 1.039891257 | BU85: FALSE | BV85: 0.75 | BW85: 1.039891257 | BY85: FALSE | CC85: 200.2030072 | CD85: 0
A86: 54 | B86: =OFFSET(InputPriceData!B$15,CalculationsAndCharts!$A86+$A$11,0,1,1) -> 2017-03-13 | C86: =OFFSET(InputPriceData!G$15,CalculationsAndCharts!$A86+$A$11,IF($C$7,8,0),1,1) -> 77450000 | D86: =OFFSET(InputPriceData!C$15,CalculationsAndCharts!$A86+$A$11,IF($C$7,8,0),1,1) -> 138.710007 | E86: =OFFSET(InputPriceData!D$15,CalculationsAndCharts!$A86+$A$11,IF($C$7,8,0),1,1) -> 140.339996 | F86: =OFFSET(InputPriceData!E$15,CalculationsAndCharts!$A86+$A$11,IF($C$7,8,0),1,1) -> 138.490005 | G86: =OFFSET(InputPriceData!F$15,CalculationsAndCharts!$A86+$A$11,IF($C$7,8,0),1,1) -> 139.839996 | J86: 1.849991 | K86: 3.279970072 | L86: 0.849991 | M86: 0 | N86: 1.353967306 | O86: 0.05899225255 | P86: 41.2798677 | Q86: 1.798560696 | R86: 39.481307 | S86: 43.07842839 | T86: 91.64983142 | U86: 81.64043006 | V86: FALSE | W86: 30 | X86: 81.64043006 | Z86: FALSE | AD86: 200.2030072 | AE86: 0 | AF86: 0.75 | AH86: 0.7325354509 | AI86: 132.899994 | AJ86: 7.440002 | AP86: 77450000 | BB86: 1.849991 | BC86: 3.279970072 | BD86: 0.7325354509 | BE86: TRUE | BF86: 0.75 | BH86: 0.7325354509 | BI86: TRUE | BJ86: 7.440002 | BK86: 132.899994 | BL86: 140.339996 | BM86: 132.899994 | BN86: 140.339996 | BQ86: 140.339996 | BR86: 132.899994 | BS86: =IF(($A$8-$A86)<B$17,"",BQ86-BR86) -> 7.440002 | BT86: 0.8711937975 | BU86: FALSE | BV86: 0.75 | BW86: 0.8711937975 | BY86: FALSE | CC86: 200.2030072 | CD86: 0
A87: 55 | B87: =OFFSET(InputPriceData!B$15,CalculationsAndCharts!$A87+$A$11,0,1,1) -> 2017-03-06 | C87: =OFFSET(InputPriceData!G$15,CalculationsAndCharts!$A87+$A$11,IF($C$7,8,0),1,1) -> 68309200 | D87: =OFFSET(InputPriceData!C$15,CalculationsAndCharts!$A87+$A$11,IF($C$7,8,0),1,1) -> 136.880005 | E87: =OFFSET(InputPriceData!D$15,CalculationsAndCharts!$A87+$A$11,IF($C$7,8,0),1,1) -> 139.490005 | F87: =OFFSET(InputPriceData!E$15,CalculationsAndCharts!$A87+$A$11,IF($C$7,8,0),1,1) -> 136.509995 | G87: =OFFSET(InputPriceData!F$15,CalculationsAndCharts!$A87+$A$11,IF($C$7,8,0),1,1) -> 138.789993 | J87: 2.98001 | K87: 3.756629763 | L87: 1.669998 | M87: 0 | N87: 1.521959408 | O87: 0.07865633674 | P87: 40.51395811 | Q87: 2.093800606 | R87: 38.4201575 | S87: 42.60775872 | T87: 90.17174022 | U87: 78.30396294 | V87: FALSE | W87: 30 | X87: 78.30396294 | Z87: FALSE | AD87: 200.2030072 | AE87: 0 | AF87: 0.75 | AH87: 0.7150836735 | AI87: 132.550003 | AJ87: 7.789993 | AP87: 68309200 | BB87: 2.98001 | BC87: 3.756629763 | BD87: 0.7150836735 | BE87: TRUE | BF87: 0.75 | BH87: 0.7150836735 | BI87: TRUE | BJ87: 7.789993 | BK87: 132.550003 | BL87: 140.339996 | BM87: 132.550003 | BN87: 139.490005 | BQ87: 139.490005 | BR87: 132.550003 | BS87: =IF(($A$8-$A87)<B$17,"",BQ87-BR87) -> 6.940002 | BT87: 0.796784985 | BU87: FALSE | BV87: 0.75 | BW87: 0.796784985 | BY87: FALSE | CC87: 200.2030072 | CD87: 0
A88: 56 | B88: =OFFSET(InputPriceData!B$15,CalculationsAndCharts!$A88+$A$11,0,1,1) -> 2017-02-27 | C88: =OFFSET(InputPriceData!G$15,CalculationsAndCharts!$A88+$A$11,IF($C$7,8,0),1,1) -> 70131200 | D88: =OFFSET(InputPriceData!C$15,CalculationsAndCharts!$A88+$A$11,IF($C$7,8,0),1,1) -> 135.259995 | E88: =OFFSET(InputPriceData!D$15,CalculationsAndCharts!$A88+$A$11,IF($C$7,8,0),1,1) -> 137.820007 | F88: =OFFSET(InputPriceData!E$15,CalculationsAndCharts!$A88+$A$11,IF($C$7,8,0),1,1) -> 134.75 | G88: =OFFSET(InputPriceData!F$15,CalculationsAndCharts!$A88+$A$11,IF($C$7,8,0),1,1) -> 137.169998 | J88: 3.070007 | K88: 4.015503017 | L88: 1.030014 | M88: 0 | N88: 1.472613211 | O88: 0.1048751157 | P88: 36.67319399 | Q88: 2.611755369 | R88: 34.06143862 | S88: 39.28494936 | T88: 86.70353195 | U88: 74.34803717 | V88: FALSE | W88: 30 | X88: 74.34803717 | Z88: FALSE | AD88: 200.2030072 | AE88: 0 | AF88: 0.75 | AH88: 0.7357252214 | AI88: 130.300003 | AJ88: 10.039993 | AP88: 70131200 | BB88: 3.070007 | BC88: 4.015503017 | BD88: 0.7357252214 | BE88: TRUE | BF88: 0.75 | BH88: 0.7357252214 | BI88: TRUE | BJ88: 10.039993 | BK88: 130.300003 | BL88: 140.339996 | BM88: 130.300003 | BN88: 137.820007 | BQ88: 137.820007 | BR88: 130.300003 | BS88: =IF(($A$8-$A88)<B$17,"",BQ88-BR88) -> 7.520004 | BT88: 0.6040161915 | BU88: TRUE | BV88: 0.75 | BX88: 0.6040161915 | BY88: TRUE | BZ88: 7.520004 | CA88: 130.300003 | CB88: 137.820007 | CC88: 130.300003 | CD88: 137.820007
A89: 57 | B89: =OFFSET(InputPriceData!B$15,CalculationsAndCharts!$A89+$A$11,0,1,1) -> 2017-02-20 | C89: =OFFSET(InputPriceData!G$15,CalculationsAndCharts!$A89+$A$11,IF($C$7,8,0),1,1) -> 73167400 | D89: =OFFSET(InputPriceData!C$15,CalculationsAndCharts!$A89+$A$11,IF($C$7,8,0),1,1) -> 133.5 | E89: =OFFSET(InputPriceData!D$15,CalculationsAndCharts!$A89+$A$11,IF($C$7,8,0),1,1) -> 136.789993 | F89: =OFFSET(InputPriceData!E$15,CalculationsAndCharts!$A89+$A$11,IF($C$7,8,0),1,1) -> 132.899994 | G89: =OFFSET(InputPriceData!F$15,CalculationsAndCharts!$A89+$A$11,IF($C$7,8,0),1,1) -> 135.440002 | J89: 3.889999 | K89: 4.330668356 | L89: 2.089996 | M89: 0 | N89: 1.620146282 | O89: 0.1398334875 | P89: 37.41099868 | Q89: 3.2289124 | R89: 34.18208628 | S89: 40.63991108 | T89: 84.1096483 | U89: 70.22953891 | V89: FALSE | W89: 30 | X89: 70.22953891 | Z89: FALSE | AD89: 200.2030072 | AE89: 0 | AF89: 0.75 | AG89: 0.8190887332 | AI89: 130.300003 | AJ89: 10.039993 | AP89: 73167400 | BB89: 3.889999 | BC89: 4.330668356 | BD89: 0.8190887332 | BE89: FALSE | BF89: 0.75 | BG89: 0.8190887332 | BI89: TRUE | BJ89: 10.039993 | BK89: 130.300003 | BL89: 140.339996 | BM89: 200.2030072 | BN89: 0 | BQ89: 136.789993 | BR89: 129.520004 | BS89: =IF(($A$8-$A89)<B$17,"",BQ89-BR89) -> 7.269989 | BT89: 0.4123647327 | BU89: TRUE | BV89: 0.75 | BX89: 0.4123647327 | BY89: TRUE | BZ89: 8.300003 | CA89: 129.520004 | CB89: 137.820007 | CC89: 129.520004 | CD89: 136.789993
A90: 58 | B90: =OFFSET(InputPriceData!B$15,CalculationsAndCharts!$A90+$A$11,0,1,1) -> 2017-02-13 | C90: =OFFSET(InputPriceData!G$15,CalculationsAndCharts!$A90+$A$11,IF($C$7,8,0),1,1) -> 66200400 | D90: =OFFSET(InputPriceData!C$15,CalculationsAndCharts!$A90+$A$11,IF($C$7,8,0),1,1) -> 134.699997 | E90: =OFFSET(InputPriceData!D$15,CalculationsAndCharts!$A90+$A$11,IF($C$7,8,0),1,1) -> 134.699997 | F90: =OFFSET(InputPriceData!E$15,CalculationsAndCharts!$A90+$A$11,IF($C$7,8,0),1,1) -> 132.550003 | G90: =OFFSET(InputPriceData!F$15,CalculationsAndCharts!$A90+$A$11,IF($C$7,8,0),1,1) -> 133.529999 | J90: 2.149994 | K90: 4.477558141 | L90: 0 | M90: 0 | N90: 1.463529709 | O90: 0.18644465 | P90: 32.68588955 | Q90: 4.163980549 | R90: 28.52190901 | S90: 36.8498701 | T90: 77.40029728 | U90: 65.60283578 | V90: FALSE | W90: 30 | X90: 65.60283578 | Z90: FALSE | AD90: 200.2030072 | AE90: 0 | AF90: 0.75 | AG90: 0.8979833526 | AI90: 130.300003 | AJ90: 9.190002 | AQ90: 66200400 | BB90: 2.149994 | BC90: 4.477558141 | BD90: 0.8979833526 | BE90: FALSE | BF90: 0.75 | BG90: 0.8979833526 | BI90: TRUE | BJ90: 9.190002 | BK90: 130.300003 | BL90: 139.490005 | BM90: 200.2030072 | BN90: 0 | BQ90: 135.490005 | BR90: 126.949997 | BS90: =IF(($A$8-$A90)<B$17,"",BQ90-BR90) -> 8.540008 | BT90: 0.5889657846 | BU90: TRUE | BV90: 0.75 | BX90: 0.5889657846 | BY90: TRUE | BZ90: 10.87001 | CA90: 126.949997 | CB90: 137.820007 | CC90: 126.949997 | CD90: 135.490005
A91: 59 | B91: =OFFSET(InputPriceData!B$15,CalculationsAndCharts!$A91+$A$11,0,1,1) -> 2017-02-06 | C91: =OFFSET(InputPriceData!G$15,CalculationsAndCharts!$A91+$A$11,IF($C$7,8,0),1,1) -> 85578000 | D91: =OFFSET(InputPriceData!C$15,CalculationsAndCharts!$A91+$A$11,IF($C$7,8,0),1,1) -> 130.979996 | E91: =OFFSET(InputPriceData!D$15,CalculationsAndCharts!$A91+$A$11,IF($C$7,8,0),1,1) -> 134.940002 | F91: =OFFSET(InputPriceData!E$15,CalculationsAndCharts!$A91+$A$11,IF($C$7,8,0),1,1) -> 130.300003 | G91: =OFFSET(InputPriceData!F$15,CalculationsAndCharts!$A91+$A$11,IF($C$7,8,0),1,1) -> 134.190002 | J91: 4.639999 | K91: 5.253412855 | L91: 0 | M91: 0 | N91: 1.951372945 | O91: 0.2485928667 | P91: 37.1448618 | Q91: 4.732026087 | R91: 32.41283572 | S91: 41.87688789 | T91: 77.40029728 | U91: 61.67034862 | V91: FALSE | W91: 30 | X91: 61.67034862 | Z91: FALSE | AD91: 200.2030072 | AE91: 0 | AF91: 0.75 | AG91: 0.8638136283 | AI91: 130.300003 | AJ91: 7.520004 | AP91: 85578000 | BB91: 4.639999 | BC91: 5.253412855 | BD91: 0.8638136283 | BE91: FALSE | BF91: 0.75 | BG91: 0.8638136283 | BI91: TRUE | BJ91: 7.520004 | BK91: 130.300003 | BL91: 137.820007 | BM91: 200.2030072 | BN91: 0 | BQ91: 135.490005 | BR91: 126.779999 | BS91: =IF(($A$8-$A91)<B$17,"",BQ91-BR91) -> 8.710006 | BT91: 0.600689779 | BU91: TRUE | BV91: 0.75 | BX91: 0.600689779 | BY91: TRUE | BZ91: 11.040008 | CA91: 126.779999 | CB91: 137.820007 | CC91: 126.779999 | CD91: 135.490005
A92: 60 | B92: =OFFSET(InputPriceData!B$15,CalculationsAndCharts!$A92+$A$11,0,1,1) -> 2017-01-30 | C92: =OFFSET(InputPriceData!G$15,CalculationsAndCharts!$A92+$A$11,IF($C$7,8,0),1,1) -> 168057700 | D92: =OFFSET(InputPriceData!C$15,CalculationsAndCharts!$A92+$A$11,IF($C$7,8,0),1,1) -> 131.580002 | E92: =OFFSET(InputPriceData!D$15,CalculationsAndCharts!$A92+$A$11,IF($C$7,8,0),1,1) -> 135.490005 | F92: =OFFSET(InputPriceData!E$15,CalculationsAndCharts!$A92+$A$11,IF($C$7,8,0),1,1) -> 129.520004 | G92: =OFFSET(InputPriceData!F$15,CalculationsAndCharts!$A92+$A$11,IF($C$7,8,0),1,1) -> 130.979996 | J92: 5.970001 | K92: 5.45788414 | L92: 2.350006 | M92: 0 | N92: 2.601830593 | O92: 0.3314571556 | P92: 47.67104846 | Q92: 6.072997285 | R92: 41.59805118 | S92: 53.74404575 | T92: 77.40029728 | U92: 56.4270324 | V92: FALSE | W92: 30 | X92: 56.4270324 | Z92: FALSE | AD92: 200.2030072 | AE92: 0 | AF92: 0.75 | AG92: 0.9047916289 | AQ92: 168057700 | BB92: 5.970001 | BC92: 5.45788414 | BD92: 0.9047916289 | BE92: FALSE | BF92: 0.75 | BG92: 0.9047916289 | BI92: FALSE | BM92: 200.2030072 | BN92: 0 | BQ92: 135.490005 | BR92: 123.040001 | BS92: =IF(($A$8-$A92)<B$17,"",BQ92-BR92) -> 12.450004 | BT92: 1.366630516 | BU92: FALSE | BV92: 0.75 | BW92: 1.366630516 | BY92: TRUE | BZ92: 10.009994 | CA92: 126.779999 | CB92: 136.789993 | CC92: 200.2030072 | CD92: 0
A93: 61 | B93: =OFFSET(InputPriceData!B$15,CalculationsAndCharts!$A93+$A$11,0,1,1) -> 2017-01-23 | C93: =OFFSET(InputPriceData!G$15,CalculationsAndCharts!$A93+$A$11,IF($C$7,8,0),1,1) -> 90047200 | D93: =OFFSET(InputPriceData!C$15,CalculationsAndCharts!$A93+$A$11,IF($C$7,8,0),1,1) -> 127.309998 | E93: =OFFSET(InputPriceData!D$15,CalculationsAndCharts!$A93+$A$11,IF($C$7,8,0),1,1) -> 133.139999 | F93: =OFFSET(InputPriceData!E$15,CalculationsAndCharts!$A93+$A$11,IF($C$7,8,0),1,1) -> 126.949997 | G93: =OFFSET(InputPriceData!F$15,CalculationsAndCharts!$A93+$A$11,IF($C$7,8,0),1,1) -> 132.179993 | J93: 6.190002 | K93: 5.28717852 | L93: 4.660003 | M93: 0 | N93: 2.685772124 | O93: 0.4419428742 | P93: 50.79783318 | Q93: 8.358765881 | R93: 42.4390673 | S93: 59.15659906 | T93: 71.74020815 | U93: 49.43594411 | V93: FALSE | W93: 30 | X93: 49.43594411 | Z93: FALSE | AD93: 200.2030072 | AE93: 0 | AF93: 0.75 | AG93: 1.036782558 | AP93: 90047200 | BB93: 6.190002 | BC93: 5.28717852 | BD93: 1.036782558 | BE93: FALSE | BF93: 0.75 | BG93: 1.036782558 | BI93: FALSE | BM93: 200.2030072 | BN93: 0 | BQ93: 133.139999 | BR93: 115.510002 | BS93: =IF(($A$8-$A93)<B$17,"",BQ93-BR93) -> 17.629997 | BT93: 2.280723177 | BU93: FALSE | BV93: 0.75 | BW93: 2.280723177 | BY93: TRUE | BZ93: 8.710006 | CA93: 126.779999 | CB93: 135.490005 | CC93: 200.2030072 | CD93: 0
A94: 62 | B94: =OFFSET(InputPriceData!B$15,CalculationsAndCharts!$A94+$A$11,0,1,1) -> 2017-01-16 | C94: =OFFSET(InputPriceData!G$15,CalculationsAndCharts!$A94+$A$11,IF($C$7,8,0),1,1) -> 59666600 | D94: =OFFSET(InputPriceData!C$15,CalculationsAndCharts!$A94+$A$11,IF($C$7,8,0),1,1) -> 128.039993 | E94: =OFFSET(InputPriceData!D$15,CalculationsAndCharts!$A94+$A$11,IF($C$7,8,0),1,1) -> 128.479996 | F94: =OFFSET(InputPriceData!E$15,CalculationsAndCharts!$A94+$A$11,IF($C$7,8,0),1,1) -> 126.779999 | G94: =OFFSET(InputPriceData!F$15,CalculationsAndCharts!$A94+$A$11,IF($C$7,8,0),1,1) -> 127.040001 | J94: 1.699997 | K94: 4.98623736 | L94: 0 | M94: 0 | N94: 2.027695166 | O94: 0.5892571656 | P94: 40.66583718 | Q94: 11.81767179 | R94: 28.84816539 | S94: 52.48350896 | T94: 54.96615215 | U94: 42.00118943 | V94: FALSE | W94: 30 | X94: 42.00118943 | Z94: FALSE | AD94: 200.2030072 | AE94: 0 | AF94: 0.75 | AG94: 0.9072261188 | AQ94: 59666600 | BB94: 1.699997 | BC94: 4.98623736 | BD94: 0.9072261188 | BE94: FALSE | BF94: 0.75 | BG94: 0.9072261188 | BI94: FALSE | BM94: 200.2030072 | BN94: 0 | BQ94: 129.270004 | BR94: 114.769997 | BS94: =IF(($A$8-$A94)<B$17,"",BQ94-BR94) -> 14.500007 | BT94: 1.705883176 | BU94: FALSE | BV94: 0.75 | BW94: 1.705883176 | BY94: TRUE | BZ94: 8.710006 | CA94: 126.779999 | CB94: 135.490005 | CC94: 200.2030072 | CD94: 0
A95: 63 | B95: =OFFSET(InputPriceData!B$15,CalculationsAndCharts!$A95+$A$11,0,1,1) -> 2017-01-09 | C95: =OFFSET(InputPriceData!G$15,CalculationsAndCharts!$A95+$A$11,IF($C$7,8,0),1,1) -> 102080900 | D95: =OFFSET(InputPriceData!C$15,CalculationsAndCharts!$A95+$A$11,IF($C$7,8,0),1,1) -> 123.550003 | E95: =OFFSET(InputPriceData!D$15,CalculationsAndCharts!$A95+$A$11,IF($C$7,8,0),1,1) -> 129.270004 | F95: =OFFSET(InputPriceData!E$15,CalculationsAndCharts!$A95+$A$11,IF($C$7,8,0),1,1) -> 123.040001 | G95: =OFFSET(InputPriceData!F$15,CalculationsAndCharts!$A95+$A$11,IF($C$7,8,0),1,1) -> 128.339996 | J95: 6.230003 | K95: 6.081650813 | L95: 5.390007 | M95: 0 | N95: 2.703593554 | O95: 0.7856762208 | P95: 44.45492906 | Q95: 12.91879861 | R95: 31.53613045 | S95: 57.37372767 | T95: 54.96615215 | U95: 37.67953519 | V95: FALSE | W95: 30 | X95: 37.67953519 | Z95: FALSE | AD95: 200.2030072 | AE95: 0 | AF95: 0.75 | AG95: 1.017875482 | AP95: 102080900 | BB95: 6.230003 | BC95: 6.081650813 | BD95: 1.017875482 | BE95: FALSE | BF95: 0.75 | BG95: 1.017875482 | BI95: FALSE | BM95: 200.2030072 | BN95: 0 | BQ95: 129.270004 | BR95: 114.769997 | BS95: =IF(($A$8-$A95)<B$17,"",BQ95-BR95) -> 14.500007 | BT95: 1.614699572 | BU95: FALSE | BV95: 0.75 | BW95: 1.614699572 | BY95: FALSE | CC95: 200.2030072 | CD95: 0
A96: 64 | B96: =OFFSET(InputPriceData!B$15,CalculationsAndCharts!$A96+$A$11,0,1,1) -> 2017-01-02 | C96: =OFFSET(InputPriceData!G$15,CalculationsAndCharts!$A96+$A$11,IF($C$7,8,0),1,1) -> 88332300 | D96: =OFFSET(InputPriceData!C$15,CalculationsAndCharts!$A96+$A$11,IF($C$7,8,0),1,1) -> 116.029999 | E96: =OFFSET(InputPriceData!D$15,CalculationsAndCharts!$A96+$A$11,IF($C$7,8,0),1,1) -> 123.879997 | F96: =OFFSET(InputPriceData!E$15,CalculationsAndCharts!$A96+$A$11,IF($C$7,8,0),1,1) -> 115.510002 | G96: =OFFSET(InputPriceData!F$15,CalculationsAndCharts!$A96+$A$11,IF($C$7,8,0),1,1) -> 123.410004 | J96: 8.829994 | K96: 6.032200084 | L96: 5.199997 | M96: 0 | N96: 1.808122406 | O96: 1.047568294 | P96: 29.97450981 | Q96: 17.36627234 | R96: 12.60823748 | S96: 47.34078215 | T96: 26.63293022 | U96: 31.91732954 | V96: FALSE | W96: 30 | X96: 31.91732954 | Z96: FALSE | AD96: 200.2030072 | AE96: 0 | AF96: 0.75 | AG96: 0.9519821088 | AP96: 88332300 | BB96: 8.829994 | BC96: 6.032200084 | BD96: 0.9519821088 | BE96: FALSE | BF96: 0.75 | BG96: 0.9519821088 | BI96: FALSE | BM96: 200.2030072 | BN96: 0 | BQ96: 123.879997 | BR96: 114.769997 | BS96: =IF(($A$8-$A96)<B$17,"",BQ96-BR96) -> 9.11 | BT96: 0.9660657476 | BU96: FALSE | BV96: 0.75 | BW96: 0.9660657476 | BY96: FALSE | CC96: 200.2030072 | CD96: 0
A97: 65 | B97: =OFFSET(InputPriceData!B$15,CalculationsAndCharts!$A97+$A$11,0,1,1) -> 2016-12-26 | C97: =OFFSET(InputPriceData!G$15,CalculationsAndCharts!$A97+$A$11,IF($C$7,8,0),1,1) -> 52744400 | D97: =OFFSET(InputPriceData!C$15,CalculationsAndCharts!$A97+$A$11,IF($C$7,8,0),1,1) -> 116.959999 | E97: =OFFSET(InputPriceData!D$15,CalculationsAndCharts!$A97+$A$11,IF($C$7,8,0),1,1) -> 118.68 | F97: =OFFSET(InputPriceData!E$15,CalculationsAndCharts!$A97+$A$11,IF($C$7,8,0),1,1) -> 114.769997 | G97: =OFFSET(InputPriceData!F$15,CalculationsAndCharts!$A97+$A$11,IF($C$7,8,0),1,1) -> 115.050003 | J97: 3.910003 | K97: 5.099602112 | L97: 0 | M97: 1.530006 | N97: 0.6774975413 | O97: 1.396757726 | P97: 13.285302 | Q97: 27.38954325 | R97: 14.10424125 | S97: 40.67484525 | T97: 34.67558675 | U97: 33.67879598 | V97: FALSE | W97: 30 | X97: 33.67879598 | Z97: =OR(OFFSET(V97,0,0,-$B$19,1)) -> FALSE | AD97: =IF(V97,MIN(OFFSET(F97,0,0,$B$19,1)),$AZ$34) -> 200.2030072 | AE97: 0 | AF97: 0.75 | AH97: 0.7471633273 | AI97: 114.769997 | AJ97: 7.730003 | AQ97: 52744400 | BB97: 3.910003 | BC97: 5.099602112 | BD97: 0.7471633273 | BE97: TRUE | BF97: 0.75 | BH97: 0.7471633273 | BI97: TRUE | BJ97: 7.730003 | BK97: 114.769997 | BL97: 122.5 | BM97: 114.769997 | BN97: 122.5 | BQ97: 122.5 | BR97: 114.769997 | BS97: =IF(($A$8-$A97)<B$17,"",BQ97-BR97) -> 7.730003 | BT97: 0.6989154067 | BU97: TRUE | BV97: 0.75 | BX97: 0.6989154067 | BY97: TRUE | BZ97: 7.730003 | CA97: 114.769997 | CB97: 122.5 | CC97: 114.769997 | CD97: 122.5
A98: 66 | B98: =OFFSET(InputPriceData!B$15,CalculationsAndCharts!$A98+$A$11,0,1,1) -> 2016-12-19 | C98: =OFFSET(InputPriceData!G$15,CalculationsAndCharts!$A98+$A$11,IF($C$7,8,0),1,1) -> 67506000 | D98: =OFFSET(InputPriceData!C$15,CalculationsAndCharts!$A98+$A$11,IF($C$7,8,0),1,1) -> 119.849998 | E98: =OFFSET(InputPriceData!D$15,CalculationsAndCharts!$A98+$A$11,IF($C$7,8,0),1,1) -> 120.360001 | F98: =OFFSET(InputPriceData!E$15,CalculationsAndCharts!$A98+$A$11,IF($C$7,8,0),1,1) -> 116.300003 | G98: =OFFSET(InputPriceData!F$15,CalculationsAndCharts!$A98+$A$11,IF($C$7,8,0),1,1) -> 117.269997 | J98: 4.059998 | K98: 5.496135149 | L98: 0 | M98: 1.309998 | N98: =IF(($A$8-$A98)<B$19,"",IF(($A$8-$A98)=B$19,AVERAGE(OFFSET($L98,0,0,B$19,1)),N99*$D$19+$L98*$C$19)) -> 0.903330055 | O98: =IF(($A$8-$A98)<B$19,"",IF(($A$8-$A98)=B$19,AVERAGE(OFFSET($M98,0,0,B$19,1)),O99*$D$19+$M98*$C$19)) -> 1.352341634 | P98: =IF(($A$8-$A98)<B$19,"",N98/K98*100) -> 16.43573221 | Q98: =IF(($A$8-$A98)<B$19,"",O98/K98*100) -> 24.60531988 | R98: =IF(($A$8-$A98)<B$19,"",ABS(P98-Q98)) -> 8.16958767 | S98: =IF(($A$8-$A98)<B$19,"",P98+Q98) -> 41.04105209 | T98: =IF(($A$8-$A98)<B$19,"",R98/S98*100) -> 19.9058924 | U98: =IF(($A$8-$A98)<(2*B$19),"",IF(($A$8-$A98)=(2*B$19),AVERAGE(OFFSET(T98,0,0,B$19,1)),(U99*$D$19+T98*$C$19))) -> 33.34653238 | V98: =U98<$E$19 -> FALSE | W98: =$E$19 -> 30 | X98: 33.34653238 | Z98: FALSE | AA98: =IF(Z98,AC98-AB98,NA()) ->  | AB98: =IF(Z98,MIN(OFFSET(AD98,0,0,-$B$19,1)),NA()) ->  | AC98: =IF(Z98,MAX(OFFSET(AE98,0,0,-$B$19,1)),NA()) ->  | AD98: 200.2030072 | AE98: =IF(V98,MAX(OFFSET(E98,0,0,$B$19,1)),0) -> 0 | AF98: =IF($P$6=1,BV98,IF($P$6=2,BF98,W98)) -> 0.75 | AG98: =IF($P$6=1,BW98,IF($P$6=2,BG98,X98)) -> 0.8587201701 | AH98: =IF($P$6=1,BX98,IF($P$6=2,BH98,Y98)) ->  | AI98: =IF($P$6=1,CA98,IF($P$6=2,BK98,AB98)) -> 114.769997 | AJ98: =IF($P$6=1,BZ98,IF($P$6=2,BJ98,AA98)) -> 7.730003 | AQ98: 67506000 | BB98: =IF($A98<$A$8,MAX(E98-F98,ABS(E98-G99),ABS(F98-G99)),"") -> 4.059998 | BC98: =IF(($A$8-$A98)<B$18,"",IF(($A$8-$A98)=B$18,AVERAGE(OFFSET($BB98,0,0,B$18,1)),BC99*$D$18+$BB98*$C$18)) -> 5.496135149 | BD98: =IF(($A$8-$A98)<2*B$18,"",BC98/OFFSET(BC98,$B$18,0,1,1)) -> 0.8587201701 | BE98: =IF(($A$8-$A98)<2*B$18,"",(BD98<$E$18)) -> FALSE | BF98: =IF(($A$8-$A98)<2*B$18,"",$E$18) -> 0.75 | BG98: =IF(($A$8-$A98)<2*B$18,"",IF(BE98,NA(),BD98)) -> 0.8587201701 | BH98: =IF(($A$8-$A98)<2*B$18,"",IF($BE98,$BD98,NA())) ->  | BI98: =IF(($A$8-$A98)<2*B$18,"",OR(OFFSET(BE98,0,0,-$B$18,1))) -> TRUE | BJ98: =IF(($A$8-$A98)<2*B$18,"",IF(BI98,BL98-BK98,NA())) -> 7.730003 | BK98: =IF(($A$8-$A98)<2*B$18,"",IF(BI98,MIN(OFFSET(BM98,0,0,-$B$18,1)),NA())) -> 114.769997 | BL98: =IF(($A$8-$A98)<2*B$18,"",IF(BI98,MAX(OFFSET(BN98,0,0,-$B$18,1)),NA())) -> 122.5 | BM98: =IF(($A$8-$A98)<2*B$18,"",IF($BE98,MIN(OFFSET($F98,0,0,$B$18,1)),$AZ$34)) -> 200.2030072 | BN98: =IF(($A$8-$A98)<2*B$18,"",IF(BE98,MAX(OFFSET($E98,0,0,$B$18,1)),0)) -> 0 | BQ98: =IF(($A$8-$A98)<B$17,"",MAX(OFFSET(E98,0,0,$B$17,1))) -> 122.5 | BR98: =IF(($A$8-$A98)<B$17,"",MIN(OFFSET(F98,0,0,$B$17,1))) -> 114 | BS98: =IF(($A$8-$A98)<B$17,"",BQ98-BR98) -> 8.5 | BT98: =IF(($A$8-$A98)<2*B$17,"",BS98/OFFSET(BS98,$B$17,0,1,1)) -> 0.4577277147 | BU98: =IF(($A$8-$A98)<2*B$17,"",BT98<$E$17) -> TRUE | BV98: =IF(($A$8-$A98)<2*B$17,"",$E$17) -> 0.75 | BW98: =IF(($A$8-$A98)<2*$B$17,"",IF(BU98,NA(),BT98)) ->  | BX98: =IF(($A$8-$A98)<2*$B$18,"",IF(BU98,$BT98,NA())) -> 0.4577277147 | BY98: =IF(($A$8-$A98)<2*$B$17,"",OR(OFFSET(BU98,0,0,-$B$17,1))) -> TRUE | BZ98: =IF(($A$8-$A98)<2*$B$17,"",IF(BY98,CB98-CA98,NA())) -> 8.5 | CA98: =IF(($A$8-$A98)<2*$B$17,"",IF(BY98,MIN(OFFSET(CC98,0,0,-$B$17,1)),NA())) -> 114 | CB98: =IF(($A$8-$A98)<2*$B$17,"",IF(BY98,MAX(OFFSET(CD98,0,0,-$B$17,1)),NA())) -> 122.5 | CC98: =IF(($A$8-$A98)<2*$B$17,"",IF($BU98,MIN(OFFSET($F98,0,0,$B$17,1)),$AZ$34)) -> 114 | CD98: =IF(($A$8-$A98)<2*$B$17,"",IF(BU98,MAX(OFFSET($E98,0,0,$B$17,1)),0)) -> 122.5
A99: 67 | B99: =OFFSET(InputPriceData!B$15,CalculationsAndCharts!$A99+$A$11,0,1,1) -> 2016-12-12 | C99: =OFFSET(InputPriceData!G$15,CalculationsAndCharts!$A99+$A$11,IF($C$7,8,0),1,1) -> 118800800 | D99: =OFFSET(InputPriceData!C$15,CalculationsAndCharts!$A99+$A$11,IF($C$7,8,0),1,1) -> 119.220001 | E99: =OFFSET(InputPriceData!D$15,CalculationsAndCharts!$A99+$A$11,IF($C$7,8,0),1,1) -> 122.5 | F99: =OFFSET(InputPriceData!E$15,CalculationsAndCharts!$A99+$A$11,IF($C$7,8,0),1,1) -> 117.610001 | G99: =OFFSET(InputPriceData!F$15,CalculationsAndCharts!$A99+$A$11,IF($C$7,8,0),1,1) -> 119.870003 | J99: 4.889999 | K99: 5.974847532 | L99: 2.559998 | M99: 0 | N99: 1.204440073 | O99: 1.366456179 | P99: 20.15850726 | Q99: 22.87014308 | R99: 2.711635821 | S99: 43.02865034 | T99: 6.301930922 | U99: 37.82674571 | V99: FALSE | W99: 30 | X99: 37.82674571 | Z99: FALSE | AD99: 200.2030072 | AE99: 0 | AF99: 0.75 | AG99: 0.9125846242 | AI99: 114.769997 | AJ99: 7.730003 | AP99: 118800800 | BB99: 4.889999 | BC99: 5.974847532 | BD99: 0.9125846242 | BE99: FALSE | BF99: 0.75 | BG99: 0.9125846242 | BI99: TRUE | BJ99: 7.730003 | BK99: 114.769997 | BL99: 122.5 | BM99: 200.2030072 | BN99: 0 | BQ99: 122.980003 | BR99: 114 | BS99: =IF(($A$8-$A99)<B$17,"",BQ99-BR99) -> 8.980003 | BT99: 0.4501255313 | BU99: TRUE | BV99: 0.75 | BX99: 0.4501255313 | BY99: TRUE | BZ99: 8.980003 | CA99: 114 | CB99: 122.980003 | CC99: 114 | CD99: 122.980003
A100: 68 | B100: =OFFSET(InputPriceData!B$15,CalculationsAndCharts!$A100+$A$11,0,1,1) -> 2016-12-05 | C100: =OFFSET(InputPriceData!G$15,CalculationsAndCharts!$A100+$A$11,IF($C$7,8,0),1,1) -> 101153900 | D100: =OFFSET(InputPriceData!C$15,CalculationsAndCharts!$A100+$A$11,IF($C$7,8,0),1,1) -> 115.949997 | E100: =OFFSET(InputPriceData!D$15,CalculationsAndCharts!$A100+$A$11,IF($C$7,8,0),1,1) -> 119.940002 | F100: =OFFSET(InputPriceData!E$15,CalculationsAndCharts!$A100+$A$11,IF($C$7,8,0),1,1) -> 115.07 | G100: =OFFSET(InputPriceData!F$15,CalculationsAndCharts!$A100+$A$11,IF($C$7,8,0),1,1) -> 119.68 | J100: 4.870002 | K100: 6.336463709 | L100: 0 | M100: 0 | N100: 0.7525874311 | O100: 1.821941572 | P100: 11.87708895 | Q100: 28.75328663 | R100: 16.87619768 | S100: 40.63037558 | T100: 41.53591355 | U100: 48.33501731 | V100: FALSE | W100: 30 | X100: =IF(V100,NA(),U100) -> 48.33501731 | Y100: =IF(V100,U100,NA()) ->  | Z100: FALSE | AD100: 200.2030072 | AE100: 0 | AF100: 0.75 | AG100: 0.9223968796 | AI100: 114.769997 | AJ100: 7.730003 | AP100: 101153900 | BB100: 4.870002 | BC100: 6.336463709 | BD100: 0.9223968796 | BE100: FALSE | BF100: 0.75 | BG100: 0.9223968796 | BI100: TRUE | BJ100: 7.730003 | BK100: 114.769997 | BL100: 122.5 | BM100: 200.2030072 | BN100: 0 | BQ100: 122.980003 | BR100: 113.550003 | BS100: =IF(($A$8-$A100)<B$17,"",BQ100-BR100) -> 9.43 | BT100: 0.517279125 | BU100: TRUE | BV100: 0.75 | BX100: 0.517279125 | BY100: TRUE | BZ100: 9.43 | CA100: 113.550003 | CB100: 122.980003 | CC100: 113.550003 | CD100: 122.980003
A101: 69 | B101: =OFFSET(InputPriceData!B$15,CalculationsAndCharts!$A101+$A$11,0,1,1) -> 2016-11-28 | C101: =OFFSET(InputPriceData!G$15,CalculationsAndCharts!$A101+$A$11,IF($C$7,8,0),1,1) -> 135528600 | D101: =OFFSET(InputPriceData!C$15,CalculationsAndCharts!$A101+$A$11,IF($C$7,8,0),1,1) -> 120.120003 | E101: =OFFSET(InputPriceData!D$15,CalculationsAndCharts!$A101+$A$11,IF($C$7,8,0),1,1) -> 122.099998 | F101: =OFFSET(InputPriceData!E$15,CalculationsAndCharts!$A101+$A$11,IF($C$7,8,0),1,1) -> 114 | G101: =OFFSET(InputPriceData!F$15,CalculationsAndCharts!$A101+$A$11,IF($C$7,8,0),1,1) -> 115.400002 | J101: 8.099998 | K101: 6.825284279 | L101: 0 | M101: 3.800003 | N101: 1.003449908 | O101: 2.42925543 | P101: 14.70195038 | Q101: 35.59200365 | R101: 20.89005327 | S101: 50.29395404 | T101: 41.53591355 | U101: 50.60138522 | V101: FALSE | W101: 30 | X101: 50.60138522 | Z101: FALSE | AD101: 200.2030072 | AE101: 0 | AF101: 0.75 | AG101: 1.128877039 | AQ101: 135528600 | BB101: 8.099998 | BC101: 6.825284279 | BD101: 1.128877039 | BE101: FALSE | BF101: 0.75 | BG101: 1.128877039 | BI101: FALSE | BM101: 200.2030072 | BN101: 0 | BQ101: 124.610001 | BR101: 113.550003 | BS101: =IF(($A$8-$A101)<B$17,"",BQ101-BR101) -> 11.059998 | BT101: 0.7761402105 | BU101: FALSE | BV101: 0.75 | BW101: 0.7761402105 | BY101: TRUE | BZ101: 9.43 | CA101: 113.550003 | CB101: 122.980003 | CC101: 200.2030072 | CD101: 0
A102: 70 | B102: =OFFSET(InputPriceData!B$15,CalculationsAndCharts!$A102+$A$11,0,1,1) -> 2016-11-21 | C102: =OFFSET(InputPriceData!G$15,CalculationsAndCharts!$A102+$A$11,IF($C$7,8,0),1,1) -> 85755600 | D102: =OFFSET(InputPriceData!C$15,CalculationsAndCharts!$A102+$A$11,IF($C$7,8,0),1,1) -> 118.199997 | E102: =OFFSET(InputPriceData!D$15,CalculationsAndCharts!$A102+$A$11,IF($C$7,8,0),1,1) -> 122.980003 | F102: =OFFSET(InputPriceData!E$15,CalculationsAndCharts!$A102+$A$11,IF($C$7,8,0),1,1) -> 117.800003 | G102: =OFFSET(InputPriceData!F$15,CalculationsAndCharts!$A102+$A$11,IF($C$7,8,0),1,1) -> 120.379997 | J102: 5.960006 | K102: 6.400379705 | L102: 3.850006 | M102: 0 | N102: 1.337933211 | O102: 1.972339573 | P102: 20.90396621 | Q102: 30.81597755 | R102: 9.912011341 | S102: 51.71994376 | T102: 19.16477594 | U102: 53.62320912 | V102: FALSE | W102: 30 | X102: 53.62320912 | Z102: FALSE | AD102: 200.2030072 | AE102: 0 | AF102: 0.75 | AG102: 1.697062681 | AP102: 85755600 | BB102: 5.960006 | BC102: 6.400379705 | BD102: 1.697062681 | BE102: FALSE | BF102: 0.75 | BG102: 1.697062681 | BI102: FALSE | BM102: 200.2030072 | BN102: 0 | BQ102: 132.119995 | BR102: 113.550003 | BS102: =IF(($A$8-$A102)<B$17,"",BQ102-BR102) -> 18.569992 | BT102: 2.751109926 | BU102: FALSE | BV102: 0.75 | BW102: 2.751109926 | BY102: TRUE | BZ102: 9.43 | CA102: 113.550003 | CB102: 122.980003 | CC102: 200.2030072 | CD102: 0
A103: 71 | B103: =OFFSET(InputPriceData!B$15,CalculationsAndCharts!$A103+$A$11,0,1,1) -> 2016-11-14 | C103: =OFFSET(InputPriceData!G$15,CalculationsAndCharts!$A103+$A$11,IF($C$7,8,0),1,1) -> 159751300 | D103: =OFFSET(InputPriceData!C$15,CalculationsAndCharts!$A103+$A$11,IF($C$7,8,0),1,1) -> 119.129997 | E103: =OFFSET(InputPriceData!D$15,CalculationsAndCharts!$A103+$A$11,IF($C$7,8,0),1,1) -> 119.129997 | F103: =OFFSET(InputPriceData!E$15,CalculationsAndCharts!$A103+$A$11,IF($C$7,8,0),1,1) -> 113.550003 | G103: =OFFSET(InputPriceData!F$15,CalculationsAndCharts!$A103+$A$11,IF($C$7,8,0),1,1) -> 117.019997 | J103: 5.579994 | K103: 6.54717094 | L103: 0 | M103: 1.719994 | N103: 0.5005756145 | O103: 2.629786097 | P103: 7.645678097 | Q103: 40.1667548 | R103: 32.5210767 | S103: 47.81243289 | T103: 68.01803366 | U103: 65.10935351 | V103: FALSE | W103: 30 | X103: 65.10935351 | Z103: FALSE | AD103: 200.2030072 | AE103: 0 | AF103: 0.75 | AG103: 1.809312709 | AQ103: 159751300 | BB103: 5.579994 | BC103: 6.54717094 | BD103: 1.809312709 | BE103: FALSE | BF103: 0.75 | BG103: 1.809312709 | BI103: FALSE | BM103: 200.2030072 | BN103: 0 | BQ103: 133.5 | BR103: 113.550003 | BS103: =IF(($A$8-$A103)<B$17,"",BQ103-BR103) -> 19.949997 | BT103: 3.708174435 | BU103: FALSE | BV103: 0.75 | BW103: 3.708174435 | BY103: TRUE | BZ103: 9.43 | CA103: 113.550003 | CB103: 122.980003 | CC103: 200.2030072 | CD103: 0
A104: 72 | B104: =OFFSET(InputPriceData!B$15,CalculationsAndCharts!$A104+$A$11,0,1,1) -> 2016-11-07 | C104: =OFFSET(InputPriceData!G$15,CalculationsAndCharts!$A104+$A$11,IF($C$7,8,0),1,1) -> 174979500 | D104: =OFFSET(InputPriceData!C$15,CalculationsAndCharts!$A104+$A$11,IF($C$7,8,0),1,1) -> 122.830002 | E104: =OFFSET(InputPriceData!D$15,CalculationsAndCharts!$A104+$A$11,IF($C$7,8,0),1,1) -> 124.610001 | F104: =OFFSET(InputPriceData!E$15,CalculationsAndCharts!$A104+$A$11,IF($C$7,8,0),1,1) -> 115.269997 | G104: =OFFSET(InputPriceData!F$15,CalculationsAndCharts!$A104+$A$11,IF($C$7,8,0),1,1) -> 119.019997 | J104: =IF($A104<$A$8,MAX(E104-F104,ABS(E104-G105),ABS(F104-G105)),"") -> 9.340004 | K104: =IF(($A$8-$A104)<B$19,"",IF(($A$8-$A104)=B$19,AVERAGE(OFFSET($J104,0,0,B$19,1)),K105*$D$19+$J104*$C$19)) -> 6.869563253 | L104: =IF($A104<$A$8,IF(E104-E105>F105-F104,MAX(E104-E105,0),0),"") -> 0 | M104: =IF($A104<$A$8,IF(F105-F104>E104-E105,MAX(F105-F104,0),0),"") -> 3.980003 | N104: 0.6674341527 | O104: 2.93305013 | P104: 9.715816394 | Q104: 42.69631157 | R104: 32.98049518 | S104: 52.41212796 | T104: 62.92531225 | U104: 64.13979346 | V104: FALSE | W104: 30 | X104: 64.13979346 | Z104: FALSE | AD104: 200.2030072 | AE104: 0 | AF104: 0.75 | AG104: 2.132438462 | AQ104: 174979500 | BB104: 9.340004 | BC104: 6.869563253 | BD104: 2.132438462 | BE104: FALSE | BF104: 0.75 | BG104: 2.132438462 | BI104: FALSE | BM104: 200.2030072 | BN104: 0 | BQ104: 133.5 | BR104: 115.269997 | BS104: =IF(($A$8-$A104)<B$17,"",BQ104-BR104) -> 18.230003 | BT104: 4.580407367 | BU104: FALSE | BV104: 0.75 | BW104: 4.580407367 | BY104: FALSE | CC104: 200.2030072 | CD104: 0
A105: 73 | B105: =OFFSET(InputPriceData!B$15,CalculationsAndCharts!$A105+$A$11,0,1,1) -> 2016-10-31 | C105: =OFFSET(InputPriceData!G$15,CalculationsAndCharts!$A105+$A$11,IF($C$7,8,0),1,1) -> 171699500 | D105: =OFFSET(InputPriceData!C$15,CalculationsAndCharts!$A105+$A$11,IF($C$7,8,0),1,1) -> 132.009995 | E105: =OFFSET(InputPriceData!D$15,CalculationsAndCharts!$A105+$A$11,IF($C$7,8,0),1,1) -> 132.119995 | F105: =OFFSET(InputPriceData!E$15,CalculationsAndCharts!$A105+$A$11,IF($C$7,8,0),1,1) -> 119.25 | G105: =OFFSET(InputPriceData!F$15,CalculationsAndCharts!$A105+$A$11,IF($C$7,8,0),1,1) -> 120.75 | J105: 12.869995 | K105: 6.046083004 | L105: 0 | M105: 10.020004 | N105: 0.8899122036 | O105: 2.58406584 | P105: 14.71882214 | Q105: 42.73950322 | R105: 28.02068108 | S105: 57.45832535 | T105: 48.76696442 | U105: 64.54462053 | V105: FALSE | W105: 30 | X105: 64.54462053 | Z105: FALSE | AD105: 200.2030072 | AE105: 0 | AF105: 0.75 | AG105: 2.029831596 | AQ105: 171699500 | BB105: 12.869995 | BC105: 6.046083004 | BD105: 2.029831596 | BE105: FALSE | BF105: 0.75 | BG105: 2.029831596 | BI105: FALSE | BM105: 200.2030072 | BN105: 0 | BQ105: 133.5 | BR105: 119.25 | BS105: =IF(($A$8-$A105)<B$17,"",BQ105-BR105) -> 14.25 | BT105: 2.861448081 | BU105: FALSE | BV105: 0.75 | BW105: 2.861448081 | BY105: FALSE | CC105: 200.2030072 | CD105: 0
A106: 74 | B106: =OFFSET(InputPriceData!B$15,CalculationsAndCharts!$A106+$A$11,0,1,1) -> 2016-10-24 | C106: =OFFSET(InputPriceData!G$15,CalculationsAndCharts!$A106+$A$11,IF($C$7,8,0),1,1) -> 85178600 | D106: =OFFSET(InputPriceData!C$15,CalculationsAndCharts!$A106+$A$11,IF($C$7,8,0),1,1) -> 132.720001 | E106: =OFFSET(InputPriceData!D$15,CalculationsAndCharts!$A106+$A$11,IF($C$7,8,0),1,1) -> 133.5 | F106: =OFFSET(InputPriceData!E$15,CalculationsAndCharts!$A106+$A$11,IF($C$7,8,0),1,1) -> 129.270004 | G106: =OFFSET(InputPriceData!F$15,CalculationsAndCharts!$A106+$A$11,IF($C$7,8,0),1,1) -> 131.289993 | J106: 4.229996 | K106: 3.771445672 | L106: 1.369995 | M106: 0 | N106: 1.186549605 | O106: 0.1054197866 | P106: 31.4613999 | Q106: 2.795208939 | R106: 28.66619096 | S106: 34.25660884 | T106: 83.68076097 | U106: 69.80383923 | V106: FALSE | W106: 30 | X106: 69.80383923 | Z106: FALSE | AD106: 200.2030072 | AE106: 0 | AF106: 0.75 | AG106: 1.110941667 | AQ106: 85178600 | BB106: 4.229996 | BC106: 3.771445672 | BD106: 1.110941667 | BE106: FALSE | BF106: 0.75 | BG106: 1.110941667 | BI106: FALSE | BM106: 200.2030072 | BN106: 0 | BQ106: 133.5 | BR106: 126.75 | BS106: =IF(($A$8-$A106)<B$17,"",BQ106-BR106) -> 6.75 | BT106: 1.08346779 | BU106: FALSE | BV106: 0.75 | BW106: 1.08346779 | BY106: FALSE | CC106: 200.2030072 | CD106: 0
A107: 75 | B107: =OFFSET(InputPriceData!B$15,CalculationsAndCharts!$A107+$A$11,0,1,1) -> 2016-10-17 | C107: =OFFSET(InputPriceData!G$15,CalculationsAndCharts!$A107+$A$11,IF($C$7,8,0),1,1) -> 73817500 | D107: =OFFSET(InputPriceData!C$15,CalculationsAndCharts!$A107+$A$11,IF($C$7,8,0),1,1) -> 128.199997 | E107: =OFFSET(InputPriceData!D$15,CalculationsAndCharts!$A107+$A$11,IF($C$7,8,0),1,1) -> 132.130005 | F107: =OFFSET(InputPriceData!E$15,CalculationsAndCharts!$A107+$A$11,IF($C$7,8,0),1,1) -> 127.32 | G107: =OFFSET(InputPriceData!F$15,CalculationsAndCharts!$A107+$A$11,IF($C$7,8,0),1,1) -> 132.070007 | J107: 4.810005 | K107: 3.618595562 | L107: 1.430008 | M107: 0 | N107: 1.12540114 | O107: 0.1405597154 | P107: 31.10049521 | Q107: 3.884372072 | R107: 27.21612314 | S107: 34.98486729 | T107: 77.7939871 | U107: 65.17819865 | V107: FALSE | W107: 30 | X107: 65.17819865 | Z107: FALSE | AD107: 200.2030072 | AE107: 0 | AF107: 0.75 | AG107: 0.9950967814 | AP107: 73817500 | BB107: 4.810005 | BC107: 3.618595562 | BD107: 0.9950967814 | BE107: FALSE | BF107: 0.75 | BG107: 0.9950967814 | BI107: FALSE | BM107: 200.2030072 | BN107: 0 | BQ107: 132.130005 | BR107: 126.75 | BS107: =IF(($A$8-$A107)<B$17,"",BQ107-BR107) -> 5.380005 | BT107: 0.7051122425 | BU107: TRUE | BV107: 0.75 | BX107: 0.7051122425 | BY107: TRUE | BZ107: 5.380005 | CA107: 126.75 | CB107: 132.130005 | CC107: 126.75 | CD107: 132.130005
A108: 76 | B108: =OFFSET(InputPriceData!B$15,CalculationsAndCharts!$A108+$A$11,0,1,1) -> 2016-10-10 | C108: =OFFSET(InputPriceData!G$15,CalculationsAndCharts!$A108+$A$11,IF($C$7,8,0),1,1) -> 74196900 | D108: =OFFSET(InputPriceData!C$15,CalculationsAndCharts!$A108+$A$11,IF($C$7,8,0),1,1) -> 129.679993 | E108: =OFFSET(InputPriceData!D$15,CalculationsAndCharts!$A108+$A$11,IF($C$7,8,0),1,1) -> 130.699997 | F108: =OFFSET(InputPriceData!E$15,CalculationsAndCharts!$A108+$A$11,IF($C$7,8,0),1,1) -> 126.75 | G108: =OFFSET(InputPriceData!F$15,CalculationsAndCharts!$A108+$A$11,IF($C$7,8,0),1,1) -> 127.879997 | J108: 3.949997 | K108: 3.221459083 | L108: 1.419998 | M108: 0 | N108: 1.02386552 | O108: 0.1874129539 | P108: 31.7826641 | Q108: 5.817641914 | R108: 25.96502219 | S108: 37.60030602 | T108: 69.05534805 | U108: 60.97293583 | V108: FALSE | W108: 30 | X108: 60.97293583 | Z108: FALSE | AD108: 200.2030072 | AE108: 0 | AF108: 0.75 | AG108: 0.8694340928 | AQ108: 74196900 | BB108: 3.949997 | BC108: 3.221459083 | BD108: 0.8694340928 | BE108: FALSE | BF108: 0.75 | BG108: 0.8694340928 | BI108: FALSE | BM108: 200.2030072 | BN108: 0 | BQ108: 130.729996 | BR108: 126.75 | BS108: =IF(($A$8-$A108)<B$17,"",BQ108-BR108) -> 3.979996 | BT108: 0.4476935883 | BU108: TRUE | BV108: 0.75 | BX108: 0.4476935883 | BY108: TRUE | BZ108: 5.380005 | CA108: 126.75 | CB108: 132.130005 | CC108: 126.75 | CD108: 130.729996
A109: 77 | B109: =OFFSET(InputPriceData!B$15,CalculationsAndCharts!$A109+$A$11,0,1,1) -> 2016-10-03 | C109: =OFFSET(InputPriceData!G$15,CalculationsAndCharts!$A109+$A$11,IF($C$7,8,0),1,1) -> 64338300 | D109: =OFFSET(InputPriceData!C$15,CalculationsAndCharts!$A109+$A$11,IF($C$7,8,0),1,1) -> 128.380005 | E109: =OFFSET(InputPriceData!D$15,CalculationsAndCharts!$A109+$A$11,IF($C$7,8,0),1,1) -> 129.279999 | F109: =OFFSET(InputPriceData!E$15,CalculationsAndCharts!$A109+$A$11,IF($C$7,8,0),1,1) -> 127.550003 | G109: =OFFSET(InputPriceData!F$15,CalculationsAndCharts!$A109+$A$11,IF($C$7,8,0),1,1) -> 128.990005 | J109: 1.729996 | K109: 2.978613111 | L109: 0 | M109: 0 | N109: 0.8918213595 | O109: 0.2498839385 | P109: 29.94082569 | Q109: 8.389271423 | R109: 21.55155427 | S109: 38.33009711 | T109: 56.22619271 | U109: 58.27879842 | V109: FALSE | W109: 30 | X109: 58.27879842 | Z109: FALSE | AD109: 200.2030072 | AE109: 0 | AF109: 0.75 | AG109: 0.7844680597 | AP109: 64338300 | BB109: 1.729996 | BC109: 2.978613111 | BD109: 0.7844680597 | BE109: FALSE | BF109: 0.75 | BG109: 0.7844680597 | BI109: FALSE | BM109: 200.2030072 | BN109: 0 | BQ109: 130.729996 | BR109: 125.75 | BS109: =IF(($A$8-$A109)<B$17,"",BQ109-BR109) -> 4.979996 | BT109: 0.5413040896 | BU109: TRUE | BV109: 0.75 | BX109: 0.5413040896 | BY109: TRUE | BZ109: 6.380005 | CA109: 125.75 | CB109: 132.130005 | CC109: 125.75 | CD109: 130.729996
A110: 78 | B110: =OFFSET(InputPriceData!B$15,CalculationsAndCharts!$A110+$A$11,0,1,1) -> 2016-09-26 | C110: =OFFSET(InputPriceData!G$15,CalculationsAndCharts!$A110+$A$11,IF($C$7,8,0),1,1) -> 75684700 | D110: =OFFSET(InputPriceData!C$15,CalculationsAndCharts!$A110+$A$11,IF($C$7,8,0),1,1) -> 127.370003 | E110: =OFFSET(InputPriceData!D$15,CalculationsAndCharts!$A110+$A$11,IF($C$7,8,0),1,1) -> 129.470001 | F110: =OFFSET(InputPriceData!E$15,CalculationsAndCharts!$A110+$A$11,IF($C$7,8,0),1,1) -> 126.800003 | G110: =OFFSET(InputPriceData!F$15,CalculationsAndCharts!$A110+$A$11,IF($C$7,8,0),1,1) -> 128.270004 | J110: 2.669998 | K110: 3.394818814 | L110: 0 | M110: 0.5 | N110: 1.189095146 | O110: 0.3331785847 | P110: 35.02676316 | Q110: 9.814325974 | R110: 25.21243719 | S110: 44.84108914 | T110: 56.22619271 | U110: 58.96300033 | V110: FALSE | W110: 30 | X110: 58.96300033 | Z110: FALSE | AD110: 200.2030072 | AE110: 0 | AF110: 0.75 | AG110: 1.052336864 | AP110: 75684700 | BB110: 2.669998 | BC110: 3.394818814 | BD110: 1.052336864 | BE110: FALSE | BF110: 0.75 | BG110: 1.052336864 | BI110: FALSE | BM110: 200.2030072 | BN110: 0 | BQ110: 131.979996 | BR110: 125.75 | BS110: =IF(($A$8-$A110)<B$17,"",BQ110-BR110) -> 6.229996 | BT110: 1.526959055 | BU110: FALSE | BV110: 0.75 | BW110: 1.526959055 | BY110: TRUE | BZ110: 6.380005 | CA110: 125.75 | CB110: 132.130005 | CC110: 200.2030072 | CD110: 0
A111: 79 | B111: =OFFSET(InputPriceData!B$15,CalculationsAndCharts!$A111+$A$11,0,1,1) -> 2016-09-19 | C111: =OFFSET(InputPriceData!G$15,CalculationsAndCharts!$A111+$A$11,IF($C$7,8,0),1,1) -> 83936500 | D111: =OFFSET(InputPriceData!C$15,CalculationsAndCharts!$A111+$A$11,IF($C$7,8,0),1,1) -> 129.910004 | E111: =OFFSET(InputPriceData!D$15,CalculationsAndCharts!$A111+$A$11,IF($C$7,8,0),1,1) -> 130.729996 | F111: =OFFSET(InputPriceData!E$15,CalculationsAndCharts!$A111+$A$11,IF($C$7,8,0),1,1) -> 127.300003 | G111: =OFFSET(InputPriceData!F$15,CalculationsAndCharts!$A111+$A$11,IF($C$7,8,0),1,1) -> 127.959999 | J111: 3.429993 | K111: 3.636425753 | L111: 1.550003 | M111: 0 | N111: 1.585460195 | O111: 0.2775714462 | P111: 43.59941059 | Q111: 7.633084383 | R111: 35.96632621 | S111: 51.23249497 | T111: 70.20217584 | U111: 59.87526953 | V111: FALSE | W111: 30 | X111: 59.87526953 | Z111: FALSE | AD111: 200.2030072 | AE111: 0 | AF111: 0.75 | AG111: 1.049582436 | AQ111: 83936500 | BB111: 3.429993 | BC111: 3.636425753 | BD111: 1.049582436 | BE111: FALSE | BF111: 0.75 | BG111: 1.049582436 | BI111: FALSE | BM111: 200.2030072 | BN111: 0 | BQ111: 131.979996 | BR111: 124.349998 | BS111: =IF(($A$8-$A111)<B$17,"",BQ111-BR111) -> 7.629998 | BT111: 1.898011341 | BU111: FALSE | BV111: 0.75 | BW111: 1.898011341 | BY111: TRUE | BZ111: 4.979996 | CA111: 125.75 | CB111: 130.729996 | CC111: 200.2030072 | CD111: 0
A112: 80 | B112: =OFFSET(InputPriceData!B$15,CalculationsAndCharts!$A112+$A$11,0,1,1) -> 2016-09-12 | C112: =OFFSET(InputPriceData!G$15,CalculationsAndCharts!$A112+$A$11,IF($C$7,8,0),1,1) -> 94156500 | D112: =OFFSET(InputPriceData!C$15,CalculationsAndCharts!$A112+$A$11,IF($C$7,8,0),1,1) -> 125.959999 | E112: =OFFSET(InputPriceData!D$15,CalculationsAndCharts!$A112+$A$11,IF($C$7,8,0),1,1) -> 129.179993 | F112: =OFFSET(InputPriceData!E$15,CalculationsAndCharts!$A112+$A$11,IF($C$7,8,0),1,1) -> 125.75 | G112: =OFFSET(InputPriceData!F$15,CalculationsAndCharts!$A112+$A$11,IF($C$7,8,0),1,1) -> 129.070007 | J112: 3.429993 | K112: 3.70523667 | L112: 0 | M112: 0.720001 | N112: 1.59727926 | O112: 0.3700952616 | P112: 43.10869728 | Q112: 9.98843784 | R112: 33.12025944 | S112: 53.09713512 | T112: 62.37673532 | U112: 56.43296743 | V112: FALSE | W112: 30 | X112: 56.43296743 | Z112: FALSE | AD112: 200.2030072 | AE112: 0 | AF112: 0.75 | AG112: 0.9453295316 | AP112: 94156500 | BB112: 3.429993 | BC112: 3.70523667 | BD112: 0.9453295316 | BE112: FALSE | BF112: 0.75 | BG112: 0.9453295316 | BI112: FALSE | BM112: 200.2030072 | BN112: 0 | BQ112: 131.979996 | BR112: 123.089996 | BS112: =IF(($A$8-$A112)<B$17,"",BQ112-BR112) -> 8.89 | BT112: 0.8426537888 | BU112: FALSE | BV112: 0.75 | BW112: 0.8426537888 | BY112: TRUE | BZ112: 4.979996 | CA112: 125.75 | CB112: 130.729996 | CC112: 200.2030072 | CD112: 0
A113: 81 | B113: =OFFSET(InputPriceData!B$15,CalculationsAndCharts!$A113+$A$11,0,1,1) -> 2016-09-05 | C113: =OFFSET(InputPriceData!G$15,CalculationsAndCharts!$A113+$A$11,IF($C$7,8,0),1,1) -> 96923100 | D113: =OFFSET(InputPriceData!C$15,CalculationsAndCharts!$A113+$A$11,IF($C$7,8,0),1,1) -> 126.669998 | E113: =OFFSET(InputPriceData!D$15,CalculationsAndCharts!$A113+$A$11,IF($C$7,8,0),1,1) -> 131.979996 | F113: =OFFSET(InputPriceData!E$15,CalculationsAndCharts!$A113+$A$11,IF($C$7,8,0),1,1) -> 126.470001 | G113: =OFFSET(InputPriceData!F$15,CalculationsAndCharts!$A113+$A$11,IF($C$7,8,0),1,1) -> 127.099998 | J113: 5.509995 | K113: 3.79698456 | L113: 5.119995 | M113: 0 | N113: 2.129705679 | O113: 0.2534600155 | P113: 56.0893953 | Q113: 6.675297502 | R113: 49.41409779 | S113: 62.7646928 | T113: 78.72913192 | U113: 54.45171147 | V113: FALSE | W113: 30 | X113: 54.45171147 | Z113: FALSE | AD113: 200.2030072 | AE113: 0 | AF113: 0.75 | AG113: 0.8414012618 | AP113: 96923100 | BB113: 5.509995 | BC113: 3.79698456 | BD113: 0.8414012618 | BE113: FALSE | BF113: 0.75 | BG113: 0.8414012618 | BI113: FALSE | BM113: 200.2030072 | BN113: 0 | BQ113: 131.979996 | BR113: 122.779999 | BS113: =IF(($A$8-$A113)<B$17,"",BQ113-BR113) -> 9.199997 | BT113: 0.8041953311 | BU113: FALSE | BV113: 0.75 | BW113: 0.8041953311 | BY113: FALSE | CC113: 200.2030072 | CD113: 0
A114: 82 | B114: =OFFSET(InputPriceData!B$15,CalculationsAndCharts!$A114+$A$11,0,1,1) -> 2016-08-29 | C114: =OFFSET(InputPriceData!G$15,CalculationsAndCharts!$A114+$A$11,IF($C$7,8,0),1,1) -> 73475400 | D114: =OFFSET(InputPriceData!C$15,CalculationsAndCharts!$A114+$A$11,IF($C$7,8,0),1,1) -> 124.349998 | E114: =OFFSET(InputPriceData!D$15,CalculationsAndCharts!$A114+$A$11,IF($C$7,8,0),1,1) -> 126.860001 | F114: =OFFSET(InputPriceData!E$15,CalculationsAndCharts!$A114+$A$11,IF($C$7,8,0),1,1) -> 124.349998 | G114: =OFFSET(InputPriceData!F$15,CalculationsAndCharts!$A114+$A$11,IF($C$7,8,0),1,1) -> 126.510002 | J114: 2.510003 | K114: 3.22598108 | L114: 1.669999 | M114: 0 | N114: 1.132942573 | O114: 0.3379466874 | P114: 35.11931857 | Q114: 10.4757802 | R114: 24.64353836 | S114: 45.59509877 | T114: 54.04865661 | U114: 46.35923798 | V114: FALSE | W114: 30 | X114: 46.35923798 | Z114: FALSE | AD114: 200.2030072 | AE114: 0 | AF114: 0.75 | AH114: 0.5995960888 | AI114: 122.779999 | AJ114: 4.080002 | AP114: 73475400 | BB114: 2.510003 | BC114: 3.22598108 | BD114: 0.5995960888 | BE114: TRUE | BF114: 0.75 | BH114: 0.5995960888 | BI114: TRUE | BJ114: 4.080002 | BK114: 122.779999 | BL114: 126.860001 | BM114: 122.779999 | BN114: 126.860001 | BQ114: 126.860001 | BR114: 122.779999 | BS114: =IF(($A$8-$A114)<B$17,"",BQ114-BR114) -> 4.080002 | BT114: 0.3472342128 | BU114: TRUE | BV114: 0.75 | BX114: 0.3472342128 | BY114: TRUE | BZ114: 4.080002 | CA114: 122.779999 | CB114: 126.860001 | CC114: 122.779999 | CD114: 126.860001
A115: 83 | B115: =OFFSET(InputPriceData!B$15,CalculationsAndCharts!$A115+$A$11,0,1,1) -> 2016-08-22 | C115: =OFFSET(InputPriceData!G$15,CalculationsAndCharts!$A115+$A$11,IF($C$7,8,0),1,1) -> 68175200 | D115: =OFFSET(InputPriceData!C$15,CalculationsAndCharts!$A115+$A$11,IF($C$7,8,0),1,1) -> 123.330002 | E115: =OFFSET(InputPriceData!D$15,CalculationsAndCharts!$A115+$A$11,IF($C$7,8,0),1,1) -> 125.190002 | F115: =OFFSET(InputPriceData!E$15,CalculationsAndCharts!$A115+$A$11,IF($C$7,8,0),1,1) -> 123.089996 | G115: =OFFSET(InputPriceData!F$15,CalculationsAndCharts!$A115+$A$11,IF($C$7,8,0),1,1) -> 124.959999 | J115: 2.100006 | K115: 3.46464044 | L115: 0.270004 | M115: 0 | N115: 0.9539237634 | O115: 0.4505955831 | P115: 27.53312443 | Q115: 13.00555111 | R115: 14.52757332 | S115: 40.53867553 | T115: 35.83632945 | U115: 43.79609844 | V115: FALSE | W115: 30 | X115: 43.79609844 | Z115: FALSE | AD115: 200.2030072 | AE115: 0 | AF115: 0.75 | AH115: 0.5855389826 | AI115: 122.07 | AJ115: 4.790001 | AP115: 68175200 | BB115: 2.100006 | BC115: 3.46464044 | BD115: 0.5855389826 | BE115: TRUE | BF115: 0.75 | BH115: 0.5855389826 | BI115: TRUE | BJ115: 4.790001 | BK115: 122.07 | BL115: 126.860001 | BM115: 122.07 | BN115: 126.089996 | BQ115: 126.089996 | BR115: 122.07 | BS115: =IF(($A$8-$A115)<B$17,"",BQ115-BR115) -> 4.019996 | BT115: 0.2617184725 | BU115: TRUE | BV115: 0.75 | BX115: 0.2617184725 | BY115: TRUE | BZ115: 4.790001 | CA115: 122.07 | CB115: 126.860001 | CC115: 122.07 | CD115: 126.089996
A116: 84 | B116: =OFFSET(InputPriceData!B$15,CalculationsAndCharts!$A116+$A$11,0,1,1) -> 2016-08-15 | C116: =OFFSET(InputPriceData!G$15,CalculationsAndCharts!$A116+$A$11,IF($C$7,8,0),1,1) -> 71400800 | D116: =OFFSET(InputPriceData!C$15,CalculationsAndCharts!$A116+$A$11,IF($C$7,8,0),1,1) -> 124.910004 | E116: =OFFSET(InputPriceData!D$15,CalculationsAndCharts!$A116+$A$11,IF($C$7,8,0),1,1) -> 124.919998 | F116: =OFFSET(InputPriceData!E$15,CalculationsAndCharts!$A116+$A$11,IF($C$7,8,0),1,1) -> 122.779999 | G116: =OFFSET(InputPriceData!F$15,CalculationsAndCharts!$A116+$A$11,IF($C$7,8,0),1,1) -> 123.559998 | J116: 2.139999 | K116: 3.919518587 | L116: 0 | M116: 1.400001 | N116: 1.181897018 | O116: 0.6007941109 | P116: 30.15413734 | Q116: 15.32826283 | R116: 14.82587451 | S116: 45.48240017 | T116: 32.59694838 | U116: 46.44935477 | V116: FALSE | W116: 30 | X116: 46.44935477 | Z116: FALSE | AD116: 200.2030072 | AE116: 0 | AF116: 0.75 | AG116: 0.8963652992 | AI116: 122.07 | AJ116: 4.790001 | AQ116: 71400800 | BB116: 2.139999 | BC116: 3.919518587 | BD116: 0.8963652992 | BE116: FALSE | BF116: 0.75 | BG116: 0.8963652992 | BI116: TRUE | BJ116: 4.790001 | BK116: 122.07 | BL116: 126.860001 | BM116: 200.2030072 | BN116: 0 | BQ116: 128.330002 | BR116: 117.779999 | BS116: =IF(($A$8-$A116)<B$17,"",BQ116-BR116) -> 10.550003 | BT116: 0.7551902313 | BU116: FALSE | BV116: 0.75 | BW116: 0.7551902313 | BY116: TRUE | BZ116: 4.790001 | CA116: 122.07 | CB116: 126.860001 | CC116: 200.2030072 | CD116: 0
A117: 85 | B117: =OFFSET(InputPriceData!B$15,CalculationsAndCharts!$A117+$A$11,0,1,1) -> 2016-08-08 | C117: =OFFSET(InputPriceData!G$15,CalculationsAndCharts!$A117+$A$11,IF($C$7,8,0),1,1) -> 69341500 | D117: =OFFSET(InputPriceData!C$15,CalculationsAndCharts!$A117+$A$11,IF($C$7,8,0),1,1) -> 125.25 | E117: =OFFSET(InputPriceData!D$15,CalculationsAndCharts!$A117+$A$11,IF($C$7,8,0),1,1) -> 126.089996 | F117: =OFFSET(InputPriceData!E$15,CalculationsAndCharts!$A117+$A$11,IF($C$7,8,0),1,1) -> 124.18 | G117: =OFFSET(InputPriceData!F$15,CalculationsAndCharts!$A117+$A$11,IF($C$7,8,0),1,1) -> 124.879997 | J117: 1.909996 | K117: 4.512691783 | L117: 0.25 | M117: 0 | N117: 1.57586269 | O117: 0.3343918145 | P117: 34.92068074 | Q117: 7.41002999 | R117: 27.51065075 | S117: 42.33071073 | T117: 64.98981538 | U117: 51.06682356 | V117: FALSE | W117: 30 | X117: 51.06682356 | Z117: FALSE | AD117: 200.2030072 | AE117: 0 | AF117: 0.75 | AG117: 1.114178505 | AI117: 122.07 | AJ117: 4.790001 | AQ117: 69341500 | BB117: 1.909996 | BC117: 4.512691783 | BD117: 1.114178505 | BE117: FALSE | BF117: 0.75 | BG117: 1.114178505 | BI117: TRUE | BJ117: 4.790001 | BK117: 122.07 | BL117: 126.860001 | BM117: 200.2030072 | BN117: 0 | BQ117: 128.330002 | BR117: 116.889999 | BS117: =IF(($A$8-$A117)<B$17,"",BQ117-BR117) -> 11.440003 | BT117: 1.090562934 | BU117: FALSE | BV117: 0.75 | BW117: 1.090562934 | BY117: TRUE | BZ117: 4.790001 | CA117: 122.07 | CB117: 126.860001 | CC117: 200.2030072 | CD117: 0
A118: 86 | B118: =OFFSET(InputPriceData!B$15,CalculationsAndCharts!$A118+$A$11,0,1,1) -> 2016-08-01 | C118: =OFFSET(InputPriceData!G$15,CalculationsAndCharts!$A118+$A$11,IF($C$7,8,0),1,1) -> 108722600 | D118: =OFFSET(InputPriceData!C$15,CalculationsAndCharts!$A118+$A$11,IF($C$7,8,0),1,1) -> 123.849998 | E118: =OFFSET(InputPriceData!D$15,CalculationsAndCharts!$A118+$A$11,IF($C$7,8,0),1,1) -> 125.839996 | F118: =OFFSET(InputPriceData!E$15,CalculationsAndCharts!$A118+$A$11,IF($C$7,8,0),1,1) -> 122.07 | G118: =OFFSET(InputPriceData!F$15,CalculationsAndCharts!$A118+$A$11,IF($C$7,8,0),1,1) -> 125.150002 | J118: 3.769996 | K118: 5.380257044 | L118: 0 | M118: 0 | N118: 2.017816921 | O118: 0.4458557526 | P118: 37.50409886 | Q118: 8.286885719 | R118: 29.21721314 | S118: 45.79098458 | T118: 63.80560149 | U118: 46.42582629 | V118: FALSE | W118: 30 | X118: 46.42582629 | Z118: FALSE | AD118: 200.2030072 | AE118: 0 | AF118: 0.75 | AG118: 1.147913376 | AI118: 122.07 | AJ118: 4.019996 | AP118: 108722600 | BB118: 3.769996 | BC118: 5.380257044 | BD118: 1.147913376 | BE118: FALSE | BF118: 0.75 | BG118: 1.147913376 | BI118: TRUE | BJ118: 4.019996 | BK118: 122.07 | BL118: 126.089996 | BM118: 200.2030072 | BN118: 0 | BQ118: 128.330002 | BR118: 116.580002 | BS118: =IF(($A$8-$A118)<B$17,"",BQ118-BR118) -> 11.75 | BT118: 1.267530076 | BU118: FALSE | BV118: 0.75 | BW118: 1.267530076 | BY118: TRUE | BZ118: 4.019996 | CA118: 122.07 | CB118: 126.089996 | CC118: 200.2030072 | CD118: 0
A119: 87 | B119: =OFFSET(InputPriceData!B$15,CalculationsAndCharts!$A119+$A$11,0,1,1) -> 2016-07-25 | C119: =OFFSET(InputPriceData!G$15,CalculationsAndCharts!$A119+$A$11,IF($C$7,8,0),1,1) -> 196787900 | D119: =OFFSET(InputPriceData!C$15,CalculationsAndCharts!$A119+$A$11,IF($C$7,8,0),1,1) -> 121.389999 | E119: =OFFSET(InputPriceData!D$15,CalculationsAndCharts!$A119+$A$11,IF($C$7,8,0),1,1) -> 128.330002 | F119: =OFFSET(InputPriceData!E$15,CalculationsAndCharts!$A119+$A$11,IF($C$7,8,0),1,1) -> 117.779999 | G119: =OFFSET(InputPriceData!F$15,CalculationsAndCharts!$A119+$A$11,IF($C$7,8,0),1,1) -> 123.940002 | J119: 10.550003 | K119: 5.917010725 | L119: 6.130005 | M119: 0 | N119: 2.690422561 | O119: 0.5944743369 | P119: 45.46928653 | Q119: 10.04686935 | R119: 35.42241718 | S119: 55.51615588 | T119: 63.80560149 | U119: 40.63256789 | V119: FALSE | W119: 30 | X119: 40.63256789 | Z119: FALSE | AD119: 200.2030072 | AE119: 0 | AF119: 0.75 | AG119: 1.24849397 | AP119: 196787900 | BB119: 10.550003 | BC119: 5.917010725 | BD119: 1.24849397 | BE119: FALSE | BF119: 0.75 | BG119: 1.24849397 | BI119: FALSE | BM119: 200.2030072 | BN119: 0 | BQ119: 128.330002 | BR119: 112.970001 | BS119: =IF(($A$8-$A119)<B$17,"",BQ119-BR119) -> 15.360001 | BT119: 1.371429028 | BU119: FALSE | BV119: 0.75 | BW119: 1.371429028 | BY119: FALSE | CC119: 200.2030072 | CD119: 0
A120: 88 | B120: =OFFSET(InputPriceData!B$15,CalculationsAndCharts!$A120+$A$11,0,1,1) -> 2016-07-18 | C120: =OFFSET(InputPriceData!G$15,CalculationsAndCharts!$A120+$A$11,IF($C$7,8,0),1,1) -> 98680300 | D120: =OFFSET(InputPriceData!C$15,CalculationsAndCharts!$A120+$A$11,IF($C$7,8,0),1,1) -> 117.32 | E120: =OFFSET(InputPriceData!D$15,CalculationsAndCharts!$A120+$A$11,IF($C$7,8,0),1,1) -> 122.199997 | F120: =OFFSET(InputPriceData!E$15,CalculationsAndCharts!$A120+$A$11,IF($C$7,8,0),1,1) -> 116.889999 | G120: =OFFSET(InputPriceData!F$15,CalculationsAndCharts!$A120+$A$11,IF($C$7,8,0),1,1) -> 121 | J120: 5.339996 | K120: 4.372679967 | L120: 3.479996 | M120: 0 | N120: 1.543895081 | O120: 0.7926324491 | P120: 35.30775388 | Q120: 18.12692571 | R120: 17.18082818 | S120: 53.43467959 | T120: 32.15295442 | U120: 32.90822336 | V120: FALSE | W120: 30 | X120: 32.90822336 | Z120: FALSE | AD120: 200.2030072 | AE120: 0 | AF120: 0.75 | AG120: 1.092507431 | AP120: 98680300 | BB120: 5.339996 | BC120: 4.372679967 | BD120: 1.092507431 | BE120: FALSE | BF120: 0.75 | BG120: 1.092507431 | BI120: FALSE | BM120: 200.2030072 | BN120: 0 | BQ120: 122.199997 | BR120: 108.230003 | BS120: =IF(($A$8-$A120)<B$17,"",BQ120-BR120) -> 13.969994 | BT120: 1.535164513 | BU120: FALSE | BV120: 0.75 | BW120: 1.535164513 | BY120: FALSE | CC120: 200.2030072 | CD120: 0
A121: 89 | B121: =OFFSET(InputPriceData!B$15,CalculationsAndCharts!$A121+$A$11,0,1,1) -> 2016-07-11 | C121: =OFFSET(InputPriceData!G$15,CalculationsAndCharts!$A121+$A$11,IF($C$7,8,0),1,1) -> 80362700 | D121: =OFFSET(InputPriceData!C$15,CalculationsAndCharts!$A121+$A$11,IF($C$7,8,0),1,1) -> 117.709999 | E121: =OFFSET(InputPriceData!D$15,CalculationsAndCharts!$A121+$A$11,IF($C$7,8,0),1,1) -> 118.720001 | F121: =OFFSET(InputPriceData!E$15,CalculationsAndCharts!$A121+$A$11,IF($C$7,8,0),1,1) -> 116.580002 | G121: =OFFSET(InputPriceData!F$15,CalculationsAndCharts!$A121+$A$11,IF($C$7,8,0),1,1) -> 116.860001 | J121: 2.139999 | K121: 4.05024129 | L121: 1.220001 | M121: 0 | N121: 0.898528108 | O121: 1.056843266 | P121: 22.18455751 | Q121: 26.09334086 | R121: 3.908783359 | S121: 48.27789837 | T121: 8.096424017 | U121: 33.15997967 | V121: FALSE | W121: 30 | X121: 33.15997967 | Z121: FALSE | AD121: 200.2030072 | AE121: 0 | AF121: 0.75 | AG121: 1.029748163 | AQ121: 80362700 | BB121: 2.139999 | BC121: 4.05024129 | BD121: 1.029748163 | BE121: FALSE | BF121: 0.75 | BG121: 1.029748163 | BI121: FALSE | BM121: 200.2030072 | BN121: 0 | BQ121: 118.720001 | BR121: 108.230003 | BS121: =IF(($A$8-$A121)<B$17,"",BQ121-BR121) -> 10.489998 | BT121: 1.391246419 | BU121: FALSE | BV121: 0.75 | BW121: 1.391246419 | BY121: FALSE | CC121: 200.2030072 | CD121: 0
A122: 90 | B122: =OFFSET(InputPriceData!B$15,CalculationsAndCharts!$A122+$A$11,0,1,1) -> 2016-07-04 | C122: =OFFSET(InputPriceData!G$15,CalculationsAndCharts!$A122+$A$11,IF($C$7,8,0),1,1) -> 73287800 | D122: =OFFSET(InputPriceData!C$15,CalculationsAndCharts!$A122+$A$11,IF($C$7,8,0),1,1) -> 113.940002 | E122: =OFFSET(InputPriceData!D$15,CalculationsAndCharts!$A122+$A$11,IF($C$7,8,0),1,1) -> 117.5 | F122: =OFFSET(InputPriceData!E$15,CalculationsAndCharts!$A122+$A$11,IF($C$7,8,0),1,1) -> 112.970001 | G122: =OFFSET(InputPriceData!F$15,CalculationsAndCharts!$A122+$A$11,IF($C$7,8,0),1,1) -> 117.239998 | J122: 4.529999 | K122: 4.68698872 | L122: 2.32 | M122: 0 | N122: 0.7913704774 | O122: 1.409124354 | P122: 16.88441182 | Q122: 30.06459879 | R122: 13.18018697 | S122: 46.94901061 | T122: 28.0734073 | U122: 41.51449822 | V122: FALSE | W122: 30 | X122: 41.51449822 | Z122: FALSE | AD122: 200.2030072 | AE122: 0 | AF122: 0.75 | AG122: 1.204578559 | AP122: 73287800 | BB122: 4.529999 | BC122: 4.68698872 | BD122: 1.204578559 | BE122: FALSE | BF122: 0.75 | BG122: 1.204578559 | BI122: FALSE | BM122: 200.2030072 | BN122: 0 | BQ122: 117.5 | BR122: 108.230003 | BS122: =IF(($A$8-$A122)<B$17,"",BQ122-BR122) -> 9.269997 | BT122: 2.196681233 | BU122: FALSE | BV122: 0.75 | BW122: 2.196681233 | BY122: FALSE | CC122: 200.2030072 | CD122: 0
A123: 91 | B123: =OFFSET(InputPriceData!B$15,CalculationsAndCharts!$A123+$A$11,0,1,1) -> 2016-06-27 | C123: =OFFSET(InputPriceData!G$15,CalculationsAndCharts!$A123+$A$11,IF($C$7,8,0),1,1) -> 122085200 | D123: =OFFSET(InputPriceData!C$15,CalculationsAndCharts!$A123+$A$11,IF($C$7,8,0),1,1) -> 111.57 | E123: =OFFSET(InputPriceData!D$15,CalculationsAndCharts!$A123+$A$11,IF($C$7,8,0),1,1) -> 115.18 | F123: =OFFSET(InputPriceData!E$15,CalculationsAndCharts!$A123+$A$11,IF($C$7,8,0),1,1) -> 108.230003 | G123: =OFFSET(InputPriceData!F$15,CalculationsAndCharts!$A123+$A$11,IF($C$7,8,0),1,1) -> 114.190002 | J123: 6.949997 | K123: 4.739318626 | L123: 0 | M123: 2.769997 | N123: 0.2818273031 | O123: 1.878832472 | P123: 5.946578514 | Q123: 39.64351461 | R123: 33.6969361 | S123: 45.59009313 | T123: 73.9128477 | U123: 45.99486186 | V123: FALSE | W123: 30 | X123: 45.99486186 | Z123: FALSE | AD123: 200.2030072 | AE123: 0 | AF123: 0.75 | AG123: 1.14717237 | AP123: 122085200 | BB123: 6.949997 | BC123: 4.739318626 | BD123: 1.14717237 | BE123: FALSE | BF123: 0.75 | BG123: 1.14717237 | BI123: FALSE | BM123: 200.2030072 | BN123: 0 | BQ123: 119.43 | BR123: 108.230003 | BS123: =IF(($A$8-$A123)<B$17,"",BQ123-BR123) -> 11.199997 | BT123: 2.153843506 | BU123: FALSE | BV123: 0.75 | BW123: 2.153843506 | BY123: FALSE | CC123: 200.2030072 | CD123: 0
A124: 92 | B124: =OFFSET(InputPriceData!B$15,CalculationsAndCharts!$A124+$A$11,0,1,1) -> 2016-06-20 | C124: =OFFSET(InputPriceData!G$15,CalculationsAndCharts!$A124+$A$11,IF($C$7,8,0),1,1) -> 111618000 | D124: =OFFSET(InputPriceData!C$15,CalculationsAndCharts!$A124+$A$11,IF($C$7,8,0),1,1) -> 113.769997 | E124: =OFFSET(InputPriceData!D$15,CalculationsAndCharts!$A124+$A$11,IF($C$7,8,0),1,1) -> 115.209999 | F124: =OFFSET(InputPriceData!E$15,CalculationsAndCharts!$A124+$A$11,IF($C$7,8,0),1,1) -> 111 | G124: =OFFSET(InputPriceData!F$15,CalculationsAndCharts!$A124+$A$11,IF($C$7,8,0),1,1) -> 112.080002 | J124: 4.209999 | K124: 4.002425835 | L124: 0 | M124: 1.559998 | N124: 0.3757697375 | O124: 1.581777629 | P124: 9.38854967 | Q124: 39.5204732 | R124: 30.13192353 | S124: 48.90902287 | T124: 61.60810779 | U124: 36.68886658 | V124: FALSE | W124: 30 | X124: 36.68886658 | Z124: FALSE | AD124: 200.2030072 | AE124: 0 | AF124: 0.75 | AG124: 0.842898654 | AQ124: 111618000 | BB124: 4.209999 | BC124: 4.002425835 | BD124: 0.842898654 | BE124: FALSE | BF124: 0.75 | BG124: 0.842898654 | BI124: FALSE | BM124: 200.2030072 | BN124: 0 | BQ124: 120.099998 | BR124: 111 | BS124: =IF(($A$8-$A124)<B$17,"",BQ124-BR124) -> 9.099998 | BT124: 1.749997933 | BU124: FALSE | BV124: 0.75 | BW124: 1.749997933 | BY124: FALSE | CC124: 200.2030072 | CD124: 0
A125: 93 | B125: =OFFSET(InputPriceData!B$15,CalculationsAndCharts!$A125+$A$11,0,1,1) -> 2016-06-13 | C125: =OFFSET(InputPriceData!G$15,CalculationsAndCharts!$A125+$A$11,IF($C$7,8,0),1,1) -> 113036700 | D125: =OFFSET(InputPriceData!C$15,CalculationsAndCharts!$A125+$A$11,IF($C$7,8,0),1,1) -> 115 | E125: =OFFSET(InputPriceData!D$15,CalculationsAndCharts!$A125+$A$11,IF($C$7,8,0),1,1) -> 115.480003 | F125: =OFFSET(InputPriceData!E$15,CalculationsAndCharts!$A125+$A$11,IF($C$7,8,0),1,1) -> 112.559998 | G125: =OFFSET(InputPriceData!F$15,CalculationsAndCharts!$A125+$A$11,IF($C$7,8,0),1,1) -> 113.019997 | J125: 4.060005 | K125: 3.93323478 | L125: 0 | M125: 3.700004 | N125: 0.5010263167 | O125: 1.589037506 | P125: 12.73827637 | Q125: 40.40027089 | R125: 27.66199452 | S125: 53.13854726 | T125: 52.05636198 | U125: 28.38245284 | V125: TRUE | W125: 30 | Y125: 28.38245284 | Z125: TRUE | AA125: 7.54 | AB125: 112.559998 | AC125: 120.099998 | AD125: 112.559998 | AE125: 120.099998 | AF125: 0.75 | AG125: 0.7822853584 | AQ125: 113036700 | BB125: 4.060005 | BC125: 3.93323478 | BD125: 0.7822853584 | BE125: FALSE | BF125: 0.75 | BG125: 0.7822853584 | BI125: FALSE | BM125: 200.2030072 | BN125: 0 | BQ125: 120.099998 | BR125: 112.559998 | BS125: =IF(($A$8-$A125)<B$17,"",BQ125-BR125) -> 7.54 | BT125: 0.5104941068 | BU125: TRUE | BV125: 0.75 | BX125: 0.5104941068 | BY125: TRUE | BZ125: 7.54 | CA125: 112.559998 | CB125: 120.099998 | CC125: 112.559998 | CD125: 120.099998
A126: 94 | B126: =OFFSET(InputPriceData!B$15,CalculationsAndCharts!$A126+$A$11,0,1,1) -> 2016-06-06 | C126: =OFFSET(InputPriceData!G$15,CalculationsAndCharts!$A126+$A$11,IF($C$7,8,0),1,1) -> 76723300 | D126: =OFFSET(InputPriceData!C$15,CalculationsAndCharts!$A126+$A$11,IF($C$7,8,0),1,1) -> 118.620003 | E126: =OFFSET(InputPriceData!D$15,CalculationsAndCharts!$A126+$A$11,IF($C$7,8,0),1,1) -> 119.43 | F126: =OFFSET(InputPriceData!E$15,CalculationsAndCharts!$A126+$A$11,IF($C$7,8,0),1,1) -> 116.260002 | G126: =OFFSET(InputPriceData!F$15,CalculationsAndCharts!$A126+$A$11,IF($C$7,8,0),1,1) -> 116.620003 | J126: 3.169998 | K126: 3.89097804 | L126: 0 | M126: 1.559998 | N126: 0.6680350889 | O126: 0.8853820078 | P126: 17.16882188 | Q126: 22.75474183 | R126: 5.585919958 | S126: 39.92356371 | T126: 13.99153642 | U126: 20.49114979 | V126: TRUE | W126: 30 | Y126: 20.49114979 | Z126: TRUE | AA126: 7.54 | AB126: 112.559998 | AC126: 120.099998 | AD126: 115.879997 | AE126: 120.099998 | AF126: 0.75 | AH126: 0.7213749197 | AI126: 115.879997 | AJ126: 4.220001 | AQ126: 76723300 | BB126: 3.169998 | BC126: 3.89097804 | BD126: 0.7213749197 | BE126: TRUE | BF126: 0.75 | BH126: 0.7213749197 | BI126: TRUE | BJ126: 4.220001 | BK126: 115.879997 | BL126: 120.099998 | BM126: 115.879997 | BN126: 120.099998 | BQ126: 120.099998 | BR126: 115.879997 | BS126: =IF(($A$8-$A126)<B$17,"",BQ126-BR126) -> 4.220001 | BT126: 0.285714276 | BU126: TRUE | BV126: 0.75 | BX126: 0.285714276 | BY126: TRUE | BZ126: 7.54 | CA126: 112.559998 | CB126: 120.099998 | CC126: 115.879997 | CD126: 120.099998
A127: 95 | B127: =OFFSET(InputPriceData!B$15,CalculationsAndCharts!$A127+$A$11,0,1,1) -> 2016-05-30 | C127: =OFFSET(InputPriceData!G$15,CalculationsAndCharts!$A127+$A$11,IF($C$7,8,0),1,1) -> 65902100 | D127: =OFFSET(InputPriceData!C$15,CalculationsAndCharts!$A127+$A$11,IF($C$7,8,0),1,1) -> 119.459999 | E127: =OFFSET(InputPriceData!D$15,CalculationsAndCharts!$A127+$A$11,IF($C$7,8,0),1,1) -> 120.099998 | F127: =OFFSET(InputPriceData!E$15,CalculationsAndCharts!$A127+$A$11,IF($C$7,8,0),1,1) -> 117.82 | G127: =OFFSET(InputPriceData!F$15,CalculationsAndCharts!$A127+$A$11,IF($C$7,8,0),1,1) -> 118.470001 | J127: 2.279998 | K127: 4.13130472 | L127: 0.25 | M127: 0 | N127: 0.8907134519 | O127: 0.6605100104 | P127: 21.56010056 | Q127: 15.98792767 | R127: 5.572172887 | S127: 37.54802823 | T127: 14.84012117 | U127: 22.65768758 | V127: TRUE | W127: 30 | Y127: 22.65768758 | Z127: TRUE | AA127: 8.520004 | AB127: 112.559998 | AC127: 121.080002 | AD127: 115.879997 | AE127: 121.080002 | AF127: 0.75 | AH127: 0.639014913 | AI127: 115.879997 | AJ127: 5.200005 | AQ127: 65902100 | BB127: 2.279998 | BC127: 4.13130472 | BD127: 0.639014913 | BE127: TRUE | BF127: 0.75 | BH127: 0.639014913 | BI127: TRUE | BJ127: 5.200005 | BK127: 115.879997 | BL127: 121.080002 | BM127: 115.879997 | BN127: 121.080002 | BQ127: 121.080002 | BR127: 115.879997 | BS127: =IF(($A$8-$A127)<B$17,"",BQ127-BR127) -> 5.200005 | BT127: 0.359116293 | BU127: TRUE | BV127: 0.75 | BX127: 0.359116293 | BY127: TRUE | BZ127: 8.520004 | CA127: 112.559998 | CB127: 121.080002 | CC127: 115.879997 | CD127: 121.080002
A128: 96 | B128: =OFFSET(InputPriceData!B$15,CalculationsAndCharts!$A128+$A$11,0,1,1) -> 2016-05-23 | C128: =OFFSET(InputPriceData!G$15,CalculationsAndCharts!$A128+$A$11,IF($C$7,8,0),1,1) -> 92255900 | D128: =OFFSET(InputPriceData!C$15,CalculationsAndCharts!$A128+$A$11,IF($C$7,8,0),1,1) -> 117.419998 | E128: =OFFSET(InputPriceData!D$15,CalculationsAndCharts!$A128+$A$11,IF($C$7,8,0),1,1) -> 119.849998 | F128: =OFFSET(InputPriceData!E$15,CalculationsAndCharts!$A128+$A$11,IF($C$7,8,0),1,1) -> 115.940002 | G128: =OFFSET(InputPriceData!F$15,CalculationsAndCharts!$A128+$A$11,IF($C$7,8,0),1,1) -> 119.379997 | J128: 3.909996 | K128: 4.74840696 | L128: 0.239997 | M128: 0 | N128: 1.104284603 | O128: 0.8806800139 | P128: 23.25589639 | Q128: 18.54685206 | R128: 4.709044328 | S128: 41.80274844 | T128: 11.26491559 | U128: 25.26354304 | V128: TRUE | W128: 30 | Y128: 25.26354304 | Z128: TRUE | AA128: 8.520004 | AB128: 112.559998 | AC128: 121.080002 | AD128: 115.879997 | AE128: 121.080002 | AF128: 0.75 | AH128: 0.6250519277 | AI128: 115.879997 | AJ128: 5.200005 | AP128: 92255900 | BB128: 3.909996 | BC128: 4.74840696 | BD128: 0.6250519277 | BE128: TRUE | BF128: 0.75 | BH128: 0.6250519277 | BI128: TRUE | BJ128: 5.200005 | BK128: 115.879997 | BL128: 121.080002 | BM128: 115.879997 | BN128: 121.080002 | BQ128: 121.080002 | BR128: 115.879997 | BS128: =IF(($A$8-$A128)<B$17,"",BQ128-BR128) -> 5.200005 | BT128: 0.359116293 | BU128: TRUE | BV128: 0.75 | BX128: 0.359116293 | BY128: TRUE | BZ128: 8.520004 | CA128: 112.559998 | CB128: 121.080002 | CC128: 115.879997 | CD128: 121.080002
A129: 97 | B129: =OFFSET(InputPriceData!B$15,CalculationsAndCharts!$A129+$A$11,0,1,1) -> 2016-05-16 | C129: =OFFSET(InputPriceData!G$15,CalculationsAndCharts!$A129+$A$11,IF($C$7,8,0),1,1) -> 113707600 | D129: =OFFSET(InputPriceData!C$15,CalculationsAndCharts!$A129+$A$11,IF($C$7,8,0),1,1) -> 119.379997 | E129: =OFFSET(InputPriceData!D$15,CalculationsAndCharts!$A129+$A$11,IF($C$7,8,0),1,1) -> 119.610001 | F129: =OFFSET(InputPriceData!E$15,CalculationsAndCharts!$A129+$A$11,IF($C$7,8,0),1,1) -> 115.879997 | G129: =OFFSET(InputPriceData!F$15,CalculationsAndCharts!$A129+$A$11,IF($C$7,8,0),1,1) -> 117.349998 | J129: 3.930001 | K129: 5.02787728 | L129: 0 | M129: 3.020005 | N129: 1.39238047 | O129: 1.174240019 | P129: 27.69320714 | Q129: 23.3545879 | R129: 4.338619249 | S129: 51.04779504 | T129: 8.499131541 | U129: 29.92975219 | V129: TRUE | W129: 30 | Y129: 29.92975219 | Z129: TRUE | AA129: 14.770004 | AB129: 106.309998 | AC129: 121.080002 | AD129: 106.309998 | AE129: 121.080002 | AF129: 0.75 | AG129: 0.9482221246 | AI129: 115.879997 | AJ129: 5.200005 | AQ129: 113707600 | BB129: 3.930001 | BC129: 5.02787728 | BD129: 0.9482221246 | BE129: FALSE | BF129: 0.75 | BG129: 0.9482221246 | BI129: TRUE | BJ129: 5.200005 | BK129: 115.879997 | BL129: 121.080002 | BM129: 200.2030072 | BN129: 0 | BQ129: 121.080002 | BR129: 106.309998 | BS129: =IF(($A$8-$A129)<B$17,"",BQ129-BR129) -> 14.770004 | BT129: 1.410697477 | BU129: FALSE | BV129: 0.75 | BW129: 1.410697477 | BY129: TRUE | BZ129: 5.200005 | CA129: 115.879997 | CB129: 121.080002 | CC129: 200.2030072 | CD129: 0
A130: 98 | B130: =OFFSET(InputPriceData!B$15,CalculationsAndCharts!$A130+$A$11,0,1,1) -> 2016-05-09 | C130: =OFFSET(InputPriceData!G$15,CalculationsAndCharts!$A130+$A$11,IF($C$7,8,0),1,1) -> 106140000 | D130: =OFFSET(InputPriceData!C$15,CalculationsAndCharts!$A130+$A$11,IF($C$7,8,0),1,1) -> 119.540001 | E130: =OFFSET(InputPriceData!D$15,CalculationsAndCharts!$A130+$A$11,IF($C$7,8,0),1,1) -> 121.080002 | F130: =OFFSET(InputPriceData!E$15,CalculationsAndCharts!$A130+$A$11,IF($C$7,8,0),1,1) -> 118.900002 | G130: =OFFSET(InputPriceData!F$15,CalculationsAndCharts!$A130+$A$11,IF($C$7,8,0),1,1) -> 119.809998 | J130: 2.18 | K130: 5.39383604 | L130: 1.440003 | M130: 0 | N130: 1.856507293 | O130: 0.5589850247 | P130: 34.41905315 | Q130: 10.36340409 | R130: 24.05564906 | S130: 44.78245724 | T130: 53.71667957 | U130: 37.07329241 | V130: FALSE | W130: 30 | X130: 37.07329241 | Z130: TRUE | AA130: 14.770004 | AB130: 106.309998 | AC130: 121.080002 | AD130: 200.2030072 | AE130: 0 | AF130: 0.75 | AG130: 1.000111539 | AI130: 115.879997 | AJ130: 5.200005 | AP130: 106140000 | BB130: 2.18 | BC130: 5.39383604 | BD130: 1.000111539 | BE130: FALSE | BF130: 0.75 | BG130: 1.000111539 | BI130: TRUE | BJ130: 5.200005 | BK130: 115.879997 | BL130: 121.080002 | BM130: 200.2030072 | BN130: 0 | BQ130: 121.080002 | BR130: 106.309998 | BS130: =IF(($A$8-$A130)<B$17,"",BQ130-BR130) -> 14.770004 | BT130: 1.410697477 | BU130: FALSE | BV130: 0.75 | BW130: 1.410697477 | BY130: TRUE | BZ130: 5.200005 | CA130: 115.879997 | CB130: 121.080002 | CC130: 200.2030072 | CD130: 0
A131: 99 | B131: =OFFSET(InputPriceData!B$15,CalculationsAndCharts!$A131+$A$11,0,1,1) -> 2016-05-02 | C131: =OFFSET(InputPriceData!G$15,CalculationsAndCharts!$A131+$A$11,IF($C$7,8,0),1,1) -> 124045200 | D131: =OFFSET(InputPriceData!C$15,CalculationsAndCharts!$A131+$A$11,IF($C$7,8,0),1,1) -> 117.830002 | E131: =OFFSET(InputPriceData!D$15,CalculationsAndCharts!$A131+$A$11,IF($C$7,8,0),1,1) -> 119.639999 | F131: =OFFSET(InputPriceData!E$15,CalculationsAndCharts!$A131+$A$11,IF($C$7,8,0),1,1) -> 116.57 | G131: =OFFSET(InputPriceData!F$15,CalculationsAndCharts!$A131+$A$11,IF($C$7,8,0),1,1) -> 119.489998 | J131: 3.069999 | K131: 6.46511472 | L131: 0 | M131: 0 | N131: 1.995342058 | O131: 0.7453133663 | P131: 30.86321194 | Q131: 11.52823111 | R131: 19.33498083 | S131: 42.39144305 | T131: 45.61057477 | U131: 31.52549669 | V131: FALSE | W131: 30 | X131: 31.52549669 | Z131: TRUE | AA131: 14.770004 | AB131: 106.309998 | AC131: 121.080002 | AD131: 200.2030072 | AE131: 0 | AF131: 0.75 | AG131: 1.255936566 | AI131: 115.879997 | AJ131: 5.200005 | AP131: 124045200 | BB131: 3.069999 | BC131: 6.46511472 | BD131: 1.255936566 | BE131: FALSE | BF131: 0.75 | BG131: 1.255936566 | BI131: TRUE | BJ131: 5.200005 | BK131: 115.879997 | BL131: 121.080002 | BM131: 200.2030072 | BN131: 0 | BQ131: 120.790001 | BR131: 106.309998 | BS131: =IF(($A$8-$A131)<B$17,"",BQ131-BR131) -> 14.480003 | BT131: 1.761557328 | BU131: FALSE | BV131: 0.75 | BW131: 1.761557328 | BY131: TRUE | BZ131: 5.200005 | CA131: 115.879997 | CB131: 121.080002 | CC131: 200.2030072 | CD131: 0
A132: 100 | B132: =OFFSET(InputPriceData!B$15,CalculationsAndCharts!$A132+$A$11,0,1,1) -> 2016-04-25 | C132: =OFFSET(InputPriceData!G$15,CalculationsAndCharts!$A132+$A$11,IF($C$7,8,0),1,1) -> 220003200 | D132: =OFFSET(InputPriceData!C$15,CalculationsAndCharts!$A132+$A$11,IF($C$7,8,0),1,1) -> 109.870003 | E132: =OFFSET(InputPriceData!D$15,CalculationsAndCharts!$A132+$A$11,IF($C$7,8,0),1,1) -> 120.790001 | F132: =OFFSET(InputPriceData!E$15,CalculationsAndCharts!$A132+$A$11,IF($C$7,8,0),1,1) -> 106.309998 | G132: =OFFSET(InputPriceData!F$15,CalculationsAndCharts!$A132+$A$11,IF($C$7,8,0),1,1) -> 117.580002 | J132: 14.480003 | K132: 7.596819959 | L132: 6.75 | M132: 0 | N132: 2.660456077 | O132: 0.9937511551 | P132: 35.02065458 | Q132: 13.08114659 | R132: 21.93950799 | S132: 48.10180117 | T132: 45.61057477 | U132: 26.83047066 | V132: TRUE | W132: 30 | Y132: 26.83047066 | Z132: TRUE | AA132: 14.770004 | AB132: 106.309998 | AC132: 121.080002 | AD132: 106.309998 | AE132: 120.790001 | AF132: 0.75 | AG132: 1.579316834 | AP132: 220003200 | BB132: 14.480003 | BC132: 7.596819959 | BD132: 1.579316834 | BE132: FALSE | BF132: 0.75 | BG132: 1.579316834 | BI132: FALSE | BM132: 200.2030072 | BN132: 0 | BQ132: 120.790001 | BR132: 106.309998 | BS132: =IF(($A$8-$A132)<B$17,"",BQ132-BR132) -> 14.480003 | BT132: 1.150119746 | BU132: FALSE | BV132: 0.75 | BW132: 1.150119746 | BY132: FALSE | CC132: 200.2030072 | CD132: 0
A133: 101 | B133: =OFFSET(InputPriceData!B$15,CalculationsAndCharts!$A133+$A$11,0,1,1) -> 2016-04-18 | C133: =OFFSET(InputPriceData!G$15,CalculationsAndCharts!$A133+$A$11,IF($C$7,8,0),1,1) -> 131664500 | D133: =OFFSET(InputPriceData!C$15,CalculationsAndCharts!$A133+$A$11,IF($C$7,8,0),1,1) -> 109.739998 | E133: =OFFSET(InputPriceData!D$15,CalculationsAndCharts!$A133+$A$11,IF($C$7,8,0),1,1) -> 114.040001 | F133: =OFFSET(InputPriceData!E$15,CalculationsAndCharts!$A133+$A$11,IF($C$7,8,0),1,1) -> 109.010002 | G133: =OFFSET(InputPriceData!F$15,CalculationsAndCharts!$A133+$A$11,IF($C$7,8,0),1,1) -> 110.559998 | J133: 5.029999 | K133: 5.302425613 | L133: 1.389999 | M133: 0 | N133: 1.29727477 | O133: 1.32500154 | P133: 24.46568541 | Q133: 24.98859271 | R133: 0.5229073001 | S133: 49.45427812 | T133: 1.057355036 | U133: 20.57043596 | V133: TRUE | W133: 30 | Y133: 20.57043596 | Z133: TRUE | AA133: 14.480003 | AB133: 106.309998 | AC133: 120.790001 | AD133: 106.519997 | AE133: 116.989998 | AF133: 0.75 | AG133: 1.046478084 | AP133: 131664500 | BB133: 5.029999 | BC133: 5.302425613 | BD133: 1.046478084 | BE133: FALSE | BF133: 0.75 | BG133: 1.046478084 | BI133: FALSE | BM133: 200.2030072 | BN133: 0 | BQ133: 116.989998 | BR133: 106.519997 | BS133: =IF(($A$8-$A133)<B$17,"",BQ133-BR133) -> 10.470001 | BT133: 1.191126394 | BU133: FALSE | BV133: 0.75 | BW133: 1.191126394 | BY133: FALSE | CC133: 200.2030072 | CD133: 0
A134: 102 | B134: =OFFSET(InputPriceData!B$15,CalculationsAndCharts!$A134+$A$11,0,1,1) -> 2016-04-11 | C134: =OFFSET(InputPriceData!G$15,CalculationsAndCharts!$A134+$A$11,IF($C$7,8,0),1,1) -> 203519300 | D134: =OFFSET(InputPriceData!C$15,CalculationsAndCharts!$A134+$A$11,IF($C$7,8,0),1,1) -> 110.699997 | E134: =OFFSET(InputPriceData!D$15,CalculationsAndCharts!$A134+$A$11,IF($C$7,8,0),1,1) -> 112.650002 | F134: =OFFSET(InputPriceData!E$15,CalculationsAndCharts!$A134+$A$11,IF($C$7,8,0),1,1) -> 106.519997 | G134: =OFFSET(InputPriceData!F$15,CalculationsAndCharts!$A134+$A$11,IF($C$7,8,0),1,1) -> 109.639999 | J134: 6.130005 | K134: 5.393234483 | L134: 0 | M134: 3.380005 | N134: 1.266366693 | O134: 1.76666872 | P134: 23.48065334 | Q134: 32.75712795 | R134: 9.27647461 | S134: 56.23778128 | T134: 16.49509351 | U134: 27.07479626 | V134: TRUE | W134: 30 | Y134: 27.07479626 | Z134: TRUE | AA134: 14.480003 | AB134: 106.309998 | AC134: 120.790001 | AD134: 106.519997 | AE134: 116.989998 | AF134: 0.75 | AG134: 0.8935263634 | AQ134: 203519300 | BB134: 6.130005 | BC134: 5.393234483 | BD134: 0.8935263634 | BE134: FALSE | BF134: 0.75 | BG134: 0.8935263634 | BI134: FALSE | BM134: 200.2030072 | BN134: 0 | BQ134: 116.989998 | BR134: 106.519997 | BS134: =IF(($A$8-$A134)<B$17,"",BQ134-BR134) -> 10.470001 | BT134: 1.052260984 | BU134: FALSE | BV134: 0.75 | BW134: 1.052260984 | BY134: FALSE | CC134: 200.2030072 | CD134: 0
A135: 103 | B135: =OFFSET(InputPriceData!B$15,CalculationsAndCharts!$A135+$A$11,0,1,1) -> 2016-04-04 | C135: =OFFSET(InputPriceData!G$15,CalculationsAndCharts!$A135+$A$11,IF($C$7,8,0),1,1) -> 161185000 | D135: =OFFSET(InputPriceData!C$15,CalculationsAndCharts!$A135+$A$11,IF($C$7,8,0),1,1) -> 114.07 | E135: =OFFSET(InputPriceData!D$15,CalculationsAndCharts!$A135+$A$11,IF($C$7,8,0),1,1) -> 114.889999 | F135: =OFFSET(InputPriceData!E$15,CalculationsAndCharts!$A135+$A$11,IF($C$7,8,0),1,1) -> 109.900002 | G135: =OFFSET(InputPriceData!F$15,CalculationsAndCharts!$A135+$A$11,IF($C$7,8,0),1,1) -> 110.629997 | J135: 6.159996 | K135: 5.147644311 | L135: 0 | M135: 3.049995 | N135: 1.688488924 | O135: 1.22888996 | P135: 32.80119646 | Q135: 23.87286079 | R135: 8.928335673 | S135: 56.67405725 | T135: 15.75383184 | U135: 30.60136385 | V135: FALSE | W135: 30 | X135: 30.60136385 | Z135: TRUE | AA135: 14.480003 | AB135: 106.309998 | AC135: 120.790001 | AD135: 200.2030072 | AE135: 0 | AF135: 0.75 | AG135: 0.7636099 | AQ135: 161185000 | BB135: 6.159996 | BC135: 5.147644311 | BD135: 0.7636099 | BE135: FALSE | BF135: 0.75 | BG135: 0.7636099 | BI135: FALSE | BM135: 200.2030072 | BN135: 0 | BQ135: 116.989998 | BR135: 108.769997 | BS135: =IF(($A$8-$A135)<B$17,"",BQ135-BR135) -> 8.220001 | BT135: 0.7972839004 | BU135: FALSE | BV135: 0.75 | BW135: 0.7972839004 | BY135: FALSE | CC135: 200.2030072 | CD135: 0
A136: 104 | B136: =OFFSET(InputPriceData!B$15,CalculationsAndCharts!$A136+$A$11,0,1,1) -> 2016-03-28 | C136: =OFFSET(InputPriceData!G$15,CalculationsAndCharts!$A136+$A$11,IF($C$7,8,0),1,1) -> 130320800 | D136: =OFFSET(InputPriceData!C$15,CalculationsAndCharts!$A136+$A$11,IF($C$7,8,0),1,1) -> 113.32 | E136: =OFFSET(InputPriceData!D$15,CalculationsAndCharts!$A136+$A$11,IF($C$7,8,0),1,1) -> 116.989998 | F136: =OFFSET(InputPriceData!E$15,CalculationsAndCharts!$A136+$A$11,IF($C$7,8,0),1,1) -> 112.949997 | G136: =OFFSET(InputPriceData!F$15,CalculationsAndCharts!$A136+$A$11,IF($C$7,8,0),1,1) -> 116.059998 | J136: 4.040001 | K136: 4.810193748 | L136: 3.799996 | M136: 0 | N136: 2.251318565 | O136: 0.621854947 | P136: 46.80307453 | Q136: 12.92785654 | R136: 33.87521799 | S136: 59.73093106 | T136: 56.7130252 | U136: 35.55054119 | V136: FALSE | W136: 30 | X136: 35.55054119 | Z136: TRUE | AA136: 10.470001 | AB136: 106.519997 | AC136: 116.989998 | AD136: 200.2030072 | AE136: 0 | AF136: 0.75 | AH136: 0.6575857641 | AI136: 104.400002 | AJ136: 12.589996 | AP136: 130320800 | BB136: 4.040001 | BC136: 4.810193748 | BD136: 0.6575857641 | BE136: TRUE | BF136: 0.75 | BH136: 0.6575857641 | BI136: TRUE | BJ136: 12.589996 | BK136: 104.400002 | BL136: 116.989998 | BM136: 104.400002 | BN136: 116.989998 | BQ136: 116.989998 | BR136: 104.400002 | BS136: =IF(($A$8-$A136)<B$17,"",BQ136-BR136) -> 12.589996 | BT136: 0.9169696467 | BU136: FALSE | BV136: 0.75 | BW136: 0.9169696467 | BY136: FALSE | CC136: 200.2030072 | CD136: 0
A137: 105 | B137: =OFFSET(InputPriceData!B$15,CalculationsAndCharts!$A137+$A$11,0,1,1) -> 2016-03-21 | C137: =OFFSET(InputPriceData!G$15,CalculationsAndCharts!$A137+$A$11,IF($C$7,8,0),1,1) -> 73850200 | D137: =OFFSET(InputPriceData!C$15,CalculationsAndCharts!$A137+$A$11,IF($C$7,8,0),1,1) -> 111.660004 | E137: =OFFSET(InputPriceData!D$15,CalculationsAndCharts!$A137+$A$11,IF($C$7,8,0),1,1) -> 113.190002 | F137: =OFFSET(InputPriceData!E$15,CalculationsAndCharts!$A137+$A$11,IF($C$7,8,0),1,1) -> 111.029999 | G137: =OFFSET(InputPriceData!F$15,CalculationsAndCharts!$A137+$A$11,IF($C$7,8,0),1,1) -> 113.050003 | J137: 2.160003 | K137: 5.066924664 | L137: 0.5 | M137: 0 | N137: 1.735092753 | O137: 0.8291399293 | P137: 34.24350801 | Q137: 16.36377062 | R137: 17.87973739 | S137: 50.60727862 | T137: 35.33036725 | U137: 28.49637985 | V137: TRUE | W137: 30 | Y137: 28.49637985 | Z137: TRUE | AA137: 12.589996 | AB137: 104.400002 | AC137: 116.989998 | AD137: 104.400002 | AE137: 113.190002 | AF137: 0.75 | AH137: 0.5970519744 | AI137: 104.400002 | AJ137: 12.589996 | AP137: 73850200 | BB137: 2.160003 | BC137: 5.066924664 | BD137: 0.5970519744 | BE137: TRUE | BF137: 0.75 | BH137: 0.5970519744 | BI137: TRUE | BJ137: 12.589996 | BK137: 104.400002 | BL137: 116.989998 | BM137: 104.400002 | BN137: 113.190002 | BQ137: 113.190002 | BR137: 104.400002 | BS137: =IF(($A$8-$A137)<B$17,"",BQ137-BR137) -> 8.79 | BT137: 0.4232066294 | BU137: TRUE | BV137: 0.75 | BX137: 0.4232066294 | BY137: TRUE | BZ137: 8.79 | CA137: 104.400002 | CB137: 113.190002 | CC137: 104.400002 | CD137: 113.190002
A138: 106 | B138: =OFFSET(InputPriceData!B$15,CalculationsAndCharts!$A138+$A$11,0,1,1) -> 2016-03-14 | C138: =OFFSET(InputPriceData!G$15,CalculationsAndCharts!$A138+$A$11,IF($C$7,8,0),1,1) -> 120110800 | D138: =OFFSET(InputPriceData!C$15,CalculationsAndCharts!$A138+$A$11,IF($C$7,8,0),1,1) -> 109.279999 | E138: =OFFSET(InputPriceData!D$15,CalculationsAndCharts!$A138+$A$11,IF($C$7,8,0),1,1) -> 112.690002 | F138: =OFFSET(InputPriceData!E$15,CalculationsAndCharts!$A138+$A$11,IF($C$7,8,0),1,1) -> 108.769997 | G138: =OFFSET(InputPriceData!F$15,CalculationsAndCharts!$A138+$A$11,IF($C$7,8,0),1,1) -> 111.449997 | J138: 3.920005 | K138: 6.035898552 | L138: 3.270004 | M138: 0 | N138: 2.146790337 | O138: 1.105519906 | P138: 35.56703809 | Q138: 18.31574696 | R138: 17.25129113 | S138: 53.88278506 | T138: 32.01633159 | U138: 26.21838405 | V138: TRUE | W138: 30 | Y138: 26.21838405 | Z138: TRUE | AA138: 10.450004 | AB138: 102.739998 | AC138: 113.190002 | AD138: 102.739998 | AE138: 112.690002 | AF138: 0.75 | AH138: 0.6648370939 | AI138: 102.739998 | AJ138: 14.25 | AP138: 120110800 | BB138: 3.920005 | BC138: 6.035898552 | BD138: 0.6648370939 | BE138: TRUE | BF138: 0.75 | BH138: 0.6648370939 | BI138: TRUE | BJ138: 14.25 | BK138: 102.739998 | BL138: 116.989998 | BM138: 102.739998 | BN138: 112.690002 | BQ138: 112.690002 | BR138: 102.739998 | BS138: =IF(($A$8-$A138)<B$17,"",BQ138-BR138) -> 9.950004 | BT138: 0.4259420797 | BU138: TRUE | BV138: 0.75 | BX138: 0.4259420797 | BY138: TRUE | BZ138: 10.450004 | CA138: 102.739998 | CB138: 113.190002 | CC138: 102.739998 | CD138: 112.690002
A139: 107 | B139: =OFFSET(InputPriceData!B$15,CalculationsAndCharts!$A139+$A$11,0,1,1) -> 2016-03-07 | C139: =OFFSET(InputPriceData!G$15,CalculationsAndCharts!$A139+$A$11,IF($C$7,8,0),1,1) -> 123025000 | D139: =OFFSET(InputPriceData!C$15,CalculationsAndCharts!$A139+$A$11,IF($C$7,8,0),1,1) -> 108.07 | E139: =OFFSET(InputPriceData!D$15,CalculationsAndCharts!$A139+$A$11,IF($C$7,8,0),1,1) -> 109.419998 | F139: =OFFSET(InputPriceData!E$15,CalculationsAndCharts!$A139+$A$11,IF($C$7,8,0),1,1) -> 104.400002 | G139: =OFFSET(InputPriceData!F$15,CalculationsAndCharts!$A139+$A$11,IF($C$7,8,0),1,1) -> 109.410004 | J139: 5.019996 | K139: 6.741196403 | L139: 0 | M139: 2.349998 | N139: 1.772385783 | O139: 1.474026541 | P139: 26.29185796 | Q139: 21.86594861 | R139: 4.425909355 | S139: 48.15780657 | T139: 9.190429693 | U139: 24.28573488 | V139: TRUE | W139: 30 | Y139: 24.28573488 | Z139: TRUE | AA139: 12.950004 | AB139: 100.239998 | AC139: 113.190002 | AD139: 100.239998 | AE139: 110.550003 | AF139: 0.75 | AH139: 0.661873852 | AI139: 100.239998 | AJ139: 16.75 | AP139: 123025000 | BB139: 5.019996 | BC139: 6.741196403 | BD139: 0.661873852 | BE139: TRUE | BF139: 0.75 | BH139: 0.661873852 | BI139: TRUE | BJ139: 16.75 | BK139: 100.239998 | BL139: 116.989998 | BM139: 100.239998 | BN139: 110.550003 | BQ139: 110.550003 | BR139: 100.239998 | BS139: =IF(($A$8-$A139)<B$17,"",BQ139-BR139) -> 10.310005 | BT139: 0.3653439957 | BU139: TRUE | BV139: 0.75 | BX139: 0.3653439957 | BY139: TRUE | BZ139: 12.950004 | CA139: 100.239998 | CB139: 113.190002 | CC139: 100.239998 | CD139: 110.550003
A140: 108 | B140: =OFFSET(InputPriceData!B$15,CalculationsAndCharts!$A140+$A$11,0,1,1) -> 2016-02-29 | C140: =OFFSET(InputPriceData!G$15,CalculationsAndCharts!$A140+$A$11,IF($C$7,8,0),1,1) -> 131538900 | D140: =OFFSET(InputPriceData!C$15,CalculationsAndCharts!$A140+$A$11,IF($C$7,8,0),1,1) -> 107.599998 | E140: =OFFSET(InputPriceData!D$15,CalculationsAndCharts!$A140+$A$11,IF($C$7,8,0),1,1) -> 110.550003 | F140: =OFFSET(InputPriceData!E$15,CalculationsAndCharts!$A140+$A$11,IF($C$7,8,0),1,1) -> 106.75 | G140: =OFFSET(InputPriceData!F$15,CalculationsAndCharts!$A140+$A$11,IF($C$7,8,0),1,1) -> 108.389999 | J140: 3.800003 | K140: 7.314929871 | L140: 1.100006 | M140: 0 | N140: 2.363181044 | O140: 1.182036055 | P140: 32.30627068 | Q140: 16.15922607 | R140: 16.14704461 | S140: 48.46549675 | T140: 33.31657714 | U140: 29.31750327 | V140: TRUE | W140: 30 | Y140: 29.31750327 | Z140: TRUE | AA140: 16.370002 | AB140: 96.82 | AC140: 113.190002 | AD140: 96.82 | AE140: 110.550003 | AF140: 0.75 | AH140: 0.6762633106 | AI140: 96.82 | AJ140: 16.370002 | AP140: 131538900 | BB140: 3.800003 | BC140: 7.314929871 | BD140: 0.6762633106 | BE140: TRUE | BF140: 0.75 | BH140: 0.6762633106 | BI140: TRUE | BJ140: 16.370002 | BK140: 96.82 | BL140: 113.190002 | BM140: 96.82 | BN140: 110.550003 | BQ140: 110.550003 | BR140: 96.82 | BS140: =IF(($A$8-$A140)<B$17,"",BQ140-BR140) -> 13.730003 | BT140: 0.4865345998 | BU140: TRUE | BV140: 0.75 | BX140: 0.4865345998 | BY140: TRUE | BZ140: 16.370002 | CA140: 96.82 | CB140: 113.190002 | CC140: 96.82 | CD140: 110.550003
A141: 109 | B141: =OFFSET(InputPriceData!B$15,CalculationsAndCharts!$A141+$A$11,0,1,1) -> 2016-02-22 | C141: =OFFSET(InputPriceData!G$15,CalculationsAndCharts!$A141+$A$11,IF($C$7,8,0),1,1) -> 151923800 | D141: =OFFSET(InputPriceData!C$15,CalculationsAndCharts!$A141+$A$11,IF($C$7,8,0),1,1) -> 105.489998 | E141: =OFFSET(InputPriceData!D$15,CalculationsAndCharts!$A141+$A$11,IF($C$7,8,0),1,1) -> 109.449997 | F141: =OFFSET(InputPriceData!E$15,CalculationsAndCharts!$A141+$A$11,IF($C$7,8,0),1,1) -> 102.739998 | G141: =OFFSET(InputPriceData!F$15,CalculationsAndCharts!$A141+$A$11,IF($C$7,8,0),1,1) -> 107.919998 | J141: 6.709999 | K141: 8.486572161 | L141: 3.449997 | M141: 0 | N141: 2.784239392 | O141: 1.576048073 | P141: 32.8075852 | Q141: 18.57107962 | R141: 14.23650558 | S141: 51.37866482 | T141: 27.70898316 | U141: 27.98447864 | V141: TRUE | W141: 30 | Y141: 27.98447864 | Z141: TRUE | AA141: 20.769996 | AB141: 96.82 | AC141: 117.589996 | AD141: 96.82 | AE141: 117.589996 | AF141: 0.75 | AG141: 0.882279116 | AI141: 96.82 | AJ141: 15.870002 | AP141: 151923800 | BB141: 6.709999 | BC141: 8.486572161 | BD141: 0.882279116 | BE141: FALSE | BF141: 0.75 | BG141: 0.882279116 | BI141: TRUE | BJ141: 15.870002 | BK141: 96.82 | BL141: 112.690002 | BM141: 200.2030072 | BN141: 0 | BQ141: 117.589996 | BR141: 96.82 | BS141: =IF(($A$8-$A141)<B$17,"",BQ141-BR141) -> 20.769996 | BT141: 0.8849596163 | BU141: FALSE | BV141: 0.75 | BW141: 0.8849596163 | BY141: TRUE | BZ141: 15.870002 | CA141: 96.82 | CB141: 112.690002 | CC141: 200.2030072 | CD141: 0
A142: 110 | B142: =OFFSET(InputPriceData!B$15,CalculationsAndCharts!$A142+$A$11,0,1,1) -> 2016-02-15 | C142: =OFFSET(InputPriceData!G$15,CalculationsAndCharts!$A142+$A$11,IF($C$7,8,0),1,1) -> 151758600 | D142: =OFFSET(InputPriceData!C$15,CalculationsAndCharts!$A142+$A$11,IF($C$7,8,0),1,1) -> 103.800003 | E142: =OFFSET(InputPriceData!D$15,CalculationsAndCharts!$A142+$A$11,IF($C$7,8,0),1,1) -> 106 | F142: =OFFSET(InputPriceData!E$15,CalculationsAndCharts!$A142+$A$11,IF($C$7,8,0),1,1) -> 100.239998 | G142: =OFFSET(InputPriceData!F$15,CalculationsAndCharts!$A142+$A$11,IF($C$7,8,0),1,1) -> 104.57 | J142: 5.760002 | K142: 9.078763215 | L142: 0.889999 | M142: 0 | N142: 2.56232019 | O142: 2.10139743 | P142: 28.22322963 | Q142: 23.14629626 | R142: 5.076933371 | S142: 51.36952589 | T142: 9.883161822 | U142: 28.07631047 | V142: TRUE | W142: 30 | Y142: 28.07631047 | Z142: TRUE | AA142: 23.359993 | AB142: 94.230003 | AC142: 117.589996 | AD142: 94.230003 | AE142: 117.589996 | AF142: 0.75 | AG142: 1.371021808 | AI142: 96.82 | AJ142: 13.730003 | AP142: 151758600 | BB142: 5.760002 | BC142: 9.078763215 | BD142: 1.371021808 | BE142: FALSE | BF142: 0.75 | BG142: 1.371021808 | BI142: TRUE | BJ142: 13.730003 | BK142: 96.82 | BL142: 110.550003 | BM142: 200.2030072 | BN142: 0 | BQ142: 117.589996 | BR142: 94.230003 | BS142: =IF(($A$8-$A142)<B$17,"",BQ142-BR142) -> 23.359993 | BT142: 1.271638506 | BU142: FALSE | BV142: 0.75 | BW142: 1.271638506 | BY142: TRUE | BZ142: 13.730003 | CA142: 96.82 | CB142: 110.550003 | CC142: 200.2030072 | CD142: 0
A143: 111 | B143: =OFFSET(InputPriceData!B$15,CalculationsAndCharts!$A143+$A$11,0,1,1) -> 2016-02-08 | C143: =OFFSET(InputPriceData!G$15,CalculationsAndCharts!$A143+$A$11,IF($C$7,8,0),1,1) -> 258836600 | D143: =OFFSET(InputPriceData!C$15,CalculationsAndCharts!$A143+$A$11,IF($C$7,8,0),1,1) -> 100.410004 | E143: =OFFSET(InputPriceData!D$15,CalculationsAndCharts!$A143+$A$11,IF($C$7,8,0),1,1) -> 105.110001 | F143: =OFFSET(InputPriceData!E$15,CalculationsAndCharts!$A143+$A$11,IF($C$7,8,0),1,1) -> 96.82 | G143: =OFFSET(InputPriceData!F$15,CalculationsAndCharts!$A143+$A$11,IF($C$7,8,0),1,1) -> 102.010002 | J143: 8.290001 | K143: 10.18501695 | L143: 0 | M143: 6.36 | N143: 3.119760586 | O143: 2.801863241 | P143: 30.63088261 | Q143: 27.50965711 | R143: 3.121225495 | S143: 58.14053972 | T143: 5.368415067 | U143: 34.14069336 | V143: FALSE | W143: 30 | X143: 34.14069336 | Z143: TRUE | AA143: 23.359993 | AB143: 94.230003 | AC143: 117.589996 | AD143: 200.2030072 | AE143: 0 | AF143: 0.75 | AG143: 1.717773969 | AI143: 96.82 | AJ143: 13.730003 | AP143: 258836600 | BB143: 8.290001 | BC143: 10.18501695 | BD143: 1.717773969 | BE143: FALSE | BF143: 0.75 | BG143: 1.717773969 | BI143: TRUE | BJ143: 13.730003 | BK143: 96.82 | BL143: 110.550003 | BM143: 200.2030072 | BN143: 0 | BQ143: 117.589996 | BR143: 89.370003 | BS143: =IF(($A$8-$A143)<B$17,"",BQ143-BR143) -> 28.219993 | BT143: 1.845650174 | BU143: FALSE | BV143: 0.75 | BW143: 1.845650174 | BY143: TRUE | BZ143: 13.730003 | CA143: 96.82 | CB143: 110.550003 | CC143: 200.2030072 | CD143: 0
A144: 112 | B144: =OFFSET(InputPriceData!B$15,CalculationsAndCharts!$A144+$A$11,0,1,1) -> 2016-02-01 | C144: =OFFSET(InputPriceData!G$15,CalculationsAndCharts!$A144+$A$11,IF($C$7,8,0),1,1) -> 278373800 | D144: =OFFSET(InputPriceData!C$15,CalculationsAndCharts!$A144+$A$11,IF($C$7,8,0),1,1) -> 112.269997 | E144: =OFFSET(InputPriceData!D$15,CalculationsAndCharts!$A144+$A$11,IF($C$7,8,0),1,1) -> 117.589996 | F144: =OFFSET(InputPriceData!E$15,CalculationsAndCharts!$A144+$A$11,IF($C$7,8,0),1,1) -> 103.18 | G144: =OFFSET(InputPriceData!F$15,CalculationsAndCharts!$A144+$A$11,IF($C$7,8,0),1,1) -> 104.07 | J144: 14.409996 | K144: 10.81668894 | L144: 4.75 | M144: 0 | N144: 4.159680782 | O144: 1.615817654 | P144: 38.4561376 | Q144: 14.93819101 | R144: 23.5179466 | S144: 53.39432861 | T144: 44.04577641 | U144: 43.73145279 | V144: FALSE | W144: 30 | X144: 43.73145279 | Z144: TRUE | AA144: 23.359993 | AB144: 94.230003 | AC144: 117.589996 | AD144: 200.2030072 | AE144: 0 | AF144: 0.75 | AG144: 2.08189739 | AQ144: 278373800 | BB144: 14.409996 | BC144: 10.81668894 | BD144: 2.08189739 | BE144: FALSE | BF144: 0.75 | BG144: 2.08189739 | BI144: FALSE | BM144: 200.2030072 | BN144: 0 | BQ144: 117.589996 | BR144: 89.370003 | BS144: =IF(($A$8-$A144)<B$17,"",BQ144-BR144) -> 28.219993 | BT144: 2.632461788 | BU144: FALSE | BV144: 0.75 | BW144: 2.632461788 | BY144: FALSE | CC144: 200.2030072 | CD144: 0
A145: 113 | B145: =OFFSET(InputPriceData!B$15,CalculationsAndCharts!$A145+$A$11,0,1,1) -> 2016-01-25 | C145: =OFFSET(InputPriceData!G$15,CalculationsAndCharts!$A145+$A$11,IF($C$7,8,0),1,1) -> 288033600 | D145: =OFFSET(InputPriceData!C$15,CalculationsAndCharts!$A145+$A$11,IF($C$7,8,0),1,1) -> 98.720001 | E145: =OFFSET(InputPriceData!D$15,CalculationsAndCharts!$A145+$A$11,IF($C$7,8,0),1,1) -> 112.839996 | F145: =OFFSET(InputPriceData!E$15,CalculationsAndCharts!$A145+$A$11,IF($C$7,8,0),1,1) -> 94.230003 | G145: =OFFSET(InputPriceData!F$15,CalculationsAndCharts!$A145+$A$11,IF($C$7,8,0),1,1) -> 112.209999 | J145: 18.609993 | K145: 9.618919917 | L145: 14.769996 | M145: 0 | N145: 3.962907709 | O145: 2.154423539 | P145: 41.19909245 | Q145: 22.39776979 | R145: 18.80132266 | S145: 63.59686224 | T145: 29.56328662 | U145: 43.62667824 | V145: FALSE | W145: 30 | X145: 43.62667824 | Z145: TRUE | AA145: 23.359993 | AB145: 94.230003 | AC145: 117.589996 | AD145: 200.2030072 | AE145: 0 | AF145: 0.75 | AG145: 2.194036297 | AP145: 288033600 | BB145: 18.609993 | BC145: 9.618919917 | BD145: 2.194036297 | BE145: FALSE | BF145: 0.75 | BG145: 2.194036297 | BI145: FALSE | BM145: 200.2030072 | BN145: 0 | BQ145: 112.839996 | BR145: 89.370003 | BS145: =IF(($A$8-$A145)<B$17,"",BQ145-BR145) -> 23.469993 | BT145: 3.731317849 | BU145: FALSE | BV145: 0.75 | BW145: 3.731317849 | BY145: FALSE | CC145: 200.2030072 | CD145: 0
A146: 114 | B146: =OFFSET(InputPriceData!B$15,CalculationsAndCharts!$A146+$A$11,0,1,1) -> 2016-01-18 | C146: =OFFSET(InputPriceData!G$15,CalculationsAndCharts!$A146+$A$11,IF($C$7,8,0),1,1) -> 151064000 | D146: =OFFSET(InputPriceData!C$15,CalculationsAndCharts!$A146+$A$11,IF($C$7,8,0),1,1) -> 96.529999 | E146: =OFFSET(InputPriceData!D$15,CalculationsAndCharts!$A146+$A$11,IF($C$7,8,0),1,1) -> 98.07 | F146: =OFFSET(InputPriceData!E$15,CalculationsAndCharts!$A146+$A$11,IF($C$7,8,0),1,1) -> 89.370003 | G146: =OFFSET(InputPriceData!F$15,CalculationsAndCharts!$A146+$A$11,IF($C$7,8,0),1,1) -> 97.940002 | J146: 8.699997 | K146: 6.621895555 | L146: 0 | M146: 3.079994 | N146: 0.3605449455 | O146: 2.872564719 | P146: 5.444739237 | Q146: 43.37979502 | R146: 37.93505579 | S146: 48.82453426 | T146: 77.69670794 | U146: 48.31447545 | V146: FALSE | W146: 30 | X146: 48.31447545 | Z146: FALSE | AD146: 200.2030072 | AE146: 0 | AF146: 0.75 | AG146: 1.386640785 | AP146: =IF(G146>=D146,C146,NA()) -> 151064000 | AQ146: =IF(G146<D146,C146,NA()) ->  | BB146: 8.699997 | BC146: 6.621895555 | BD146: 1.386640785 | BE146: FALSE | BF146: 0.75 | BG146: 1.386640785 | BI146: FALSE | BM146: 200.2030072 | BN146: 0 | BQ146: 107.739998 | BR146: 89.370003 | BS146: =IF(($A$8-$A146)<B$17,"",BQ146-BR146) -> 18.369995 | BT146: 2.843652917 | BU146: FALSE | BV146: 0.75 | BW146: 2.843652917 | BY146: FALSE | CC146: 200.2030072 | CD146: 0
A147: 115 | B147: =OFFSET(InputPriceData!B$15,CalculationsAndCharts!$A147+$A$11,0,1,1) -> 2016-01-11 | C147: =OFFSET(InputPriceData!G$15,CalculationsAndCharts!$A147+$A$11,IF($C$7,8,0),1,1) -> 186470500 | D147: =OFFSET(InputPriceData!C$15,CalculationsAndCharts!$A147+$A$11,IF($C$7,8,0),1,1) -> 97.910004 | E147: =OFFSET(InputPriceData!D$15,CalculationsAndCharts!$A147+$A$11,IF($C$7,8,0),1,1) -> 100.580002 | F147: =OFFSET(InputPriceData!E$15,CalculationsAndCharts!$A147+$A$11,IF($C$7,8,0),1,1) -> 92.449997 | G147: =OFFSET(InputPriceData!F$15,CalculationsAndCharts!$A147+$A$11,IF($C$7,8,0),1,1) -> 94.970001 | J147: 8.130005 | K147: 5.929195074 | L147: 0 | M147: 4.580002 | N147: 0.480726594 | O147: 2.803421625 | P147: 8.107788461 | Q147: 47.28165611 | R147: 39.17386765 | S147: 55.38944457 | T147: 70.72442764 | U147: 38.52039796 | V147: FALSE | W147: 30 | X147: 38.52039796 | Z147: FALSE | AD147: 200.2030072 | AE147: 0 | AF147: 0.75 | AG147: 1.072059527 | AQ147: 186470500 | BB147: 8.130005 | BC147: 5.929195074 | BD147: 1.072059527 | BE147: FALSE | BF147: 0.75 | BG147: 1.072059527 | BI147: FALSE | BM147: 200.2030072 | BN147: 0 | BQ147: 107.739998 | BR147: 92.449997 | BS147: =IF(($A$8-$A147)<B$17,"",BQ147-BR147) -> 15.290001 | BT147: 2.366873586 | BU147: FALSE | BV147: 0.75 | BW147: 2.366873586 | BY147: FALSE | CC147: 200.2030072 | CD147: 0
A148: 116 | B148: =OFFSET(InputPriceData!B$15,CalculationsAndCharts!$A148+$A$11,0,1,1) -> 2016-01-04 | C148: =OFFSET(InputPriceData!G$15,CalculationsAndCharts!$A148+$A$11,IF($C$7,8,0),1,1) -> 166842000 | D148: =OFFSET(InputPriceData!C$15,CalculationsAndCharts!$A148+$A$11,IF($C$7,8,0),1,1) -> 101.949997 | E148: =OFFSET(InputPriceData!D$15,CalculationsAndCharts!$A148+$A$11,IF($C$7,8,0),1,1) -> 103.769997 | F148: =OFFSET(InputPriceData!E$15,CalculationsAndCharts!$A148+$A$11,IF($C$7,8,0),1,1) -> 97.029999 | G148: =OFFSET(InputPriceData!F$15,CalculationsAndCharts!$A148+$A$11,IF($C$7,8,0),1,1) -> 97.330002 | J148: 7.630005 | K148: 5.195591765 | L148: 0 | M148: 7.5 | N148: 0.640968792 | O148: 2.211228166 | P148: 12.33678128 | Q148: 42.55969803 | R148: 30.22291676 | S148: 54.89647931 | T148: 55.05438079 | U148: 27.7857214 | V148: TRUE | W148: 30 | Y148: 27.7857214 | Z148: TRUE | AA148: 10.720001 | AB148: 97.029999 | AC148: 107.75 | AD148: 97.029999 | AE148: 107.75 | AF148: 0.75 | AG148: 0.9844714723 | AQ148: 166842000 | BB148: 7.630005 | BC148: 5.195591765 | BD148: 0.9844714723 | BE148: FALSE | BF148: 0.75 | BG148: 0.9844714723 | BI148: FALSE | BM148: 200.2030072 | BN148: 0 | BQ148: 107.75 | BR148: 97.029999 | BS148: =IF(($A$8-$A148)<B$17,"",BQ148-BR148) -> 10.720001 | BT148: 1.438926888 | BU148: FALSE | BV148: 0.75 | BW148: 1.438926888 | BY148: FALSE | CC148: 200.2030072 | CD148: 0
A149: 117 | B149: =OFFSET(InputPriceData!B$15,CalculationsAndCharts!$A149+$A$11,0,1,1) -> 2015-12-28 | C149: =OFFSET(InputPriceData!G$15,CalculationsAndCharts!$A149+$A$11,IF($C$7,8,0),1,1) -> 61717200 | D149: =OFFSET(InputPriceData!C$15,CalculationsAndCharts!$A149+$A$11,IF($C$7,8,0),1,1) -> 105.019997 | E149: =OFFSET(InputPriceData!D$15,CalculationsAndCharts!$A149+$A$11,IF($C$7,8,0),1,1) -> 107.739998 | F149: =OFFSET(InputPriceData!E$15,CalculationsAndCharts!$A149+$A$11,IF($C$7,8,0),1,1) -> 104.529999 | G149: =OFFSET(InputPriceData!F$15,CalculationsAndCharts!$A149+$A$11,IF($C$7,8,0),1,1) -> 104.660004 | J149: 3.209999 | K149: 4.384120687 | L149: 1.629997 | M149: 0 | N149: 0.854625056 | O149: 0.4483042217 | P149: 19.49364803 | Q149: 10.22563596 | R149: 9.268012068 | S149: 29.719284 | T149: 31.18517953 | U149: 18.69616826 | V149: TRUE | W149: 30 | Y149: 18.69616826 | Z149: TRUE | AA149: 10.720001 | AB149: 97.029999 | AC149: 107.75 | AD149: 101.459999 | AE149: 107.75 | AF149: 0.75 | AG149: 0.81640084 | AQ149: 61717200 | BB149: 3.209999 | BC149: 4.384120687 | BD149: 0.81640084 | BE149: FALSE | BF149: 0.75 | BG149: 0.81640084 | BI149: FALSE | BM149: 200.2030072 | BN149: 0 | BQ149: 107.75 | BR149: 101.459999 | BS149: =IF(($A$8-$A149)<B$17,"",BQ149-BR149) -> 6.290001 | BT149: 0.6691489002 | BU149: TRUE | BV149: 0.75 | BX149: 0.6691489002 | BY149: TRUE | BZ149: 6.290001 | CA149: 101.459999 | CB149: 107.75 | CC149: 101.459999 | CD149: 107.75
A150: 118 | B150: =OFFSET(InputPriceData!B$15,CalculationsAndCharts!$A150+$A$11,0,1,1) -> 2015-12-21 | C150: =OFFSET(InputPriceData!G$15,CalculationsAndCharts!$A150+$A$11,IF($C$7,8,0),1,1) -> 56671200 | D150: =OFFSET(InputPriceData!C$15,CalculationsAndCharts!$A150+$A$11,IF($C$7,8,0),1,1) -> 104.910004 | E150: =OFFSET(InputPriceData!D$15,CalculationsAndCharts!$A150+$A$11,IF($C$7,8,0),1,1) -> 106.110001 | F150: =OFFSET(InputPriceData!E$15,CalculationsAndCharts!$A150+$A$11,IF($C$7,8,0),1,1) -> 103.599998 | G150: =OFFSET(InputPriceData!F$15,CalculationsAndCharts!$A150+$A$11,IF($C$7,8,0),1,1) -> 105.019997 | J150: 2.510003 | K150: 4.775494582 | L150: 0 | M150: 0 | N150: 0.5961677414 | O150: 0.5977389622 | P150: 12.48389525 | Q150: 12.51679699 | R150: 0.03290174141 | S150: 25.00069224 | T150: 0.1316033216 | U150: 14.53316451 | V150: TRUE | W150: 30 | Y150: 14.53316451 | Z150: TRUE | AA150: 10.889999 | AB150: 97.029999 | AC150: 107.919998 | AD150: 101.459999 | AE150: 107.919998 | AF150: 0.75 | AG150: 0.8472077926 | AP150: 56671200 | BB150: 2.510003 | BC150: 4.775494582 | BD150: 0.8472077926 | BE150: FALSE | BF150: 0.75 | BG150: 0.8472077926 | BI150: FALSE | BM150: 200.2030072 | BN150: 0 | BQ150: 107.919998 | BR150: 101.459999 | BS150: =IF(($A$8-$A150)<B$17,"",BQ150-BR150) -> 6.459999 | BT150: 0.6345774426 | BU150: TRUE | BV150: 0.75 | BX150: 0.6345774426 | BY150: TRUE | BZ150: 6.459999 | CA150: 101.459999 | CB150: 107.919998 | CC150: 101.459999 | CD150: 107.919998
A151: 119 | B151: =OFFSET(InputPriceData!B$15,CalculationsAndCharts!$A151+$A$11,0,1,1) -> 2015-12-14 | C151: =OFFSET(InputPriceData!G$15,CalculationsAndCharts!$A151+$A$11,IF($C$7,8,0),1,1) -> 126762800 | D151: =OFFSET(InputPriceData!C$15,CalculationsAndCharts!$A151+$A$11,IF($C$7,8,0),1,1) -> 102.290001 | E151: =OFFSET(InputPriceData!D$15,CalculationsAndCharts!$A151+$A$11,IF($C$7,8,0),1,1) -> 107.75 | F151: =OFFSET(InputPriceData!E$15,CalculationsAndCharts!$A151+$A$11,IF($C$7,8,0),1,1) -> 101.459999 | G151: =OFFSET(InputPriceData!F$15,CalculationsAndCharts!$A151+$A$11,IF($C$7,8,0),1,1) -> 104.040001 | J151: 6.290001 | K151: 5.530658443 | L151: 0.839996 | M151: 0 | N151: 0.7948903218 | O151: 0.796985283 | P151: 14.37243558 | Q151: 14.41031463 | R151: 0.03787905533 | S151: 28.78275021 | T151: 0.1316033216 | U151: 19.33368491 | V151: TRUE | W151: 30 | Y151: 19.33368491 | Z151: TRUE | AA151: 10.889999 | AB151: 97.029999 | AC151: 107.919998 | AD151: 101.459999 | AE151: 107.919998 | AF151: 0.75 | AG151: 0.8523138079 | AP151: 126762800 | BB151: 6.290001 | BC151: 5.530658443 | BD151: 0.8523138079 | BE151: FALSE | BF151: 0.75 | BG151: 0.8523138079 | BI151: FALSE | BM151: 200.2030072 | BN151: 0 | BQ151: 107.919998 | BR151: 101.459999 | BS151: =IF(($A$8-$A151)<B$17,"",BQ151-BR151) -> 6.459999 | BT151: 0.6345774426 | BU151: TRUE | BV151: 0.75 | BX151: 0.6345774426 | BY151: TRUE | BZ151: 6.459999 | CA151: 101.459999 | CB151: 107.919998 | CC151: 101.459999 | CD151: 107.919998
A152: 120 | B152: =OFFSET(InputPriceData!B$15,CalculationsAndCharts!$A152+$A$11,0,1,1) -> 2015-12-07 | C152: =OFFSET(InputPriceData!G$15,CalculationsAndCharts!$A152+$A$11,IF($C$7,8,0),1,1) -> 103236200 | D152: =OFFSET(InputPriceData!C$15,CalculationsAndCharts!$A152+$A$11,IF($C$7,8,0),1,1) -> 106.480003 | E152: =OFFSET(InputPriceData!D$15,CalculationsAndCharts!$A152+$A$11,IF($C$7,8,0),1,1) -> 106.910004 | F152: =OFFSET(InputPriceData!E$15,CalculationsAndCharts!$A152+$A$11,IF($C$7,8,0),1,1) -> 101.910004 | G152: =OFFSET(InputPriceData!F$15,CalculationsAndCharts!$A152+$A$11,IF($C$7,8,0),1,1) -> 102.120003 | J152: 5 | K152: 5.277544257 | L152: 0 | M152: 1.439994 | N152: 0.7798550958 | O152: 1.062647044 | P152: 14.77685563 | Q152: 20.13525595 | R152: 5.358400317 | S152: 34.91211158 | T152: 15.34825616 | U152: 25.73437877 | V152: TRUE | W152: 30 | Y152: 25.73437877 | Z152: TRUE | AA152: 7.449997 | AB152: 100.470001 | AC152: 107.919998 | AD152: 100.470001 | AE152: 107.919998 | AF152: 0.75 | AG152: 0.8536963669 | AQ152: 103236200 | BB152: 5 | BC152: 5.277544257 | BD152: 0.8536963669 | BE152: FALSE | BF152: 0.75 | BG152: 0.8536963669 | BI152: FALSE | BM152: 200.2030072 | BN152: 0 | BQ152: 107.919998 | BR152: 100.470001 | BS152: =IF(($A$8-$A152)<B$17,"",BQ152-BR152) -> 7.449997 | BT152: 0.5253876216 | BU152: TRUE | BV152: 0.75 | BX152: 0.5253876216 | BY152: TRUE | BZ152: 7.449997 | CA152: 100.470001 | CB152: 107.919998 | CC152: 100.470001 | CD152: 107.919998
A153: 121 | B153: =OFFSET(InputPriceData!B$15,CalculationsAndCharts!$A153+$A$11,0,1,1) -> 2015-11-30 | C153: =OFFSET(InputPriceData!G$15,CalculationsAndCharts!$A153+$A$11,IF($C$7,8,0),1,1) -> 112055400 | D153: =OFFSET(InputPriceData!C$15,CalculationsAndCharts!$A153+$A$11,IF($C$7,8,0),1,1) -> 105.839996 | E153: =OFFSET(InputPriceData!D$15,CalculationsAndCharts!$A153+$A$11,IF($C$7,8,0),1,1) -> 107.919998 | F153: =OFFSET(InputPriceData!E$15,CalculationsAndCharts!$A153+$A$11,IF($C$7,8,0),1,1) -> 103.349998 | G153: =OFFSET(InputPriceData!F$15,CalculationsAndCharts!$A153+$A$11,IF($C$7,8,0),1,1) -> 106.18 | J153: 4.57 | K153: 5.37005901 | L153: 0 | M153: 1.040001 | N153: 1.039806794 | O153: 0.9368647253 | P153: 19.36304224 | Q153: 17.44607878 | R153: 1.91696346 | S153: 36.80912102 | T153: 5.207849054 | U153: 29.19641964 | V153: TRUE | W153: 30 | Y153: 29.19641964 | Z153: TRUE | AA153: 9.400002 | AB153: 100.470001 | AC153: 109.870003 | AD153: 100.470001 | AE153: 109.870003 | AF153: 0.75 | AG153: 0.8620614772 | AP153: 112055400 | BB153: 4.57 | BC153: 5.37005901 | BD153: 0.8620614772 | BE153: FALSE | BF153: 0.75 | BG153: 0.8620614772 | BI153: FALSE | BM153: 200.2030072 | BN153: 0 | BQ153: 109.870003 | BR153: 100.470001 | BS153: =IF(($A$8-$A153)<B$17,"",BQ153-BR153) -> 9.400002 | BT153: 0.5228031095 | BU153: TRUE | BV153: 0.75 | BX153: 0.5228031095 | BY153: TRUE | BZ153: 9.400002 | CA153: 100.470001 | CB153: 109.870003 | CC153: 100.470001 | CD153: 109.870003
A154: 122 | B154: =OFFSET(InputPriceData!B$15,CalculationsAndCharts!$A154+$A$11,0,1,1) -> 2015-11-23 | C154: =OFFSET(InputPriceData!G$15,CalculationsAndCharts!$A154+$A$11,IF($C$7,8,0),1,1) -> 64538400 | D154: =OFFSET(InputPriceData!C$15,CalculationsAndCharts!$A154+$A$11,IF($C$7,8,0),1,1) -> 107.190002 | E154: =OFFSET(InputPriceData!D$15,CalculationsAndCharts!$A154+$A$11,IF($C$7,8,0),1,1) -> 107.470001 | F154: =OFFSET(InputPriceData!E$15,CalculationsAndCharts!$A154+$A$11,IF($C$7,8,0),1,1) -> 104.389999 | G154: =OFFSET(InputPriceData!F$15,CalculationsAndCharts!$A154+$A$11,IF($C$7,8,0),1,1) -> 105.449997 | J154: 3.080002 | K154: 5.636745347 | L154: 0 | M154: 0 | N154: 1.386409059 | O154: 0.9024859671 | P154: 24.59591438 | Q154: 16.01076351 | R154: 8.585150868 | S154: 40.60667789 | T154: 21.14221432 | U154: 37.19260983 | V154: FALSE | W154: 30 | X154: 37.19260983 | Z154: TRUE | AA154: 9.400002 | AB154: 100.470001 | AC154: 109.870003 | AD154: 200.2030072 | AE154: 0 | AF154: 0.75 | AG154: 1.0947058 | AQ154: 64538400 | BB154: 3.080002 | BC154: 5.636745347 | BD154: 1.0947058 | BE154: FALSE | BF154: 0.75 | BG154: 1.0947058 | BI154: FALSE | BM154: 200.2030072 | BN154: 0 | BQ154: 110.650002 | BR154: 100.470001 | BS154: =IF(($A$8-$A154)<B$17,"",BQ154-BR154) -> 10.180001 | BT154: 0.6948805195 | BU154: TRUE | BV154: 0.75 | BX154: 0.6948805195 | BY154: TRUE | BZ154: 10.180001 | CA154: 100.470001 | CB154: 110.650002 | CC154: 100.470001 | CD154: 110.650002
A155: 123 | B155: =OFFSET(InputPriceData!B$15,CalculationsAndCharts!$A155+$A$11,0,1,1) -> 2015-11-16 | C155: =OFFSET(InputPriceData!G$15,CalculationsAndCharts!$A155+$A$11,IF($C$7,8,0),1,1) -> 147603100 | D155: =OFFSET(InputPriceData!C$15,CalculationsAndCharts!$A155+$A$11,IF($C$7,8,0),1,1) -> 103.32 | E155: =OFFSET(InputPriceData!D$15,CalculationsAndCharts!$A155+$A$11,IF($C$7,8,0),1,1) -> 107.879997 | F155: =OFFSET(InputPriceData!E$15,CalculationsAndCharts!$A155+$A$11,IF($C$7,8,0),1,1) -> 100.470001 | G155: =OFFSET(InputPriceData!F$15,CalculationsAndCharts!$A155+$A$11,IF($C$7,8,0),1,1) -> 107.32 | J155: 7.409996 | K155: 6.488993129 | L155: 0 | M155: 3.360001 | N155: 1.848545412 | O155: 1.203314623 | P155: 28.48739975 | Q155: 18.5439343 | R155: 9.943465443 | S155: 47.03133405 | T155: 21.14221432 | U155: 42.54274167 | V155: FALSE | W155: 30 | X155: 42.54274167 | Z155: TRUE | AA155: 9.400002 | AB155: 100.470001 | AC155: 109.870003 | AD155: 200.2030072 | AE155: 0 | AF155: 0.75 | AG155: 1.143341945 | AP155: 147603100 | BB155: 7.409996 | BC155: 6.488993129 | BD155: 1.143341945 | BE155: FALSE | BF155: 0.75 | BG155: 1.143341945 | BI155: FALSE | BM155: 200.2030072 | BN155: 0 | BQ155: 110.650002 | BR155: 100.470001 | BS155: =IF(($A$8-$A155)<B$17,"",BQ155-BR155) -> 10.180001 | BT155: 0.5942792051 | BU155: TRUE | BV155: 0.75 | BX155: 0.5942792051 | BY155: TRUE | BZ155: 10.180001 | CA155: 100.470001 | CB155: 110.650002 | CC155: 100.470001 | CD155: 110.650002
A156: 124 | B156: =OFFSET(InputPriceData!B$15,CalculationsAndCharts!$A156+$A$11,0,1,1) -> 2015-11-09 | C156: =OFFSET(InputPriceData!G$15,CalculationsAndCharts!$A156+$A$11,IF($C$7,8,0),1,1) -> 127675400 | D156: =OFFSET(InputPriceData!C$15,CalculationsAndCharts!$A156+$A$11,IF($C$7,8,0),1,1) -> 107 | E156: =OFFSET(InputPriceData!D$15,CalculationsAndCharts!$A156+$A$11,IF($C$7,8,0),1,1) -> 109.870003 | F156: =OFFSET(InputPriceData!E$15,CalculationsAndCharts!$A156+$A$11,IF($C$7,8,0),1,1) -> 103.830002 | G156: =OFFSET(InputPriceData!F$15,CalculationsAndCharts!$A156+$A$11,IF($C$7,8,0),1,1) -> 103.949997 | J156: 6.040001 | K156: 6.181992172 | L156: 0 | M156: 0 | N156: 2.464727216 | O156: 0.4844191637 | P156: 39.86946518 | Q156: 7.835971807 | R156: 32.03349337 | S156: 47.70543698 | T156: 67.1485168 | U156: 49.67625079 | V156: FALSE | W156: 30 | X156: 49.67625079 | Z156: TRUE | AA156: 9.400002 | AB156: 100.470001 | AC156: 109.870003 | AD156: 200.2030072 | AE156: 0 | AF156: 0.75 | AG156: 1.1362669 | AQ156: 127675400 | BB156: 6.040001 | BC156: 6.181992172 | BD156: 1.1362669 | BE156: FALSE | BF156: 0.75 | BG156: 1.1362669 | BI156: FALSE | BM156: 200.2030072 | BN156: 0 | BQ156: 110.650002 | BR156: 96.470001 | BS156: =IF(($A$8-$A156)<B$17,"",BQ156-BR156) -> 14.180001 | BT156: 1.194608844 | BU156: FALSE | BV156: 0.75 | BW156: 1.194608844 | BY156: TRUE | BZ156: 10.180001 | CA156: 100.470001 | CB156: 110.650002 | CC156: 200.2030072 | CD156: 0
A157: 125 | B157: =OFFSET(InputPriceData!B$15,CalculationsAndCharts!$A157+$A$11,0,1,1) -> 2015-11-02 | C157: =OFFSET(InputPriceData!G$15,CalculationsAndCharts!$A157+$A$11,IF($C$7,8,0),1,1) -> 182169800 | D157: =OFFSET(InputPriceData!C$15,CalculationsAndCharts!$A157+$A$11,IF($C$7,8,0),1,1) -> 101.720001 | E157: =OFFSET(InputPriceData!D$15,CalculationsAndCharts!$A157+$A$11,IF($C$7,8,0),1,1) -> 110.650002 | F157: =OFFSET(InputPriceData!E$15,CalculationsAndCharts!$A157+$A$11,IF($C$7,8,0),1,1) -> 101.18 | G157: =OFFSET(InputPriceData!F$15,CalculationsAndCharts!$A157+$A$11,IF($C$7,8,0),1,1) -> 107.099998 | J157: 9.470002 | K157: 6.229322562 | L157: 5.529999 | M157: 0 | N157: 3.286302955 | O157: 0.6458922183 | P157: 52.75538266 | Q157: 10.3685788 | R157: 42.38680387 | S157: 63.12396146 | T157: 67.1485168 | U157: 43.85216211 | V157: FALSE | W157: 30 | X157: 43.85216211 | Z157: FALSE | AD157: 200.2030072 | AE157: 0 | AF157: 0.75 | AG157: 1.109574247 | AP157: 182169800 | BB157: 9.470002 | BC157: 6.229322562 | BD157: 1.109574247 | BE157: FALSE | BF157: 0.75 | BG157: 1.109574247 | BI157: FALSE | BM157: 200.2030072 | BN157: 0 | BQ157: 110.650002 | BR157: 92.669998 | BS157: =IF(($A$8-$A157)<B$17,"",BQ157-BR157) -> 17.980004 | BT157: 1.669453018 | BU157: FALSE | BV157: 0.75 | BW157: 1.669453018 | BY157: TRUE | BZ157: 10.180001 | CA157: 100.470001 | CB157: 110.650002 | CC157: 200.2030072 | CD157: 0
A158: 126 | B158: =OFFSET(InputPriceData!B$15,CalculationsAndCharts!$A158+$A$11,0,1,1) -> 2015-10-26 | C158: =OFFSET(InputPriceData!G$15,CalculationsAndCharts!$A158+$A$11,IF($C$7,8,0),1,1) -> 127425200 | D158: =OFFSET(InputPriceData!C$15,CalculationsAndCharts!$A158+$A$11,IF($C$7,8,0),1,1) -> 102.199997 | E158: =OFFSET(InputPriceData!D$15,CalculationsAndCharts!$A158+$A$11,IF($C$7,8,0),1,1) -> 105.120003 | F158: =OFFSET(InputPriceData!E$15,CalculationsAndCharts!$A158+$A$11,IF($C$7,8,0),1,1) -> 101.550003 | G158: =OFFSET(InputPriceData!F$15,CalculationsAndCharts!$A158+$A$11,IF($C$7,8,0),1,1) -> 101.970001 | J158: 3.57 | K158: 5.149096083 | L158: 2.270005 | M158: 0 | N158: 2.538404273 | O158: 0.8611896244 | P158: 49.29805605 | Q158: 16.72506418 | R158: 32.57299188 | S158: 66.02312023 | T158: 49.33573537 | U158: 36.08671055 | V158: FALSE | W158: 30 | X158: 36.08671055 | Z158: FALSE | AD158: 200.2030072 | AE158: 0 | AF158: 0.75 | AG158: 0.8279786312 | AQ158: 127425200 | BB158: 3.57 | BC158: 5.149096083 | BD158: 0.8279786312 | BE158: FALSE | BF158: 0.75 | BG158: 0.8279786312 | BI158: FALSE | BM158: 200.2030072 | BN158: 0 | BQ158: 105.120003 | BR158: 90.470001 | BS158: =IF(($A$8-$A158)<B$17,"",BQ158-BR158) -> 14.650002 | BT158: 1.360260546 | BU158: FALSE | BV158: 0.75 | BW158: 1.360260546 | BY158: TRUE | BZ158: 10.180001 | CA158: 100.470001 | CB158: 110.650002 | CC158: 200.2030072 | CD158: 0
A159: 127 | B159: =OFFSET(InputPriceData!B$15,CalculationsAndCharts!$A159+$A$11,0,1,1) -> 2015-10-19 | C159: =OFFSET(InputPriceData!G$15,CalculationsAndCharts!$A159+$A$11,IF($C$7,8,0),1,1) -> 145550000 | D159: =OFFSET(InputPriceData!C$15,CalculationsAndCharts!$A159+$A$11,IF($C$7,8,0),1,1) -> 97.18 | E159: =OFFSET(InputPriceData!D$15,CalculationsAndCharts!$A159+$A$11,IF($C$7,8,0),1,1) -> 102.849998 | F159: =OFFSET(InputPriceData!E$15,CalculationsAndCharts!$A159+$A$11,IF($C$7,8,0),1,1) -> 96.470001 | G159: =OFFSET(InputPriceData!F$15,CalculationsAndCharts!$A159+$A$11,IF($C$7,8,0),1,1) -> 102.190002 | J159: 6.379997 | K159: 5.675461444 | L159: 5.260002 | M159: 0 | N159: 2.627870698 | O159: 1.148252832 | P159: 46.30232667 | Q159: 20.231885 | R159: 26.07044167 | S159: 66.53421166 | T159: 39.18351329 | U159: 31.67036894 | V159: FALSE | W159: 30 | X159: 31.67036894 | Z159: FALSE | AD159: 200.2030072 | AE159: 0 | AF159: 0.75 | AG159: 0.9551697472 | AP159: 145550000 | BB159: 6.379997 | BC159: 5.675461444 | BD159: 0.9551697472 | BE159: FALSE | BF159: 0.75 | BG159: 0.9551697472 | BI159: FALSE | BM159: 200.2030072 | BN159: 0 | BQ159: 102.849998 | BR159: 85.720001 | BS159: =IF(($A$8-$A159)<B$17,"",BQ159-BR159) -> 17.129997 | BT159: 1.714714758 | BU159: FALSE | BV159: 0.75 | BW159: 1.714714758 | BY159: FALSE | CC159: 200.2030072 | CD159: 0
A160: 128 | B160: =OFFSET(InputPriceData!B$15,CalculationsAndCharts!$A160+$A$11,0,1,1) -> 2015-10-12 | C160: =OFFSET(InputPriceData!G$15,CalculationsAndCharts!$A160+$A$11,IF($C$7,8,0),1,1) -> 110153700 | D160: =OFFSET(InputPriceData!C$15,CalculationsAndCharts!$A160+$A$11,IF($C$7,8,0),1,1) -> 93.32 | E160: =OFFSET(InputPriceData!D$15,CalculationsAndCharts!$A160+$A$11,IF($C$7,8,0),1,1) -> 97.589996 | F160: =OFFSET(InputPriceData!E$15,CalculationsAndCharts!$A160+$A$11,IF($C$7,8,0),1,1) -> 92.669998 | G160: =OFFSET(InputPriceData!F$15,CalculationsAndCharts!$A160+$A$11,IF($C$7,8,0),1,1) -> 97.540001 | J160: 4.919998 | K160: 5.440616259 | L160: 3.319999 | M160: 0 | N160: 1.750493597 | O160: 1.531003777 | P160: 32.17454629 | Q160: 28.14026397 | R160: 4.034282328 | S160: 60.31481026 | T160: 6.688709308 | U160: 29.1659875 | V160: TRUE | W160: 30 | Y160: 29.1659875 | Z160: TRUE | AA160: 11.869995 | AB160: 85.720001 | AC160: 97.589996 | AD160: 85.720001 | AE160: 97.589996 | AF160: 0.75 | AG160: 0.8502140046 | AP160: 110153700 | BB160: 4.919998 | BC160: 5.440616259 | BD160: 0.8502140046 | BE160: FALSE | BF160: 0.75 | BG160: 0.8502140046 | BI160: FALSE | BM160: 200.2030072 | BN160: 0 | BQ160: 97.589996 | BR160: 85.720001 | BS160: =IF(($A$8-$A160)<B$17,"",BQ160-BR160) -> 11.869995 | BT160: 0.5048912799 | BU160: TRUE | BV160: 0.75 | BX160: 0.5048912799 | BY160: TRUE | BZ160: 11.869995 | CA160: 85.720001 | CB160: 97.589996 | CC160: 85.720001 | CD160: 97.589996
A161: 129 | B161: =OFFSET(InputPriceData!B$15,CalculationsAndCharts!$A161+$A$11,0,1,1) -> 2015-10-05 | C161: =OFFSET(InputPriceData!G$15,CalculationsAndCharts!$A161+$A$11,IF($C$7,8,0),1,1) -> 120898000 | D161: =OFFSET(InputPriceData!C$15,CalculationsAndCharts!$A161+$A$11,IF($C$7,8,0),1,1) -> 92.940002 | E161: =OFFSET(InputPriceData!D$15,CalculationsAndCharts!$A161+$A$11,IF($C$7,8,0),1,1) -> 94.269997 | F161: =OFFSET(InputPriceData!E$15,CalculationsAndCharts!$A161+$A$11,IF($C$7,8,0),1,1) -> 90.470001 | G161: =OFFSET(InputPriceData!F$15,CalculationsAndCharts!$A161+$A$11,IF($C$7,8,0),1,1) -> 93.239998 | J161: 3.799996 | K161: 5.614155679 | L161: 1.979996 | M161: 0 | N161: 1.227325129 | O161: 2.041338369 | P161: 21.86125928 | Q161: 36.36055866 | R161: 14.49929938 | S161: 58.22181794 | T161: 24.90354973 | U161: 36.65841356 | V161: FALSE | W161: 30 | X161: 36.65841356 | Z161: =OR(OFFSET(V161,0,0,-$B$19,1)) -> TRUE | AA161: 11.869995 | AB161: 85.720001 | AC161: 97.589996 | AD161: =IF(V161,MIN(OFFSET(F161,0,0,$B$19,1)),$AZ$34) -> 200.2030072 | AE161: 0 | AF161: 0.75 | AG161: 0.7766354465 | AP161: 120898000 | BB161: 3.799996 | BC161: 5.614155679 | BD161: 0.7766354465 | BE161: FALSE | BF161: 0.75 | BG161: 0.7766354465 | BI161: FALSE | BM161: 200.2030072 | BN161: 0 | BQ161: 96.489998 | BR161: 85.720001 | BS161: =IF(($A$8-$A161)<B$17,"",BQ161-BR161) -> 10.769997 | BT161: 0.4468878794 | BU161: TRUE | BV161: 0.75 | BX161: 0.4468878794 | BY161: TRUE | BZ161: 11.869995 | CA161: 85.720001 | CB161: 97.589996 | CC161: 85.720001 | CD161: 96.489998
A162: 130 | B162: =OFFSET(InputPriceData!B$15,CalculationsAndCharts!$A162+$A$11,0,1,1) -> 2015-09-28 | C162: =OFFSET(InputPriceData!G$15,CalculationsAndCharts!$A162+$A$11,IF($C$7,8,0),1,1) -> 186677400 | D162: =OFFSET(InputPriceData!C$15,CalculationsAndCharts!$A162+$A$11,IF($C$7,8,0),1,1) -> 92.080002 | E162: =OFFSET(InputPriceData!D$15,CalculationsAndCharts!$A162+$A$11,IF($C$7,8,0),1,1) -> 92.290001 | F162: =OFFSET(InputPriceData!E$15,CalculationsAndCharts!$A162+$A$11,IF($C$7,8,0),1,1) -> 85.720001 | G162: =OFFSET(InputPriceData!F$15,CalculationsAndCharts!$A162+$A$11,IF($C$7,8,0),1,1) -> 92.07 | J162: 7.049996 | K162: 6.218875572 | L162: 0 | M162: 6.199997 | N162: =IF(($A$8-$A162)<B$19,"",IF(($A$8-$A162)=B$19,AVERAGE(OFFSET($L162,0,0,B$19,1)),N163*$D$19+$L162*$C$19)) -> 0.976434839 | O162: =IF(($A$8-$A162)<B$19,"",IF(($A$8-$A162)=B$19,AVERAGE(OFFSET($M162,0,0,B$19,1)),O163*$D$19+$M162*$C$19)) -> 2.721784492 | P162: =IF(($A$8-$A162)<B$19,"",N162/K162*100) -> 15.7011477 | Q162: =IF(($A$8-$A162)<B$19,"",O162/K162*100) -> 43.76650506 | R162: =IF(($A$8-$A162)<B$19,"",ABS(P162-Q162)) -> 28.06535736 | S162: =IF(($A$8-$A162)<B$19,"",P162+Q162) -> 59.46765277 | T162: =IF(($A$8-$A162)<B$19,"",R162/S162*100) -> 47.19432507 | U162: =IF(($A$8-$A162)<(2*B$19),"",IF(($A$8-$A162)=(2*B$19),AVERAGE(OFFSET(T162,0,0,B$19,1)),(U163*$D$19+T162*$C$19))) -> 40.5767015 | V162: =U162<$E$19 -> FALSE | W162: =$E$19 -> 30 | X162: 40.5767015 | Z162: TRUE | AA162: =IF(Z162,AC162-AB162,NA()) -> 11.869995 | AB162: =IF(Z162,MIN(OFFSET(AD162,0,0,-$B$19,1)),NA()) -> 85.720001 | AC162: =IF(Z162,MAX(OFFSET(AE162,0,0,-$B$19,1)),NA()) -> 97.589996 | AD162: 200.2030072 | AE162: =IF(V162,MAX(OFFSET(E162,0,0,$B$19,1)),0) -> 0 | AF162: =IF($P$6=1,BV162,IF($P$6=2,BF162,W162)) -> 0.75 | AG162: =IF($P$6=1,BW162,IF($P$6=2,BG162,X162)) ->  | AH162: =IF($P$6=1,BX162,IF($P$6=2,BH162,Y162)) -> 0.7434320327 | AI162: =IF($P$6=1,CA162,IF($P$6=2,BK162,AB162)) -> 85.720001 | AJ162: =IF($P$6=1,BZ162,IF($P$6=2,BJ162,AA162)) -> 10.769997 | AQ162: 186677400 | BB162: =IF($A162<$A$8,MAX(E162-F162,ABS(E162-G163),ABS(F162-G163)),"") -> 7.049996 | BC162: =IF(($A$8-$A162)<B$18,"",IF(($A$8-$A162)=B$18,AVERAGE(OFFSET($BB162,0,0,B$18,1)),BC163*$D$18+$BB162*$C$18)) -> 6.218875572 | BD162: =IF(($A$8-$A162)<2*B$18,"",BC162/OFFSET(BC162,$B$18,0,1,1)) -> 0.7434320327 | BE162: =IF(($A$8-$A162)<2*B$18,"",(BD162<$E$18)) -> TRUE | BF162: =IF(($A$8-$A162)<2*B$18,"",$E$18) -> 0.75 | BG162: =IF(($A$8-$A162)<2*B$18,"",IF(BE162,NA(),BD162)) ->  | BH162: =IF(($A$8-$A162)<2*B$18,"",IF($BE162,$BD162,NA())) -> 0.7434320327 | BI162: =IF(($A$8-$A162)<2*B$18,"",OR(OFFSET(BE162,0,0,-$B$18,1))) -> TRUE | BJ162: =IF(($A$8-$A162)<2*B$18,"",IF(BI162,BL162-BK162,NA())) -> 10.769997 | BK162: =IF(($A$8-$A162)<2*B$18,"",IF(BI162,MIN(OFFSET(BM162,0,0,-$B$18,1)),NA())) -> 85.720001 | BL162: =IF(($A$8-$A162)<2*B$18,"",IF(BI162,MAX(OFFSET(BN162,0,0,-$B$18,1)),NA())) -> 96.489998 | BM162: =IF(($A$8-$A162)<2*B$18,"",IF($BE162,MIN(OFFSET($F162,0,0,$B$18,1)),$AZ$34)) -> 85.720001 | BN162: =IF(($A$8-$A162)<2*B$18,"",IF(BE162,MAX(OFFSET($E162,0,0,$B$18,1)),0)) -> 96.489998 | BQ162: =IF(($A$8-$A162)<B$17,"",MAX(OFFSET(E162,0,0,$B$17,1))) -> 96.489998 | BR162: =IF(($A$8-$A162)<B$17,"",MIN(OFFSET(F162,0,0,$B$17,1))) -> 85.720001 | BS162: =IF(($A$8-$A162)<B$17,"",BQ162-BR162) -> 10.769997 | BT162: =IF(($A$8-$A162)<2*B$17,"",BS162/OFFSET(BS162,$B$17,0,1,1)) -> 0.4468878794 | BU162: =IF(($A$8-$A162)<2*B$17,"",BT162<$E$17) -> TRUE | BV162: =IF(($A$8-$A162)<2*B$17,"",$E$17) -> 0.75 | BW162: =IF(($A$8-$A162)<2*$B$17,"",IF(BU162,NA(),BT162)) ->  | BX162: =IF(($A$8-$A162)<2*$B$18,"",IF(BU162,$BT162,NA())) -> 0.4468878794 | BY162: =IF(($A$8-$A162)<2*$B$17,"",OR(OFFSET(BU162,0,0,-$B$17,1))) -> TRUE | BZ162: =IF(($A$8-$A162)<2*$B$17,"",IF(BY162,CB162-CA162,NA())) -> 11.869995 | CA162: =IF(($A$8-$A162)<2*$B$17,"",IF(BY162,MIN(OFFSET(CC162,0,0,-$B$17,1)),NA())) -> 85.720001 | CB162: =IF(($A$8-$A162)<2*$B$17,"",IF(BY162,MAX(OFFSET(CD162,0,0,-$B$17,1)),NA())) -> 97.589996 | CC162: =IF(($A$8-$A162)<2*$B$17,"",IF($BU162,MIN(OFFSET($F162,0,0,$B$17,1)),$AZ$34)) -> 85.720001 | CD162: =IF(($A$8-$A162)<2*$B$17,"",IF(BU162,MAX(OFFSET($E162,0,0,$B$17,1)),0)) -> 96.489998
A163: 131 | B163: =OFFSET(InputPriceData!B$15,CalculationsAndCharts!$A163+$A$11,0,1,1) -> 2015-09-21 | C163: =OFFSET(InputPriceData!G$15,CalculationsAndCharts!$A163+$A$11,IF($C$7,8,0),1,1) -> 145447900 | D163: =OFFSET(InputPriceData!C$15,CalculationsAndCharts!$A163+$A$11,IF($C$7,8,0),1,1) -> 94.620003 | E163: =OFFSET(InputPriceData!D$15,CalculationsAndCharts!$A163+$A$11,IF($C$7,8,0),1,1) -> 96.489998 | F163: =OFFSET(InputPriceData!E$15,CalculationsAndCharts!$A163+$A$11,IF($C$7,8,0),1,1) -> 91.919998 | G163: =OFFSET(InputPriceData!F$15,CalculationsAndCharts!$A163+$A$11,IF($C$7,8,0),1,1) -> 92.769997 | J163: 4.57 | K163: 5.941835429 | L163: 0.979996 | M163: 0 | N163: 1.301913119 | O163: 1.562380322 | P163: 21.9109589 | Q163: 26.29457415 | R163: 4.383615246 | S163: 48.20553305 | T163: 9.093593556 | U163: 38.37082698 | V163: FALSE | W163: 30 | X163: 38.37082698 | Z163: TRUE | AA163: 11.869995 | AB163: 85.720001 | AC163: 97.589996 | AD163: 200.2030072 | AE163: 0 | AF163: 0.75 | AH163: 0.6165785933 | AI163: 85.720001 | AJ163: 10.769997 | AQ163: 145447900 | BB163: 4.57 | BC163: 5.941835429 | BD163: 0.6165785933 | BE163: TRUE | BF163: 0.75 | BH163: 0.6165785933 | BI163: TRUE | BJ163: 10.769997 | BK163: 85.720001 | BL163: 96.489998 | BM163: 86.5 | BN163: 96.489998 | BQ163: 96.489998 | BR163: 86.5 | BS163: =IF(($A$8-$A163)<B$17,"",BQ163-BR163) -> 9.989998 | BT163: 0.3735975597 | BU163: TRUE | BV163: 0.75 | BX163: 0.3735975597 | BY163: TRUE | BZ163: 11.869995 | CA163: 85.720001 | CB163: 97.589996 | CC163: 86.5 | CD163: 96.489998
A164: 132 | B164: =OFFSET(InputPriceData!B$15,CalculationsAndCharts!$A164+$A$11,0,1,1) -> 2015-09-14 | C164: =OFFSET(InputPriceData!G$15,CalculationsAndCharts!$A164+$A$11,IF($C$7,8,0),1,1) -> 144827900 | D164: =OFFSET(InputPriceData!C$15,CalculationsAndCharts!$A164+$A$11,IF($C$7,8,0),1,1) -> 92.309998 | E164: =OFFSET(InputPriceData!D$15,CalculationsAndCharts!$A164+$A$11,IF($C$7,8,0),1,1) -> 95.510002 | F164: =OFFSET(InputPriceData!E$15,CalculationsAndCharts!$A164+$A$11,IF($C$7,8,0),1,1) -> 91.599998 | G164: =OFFSET(InputPriceData!F$15,CalculationsAndCharts!$A164+$A$11,IF($C$7,8,0),1,1) -> 94.400002 | J164: 3.910004 | K164: 6.399113905 | L164: 3.43 | M164: 0 | N164: 1.409218825 | O164: 2.083173763 | P164: 22.02209315 | Q164: 32.55409724 | R164: 10.53200409 | S164: 54.57619039 | T164: 19.29780004 | U164: 48.12990479 | V164: FALSE | W164: 30 | X164: =IF(V164,NA(),U164) -> 48.12990479 | Y164: =IF(V164,U164,NA()) ->  | Z164: FALSE | AD164: 200.2030072 | AE164: 0 | AF164: 0.75 | AG164: 1.006828719 | AI164: 85.720001 | AJ164: 10.769997 | AP164: 144827900 | BB164: 3.910004 | BC164: 6.399113905 | BD164: 1.006828719 | BE164: FALSE | BF164: 0.75 | BG164: 1.006828719 | BI164: TRUE | BJ164: 10.769997 | BK164: 85.720001 | BL164: 96.489998 | BM164: 200.2030072 | BN164: 0 | BQ164: 95.510002 | BR164: 72 | BS164: =IF(($A$8-$A164)<B$17,"",BQ164-BR164) -> 23.510002 | BT164: 1.79055654 | BU164: FALSE | BV164: 0.75 | BW164: 1.79055654 | BY164: TRUE | BZ164: 10.769997 | CA164: 85.720001 | CB164: 96.489998 | CC164: 200.2030072 | CD164: 0
A165: 133 | B165: =OFFSET(InputPriceData!B$15,CalculationsAndCharts!$A165+$A$11,0,1,1) -> 2015-09-07 | C165: =OFFSET(InputPriceData!G$15,CalculationsAndCharts!$A165+$A$11,IF($C$7,8,0),1,1) -> 107073900 | D165: =OFFSET(InputPriceData!C$15,CalculationsAndCharts!$A165+$A$11,IF($C$7,8,0),1,1) -> 89.690002 | E165: =OFFSET(InputPriceData!D$15,CalculationsAndCharts!$A165+$A$11,IF($C$7,8,0),1,1) -> 92.080002 | F165: =OFFSET(InputPriceData!E$15,CalculationsAndCharts!$A165+$A$11,IF($C$7,8,0),1,1) -> 88.830002 | G165: =OFFSET(InputPriceData!F$15,CalculationsAndCharts!$A165+$A$11,IF($C$7,8,0),1,1) -> 92.050003 | J165: 3.82 | K165: 7.228817207 | L165: 1.029999 | M165: 0 | N165: 0.7356250999 | O165: 2.777565018 | P165: 10.17628581 | Q165: 38.42350606 | R165: 28.24722025 | S165: 48.59979188 | T165: 58.12210127 | U165: 57.74060637 | V165: FALSE | W165: 30 | X165: 57.74060637 | Z165: FALSE | AD165: 200.2030072 | AE165: 0 | AF165: 0.75 | AG165: 1.452264444 | AI165: 85.720001 | AJ165: 10.769997 | AP165: 107073900 | BB165: 3.82 | BC165: 7.228817207 | BD165: 1.452264444 | BE165: FALSE | BF165: 0.75 | BG165: 1.452264444 | BI165: TRUE | BJ165: 10.769997 | BK165: 85.720001 | BL165: 96.489998 | BM165: 200.2030072 | BN165: 0 | BQ165: 96.099998 | BR165: 72 | BS165: =IF(($A$8-$A165)<B$17,"",BQ165-BR165) -> 24.099998 | BT165: 2.993790059 | BU165: FALSE | BV165: 0.75 | BW165: 2.993790059 | BY165: TRUE | BZ165: 10.769997 | CA165: 85.720001 | CB165: 96.489998 | CC165: 200.2030072 | CD165: 0
A166: 134 | B166: =OFFSET(InputPriceData!B$15,CalculationsAndCharts!$A166+$A$11,0,1,1) -> 2015-08-31 | C166: =OFFSET(InputPriceData!G$15,CalculationsAndCharts!$A166+$A$11,IF($C$7,8,0),1,1) -> 149671500 | D166: =OFFSET(InputPriceData!C$15,CalculationsAndCharts!$A166+$A$11,IF($C$7,8,0),1,1) -> 90.599998 | E166: =OFFSET(InputPriceData!D$15,CalculationsAndCharts!$A166+$A$11,IF($C$7,8,0),1,1) -> 91.050003 | F166: =OFFSET(InputPriceData!E$15,CalculationsAndCharts!$A166+$A$11,IF($C$7,8,0),1,1) -> 86.5 | G166: =OFFSET(InputPriceData!F$15,CalculationsAndCharts!$A166+$A$11,IF($C$7,8,0),1,1) -> 88.260002 | J166: 4.550003 | K166: 8.365089609 | L166: 0 | M166: 0 | N166: 0.6375004665 | O166: 3.703420024 | P166: 7.620963986 | Q166: 44.27232937 | R166: 36.65136538 | S166: 51.89329335 | T166: 70.62832789 | U166: 57.6134414 | V166: FALSE | W166: 30 | X166: 57.6134414 | Z166: FALSE | AD166: 200.2030072 | AE166: 0 | AF166: 0.75 | AG166: 1.650953391 | AI166: 86.5 | AJ166: 9.989998 | AQ166: 149671500 | BB166: 4.550003 | BC166: 8.365089609 | BD166: 1.650953391 | BE166: FALSE | BF166: 0.75 | BG166: 1.650953391 | BI166: TRUE | BJ166: 9.989998 | BK166: 86.5 | BL166: 96.489998 | BM166: 200.2030072 | BN166: 0 | BQ166: 96.099998 | BR166: 72 | BS166: =IF(($A$8-$A166)<B$17,"",BQ166-BR166) -> 24.099998 | BT166: 2.227356562 | BU166: FALSE | BV166: 0.75 | BW166: 2.227356562 | BY166: TRUE | BZ166: 9.989998 | CA166: 86.5 | CB166: 96.489998 | CC166: 200.2030072 | CD166: 0
A167: 135 | B167: =OFFSET(InputPriceData!B$15,CalculationsAndCharts!$A167+$A$11,0,1,1) -> 2015-08-24 | C167: =OFFSET(InputPriceData!G$15,CalculationsAndCharts!$A167+$A$11,IF($C$7,8,0),1,1) -> 256503500 | D167: =OFFSET(InputPriceData!C$15,CalculationsAndCharts!$A167+$A$11,IF($C$7,8,0),1,1) -> 77.029999 | E167: =OFFSET(InputPriceData!D$15,CalculationsAndCharts!$A167+$A$11,IF($C$7,8,0),1,1) -> 91.480003 | F167: =OFFSET(InputPriceData!E$15,CalculationsAndCharts!$A167+$A$11,IF($C$7,8,0),1,1) -> 72 | G167: =OFFSET(InputPriceData!F$15,CalculationsAndCharts!$A167+$A$11,IF($C$7,8,0),1,1) -> 91.010002 | J167: 19.480003 | K167: 9.636785145 | L167: 0 | M167: 13.610001 | N167: 0.850000622 | O167: 4.937893365 | P167: 8.820375355 | Q167: 51.24004832 | R167: 42.41967296 | S167: 60.06042367 | T167: 70.62832789 | U167: 53.27514591 | V167: FALSE | W167: 30 | X167: 53.27514591 | Z167: FALSE | AD167: 200.2030072 | AE167: 0 | AF167: 0.75 | AG167: 2.017850999 | AP167: 256503500 | BB167: 19.480003 | BC167: 9.636785145 | BD167: 2.017850999 | BE167: FALSE | BF167: 0.75 | BG167: 2.017850999 | BI167: FALSE | BM167: 200.2030072 | BN167: 0 | BQ167: 98.739998 | BR167: 72 | BS167: =IF(($A$8-$A167)<B$17,"",BQ167-BR167) -> 26.739998 | BT167: 1.908637226 | BU167: FALSE | BV167: 0.75 | BW167: 1.908637226 | BY167: FALSE | CC167: 200.2030072 | CD167: 0
A168: 136 | B168: =OFFSET(InputPriceData!B$15,CalculationsAndCharts!$A168+$A$11,0,1,1) -> 2015-08-17 | C168: =OFFSET(InputPriceData!G$15,CalculationsAndCharts!$A168+$A$11,IF($C$7,8,0),1,1) -> 171220500 | D168: =OFFSET(InputPriceData!C$15,CalculationsAndCharts!$A168+$A$11,IF($C$7,8,0),1,1) -> 94.419998 | E168: =OFFSET(InputPriceData!D$15,CalculationsAndCharts!$A168+$A$11,IF($C$7,8,0),1,1) -> 96.099998 | F168: =OFFSET(InputPriceData!E$15,CalculationsAndCharts!$A168+$A$11,IF($C$7,8,0),1,1) -> 85.610001 | G168: =OFFSET(InputPriceData!F$15,CalculationsAndCharts!$A168+$A$11,IF($C$7,8,0),1,1) -> 86.059998 | J168: =IF($A168<$A$8,MAX(E168-F168,ABS(E168-G169),ABS(F168-G169)),"") -> 10.489997 | K168: =IF(($A$8-$A168)<B$19,"",IF(($A$8-$A168)=B$19,AVERAGE(OFFSET($J168,0,0,B$19,1)),K169*$D$19+$J168*$C$19)) -> 6.355712527 | L168: =IF($A168<$A$8,IF(E168-E169>F169-F168,MAX(E168-E169,0),0),"") -> 0 | M168: =IF($A168<$A$8,IF(F169-F168>E168-E169,MAX(F169-F168,0),0),"") -> 5.580001 | N168: 1.133334163 | O168: 2.04719082 | P168: 17.83174047 | Q168: 32.21024883 | R168: 14.37850836 | S168: 50.0419893 | T168: 28.73288725 | U168: 47.49075191 | V168: FALSE | W168: 30 | X168: 47.49075191 | Z168: FALSE | AD168: 200.2030072 | AE168: 0 | AF168: 0.75 | AG168: 1.399621212 | AQ168: 171220500 | BB168: 10.489997 | BC168: 6.355712527 | BD168: 1.399621212 | BE168: FALSE | BF168: 0.75 | BG168: 1.399621212 | BI168: FALSE | BM168: 200.2030072 | BN168: 0 | BQ168: 98.739998 | BR168: 85.610001 | BS168: =IF(($A$8-$A168)<B$17,"",BQ168-BR168) -> 13.129997 | BT168: 0.9371878434 | BU168: FALSE | BV168: 0.75 | BW168: 0.9371878434 | BY168: FALSE | CC168: 200.2030072 | CD168: 0
A169: 137 | B169: =OFFSET(InputPriceData!B$15,CalculationsAndCharts!$A169+$A$11,0,1,1) -> 2015-08-10 | C169: =OFFSET(InputPriceData!G$15,CalculationsAndCharts!$A169+$A$11,IF($C$7,8,0),1,1) -> 103377900 | D169: =OFFSET(InputPriceData!C$15,CalculationsAndCharts!$A169+$A$11,IF($C$7,8,0),1,1) -> 95.68 | E169: =OFFSET(InputPriceData!D$15,CalculationsAndCharts!$A169+$A$11,IF($C$7,8,0),1,1) -> 95.900002 | F169: =OFFSET(InputPriceData!E$15,CalculationsAndCharts!$A169+$A$11,IF($C$7,8,0),1,1) -> 91.190002 | G169: =OFFSET(InputPriceData!F$15,CalculationsAndCharts!$A169+$A$11,IF($C$7,8,0),1,1) -> 94.419998 | J169: 4.71 | K169: 4.977617703 | L169: 0 | M169: 1.610001 | N169: 1.511112217 | O169: 0.8695874263 | P169: 30.35814133 | Q169: 17.46995206 | R169: 12.88818927 | S169: 47.82809339 | T169: 26.94690161 | U169: 53.74337347 | V169: FALSE | W169: 30 | X169: 53.74337347 | Z169: FALSE | AD169: 200.2030072 | AE169: 0 | AF169: 0.75 | AG169: 1.087283515 | AQ169: 103377900 | BB169: 4.71 | BC169: 4.977617703 | BD169: 1.087283515 | BE169: FALSE | BF169: 0.75 | BG169: 1.087283515 | BI169: FALSE | BM169: 200.2030072 | BN169: 0 | BQ169: 99.239998 | BR169: 91.190002 | BS169: =IF(($A$8-$A169)<B$17,"",BQ169-BR169) -> 8.049996 | BT169: 0.6663903422 | BU169: TRUE | BV169: 0.75 | BX169: 0.6663903422 | BY169: TRUE | BZ169: 8.049996 | CA169: 91.190002 | CB169: 99.239998 | CC169: 91.190002 | CD169: 99.239998
A170: 138 | B170: =OFFSET(InputPriceData!B$15,CalculationsAndCharts!$A170+$A$11,0,1,1) -> 2015-08-03 | C170: =OFFSET(InputPriceData!G$15,CalculationsAndCharts!$A170+$A$11,IF($C$7,8,0),1,1) -> 144762700 | D170: =OFFSET(InputPriceData!C$15,CalculationsAndCharts!$A170+$A$11,IF($C$7,8,0),1,1) -> 93.529999 | E170: =OFFSET(InputPriceData!D$15,CalculationsAndCharts!$A170+$A$11,IF($C$7,8,0),1,1) -> 98.739998 | F170: =OFFSET(InputPriceData!E$15,CalculationsAndCharts!$A170+$A$11,IF($C$7,8,0),1,1) -> 92.800003 | G170: =OFFSET(InputPriceData!F$15,CalculationsAndCharts!$A170+$A$11,IF($C$7,8,0),1,1) -> 94.300003 | J170: 5.939995 | K170: 5.066823604 | L170: 1.459999 | M170: 0 | N170: 2.014816289 | O170: 0.6227829017 | P170: 39.76487928 | Q170: 12.29138708 | R170: 27.4734922 | S170: 52.05626636 | T170: 52.77653224 | U170: 62.67553075 | V170: FALSE | W170: 30 | X170: 62.67553075 | Z170: FALSE | AD170: 200.2030072 | AE170: 0 | AF170: 0.75 | AG170: 1.398114413 | AP170: 144762700 | BB170: 5.939995 | BC170: 5.066823604 | BD170: 1.398114413 | BE170: FALSE | BF170: 0.75 | BG170: 1.398114413 | BI170: FALSE | BM170: 200.2030072 | BN170: 0 | BQ170: 99.239998 | BR170: 88.419998 | BS170: =IF(($A$8-$A170)<B$17,"",BQ170-BR170) -> 10.82 | BT170: 1.159699644 | BU170: FALSE | BV170: 0.75 | BW170: 1.159699644 | BY170: TRUE | BZ170: 8.049996 | CA170: 91.190002 | CB170: 99.239998 | CC170: 200.2030072 | CD170: 0
A171: 139 | B171: =OFFSET(InputPriceData!B$15,CalculationsAndCharts!$A171+$A$11,0,1,1) -> 2015-07-27 | C171: =OFFSET(InputPriceData!G$15,CalculationsAndCharts!$A171+$A$11,IF($C$7,8,0),1,1) -> 271190000 | D171: =OFFSET(InputPriceData!C$15,CalculationsAndCharts!$A171+$A$11,IF($C$7,8,0),1,1) -> 96.580002 | E171: =OFFSET(InputPriceData!D$15,CalculationsAndCharts!$A171+$A$11,IF($C$7,8,0),1,1) -> 97.279999 | F171: =OFFSET(InputPriceData!E$15,CalculationsAndCharts!$A171+$A$11,IF($C$7,8,0),1,1) -> 91.800003 | G171: =OFFSET(InputPriceData!F$15,CalculationsAndCharts!$A171+$A$11,IF($C$7,8,0),1,1) -> 94.010002 | J171: 5.479996 | K171: 4.775766471 | L171: 0 | M171: 3.009995 | N171: 2.199755386 | O171: 0.8303772023 | P171: 46.06078205 | Q171: 17.38730751 | R171: 28.67347454 | S171: 63.44808956 | T171: 45.19202192 | U171: 65.97519692 | V171: FALSE | W171: 30 | X171: 65.97519692 | Z171: FALSE | AD171: 200.2030072 | AE171: 0 | AF171: 0.75 | AG171: 1.245184597 | AQ171: 271190000 | BB171: 5.479996 | BC171: 4.775766471 | BD171: 1.245184597 | BE171: FALSE | BF171: 0.75 | BG171: 1.245184597 | BI171: FALSE | BM171: 200.2030072 | BN171: 0 | BQ171: 99.239998 | BR171: 85.230003 | BS171: =IF(($A$8-$A171)<B$17,"",BQ171-BR171) -> 14.009995 | BT171: 1.389880181 | BU171: FALSE | BV171: 0.75 | BW171: 1.389880181 | BY171: TRUE | BZ171: 8.049996 | CA171: 91.190002 | CB171: 99.239998 | CC171: 200.2030072 | CD171: 0
A172: 140 | B172: =OFFSET(InputPriceData!B$15,CalculationsAndCharts!$A172+$A$11,0,1,1) -> 2015-07-20 | C172: =OFFSET(InputPriceData!G$15,CalculationsAndCharts!$A172+$A$11,IF($C$7,8,0),1,1) -> 185477000 | D172: =OFFSET(InputPriceData!C$15,CalculationsAndCharts!$A172+$A$11,IF($C$7,8,0),1,1) -> 95.849998 | E172: =OFFSET(InputPriceData!D$15,CalculationsAndCharts!$A172+$A$11,IF($C$7,8,0),1,1) -> 99.239998 | F172: =OFFSET(InputPriceData!E$15,CalculationsAndCharts!$A172+$A$11,IF($C$7,8,0),1,1) -> 94.809998 | G172: =OFFSET(InputPriceData!F$15,CalculationsAndCharts!$A172+$A$11,IF($C$7,8,0),1,1) -> 96.949997 | J172: 4.43 | K172: 4.541023295 | L172: 3.849999 | M172: 0 | N172: 2.933007181 | O172: 0.1038379364 | P172: 64.5891243 | Q172: 2.286663813 | R172: 62.30246049 | S172: 66.87578812 | T172: 93.16145984 | U172: 72.90292193 | V172: FALSE | W172: 30 | X172: 72.90292193 | Z172: FALSE | AD172: 200.2030072 | AE172: 0 | AF172: 0.75 | AG172: 1.055924947 | AP172: 185477000 | BB172: 4.43 | BC172: 4.541023295 | BD172: 1.055924947 | BE172: FALSE | BF172: 0.75 | BG172: 1.055924947 | BI172: FALSE | BM172: 200.2030072 | BN172: 0 | BQ172: 99.239998 | BR172: 85.230003 | BS172: =IF(($A$8-$A172)<B$17,"",BQ172-BR172) -> 14.009995 | BT172: 1.304469051 | BU172: FALSE | BV172: 0.75 | BW172: 1.304469051 | BY172: TRUE | BZ172: 8.049996 | CA172: 91.190002 | CB172: 99.239998 | CC172: 200.2030072 | CD172: 0
A173: 141 | B173: =OFFSET(InputPriceData!B$15,CalculationsAndCharts!$A173+$A$11,0,1,1) -> 2015-07-13 | C173: =OFFSET(InputPriceData!G$15,CalculationsAndCharts!$A173+$A$11,IF($C$7,8,0),1,1) -> 163296800 | D173: =OFFSET(InputPriceData!C$15,CalculationsAndCharts!$A173+$A$11,IF($C$7,8,0),1,1) -> 88.660004 | E173: =OFFSET(InputPriceData!D$15,CalculationsAndCharts!$A173+$A$11,IF($C$7,8,0),1,1) -> 95.389999 | F173: =OFFSET(InputPriceData!E$15,CalculationsAndCharts!$A173+$A$11,IF($C$7,8,0),1,1) -> 88.419998 | G173: =OFFSET(InputPriceData!F$15,CalculationsAndCharts!$A173+$A$11,IF($C$7,8,0),1,1) -> 94.970001 | J173: 7.440002 | K173: 4.57803106 | L173: 7.169998 | M173: 0 | N173: 2.627343241 | O173: 0.1384505819 | P173: 57.39024498 | Q173: 3.024238588 | R173: 54.3660064 | S173: 60.41448357 | T173: 89.98836567 | U173: 66.15007595 | V173: FALSE | W173: 30 | X173: 66.15007595 | Z173: FALSE | AD173: 200.2030072 | AE173: 0 | AF173: 0.75 | AG173: 1.331846591 | AP173: 163296800 | BB173: 7.440002 | BC173: 4.57803106 | BD173: 1.331846591 | BE173: FALSE | BF173: 0.75 | BG173: 1.331846591 | BI173: FALSE | BM173: 200.2030072 | BN173: 0 | BQ173: 95.389999 | BR173: 83.309998 | BS173: =IF(($A$8-$A173)<B$17,"",BQ173-BR173) -> 12.080001 | BT173: 2.666668065 | BU173: FALSE | BV173: 0.75 | BW173: 2.666668065 | BY173: FALSE | CC173: 200.2030072 | CD173: 0
A174: 142 | B174: =OFFSET(InputPriceData!B$15,CalculationsAndCharts!$A174+$A$11,0,1,1) -> 2015-07-06 | C174: =OFFSET(InputPriceData!G$15,CalculationsAndCharts!$A174+$A$11,IF($C$7,8,0),1,1) -> 128648400 | D174: =OFFSET(InputPriceData!C$15,CalculationsAndCharts!$A174+$A$11,IF($C$7,8,0),1,1) -> 86.489998 | E174: =OFFSET(InputPriceData!D$15,CalculationsAndCharts!$A174+$A$11,IF($C$7,8,0),1,1) -> 88.220001 | F174: =OFFSET(InputPriceData!E$15,CalculationsAndCharts!$A174+$A$11,IF($C$7,8,0),1,1) -> 85.230003 | G174: =OFFSET(InputPriceData!F$15,CalculationsAndCharts!$A174+$A$11,IF($C$7,8,0),1,1) -> 87.949997 | J174: 2.989998 | K174: 3.624040747 | L174: 0 | M174: 0.339997 | N174: 1.113124988 | O174: 0.1846007759 | P174: 30.71502408 | Q174: 5.093783121 | R174: 25.62124096 | S174: 35.8088072 | T174: 71.55011004 | U174: 58.20397938 | V174: FALSE | W174: 30 | X174: 58.20397938 | Z174: FALSE | AD174: 200.2030072 | AE174: 0 | AF174: 0.75 | AG174: 1.022832818 | AP174: 128648400 | BB174: 2.989998 | BC174: 3.624040747 | BD174: 1.022832818 | BE174: FALSE | BF174: 0.75 | BG174: 1.022832818 | BI174: FALSE | BM174: 200.2030072 | BN174: 0 | BQ174: 89.400002 | BR174: 80.07 | BS174: =IF(($A$8-$A174)<B$17,"",BQ174-BR174) -> 9.330002 | BT174: 2.17482919 | BU174: FALSE | BV174: 0.75 | BW174: 2.17482919 | BY174: FALSE | CC174: 200.2030072 | CD174: 0
A175: 143 | B175: =OFFSET(InputPriceData!B$15,CalculationsAndCharts!$A175+$A$11,0,1,1) -> 2015-06-29 | C175: =OFFSET(InputPriceData!G$15,CalculationsAndCharts!$A175+$A$11,IF($C$7,8,0),1,1) -> 101359900 | D175: =OFFSET(InputPriceData!C$15,CalculationsAndCharts!$A175+$A$11,IF($C$7,8,0),1,1) -> 86.610001 | E175: =OFFSET(InputPriceData!D$15,CalculationsAndCharts!$A175+$A$11,IF($C$7,8,0),1,1) -> 87.949997 | F175: =OFFSET(InputPriceData!E$15,CalculationsAndCharts!$A175+$A$11,IF($C$7,8,0),1,1) -> 85.57 | G175: =OFFSET(InputPriceData!F$15,CalculationsAndCharts!$A175+$A$11,IF($C$7,8,0),1,1) -> 87.290001 | J175: 2.440002 | K175: 3.83538833 | L175: 0 | M175: 0 | N175: 1.484166651 | O175: 0.1328020345 | P175: 38.69664616 | Q175: 3.462544679 | R175: 35.23410148 | S175: 42.15919084 | T175: 83.57395097 | U175: 53.75526916 | V175: FALSE | W175: 30 | X175: 53.75526916 | Z175: FALSE | AD175: 200.2030072 | AE175: 0 | AF175: 0.75 | AG175: 1.086249542 | AP175: 101359900 | BB175: 2.440002 | BC175: 3.83538833 | BD175: 1.086249542 | BE175: FALSE | BF175: 0.75 | BG175: 1.086249542 | BI175: FALSE | BM175: 200.2030072 | BN175: 0 | BQ175: 89.400002 | BR175: 79.32 | BS175: =IF(($A$8-$A175)<B$17,"",BQ175-BR175) -> 10.080002 | BT175: 1.636365024 | BU175: FALSE | BV175: 0.75 | BW175: 1.636365024 | BY175: FALSE | CC175: 200.2030072 | CD175: 0
A176: 144 | B176: =OFFSET(InputPriceData!B$15,CalculationsAndCharts!$A176+$A$11,0,1,1) -> 2015-06-22 | C176: =OFFSET(InputPriceData!G$15,CalculationsAndCharts!$A176+$A$11,IF($C$7,8,0),1,1) -> 186937800 | D176: =OFFSET(InputPriceData!C$15,CalculationsAndCharts!$A176+$A$11,IF($C$7,8,0),1,1) -> 83.410004 | E176: =OFFSET(InputPriceData!D$15,CalculationsAndCharts!$A176+$A$11,IF($C$7,8,0),1,1) -> 89.400002 | F176: =OFFSET(InputPriceData!E$15,CalculationsAndCharts!$A176+$A$11,IF($C$7,8,0),1,1) -> 83.309998 | G176: =OFFSET(InputPriceData!F$15,CalculationsAndCharts!$A176+$A$11,IF($C$7,8,0),1,1) -> 88.010002 | J176: 6.89 | K176: 4.300517106 | L176: 6.21 | M176: 0 | N176: 1.978888868 | O176: 0.1770693794 | P176: 46.01513769 | Q176: 4.117397397 | R176: 41.89774029 | S176: 50.13253508 | T176: 83.57395097 | U176: 43.81570856 | V176: FALSE | W176: 30 | X176: 43.81570856 | Z176: FALSE | AD176: 200.2030072 | AE176: 0 | AF176: 0.75 | AG176: 1.312010307 | AP176: 186937800 | BB176: 6.89 | BC176: 4.300517106 | BD176: 1.312010307 | BE176: FALSE | BF176: 0.75 | BG176: 1.312010307 | BI176: FALSE | BM176: 200.2030072 | BN176: 0 | BQ176: 89.400002 | BR176: 78.660004 | BS176: =IF(($A$8-$A176)<B$17,"",BQ176-BR176) -> 10.739998 | BT176: 2.122530507 | BU176: FALSE | BV176: 0.75 | BW176: 2.122530507 | BY176: FALSE | CC176: 200.2030072 | CD176: 0
A177: 145 | B177: =OFFSET(InputPriceData!B$15,CalculationsAndCharts!$A177+$A$11,0,1,1) -> 2015-06-15 | C177: =OFFSET(InputPriceData!G$15,CalculationsAndCharts!$A177+$A$11,IF($C$7,8,0),1,1) -> 100984900 | D177: =OFFSET(InputPriceData!C$15,CalculationsAndCharts!$A177+$A$11,IF($C$7,8,0),1,1) -> 80.550003 | E177: =OFFSET(InputPriceData!D$15,CalculationsAndCharts!$A177+$A$11,IF($C$7,8,0),1,1) -> 83.190002 | F177: =OFFSET(InputPriceData!E$15,CalculationsAndCharts!$A177+$A$11,IF($C$7,8,0),1,1) -> 80.07 | G177: =OFFSET(InputPriceData!F$15,CalculationsAndCharts!$A177+$A$11,IF($C$7,8,0),1,1) -> 82.510002 | J177: 3.120002 | K177: 3.437356142 | L177: 0.29 | M177: 0 | N177: 0.5685184902 | O177: 0.2360925058 | P177: 16.53941189 | Q177: 6.868433066 | R177: 9.67097882 | S177: 23.40784495 | T177: 41.31511824 | U177: 30.56296109 | V177: FALSE | W177: 30 | X177: 30.56296109 | Z177: FALSE | AD177: 200.2030072 | AE177: 0 | AF177: 0.75 | AG177: 0.9442225463 | AP177: 100984900 | BB177: 3.120002 | BC177: 3.437356142 | BD177: 0.9442225463 | BE177: FALSE | BF177: 0.75 | BG177: 0.9442225463 | BI177: FALSE | BM177: 200.2030072 | BN177: 0 | BQ177: 83.190002 | BR177: 78.660004 | BS177: =IF(($A$8-$A177)<B$17,"",BQ177-BR177) -> 4.529998 | BT177: 0.7377848107 | BU177: TRUE | BV177: 0.75 | BX177: 0.7377848107 | BY177: TRUE | BZ177: 4.529998 | CA177: 78.660004 | CB177: 83.190002 | CC177: 78.660004 | CD177: 83.190002
A178: 146 | B178: =OFFSET(InputPriceData!B$15,CalculationsAndCharts!$A178+$A$11,0,1,1) -> 2015-06-08 | C178: =OFFSET(InputPriceData!G$15,CalculationsAndCharts!$A178+$A$11,IF($C$7,8,0),1,1) -> 84975000 | D178: =OFFSET(InputPriceData!C$15,CalculationsAndCharts!$A178+$A$11,IF($C$7,8,0),1,1) -> 81.82 | E178: =OFFSET(InputPriceData!D$15,CalculationsAndCharts!$A178+$A$11,IF($C$7,8,0),1,1) -> 82.900002 | F178: =OFFSET(InputPriceData!E$15,CalculationsAndCharts!$A178+$A$11,IF($C$7,8,0),1,1) -> 79.32 | G178: =OFFSET(InputPriceData!F$15,CalculationsAndCharts!$A178+$A$11,IF($C$7,8,0),1,1) -> 81.529999 | J178: 3.580002 | K178: 3.543140855 | L178: 0 | M178: 0 | N178: 0.661357987 | O178: 0.3147900078 | P178: 18.66586777 | Q178: 8.884490361 | R178: 9.781377409 | S178: 27.55035813 | T178: 35.50363071 | U178: 26.9789087 | V178: TRUE | W178: 30 | Y178: 26.9789087 | Z178: TRUE | AA178: 4.289993 | AB178: 78.660004 | AC178: 82.949997 | AD178: 78.660004 | AE178: 82.949997 | AF178: 0.75 | AG178: 0.8619639412 | AQ178: 84975000 | BB178: 3.580002 | BC178: 3.543140855 | BD178: 0.8619639412 | BE178: FALSE | BF178: 0.75 | BG178: 0.8619639412 | BI178: FALSE | BM178: 200.2030072 | BN178: 0 | BQ178: 82.949997 | BR178: 78.660004 | BS178: =IF(($A$8-$A178)<B$17,"",BQ178-BR178) -> 4.289993 | BT178: 0.4874994815 | BU178: TRUE | BV178: 0.75 | BX178: 0.4874994815 | BY178: TRUE | BZ178: 4.529998 | CA178: 78.660004 | CB178: 83.190002 | CC178: 78.660004 | CD178: 82.949997
A179: 147 | B179: =OFFSET(InputPriceData!B$15,CalculationsAndCharts!$A179+$A$11,0,1,1) -> 2015-06-01 | C179: =OFFSET(InputPriceData!G$15,CalculationsAndCharts!$A179+$A$11,IF($C$7,8,0),1,1) -> 105794700 | D179: =OFFSET(InputPriceData!C$15,CalculationsAndCharts!$A179+$A$11,IF($C$7,8,0),1,1) -> 79.300003 | E179: =OFFSET(InputPriceData!D$15,CalculationsAndCharts!$A179+$A$11,IF($C$7,8,0),1,1) -> 82.949997 | F179: =OFFSET(InputPriceData!E$15,CalculationsAndCharts!$A179+$A$11,IF($C$7,8,0),1,1) -> 78.660004 | G179: =OFFSET(InputPriceData!F$15,CalculationsAndCharts!$A179+$A$11,IF($C$7,8,0),1,1) -> 82.139999 | J179: 4.289993 | K179: 3.530853807 | L179: 1.879997 | M179: 0 | N179: 0.8818106493 | O179: 0.4197200104 | P179: 24.97443104 | Q179: 11.8872101 | R179: 13.08722094 | S179: 36.86164114 | T179: 35.50363071 | U179: 24.1373347 | V179: TRUE | W179: 30 | Y179: 24.1373347 | Z179: TRUE | AA179: 6.159996 | AB179: 76.790001 | AC179: 82.949997 | AD179: 76.790001 | AE179: 82.949997 | AF179: 0.75 | AG179: 0.9306267964 | AP179: 105794700 | BB179: 4.289993 | BC179: 3.530853807 | BD179: 0.9306267964 | BE179: FALSE | BF179: 0.75 | BG179: 0.9306267964 | BI179: FALSE | BM179: 200.2030072 | BN179: 0 | BQ179: 82.949997 | BR179: 76.790001 | BS179: =IF(($A$8-$A179)<B$17,"",BQ179-BR179) -> 6.159996 | BT179: 0.7213115983 | BU179: TRUE | BV179: 0.75 | BX179: 0.7213115983 | BY179: TRUE | BZ179: 6.400001 | CA179: 76.790001 | CB179: 83.190002 | CC179: 76.790001 | CD179: 82.949997
A180: 148 | B180: =OFFSET(InputPriceData!B$15,CalculationsAndCharts!$A180+$A$11,0,1,1) -> 2015-05-25 | C180: =OFFSET(InputPriceData!G$15,CalculationsAndCharts!$A180+$A$11,IF($C$7,8,0),1,1) -> 58548100 | D180: =OFFSET(InputPriceData!C$15,CalculationsAndCharts!$A180+$A$11,IF($C$7,8,0),1,1) -> 80.43 | E180: =OFFSET(InputPriceData!D$15,CalculationsAndCharts!$A180+$A$11,IF($C$7,8,0),1,1) -> 81.07 | F180: =OFFSET(InputPriceData!E$15,CalculationsAndCharts!$A180+$A$11,IF($C$7,8,0),1,1) -> 78.879997 | G180: =OFFSET(InputPriceData!F$15,CalculationsAndCharts!$A180+$A$11,IF($C$7,8,0),1,1) -> 79.190002 | J180: 2.190003 | K180: 3.27780741 | L180: 0 | M180: 0.580002 | N180: 0.5490818657 | O180: 0.5596266805 | P180: 16.7514987 | Q180: 17.07320201 | R180: 0.3217033039 | S180: 33.82470071 | T180: 0.9510898757 | U180: 20.34856936 | V180: TRUE | W180: 30 | Y180: 20.34856936 | Z180: TRUE | AA180: 6.159996 | AB180: 76.790001 | AC180: 82.949997 | AD180: 76.790001 | AE180: 81.849998 | AF180: 0.75 | AG180: 0.7843996101 | AQ180: 58548100 | BB180: 2.190003 | BC180: 3.27780741 | BD180: 0.7843996101 | BE180: FALSE | BF180: 0.75 | BG180: 0.7843996101 | BI180: FALSE | BM180: 200.2030072 | BN180: 0 | BQ180: 81.849998 | BR180: 76.790001 | BS180: =IF(($A$8-$A180)<B$17,"",BQ180-BR180) -> 5.059997 | BT180: 0.6764706394 | BU180: TRUE | BV180: 0.75 | BX180: 0.6764706394 | BY180: TRUE | BZ180: 6.400001 | CA180: 76.790001 | CB180: 83.190002 | CC180: 76.790001 | CD180: 81.849998
A181: 149 | B181: =OFFSET(InputPriceData!B$15,CalculationsAndCharts!$A181+$A$11,0,1,1) -> 2015-05-18 | C181: =OFFSET(InputPriceData!G$15,CalculationsAndCharts!$A181+$A$11,IF($C$7,8,0),1,1) -> 95060100 | D181: =OFFSET(InputPriceData!C$15,CalculationsAndCharts!$A181+$A$11,IF($C$7,8,0),1,1) -> 80.330002 | E181: =OFFSET(InputPriceData!D$15,CalculationsAndCharts!$A181+$A$11,IF($C$7,8,0),1,1) -> 81.690002 | F181: =OFFSET(InputPriceData!E$15,CalculationsAndCharts!$A181+$A$11,IF($C$7,8,0),1,1) -> 79.459999 | G181: =OFFSET(InputPriceData!F$15,CalculationsAndCharts!$A181+$A$11,IF($C$7,8,0),1,1) -> 80.540001 | J181: 2.230003 | K181: 3.640408879 | L181: 0 | M181: 0 | N181: 0.7321091543 | O181: 0.5528349073 | P181: 20.11062984 | Q181: 15.18606634 | R181: 4.924563503 | S181: 35.29669617 | T181: 13.95191062 | U181: 26.81439586 | V181: TRUE | W181: 30 | Y181: 26.81439586 | Z181: TRUE | AA181: 6.159996 | AB181: 76.790001 | AC181: 82.949997 | AD181: 76.790001 | AE181: 82.93 | AF181: 0.75 | AG181: 0.9181368006 | AP181: 95060100 | BB181: 2.230003 | BC181: 3.640408879 | BD181: 0.9181368006 | BE181: FALSE | BF181: 0.75 | BG181: 0.9181368006 | BI181: FALSE | BM181: 200.2030072 | BN181: 0 | BQ181: 82.93 | BR181: 76.790001 | BS181: =IF(($A$8-$A181)<B$17,"",BQ181-BR181) -> 6.139999 | BT181: 1.176246596 | BU181: FALSE | BV181: 0.75 | BW181: 1.176246596 | BY181: TRUE | BZ181: 6.159996 | CA181: 76.790001 | CB181: 82.949997 | CC181: 200.2030072 | CD181: 0
A182: 150 | B182: =OFFSET(InputPriceData!B$15,CalculationsAndCharts!$A182+$A$11,0,1,1) -> 2015-05-11 | C182: =OFFSET(InputPriceData!G$15,CalculationsAndCharts!$A182+$A$11,IF($C$7,8,0),1,1) -> 138179600 | D182: =OFFSET(InputPriceData!C$15,CalculationsAndCharts!$A182+$A$11,IF($C$7,8,0),1,1) -> 78.480003 | E182: =OFFSET(InputPriceData!D$15,CalculationsAndCharts!$A182+$A$11,IF($C$7,8,0),1,1) -> 81.849998 | F182: =OFFSET(InputPriceData!E$15,CalculationsAndCharts!$A182+$A$11,IF($C$7,8,0),1,1) -> 76.790001 | G182: =OFFSET(InputPriceData!F$15,CalculationsAndCharts!$A182+$A$11,IF($C$7,8,0),1,1) -> 80.419998 | J182: 5.059997 | K182: 4.110544173 | L182: 2.159996 | M182: 0 | N182: 0.9761455391 | O182: 0.7371132097 | P182: 23.74735554 | Q182: 17.93225371 | R182: 5.815101829 | S182: 41.67960924 | T182: 13.95191062 | U182: 31.10189094 | V182: FALSE | W182: 30 | X182: 31.10189094 | Z182: TRUE | AA182: 6.159996 | AB182: 76.790001 | AC182: 82.949997 | AD182: 200.2030072 | AE182: 0 | AF182: 0.75 | AG182: 1.115986096 | AP182: 138179600 | BB182: 5.059997 | BC182: 4.110544173 | BD182: 1.115986096 | BE182: FALSE | BF182: 0.75 | BG182: 1.115986096 | BI182: FALSE | BM182: 200.2030072 | BN182: 0 | BQ182: 85.589996 | BR182: 76.790001 | BS182: =IF(($A$8-$A182)<B$17,"",BQ182-BR182) -> 8.799995 | BT182: 1.543859584 | BU182: FALSE | BV182: 0.75 | BW182: 1.543859584 | BY182: TRUE | BZ182: 6.159996 | CA182: 76.790001 | CB182: 82.949997 | CC182: 200.2030072 | CD182: 0
A183: 151 | B183: =OFFSET(InputPriceData!B$15,CalculationsAndCharts!$A183+$A$11,0,1,1) -> 2015-05-04 | C183: =OFFSET(InputPriceData!G$15,CalculationsAndCharts!$A183+$A$11,IF($C$7,8,0),1,1) -> 105359300 | D183: =OFFSET(InputPriceData!C$15,CalculationsAndCharts!$A183+$A$11,IF($C$7,8,0),1,1) -> 79.330002 | E183: =OFFSET(InputPriceData!D$15,CalculationsAndCharts!$A183+$A$11,IF($C$7,8,0),1,1) -> 79.690002 | F183: =OFFSET(InputPriceData!E$15,CalculationsAndCharts!$A183+$A$11,IF($C$7,8,0),1,1) -> 77.050003 | G183: =OFFSET(InputPriceData!F$15,CalculationsAndCharts!$A183+$A$11,IF($C$7,8,0),1,1) -> 78.510002 | J183: 2.639999 | K183: 3.794059897 | L183: 0 | M183: 1.059998 | N183: 0.5815287188 | O183: 0.982817613 | P183: 15.32734682 | Q183: 25.90411432 | R183: 10.5767675 | S183: 41.23146114 | T183: 25.65217727 | U183: 36.81855104 | V183: FALSE | W183: 30 | X183: 36.81855104 | Z183: TRUE | AA183: 6.139999 | AB183: 76.790001 | AC183: 82.93 | AD183: 200.2030072 | AE183: 0 | AF183: 0.75 | AG183: 1.019605452 | AQ183: 105359300 | BB183: 2.639999 | BC183: 3.794059897 | BD183: 1.019605452 | BE183: FALSE | BF183: 0.75 | BG183: 1.019605452 | BI183: FALSE | BM183: 200.2030072 | BN183: 0 | BQ183: 85.589996 | BR183: 77.050003 | BS183: =IF(($A$8-$A183)<B$17,"",BQ183-BR183) -> 8.539993 | BT183: 0.9804815133 | BU183: FALSE | BV183: 0.75 | BW183: 0.9804815133 | BY183: TRUE | BZ183: 5.059997 | CA183: 76.790001 | CB183: 81.849998 | CC183: 200.2030072 | CD183: 0
A184: 152 | B184: =OFFSET(InputPriceData!B$15,CalculationsAndCharts!$A184+$A$11,0,1,1) -> 2015-04-27 | C184: =OFFSET(InputPriceData!G$15,CalculationsAndCharts!$A184+$A$11,IF($C$7,8,0),1,1) -> 128787000 | D184: =OFFSET(InputPriceData!C$15,CalculationsAndCharts!$A184+$A$11,IF($C$7,8,0),1,1) -> 81.870003 | E184: =OFFSET(InputPriceData!D$15,CalculationsAndCharts!$A184+$A$11,IF($C$7,8,0),1,1) -> 82.93 | F184: =OFFSET(InputPriceData!E$15,CalculationsAndCharts!$A184+$A$11,IF($C$7,8,0),1,1) -> 78.110001 | G184: =OFFSET(InputPriceData!F$15,CalculationsAndCharts!$A184+$A$11,IF($C$7,8,0),1,1) -> 78.989998 | J184: 4.819999 | K184: 4.178746862 | L184: 0 | M184: 3.129997 | N184: 0.775371625 | O184: 0.9570908173 | P184: 18.55512312 | Q184: 22.90377591 | R184: 4.348652796 | S184: 41.45889903 | T184: 10.48906965 | U184: 40.54067563 | V184: FALSE | W184: 30 | X184: 40.54067563 | Z184: TRUE | AA184: 6.139999 | AB184: 76.790001 | AC184: 82.93 | AD184: 200.2030072 | AE184: 0 | AF184: 0.75 | AG184: 1.022162619 | AQ184: 128787000 | BB184: 4.819999 | BC184: 4.178746862 | BD184: 1.022162619 | BE184: FALSE | BF184: 0.75 | BG184: 1.022162619 | BI184: FALSE | BM184: 200.2030072 | BN184: 0 | BQ184: 85.589996 | BR184: 78.110001 | BS184: =IF(($A$8-$A184)<B$17,"",BQ184-BR184) -> 7.479995 | BT184: 0.8490348125 | BU184: FALSE | BV184: 0.75 | BW184: 0.8490348125 | BY184: FALSE | CC184: 200.2030072 | CD184: 0
A185: 153 | B185: =OFFSET(InputPriceData!B$15,CalculationsAndCharts!$A185+$A$11,0,1,1) -> 2015-04-20 | C185: =OFFSET(InputPriceData!G$15,CalculationsAndCharts!$A185+$A$11,IF($C$7,8,0),1,1) -> 204786400 | D185: =OFFSET(InputPriceData!C$15,CalculationsAndCharts!$A185+$A$11,IF($C$7,8,0),1,1) -> 81.540001 | E185: =OFFSET(InputPriceData!D$15,CalculationsAndCharts!$A185+$A$11,IF($C$7,8,0),1,1) -> 85.589996 | F185: =OFFSET(InputPriceData!E$15,CalculationsAndCharts!$A185+$A$11,IF($C$7,8,0),1,1) -> 81.239998 | G185: =OFFSET(InputPriceData!F$15,CalculationsAndCharts!$A185+$A$11,IF($C$7,8,0),1,1) -> 81.529999 | J185: 4.809997 | K185: 3.96499615 | L185: 1.649994 | M185: 0 | N185: 1.033828833 | O185: 0.2327887564 | P185: 26.07389249 | Q185: 5.871096656 | R185: 20.20279584 | S185: 31.94498915 | T185: 63.2424564 | U185: 50.55787763 | V185: FALSE | W185: 30 | X185: 50.55787763 | Z185: FALSE | AD185: 200.2030072 | AE185: 0 | AF185: 0.75 | AG185: 0.9233390908 | AQ185: 204786400 | BB185: 4.809997 | BC185: 3.96499615 | BD185: 0.9233390908 | BE185: FALSE | BF185: 0.75 | BG185: 0.9233390908 | BI185: FALSE | BM185: 200.2030072 | BN185: 0 | BQ185: 85.589996 | BR185: 80.370003 | BS185: =IF(($A$8-$A185)<B$17,"",BQ185-BR185) -> 5.219993 | BT185: 0.592507853 | BU185: TRUE | BV185: 0.75 | BX185: 0.592507853 | BY185: TRUE | BZ185: 5.219993 | CA185: 80.370003 | CB185: 85.589996 | CC185: 80.370003 | CD185: 85.589996
A186: 154 | B186: =OFFSET(InputPriceData!B$15,CalculationsAndCharts!$A186+$A$11,0,1,1) -> 2015-04-13 | C186: =OFFSET(InputPriceData!G$15,CalculationsAndCharts!$A186+$A$11,IF($C$7,8,0),1,1) -> 106702600 | D186: =OFFSET(InputPriceData!C$15,CalculationsAndCharts!$A186+$A$11,IF($C$7,8,0),1,1) -> 81.93 | E186: =OFFSET(InputPriceData!D$15,CalculationsAndCharts!$A186+$A$11,IF($C$7,8,0),1,1) -> 83.940002 | F186: =OFFSET(InputPriceData!E$15,CalculationsAndCharts!$A186+$A$11,IF($C$7,8,0),1,1) -> 80.370003 | G186: =OFFSET(InputPriceData!F$15,CalculationsAndCharts!$A186+$A$11,IF($C$7,8,0),1,1) -> 80.779999 | J186: 3.569999 | K186: 3.6833292 | L186: 0.520004 | M186: 0 | N186: 0.8284404445 | O186: 0.3103850085 | P186: 22.49162102 | Q186: 8.426751769 | R186: 14.06486925 | S186: 30.91837279 | T186: 45.49032818 | U186: 46.3296847 | V186: FALSE | W186: 30 | X186: 46.3296847 | Z186: FALSE | AD186: 200.2030072 | AE186: 0 | AF186: 0.75 | AG186: 0.8341646427 | AQ186: 106702600 | BB186: 3.569999 | BC186: 3.6833292 | BD186: 0.8341646427 | BE186: FALSE | BF186: 0.75 | BG186: 0.8341646427 | BI186: FALSE | BM186: 200.2030072 | BN186: 0 | BQ186: 86.07 | BR186: 80.370003 | BS186: =IF(($A$8-$A186)<B$17,"",BQ186-BR186) -> 5.699997 | BT186: 0.776566772 | BU186: FALSE | BV186: 0.75 | BW186: 0.776566772 | BY186: TRUE | BZ186: 5.219993 | CA186: 80.370003 | CB186: 85.589996 | CC186: 200.2030072 | CD186: 0
A187: 155 | B187: =OFFSET(InputPriceData!B$15,CalculationsAndCharts!$A187+$A$11,0,1,1) -> 2015-04-06 | C187: =OFFSET(InputPriceData!G$15,CalculationsAndCharts!$A187+$A$11,IF($C$7,8,0),1,1) -> 83953600 | D187: =OFFSET(InputPriceData!C$15,CalculationsAndCharts!$A187+$A$11,IF($C$7,8,0),1,1) -> 80.800003 | E187: =OFFSET(InputPriceData!D$15,CalculationsAndCharts!$A187+$A$11,IF($C$7,8,0),1,1) -> 83.419998 | F187: =OFFSET(InputPriceData!E$15,CalculationsAndCharts!$A187+$A$11,IF($C$7,8,0),1,1) -> 80.800003 | G187: =OFFSET(InputPriceData!F$15,CalculationsAndCharts!$A187+$A$11,IF($C$7,8,0),1,1) -> 82.040001 | J187: 2.619995 | K187: 3.721105933 | L187: 0 | M187: 0.07 | N187: 0.9312525927 | O187: 0.413846678 | P187: 25.0262317 | Q187: 11.12160432 | R187: 13.90462739 | S187: 36.14783602 | T187: 38.46600217 | U187: 46.60947021 | V187: FALSE | W187: 30 | X187: 46.60947021 | Z187: FALSE | AD187: 200.2030072 | AE187: 0 | AF187: 0.75 | AG187: 1.071092712 | AP187: 83953600 | BB187: 2.619995 | BC187: 3.721105933 | BD187: 1.071092712 | BE187: FALSE | BF187: 0.75 | BG187: 1.071092712 | BI187: FALSE | BM187: 200.2030072 | BN187: 0 | BQ187: 86.07 | BR187: 77.360001 | BS187: =IF(($A$8-$A187)<B$17,"",BQ187-BR187) -> 8.709999 | BT187: 1.260492625 | BU187: FALSE | BV187: 0.75 | BW187: 1.260492625 | BY187: TRUE | BZ187: 5.219993 | CA187: 80.370003 | CB187: 85.589996 | CC187: 200.2030072 | CD187: 0
A188: 156 | B188: =OFFSET(InputPriceData!B$15,CalculationsAndCharts!$A188+$A$11,0,1,1) -> 2015-03-30 | C188: =OFFSET(InputPriceData!G$15,CalculationsAndCharts!$A188+$A$11,IF($C$7,8,0),1,1) -> 85910200 | D188: =OFFSET(InputPriceData!C$15,CalculationsAndCharts!$A188+$A$11,IF($C$7,8,0),1,1) -> 83.809998 | E188: =OFFSET(InputPriceData!D$15,CalculationsAndCharts!$A188+$A$11,IF($C$7,8,0),1,1) -> 84.339996 | F188: =OFFSET(InputPriceData!E$15,CalculationsAndCharts!$A188+$A$11,IF($C$7,8,0),1,1) -> 80.870003 | G188: =OFFSET(InputPriceData!F$15,CalculationsAndCharts!$A188+$A$11,IF($C$7,8,0),1,1) -> 81.559998 | J188: 3.469993 | K188: 4.08814291 | L188: 0 | M188: 1.269996 | N188: 1.241670124 | O188: 0.5284622373 | P188: 30.37247354 | Q188: 12.92670655 | R188: 17.44576699 | S188: 43.29918009 | T188: 40.29121788 | U188: 49.32395956 | V188: FALSE | W188: 30 | X188: 49.32395956 | Z188: FALSE | AD188: 200.2030072 | AE188: 0 | AF188: 0.75 | AG188: 1.100295637 | AQ188: 85910200 | BB188: 3.469993 | BC188: 4.08814291 | BD188: 1.100295637 | BE188: FALSE | BF188: 0.75 | BG188: 1.100295637 | BI188: FALSE | BM188: 200.2030072 | BN188: 0 | BQ188: 86.07 | BR188: 77.260002 | BS188: =IF(($A$8-$A188)<B$17,"",BQ188-BR188) -> 8.809998 | BT188: 1.03161557 | BU188: FALSE | BV188: 0.75 | BW188: 1.03161557 | BY188: TRUE | BZ188: 5.219993 | CA188: 80.370003 | CB188: 85.589996 | CC188: 200.2030072 | CD188: 0
A189: 157 | B189: =OFFSET(InputPriceData!B$15,CalculationsAndCharts!$A189+$A$11,0,1,1) -> 2015-03-23 | C189: =OFFSET(InputPriceData!G$15,CalculationsAndCharts!$A189+$A$11,IF($C$7,8,0),1,1) -> 148126900 | D189: =OFFSET(InputPriceData!C$15,CalculationsAndCharts!$A189+$A$11,IF($C$7,8,0),1,1) -> 83.919998 | E189: =OFFSET(InputPriceData!D$15,CalculationsAndCharts!$A189+$A$11,IF($C$7,8,0),1,1) -> 86.07 | F189: =OFFSET(InputPriceData!E$15,CalculationsAndCharts!$A189+$A$11,IF($C$7,8,0),1,1) -> 82.139999 | G189: =OFFSET(InputPriceData!F$15,CalculationsAndCharts!$A189+$A$11,IF($C$7,8,0),1,1) -> 83.300003 | J189: 3.930001 | K189: 4.29419288 | L189: 1.470002 | M189: 0 | N189: 1.655560165 | O189: 0.2812843164 | P189: 38.55346536 | Q189: 6.550341922 | R189: 32.00312344 | S189: 45.10380728 | T189: 70.95437252 | U189: 52.33487345 | V189: FALSE | W189: 30 | X189: 52.33487345 | Z189: FALSE | AD189: 200.2030072 | AE189: 0 | AF189: 0.75 | AG189: 1.130846427 | AQ189: 148126900 | BB189: 3.930001 | BC189: 4.29419288 | BD189: 1.130846427 | BE189: FALSE | BF189: 0.75 | BG189: 1.130846427 | BI189: FALSE | BM189: 200.2030072 | BN189: 0 | BQ189: 86.07 | BR189: 77.260002 | BS189: =IF(($A$8-$A189)<B$17,"",BQ189-BR189) -> 8.809998 | BT189: 1.112372642 | BU189: FALSE | BV189: 0.75 | BW189: 1.112372642 | BY189: FALSE | CC189: 200.2030072 | CD189: 0
A190: 158 | B190: =OFFSET(InputPriceData!B$15,CalculationsAndCharts!$A190+$A$11,0,1,1) -> 2015-03-16 | C190: =OFFSET(InputPriceData!G$15,CalculationsAndCharts!$A190+$A$11,IF($C$7,8,0),1,1) -> 164584900 | D190: =OFFSET(InputPriceData!C$15,CalculationsAndCharts!$A190+$A$11,IF($C$7,8,0),1,1) -> 77.959999 | E190: =OFFSET(InputPriceData!D$15,CalculationsAndCharts!$A190+$A$11,IF($C$7,8,0),1,1) -> 84.599998 | F190: =OFFSET(InputPriceData!E$15,CalculationsAndCharts!$A190+$A$11,IF($C$7,8,0),1,1) -> 77.360001 | G190: =OFFSET(InputPriceData!F$15,CalculationsAndCharts!$A190+$A$11,IF($C$7,8,0),1,1) -> 83.800003 | J190: 7.239997 | K190: 4.415590174 | L190: 4.689994 | M190: 0 | N190: 1.717412886 | O190: 0.3750457552 | P190: 38.89429994 | Q190: 8.493672204 | R190: 30.40062774 | S190: 47.38797214 | T190: 64.15262431 | U190: 46.12837376 | V190: FALSE | W190: 30 | X190: 46.12837376 | Z190: FALSE | AD190: 200.2030072 | AE190: 0 | AF190: 0.75 | AG190: 1.111371498 | AP190: 164584900 | BB190: 7.239997 | BC190: 4.415590174 | BD190: 1.111371498 | BE190: FALSE | BF190: 0.75 | BG190: 1.111371498 | BI190: FALSE | BM190: 200.2030072 | BN190: 0 | BQ190: 84.599998 | BR190: 77.260002 | BS190: =IF(($A$8-$A190)<B$17,"",BQ190-BR190) -> 7.339996 | BT190: 1.065311621 | BU190: FALSE | BV190: 0.75 | BW190: 1.065311621 | BY190: FALSE | CC190: 200.2030072 | CD190: 0
